Workbook

Sheet userpassword (hidden)
A1: User | B1: Password
A2: admin | B2: 60715417
A4: Ket:
A5: 01. Sel A2 berisi User Name untuk Login
A6: 02. Sel B2 berisi Password untuk Login

Sheet DONT ERASE
A1: 1 | C1: 2 | E1: 3 | G1: 4 | I1: 5 | K1: 6
A2: TELKOMSEL | C2: INDOSAT | E2: XL | G2: THREE | I2: SMART | K2: AXIS | M2: CERIA | O2: Guru MI
A3: 0811- (Kartu Halo 10, 11 digit) | C3: 0855- (Matrix 10 digit) | E3: 0817- (Pra bayar dan Explor 10, 11, 12 digit) | G3: 0896- (Pra bayar dan Pasca bayar 11, 12 digit) | I3: 0881- (Pra bayar dan Pasca bayar 11, 12 digit) | K3: 0831 | M3: 0828- (Pra bayar dan Pasca bayar ) | O3: PPDB
A4: 0812- (Kartu Halo, simPATI 11, 12 digit) | C4: 0856- (IM3 (10 digit limited edition), 11, dan 12 digit) | E4: 0818- (Pra bayar dan Explor 10, 11, 12 digit) | G4: 0897- (Pra bayar dan Pasca bayar 11, 12 digit) | I4: 0882- (Pra bayar dan Pasca bayar 11, 12 digit) | K4: 0832 | O4: Wali Murid Kelas 1a
A5: 0813- (Kartu Halo, simPATI 12 digit) | C5: 0857- (IM3 12 digit) | E5: 0819- (Pra bayar dan Explor 10, 11, 12 digit) | G5: 0898- (Pra bayar dan Pasca bayar 11, 12 digit) | I5: 0883- (Pra bayar dan Pasca bayar 11, 12 digit) | K5: 0838 | O5: Wali Murid Kelas 1b
A6: 0821- (simPATI 12 digit) | C6: 0858- (Mentari 12 digit) | E6: 0859- (Pra bayar dan Explor 12 digit) | G6: 0899- (Pra bayar dan Pasca bayar 11, 12 digit) | I6: 0884- (Pra bayar dan Pasca bayar 11, 12 digit) | O6: Wali Murid Kelas 1c
A7: 0822- (simPATI, Kartu Facebook) | C7: 0814- (Broadband Indosat M2 12 digit) | E7: 0877- (Pra bayar dan Explor 12 digit) | I7: 0885- (Pra bayar dan Pasca bayar 11, 12 digit) | O7: Wali Murid Kelas 2a
A8: 0823- (Kartu As 12 digit) | C8: 0815- (Matrix, Mentari 11, 12 digit) | E8: 0878- (Pra bayar dan Explor 12 digit) | I8: 0886- (Pra bayar dan Pasca bayar 11, 12 digit) | O8: Wali Murid Kelas 2b
A9: 0852- (Kartu As 12 digit) | C9: 0816- (Matrix, M | I9: 0887- (Pra bayar dan Pasca bayar 11, 12 digit) | O9: Wali Murid Kelas 3a
A10: 0853- (Kartu As 12 digit) | O10: Wali Murid Kelas 3b
A11: 0851 – Kode Kartu AS pengganti Flexi yang sudah di akuisisi Telkomsel. | O11: Wali Murid Kelas 4a
G12: =LEFT(G2,4) -> THRE | O12: Wali Murid Kelas 4b
A13: =LEFT(A3,4) -> 0811 | C13: =LEFT(C3,4) -> 0855 | E13: =LEFT(E3,4) -> 0817 | G13: =LEFT(G3,4) -> 0896 | I13: =LEFT(I3,4) -> 0881 | K13: =LEFT(K3,4) -> 0831 | M13: =LEFT(M3,4) -> 0828 | O13: Wali Murid Kelas 5a
A14: =LEFT(A4,4) -> 0812 | C14: =LEFT(C4,4) -> 0856 | E14: =LEFT(E4,4) -> 0818 | G14: =LEFT(G4,4) -> 0897 | I14: =LEFT(I4,4) -> 0882 | K14: =LEFT(K4,4) -> 0832 | O14: Wali Murid Kelas 5b
A15: 0813 | C15: 0857 | E15: 0819 | G15: 0898 | I15: 0883 | K15: 0838 | M15: =LEFT(M5,4) ->  | O15: Wali Murid Kelas 6a
A16: 0821 | C16: 0858 | E16: 0859 | G16: 0899 | I16: 0884 | O16: Wali Murid Kelas 6b
A17: 0822 | C17: 0814 | E17: 0877 | I17: 0885
A18: 0823 | C18: 0815 | E18: 0878 | I18: 0886
A19: 0852 | C19: 0816 | I19: 0887
A20: 0853
A21: 0851
A22: JUMLAH KOLOM | C22: JUMLAH KOLOM | E22: JUMLAH KOLOM | G22: JUMLAH KOLOM | I22: JUMLAH KOLOM | K22: JUMLAH KOLOM | M22: JUMLAH KOLOM
A23: 9 | C23: 7 | E23: 6 | G23: 4 | I23: 7 | K23: 2 | M23: 1

Sheet HOME
B2: =UPPER("APLIKASI DATA SISWA - GURU") -> APLIKASI DATA SISWA - GURU
B4: =UPPER(PROFIL!D4) -> MI NURUL ISLAM LABRUK KIDUL
B6: TAHUN PELAJARAN 2019/2020

Sheet PROFIL
B1: PROFIL MADRASAH
B2: =HOME!B6:H6 -> TAHUN PELAJARAN 2019/2020
A4: 1 | B4: Nama Madrasah | C4: : | D4: MI Nurul Islam Labruk Kidul
A5: 2 | B5: Nama Kepala Madrasah | C5: : | D5: Sahroni,S.Pd.I
B6: NIP | C6: : | D6: -
A7: 3 | B7: NSM | C7: : | D7: 111235080166
A8: 4 | B8: NPSN Baru | C8: : | D8: 60715417
A9: 5 | B9: NPWP | C9: : | D9: 22723431625063
A10: 6 | B10: Provinsi | C10: : | D10: Jawa Timur
A11: 7 | B11: Kabupaten | C11: : | D11: Lumajang
A12: 8 | B12: Kecamatan | C12: : | D12: Sumbersuko
A13: 9 | B13: Desa / Kelurahan | C13: : | D13: Labruk Kidul
A14: 10 | B14: Jalan dan Nomor | C14: : | D14: Jl. Raya Labruk Kidul No. 65
A15: 11 | B15: Kode Pos | C15: : | D15: 67313
A16: 12 | B16: Telepon | C16: : | D16: (0334) 8796031
A17: 13 | B17: Daerah | C17: : | D17: Pedesaan
A18: 14 | B18: Status Sekolah | C18: : | D18: Swasta
A19: 15 | B19: SK Ijin Operasional Madrasah | C19: : | D19: Kd. 13.08/4/PP.00./64.b/2010
A20: 16 | B20: Status Akreditasi | C20: : | D20: A/2012
A21: 17 | B21: Organsasi Penyelenggara | C21: : | D21: Yayasan LP Ma’arif NU
A22: 18 | B22: Surat Keputusan | C22: : | D22: PC/01/B-2/I/1976
A23: 19 | B23: Penerbit SK Ditanda Tangani Oleh | C23: : | D23: H. Roziqi / NIP. 150177552
A24: 20 | B24: Tahun Berdiri | C24: : | D24: 1931
A25: 21 | B25: Kegiatan Belajar Mengajar | C25: : | D25: Pagi
A26: 22 | B26: Bagunan Madrasah | C26: : | D26: Milik Madrasah
A27: 23 | B27: Lokasi Sekolah | C27: : | D27: Jln. Raya Labruk Kidul No. 65
A28: 24 | B28: Garis Bujur | C28: : | D28: -8.150491033677007’’N, 113.20136547088623’’S
A29: 25 | B29: Jarak Ke Pusat Kecamatan | C29: : | D29: 300 m
A30: 26 | B30: Jarak Ke Pusat Otoda | C30: : | D30: 5 Km
A31: 27 | B31: e-mail | C31: : | D31: milabrukkidul@ymail.com
D32: milabrukkidul@gmail.com
A33: 28 | B33: alternative e-mail | C33: : | D33: minurislabrukkidul@yahoo.co.id
A34: 29 | B34: website | C34: : | D34: milabrukkidul.blogspot.co.id
D35: http:/20521001.siap-sekolah.com
A36: 30 | B36: Pengawas Madrasah | C36: : | D36: Drs. ROHMAT BASUKI,MA
B37: NIP | C37: : | D37: 1962090319920301002

Sheet AUTOMATIC
A1: No.absen | C1: 1A | E1: 1B | G1: 1C | I1: 2A | K1: 2B | M1: 2C | O1: 3A | Q1: 3B | S1: 3C | U1: 4A | W1: 4B | Y1: 5A | AA1: 5B | AC1: 6A | AE1: 6B | AH1: L | AJ1: No.absen | AL1: 1A | AM1: 1B | AN1: 1C | AO1: 2A | AP1: 2B | AQ1: 2C | AR1: 3A | AS1: 3B | AT1: 3C | AU1: 4A | AV1: 4B | AW1: 5A | AX1: 5B | AY1: 6a | AZ1: 6b | BB1: No.absen | BC1: 1A | BE1: 1B | BG1: 1C | BJ1: 1A | BK1: 1B | BL1: 1C
A2: 1 | C2: ='1A'!$E4 -> L | D2: ='1A'!I4 -> 6 | E2: ='1B'!$E4 -> L | F2: ='1B'!$I4 -> 7 | G2: ='1C'!$E4 -> L | H2: ='1C'!$I4 -> 6 | I2: ='2A'!$E4 -> P | J2: ='2A'!$I4 -> 7 | K2: ='2B'!$E4 -> L | L2: ='2B'!$I4 -> 7 | M2: ='2C'!$E4 -> L | N2: ='2C'!$I4 -> 7 | O2: ='3A'!$E4 -> P | P2: ='3A'!$I4 -> 8 | Q2: ='3B'!E4 -> L | R2: ='3B'!I4 -> 9 | S2: ='3C'!E4 -> L | T2: ='3C'!I4 -> 8 | U2: ='4A'!$E4 -> L | V2: ='4A'!$I4 -> 10 | W2: ='4B'!$E4 -> L | X2: ='4B'!$I4 -> 9 | Y2: ='5A'!$E4 -> P | Z2: ='5A'!$I4 -> 10 | AA2: ='5B'!$E4 -> L | AB2: ='5B'!$I4 -> 10 | AC2: ='6A'!$E4 -> L | AD2: ='6A'!$I4 -> 11 | AE2: ='6B'!$E4 -> L | AF2: ='6B'!$I4 -> 10 | AH2: P | AJ2: L | AK2: 1 | AL2: =C2&D2 -> L6 | AM2: =E2&F2 -> L7 | AN2: =G2&H2 -> L6 | AO2: =I2&J2 -> P7 | AP2: =K2&L2 -> L7 | AQ2: =M2&N2 -> L7 | AR2: =O2&P2 -> P8 | AS2: =Q2&R2 -> L9 | AT2: =S2&T2 -> L8 | AU2: =U2&V2 -> L10 | AV2: =W2&X2 -> L9 | AW2: =Y2&Z2 -> P10 | AX2: =AA2&AB2 -> L10 | AY2: =AC2&AD2 -> L11 | AZ2: =AE2&AF2 -> L10 | BB2: 1 | BC2: ='1A'!$E4 -> L | BD2: ='1A'!AL4 -> 2 | BE2: ='1B'!$E4 -> L | BF2: ='1B'!$AL4 -> 1 | BG2: ='1C'!$E4 -> L | BH2: ='1C'!$AL4 -> 1 | BJ2: =BC2&BD2 -> L2 | BK2: =BE2&BF2 -> L1 | BL2: =BG2&BH2 -> L1
A3: 2 | C3: ='1A'!$E5 -> P | D3: ='1A'!I5 -> 7 | E3: ='1B'!$E5 -> P | F3: ='1B'!$I5 -> 7 | G3: ='1C'!$E5 -> L | H3: ='1C'!$I5 -> 7 | I3: ='2A'!$E5 -> P | J3: ='2A'!$I5 -> 7 | K3: ='2B'!$E5 -> P | L3: ='2B'!$I5 -> 7 | M3: ='2C'!$E5 -> L | N3: ='2C'!$I5 -> 7 | O3: ='3A'!$E5 -> P | P3: ='3A'!$I5 -> 8 | Q3: ='3B'!E5 -> L | R3: ='3B'!I5 -> 8 | S3: ='3C'!E5 -> L | T3: ='3C'!I5 -> 8 | U3: ='4A'!$E5 -> L | V3: ='4A'!$I5 -> 10 | W3: ='4B'!$E5 -> L | X3: ='4B'!$I5 -> 9 | Y3: ='5A'!$E5 -> P | Z3: ='5A'!$I5 -> 10 | AA3: ='5B'!$E5 -> L | AB3: ='5B'!$I5 -> 10 | AC3: ='6A'!$E5 -> P | AD3: ='6A'!$I5 -> 11 | AE3: ='6B'!$E5 -> L | AF3: ='6B'!$I5 -> 11 | AJ3: P | AK3: 2 | AL3: P7 | AM3: P7 | AN3: L7 | AO3: P7 | AP3: P7 | AQ3: L7 | AR3: P8 | AS3: L8 | AT3: =S3&T3 -> L8 | AU3: =U3&V3 -> L10 | AV3: =W3&X3 -> L9 | AW3: =Y3&Z3 -> P10 | AX3: =AA3&AB3 -> L10 | AY3: =AC3&AD3 -> P11 | AZ3: =AE3&AF3 -> L11 | BB3: 2 | BC3: ='1A'!$E5 -> P | BD3: ='1A'!AL5 -> 1 | BE3: ='1B'!$E5 -> P | BF3: ='1B'!$AL5 -> 1 | BG3: ='1C'!$E5 -> L | BH3: ='1C'!$AL5 -> 1 | BJ3: =BC3&BD3 -> P1 | BK3: =BE3&BF3 -> P1 | BL3: =BG3&BH3 -> L1
A4: 3 | C4: ='1A'!$E6 -> L | D4: ='1A'!I6 -> 6 | E4: ='1B'!$E6 -> P | F4: ='1B'!$I6 -> 6 | G4: ='1C'!$E6 -> L | H4: ='1C'!$I6 -> 7 | I4: ='2A'!$E6 -> L | J4: ='2A'!$I6 -> 8 | K4: ='2B'!$E6 -> P | L4: ='2B'!$I6 -> 7 | M4: ='2C'!$E6 -> P | N4: ='2C'!$I6 -> 8 | O4: ='3A'!$E6 -> P | P4: ='3A'!$I6 -> 8 | Q4: ='3B'!E6 -> L | R4: ='3B'!I6 -> 9 | S4: ='3C'!E6 -> L | T4: ='3C'!I6 -> 8 | U4: ='4A'!$E6 -> P | V4: ='4A'!$I6 -> 9 | W4: ='4B'!$E6 -> P | X4: ='4B'!$I6 -> 10 | Y4: ='5A'!$E6 -> L | Z4: ='5A'!$I6 -> 10 | AA4: ='5B'!$E6 -> L | AB4: ='5B'!$I6 -> 10 | AC4: ='6A'!$E6 -> P | AD4: ='6A'!$I6 -> 11 | AE4: ='6B'!$E6 -> L | AF4: ='6B'!$I6 -> 11 | AK4: 3 | AL4: L6 | AM4: P6 | AN4: L7 | AO4: L8 | AP4: P7 | AQ4: P8 | AR4: P8 | AS4: L9 | AT4: L8 | AU4: P9 | AV4: P10 | AW4: L10 | AX4: L10 | AY4: P11 | AZ4: L11 | BB4: 3 | BC4: ='1A'!$E6 -> L | BD4: ='1A'!AL6 -> 1 | BE4: ='1B'!$E6 -> P | BF4: ='1B'!$AL6 -> 1 | BG4: ='1C'!$E6 -> L | BH4: ='1C'!$AL6 -> 1 | BJ4: L1 | BK4: P1 | BL4: L1
A5: 4 | C5: ='1A'!$E7 -> L | D5: ='1A'!I7 -> 7 | E5: ='1B'!$E7 -> P | F5: ='1B'!$I7 -> 6 | G5: ='1C'!$E7 -> P | H5: ='1C'!$I7 -> 6 | I5: ='2A'!$E7 -> L | J5: ='2A'!$I7 -> 7 | K5: ='2B'!$E7 -> P | L5: ='2B'!$I7 -> 8 | M5: ='2C'!$E7 -> P | N5: ='2C'!$I7 -> 7 | O5: ='3A'!$E7 -> L | P5: ='3A'!$I7 -> 9 | Q5: ='3B'!E7 -> P | R5: ='3B'!I7 -> 8 | S5: ='3C'!E7 -> L | T5: ='3C'!I7 -> 8 | U5: ='4A'!$E7 -> P | V5: ='4A'!$I7 -> 10 | W5: ='4B'!$E7 -> P | X5: ='4B'!$I7 -> 9 | Y5: ='5A'!$E7 -> P | Z5: ='5A'!$I7 -> 10 | AA5: ='5B'!$E7 -> L | AB5: ='5B'!$I7 -> 11 | AC5: ='6A'!$E7 -> P | AD5: ='6A'!$I7 -> 11 | AE5: ='6B'!$E7 -> L | AF5: ='6B'!$I7 -> 11 | AK5: 4 | AL5: L7 | AM5: P6 | AN5: P6 | AO5: L7 | AP5: P8 | AQ5: P7 | AR5: L9 | AS5: P8 | AT5: L8 | AU5: P10 | AV5: P9 | AW5: P10 | AX5: L11 | AY5: P11 | AZ5: L11 | BB5: 4 | BC5: ='1A'!$E7 -> L | BD5: ='1A'!AL7 -> 1 | BE5: ='1B'!$E7 -> P | BF5: ='1B'!$AL7 -> 1 | BG5: ='1C'!$E7 -> P | BH5: ='1C'!$AL7 -> 1 | BJ5: L1 | BK5: P1 | BL5: P1
A6: 5 | C6: ='1A'!$E8 -> L | D6: ='1A'!I8 -> 6 | E6: ='1B'!$E8 -> L | F6: ='1B'!$I8 -> 6 | G6: ='1C'!$E8 -> P | H6: ='1C'!$I8 -> 7 | I6: ='2A'!$E8 -> P | J6: ='2A'!$I8 -> 8 | K6: ='2B'!$E8 -> L | L6: ='2B'!$I8 -> 7 | M6: ='2C'!$E8 -> P | N6: ='2C'!$I8 -> 6 | O6: ='3A'!$E8 -> L | P6: ='3A'!$I8 -> 9 | Q6: ='3B'!E8 -> P | R6: ='3B'!I8 -> 8 | S6: ='3C'!E8 -> L | T6: ='3C'!I8 -> 9 | U6: ='4A'!$E8 -> P | V6: ='4A'!$I8 -> 10 | W6: ='4B'!$E8 -> L | X6: ='4B'!$I8 -> 9 | Y6: ='5A'!$E8 -> P | Z6: ='5A'!$I8 -> 11 | AA6: ='5B'!$E8 -> L | AB6: ='5B'!$I8 -> 10 | AC6: ='6A'!$E8 -> L | AD6: ='6A'!$I8 -> 12 | AE6: ='6B'!$E8 -> L | AF6: ='6B'!$I8 -> 11 | AK6: 5 | AL6: L6 | AM6: L6 | AN6: P7 | AO6: P8 | AP6: L7 | AQ6: P6 | AR6: L9 | AS6: P8 | AT6: L9 | AU6: P10 | AV6: L9 | AW6: P11 | AX6: L10 | AY6: L12 | AZ6: L11 | BB6: 5 | BC6: ='1A'!$E8 -> L | BD6: ='1A'!AL8 -> 1 | BE6: ='1B'!$E8 -> L | BF6: ='1B'!$AL8 -> 1 | BG6: ='1C'!$E8 -> P | BH6: ='1C'!$AL8 -> 1 | BJ6: L1 | BK6: L1 | BL6: P1
A7: 6 | C7: ='1A'!$E9 -> P | D7: ='1A'!I9 -> 6 | E7: ='1B'!$E9 -> P | F7: ='1B'!$I9 -> 6 | G7: ='1C'!$E9 -> P | H7: ='1C'!$I9 -> 7 | I7: ='2A'!$E9 -> L | J7: ='2A'!$I9 -> 7 | K7: ='2B'!$E9 -> P | L7: ='2B'!$I9 -> 8 | M7: ='2C'!$E9 -> P | N7: ='2C'!$I9 -> 7 | O7: ='3A'!$E9 -> P | P7: ='3A'!$I9 -> 9 | Q7: ='3B'!E9 -> L | R7: ='3B'!I9 -> 8 | S7: ='3C'!E9 -> P | T7: ='3C'!I9 -> 9 | U7: ='4A'!$E9 -> L | V7: ='4A'!$I9 -> 9 | W7: ='4B'!$E9 -> P | X7: ='4B'!$I9 -> 9 | Y7: ='5A'!$E9 -> P | Z7: ='5A'!$I9 -> 11 | AA7: ='5B'!$E9 -> L | AB7: ='5B'!$I9 -> 11 | AC7: ='6A'!$E9 -> P | AD7: ='6A'!$I9 -> 12 | AE7: ='6B'!$E9 -> L | AF7: ='6B'!$I9 -> 11 | AK7: 6 | AL7: P6 | AM7: P6 | AN7: P7 | AO7: L7 | AP7: P8 | AQ7: P7 | AR7: P9 | AS7: L8 | AT7: P9 | AU7: L9 | AV7: P9 | AW7: P11 | AX7: L11 | AY7: P12 | AZ7: L11 | BB7: 6 | BC7: ='1A'!$E9 -> P | BD7: ='1A'!AL9 -> 1 | BE7: ='1B'!$E9 -> P | BF7: ='1B'!$AL9 -> 1 | BG7: ='1C'!$E9 -> P | BH7: ='1C'!$AL9 -> 1 | BJ7: P1 | BK7: P1 | BL7: P1
A8: 7 | C8: ='1A'!$E10 -> P | D8: ='1A'!I10 -> 6 | E8: ='1B'!$E10 -> P | F8: ='1B'!$I10 -> 6 | G8: ='1C'!$E10 -> L | H8: ='1C'!$I10 -> 7 | I8: ='2A'!$E10 -> L | J8: ='2A'!$I10 -> 7 | K8: ='2B'!$E10 -> L | L8: ='2B'!$I10 -> 8 | M8: ='2C'!$E10 -> L | N8: ='2C'!$I10 -> 7 | O8: ='3A'!$E10 -> P | P8: ='3A'!$I10 -> 8 | Q8: ='3B'!E10 -> L | R8: ='3B'!I10 -> 8 | S8: ='3C'!E10 -> L | T8: ='3C'!I10 -> 8 | U8: ='4A'!$E10 -> P | V8: ='4A'!$I10 -> 9 | W8: ='4B'!$E10 -> P | X8: ='4B'!$I10 -> 9 | Y8: ='5A'!$E10 -> L | Z8: ='5A'!$I10 -> 10 | AA8: ='5B'!$E10 -> L | AB8: ='5B'!$I10 -> 11 | AC8: ='6A'!$E10 -> P | AD8: ='6A'!$I10 -> 12 | AE8: ='6B'!$E10 -> P | AF8: ='6B'!$I10 -> 11 | AK8: 7 | AL8: P6 | AM8: P6 | AN8: L7 | AO8: L7 | AP8: L8 | AQ8: L7 | AR8: P8 | AS8: L8 | AT8: L8 | AU8: P9 | AV8: P9 | AW8: L10 | AX8: L11 | AY8: P12 | AZ8: P11 | BB8: 7 | BC8: ='1A'!$E10 -> P | BD8: ='1A'!AL10 -> 1 | BE8: ='1B'!$E10 -> P | BF8: ='1B'!$AL10 -> 1 | BG8: ='1C'!$E10 -> L | BH8: ='1C'!$AL10 -> 2 | BJ8: P1 | BK8: P1 | BL8: L2
A9: 8 | C9: ='1A'!$E11 -> P | D9: ='1A'!I11 -> 6 | E9: ='1B'!$E11 -> P | F9: ='1B'!$I11 -> 6 | G9: ='1C'!$E11 -> P | H9: ='1C'!$I11 -> 7 | I9: ='2A'!$E11 -> L | J9: ='2A'!$I11 -> 7 | K9: ='2B'!$E11 -> P | L9: ='2B'!$I11 -> 7 | M9: ='2C'!$E11 -> L | N9: ='2C'!$I11 -> 7 | O9: ='3A'!$E11 -> P | P9: ='3A'!$I11 -> 9 | Q9: ='3B'!E11 -> L | R9: ='3B'!I11 -> 8 | S9: ='3C'!E11 -> L | T9: ='3C'!I11 -> 8 | U9: ='4A'!$E11 -> P | V9: ='4A'!$I11 -> 9 | W9: ='4B'!$E11 -> P | X9: ='4B'!$I11 -> 9 | Y9: ='5A'!$E11 -> P | Z9: ='5A'!$I11 -> 10 | AA9: ='5B'!$E11 -> L | AB9: ='5B'!$I11 -> 10 | AC9: ='6A'!$E11 -> P | AD9: ='6A'!$I11 -> 11 | AE9: ='6B'!$E11 -> P | AF9: ='6B'!$I11 -> 11 | AK9: 8 | AL9: P6 | AM9: P6 | AN9: P7 | AO9: L7 | AP9: P7 | AQ9: L7 | AR9: P9 | AS9: L8 | AT9: L8 | AU9: P9 | AV9: P9 | AW9: P10 | AX9: L10 | AY9: P11 | AZ9: P11 | BB9: 8 | BC9: ='1A'!$E11 -> P | BD9: ='1A'!AL11 -> 1 | BE9: ='1B'!$E11 -> P | BF9: ='1B'!$AL11 -> 1 | BG9: ='1C'!$E11 -> P | BH9: ='1C'!$AL11 -> 1 | BJ9: P1 | BK9: P1 | BL9: P1
A10: 9 | C10: ='1A'!$E12 -> P | D10: ='1A'!I12 -> 6 | E10: ='1B'!$E12 -> P | F10: ='1B'!$I12 -> 7 | G10: ='1C'!$E12 -> P | H10: ='1C'!$I12 -> 6 | I10: ='2A'!$E12 -> P | J10: ='2A'!$I12 -> 8 | K10: ='2B'!$E12 -> L | L10: ='2B'!$I12 -> 7 | M10: ='2C'!$E12 -> P | N10: ='2C'!$I12 -> 7 | O10: ='3A'!$E12 -> P | P10: ='3A'!$I12 -> 9 | Q10: ='3B'!E12 -> P | R10: ='3B'!I12 -> 8 | S10: ='3C'!E12 -> P | T10: ='3C'!I12 -> 8 | U10: ='4A'!$E12 -> P | V10: ='4A'!$I12 -> 9 | W10: ='4B'!$E12 -> P | X10: ='4B'!$I12 -> 9 | Y10: ='5A'!$E12 -> P | Z10: ='5A'!$I12 -> 11 | AA10: ='5B'!$E12 -> L | AB10: ='5B'!$I12 -> 10 | AC10: ='6A'!$E12 -> L | AD10: ='6A'!$I12 -> 11 | AE10: ='6B'!$E12 -> L | AF10: ='6B'!$I12 -> 11 | AK10: 9 | AL10: P6 | AM10: P7 | AN10: P6 | AO10: P8 | AP10: L7 | AQ10: P7 | AR10: P9 | AS10: P8 | AT10: P8 | AU10: P9 | AV10: P9 | AW10: P11 | AX10: L10 | AY10: L11 | AZ10: L11 | BB10: 9 | BC10: ='1A'!$E12 -> P | BD10: ='1A'!AL12 -> 1 | BE10: ='1B'!$E12 -> P | BF10: ='1B'!$AL12 -> 2 | BG10: ='1C'!$E12 -> P | BH10: ='1C'!$AL12 -> 1 | BJ10: P1 | BK10: P2 | BL10: P1
A11: 10 | C11: ='1A'!$E13 -> P | D11: ='1A'!I13 -> 6 | E11: ='1B'!$E13 -> L | F11: ='1B'!$I13 -> 6 | G11: ='1C'!$E13 -> L | H11: ='1C'!$I13 -> 7 | I11: ='2A'!$E13 -> P | J11: ='2A'!$I13 -> 8 | K11: ='2B'!$E13 -> P | L11: ='2B'!$I13 -> 8 | M11: ='2C'!$E13 -> P | N11: ='2C'!$I13 -> 7 | O11: ='3A'!$E13 -> P | P11: ='3A'!$I13 -> 8 | Q11: ='3B'!E13 -> L | R11: ='3B'!I13 -> 8 | S11: ='3C'!E13 -> L | T11: ='3C'!I13 -> 9 | U11: ='4A'!$E13 -> P | V11: ='4A'!$I13 -> 9 | W11: ='4B'!$E13 -> P | X11: ='4B'!$I13 -> 9 | Y11: ='5A'!$E13 -> L | Z11: ='5A'!$I13 -> 11 | AA11: ='5B'!$E13 -> L | AB11: ='5B'!$I13 -> 11 | AC11: ='6A'!$E13 -> L | AD11: ='6A'!$I13 -> 11 | AE11: ='6B'!$E13 -> P | AF11: ='6B'!$I13 -> 12 | AK11: 10 | AL11: P6 | AM11: L6 | AN11: L7 | AO11: P8 | AP11: P8 | AQ11: P7 | AR11: P8 | AS11: L8 | AT11: L9 | AU11: P9 | AV11: P9 | AW11: L11 | AX11: L11 | AY11: L11 | AZ11: P12 | BB11: 10 | BC11: ='1A'!$E13 -> P | BD11: ='1A'!AL13 -> 1 | BE11: ='1B'!$E13 -> L | BF11: ='1B'!$AL13 -> 1 | BG11: ='1C'!$E13 -> L | BH11: ='1C'!$AL13 -> 1 | BJ11: P1 | BK11: L1 | BL11: L1
A12: 11 | C12: ='1A'!$E14 -> P | D12: ='1A'!I14 -> 7 | E12: ='1B'!$E14 -> P | F12: ='1B'!$I14 -> 7 | G12: ='1C'!$E14 -> P | H12: ='1C'!$I14 -> 7 | I12: ='2A'!$E14 -> L | J12: ='2A'!$I14 -> 7 | K12: ='2B'!$E14 -> P | L12: ='2B'!$I14 -> 8 | M12: ='2C'!$E14 -> P | N12: ='2C'!$I14 -> 8 | O12: ='3A'!$E14 -> P | P12: ='3A'!$I14 -> 8 | Q12: ='3B'!E14 -> L | R12: ='3B'!I14 -> 8 | S12: ='3C'!E14 -> L | T12: ='3C'!I14 -> 8 | U12: ='4A'!$E14 -> P | V12: ='4A'!$I14 -> 10 | W12: ='4B'!$E14 -> P | X12: ='4B'!$I14 -> 9 | Y12: ='5A'!$E14 -> P | Z12: ='5A'!$I14 -> 10 | AA12: ='5B'!$E14 -> L | AB12: ='5B'!$I14 -> 10 | AC12: ='6A'!$E14 -> P | AD12: ='6A'!$I14 -> 11 | AE12: ='6B'!$E14 -> P | AF12: ='6B'!$I14 -> 11 | AK12: 11 | AL12: P7 | AM12: P7 | AN12: P7 | AO12: L7 | AP12: P8 | AQ12: P8 | AR12: P8 | AS12: L8 | AT12: L8 | AU12: P10 | AV12: P9 | AW12: P10 | AX12: L10 | AY12: P11 | AZ12: P11 | BB12: 11 | BC12: ='1A'!$E14 -> P | BD12: ='1A'!AL14 -> 1 | BE12: ='1B'!$E14 -> P | BF12: ='1B'!$AL14 -> 1 | BG12: ='1C'!$E14 -> P | BH12: ='1C'!$AL14 -> 1 | BJ12: P1 | BK12: P1 | BL12: P1
A13: 12 | C13: ='1A'!$E15 -> P | D13: ='1A'!I15 -> 5 | E13: ='1B'!$E15 -> L | F13: ='1B'!$I15 -> 6 | G13: ='1C'!$E15 -> P | H13: ='1C'!$I15 -> 6 | I13: ='2A'!$E15 -> L | J13: ='2A'!$I15 -> 8 | K13: ='2B'!$E15 -> P | L13: ='2B'!$I15 -> 8 | M13: ='2C'!$E15 -> P | N13: ='2C'!$I15 -> 8 | O13: ='3A'!$E15 -> P | P13: ='3A'!$I15 -> 8 | Q13: ='3B'!E15 -> P | R13: ='3B'!I15 -> 8 | S13: ='3C'!E15 -> P | T13: ='3C'!I15 -> 8 | U13: ='4A'!$E15 -> L | V13: ='4A'!$I15 -> 10 | W13: ='4B'!$E15 -> L | X13: ='4B'!$I15 -> 10 | Y13: ='5A'!$E15 -> P | Z13: ='5A'!$I15 -> 10 | AA13: ='5B'!$E15 -> P | AB13: ='5B'!$I15 -> 10 | AC13: ='6A'!$E15 -> P | AD13: ='6A'!$I15 -> 11 | AE13: ='6B'!$E15 -> L | AF13: ='6B'!$I15 -> 11 | AK13: 12 | AL13: P5 | AM13: L6 | AN13: P6 | AO13: L8 | AP13: P8 | AQ13: P8 | AR13: P8 | AS13: P8 | AT13: P8 | AU13: L10 | AV13: L10 | AW13: P10 | AX13: P10 | AY13: P11 | AZ13: L11 | BB13: 12 | BC13: ='1A'!$E15 -> P | BD13: ='1A'!AL15 -> 1 | BE13: ='1B'!$E15 -> L | BF13: ='1B'!$AL15 -> 1 | BG13: ='1C'!$E15 -> P | BH13: ='1C'!$AL15 -> 1 | BJ13: P1 | BK13: L1 | BL13: P1
A14: 13 | C14: ='1A'!$E16 -> L | D14: ='1A'!I16 -> 6 | E14: ='1B'!$E16 -> L | F14: ='1B'!$I16 -> 7 | G14: ='1C'!$E16 -> L | H14: ='1C'!$I16 -> 6 | I14: ='2A'!$E16 -> L | J14: ='2A'!$I16 -> 7 | K14: ='2B'!$E16 -> L | L14: ='2B'!$I16 -> 7 | M14: ='2C'!$E16 -> L | N14: ='2C'!$I16 -> 7 | O14: ='3A'!$E16 -> L | P14: ='3A'!$I16 -> 8 | Q14: ='3B'!E16 -> L | R14: ='3B'!I16 -> 9 | S14: ='3C'!E16 -> P | T14: ='3C'!I16 -> 8 | U14: ='4A'!$E16 -> P | V14: ='4A'!$I16 -> 10 | W14: ='4B'!$E16 -> L | X14: ='4B'!$I16 -> 10 | Y14: ='5A'!$E16 -> L | Z14: ='5A'!$I16 -> 10 | AA14: ='5B'!$E16 -> P | AB14: ='5B'!$I16 -> 10 | AC14: ='6A'!$E16 -> P | AD14: ='6A'!$I16 -> 12 | AE14: ='6B'!$E16 -> P | AF14: ='6B'!$I16 -> 11 | AK14: 13 | AL14: L6 | AM14: L7 | AN14: L6 | AO14: L7 | AP14: L7 | AQ14: L7 | AR14: L8 | AS14: L9 | AT14: P8 | AU14: P10 | AV14: L10 | AW14: L10 | AX14: P10 | AY14: P12 | AZ14: P11 | BB14: 13 | BC14: ='1A'!$E16 -> L | BD14: ='1A'!AL16 -> 1 | BE14: ='1B'!$E16 -> L | BF14: ='1B'!$AL16 -> 1 | BG14: ='1C'!$E16 -> L | BH14: ='1C'!$AL16 -> 1 | BJ14: L1 | BK14: L1 | BL14: L1
A15: 14 | C15: ='1A'!$E17 -> L | D15: ='1A'!I17 -> 7 | E15: ='1B'!$E17 -> L | F15: ='1B'!$I17 -> 7 | G15: ='1C'!$E17 -> L | H15: ='1C'!$I17 -> 7 | I15: ='2A'!$E17 -> L | J15: ='2A'!$I17 -> 7 | K15: ='2B'!$E17 -> L | L15: ='2B'!$I17 -> 8 | M15: ='2C'!$E17 -> L | N15: ='2C'!$I17 -> 8 | O15: ='3A'!$E17 -> L | P15: ='3A'!$I17 -> 9 | Q15: ='3B'!E17 -> L | R15: ='3B'!I17 -> 8 | S15: ='3C'!E17 -> P | T15: ='3C'!I17 -> 9 | U15: ='4A'!$E17 -> P | V15: ='4A'!$I17 -> 9 | W15: ='4B'!$E17 -> P | X15: ='4B'!$I17 -> 9 | Y15: ='5A'!$E17 -> L | Z15: ='5A'!$I17 -> 10 | AA15: ='5B'!$E17 -> L | AB15: ='5B'!$I17 -> 11 | AC15: ='6A'!$E17 -> P | AD15: ='6A'!$I17 -> 11 | AE15: ='6B'!$E17 -> P | AF15: ='6B'!$I17 -> 11 | AK15: 14 | AL15: L7 | AM15: L7 | AN15: L7 | AO15: L7 | AP15: L8 | AQ15: L8 | AR15: L9 | AS15: L8 | AT15: P9 | AU15: P9 | AV15: P9 | AW15: L10 | AX15: L11 | AY15: P11 | AZ15: P11 | BB15: 14 | BC15: ='1A'!$E17 -> L | BD15: ='1A'!AL17 -> 1 | BE15: ='1B'!$E17 -> L | BF15: ='1B'!$AL17 -> 1 | BG15: ='1C'!$E17 -> L | BH15: ='1C'!$AL17 -> 5 | BJ15: L1 | BK15: L1 | BL15: L5
A16: 15 | C16: ='1A'!$E18 -> L | D16: ='1A'!I18 -> 7 | E16: ='1B'!$E18 -> L | F16: ='1B'!$I18 -> 6 | G16: ='1C'!$E18 -> L | H16: ='1C'!$I18 -> 6 | I16: ='2A'!$E18 -> L | J16: ='2A'!$I18 -> 7 | K16: ='2B'!$E18 -> L | L16: ='2B'!$I18 -> 8 | M16: ='2C'!$E18 -> L | N16: ='2C'!$I18 -> 8 | O16: ='3A'!$E18 -> P | P16: ='3A'!$I18 -> 9 | Q16: ='3B'!E18 -> P | R16: ='3B'!I18 -> 8 | S16: ='3C'!E18 -> P | T16: ='3C'!I18 -> 8 | U16: ='4A'!$E18 -> P | V16: ='4A'!$I18 -> 9 | W16: ='4B'!$E18 -> L | X16: ='4B'!$I18 -> 9 | Y16: ='5A'!$E18 -> P | Z16: ='5A'!$I18 -> 10 | AA16: ='5B'!$E18 -> P | AB16: ='5B'!$I18 -> 10 | AC16: ='6A'!$E18 -> L | AD16: ='6A'!$I18 -> 12 | AE16: ='6B'!$E18 -> L | AF16: ='6B'!$I18 -> 11 | AK16: 15 | AL16: L7 | AM16: L6 | AN16: L6 | AO16: L7 | AP16: L8 | AQ16: L8 | AR16: P9 | AS16: P8 | AT16: P8 | AU16: P9 | AV16: L9 | AW16: P10 | AX16: P10 | AY16: L12 | AZ16: L11 | BB16: 15 | BC16: ='1A'!$E18 -> L | BD16: ='1A'!AL18 -> 1 | BE16: ='1B'!$E18 -> L | BF16: ='1B'!$AL18 -> 1 | BG16: ='1C'!$E18 -> L | BH16: ='1C'!$AL18 -> 1 | BJ16: L1 | BK16: L1 | BL16: L1
A17: 16 | C17: ='1A'!$E19 -> L | D17: ='1A'!I19 -> 7 | E17: ='1B'!$E19 -> L | F17: ='1B'!$I19 -> 7 | G17: ='1C'!$E19 -> L | H17: ='1C'!$I19 -> 6 | I17: ='2A'!$E19 -> L | J17: ='2A'!$I19 -> 8 | K17: ='2B'!$E19 -> L | L17: ='2B'!$I19 -> 7 | M17: ='2C'!$E19 -> L | N17: ='2C'!$I19 -> 6 | O17: ='3A'!$E19 -> P | P17: ='3A'!$I19 -> 8 | Q17: ='3B'!E19 -> L | R17: ='3B'!I19 -> 9 | S17: ='3C'!E19 -> P | T17: ='3C'!I19 -> 9 | U17: ='4A'!$E19 -> P | V17: ='4A'!$I19 -> 9 | W17: ='4B'!$E19 -> L | X17: ='4B'!$I19 -> 9 | Y17: ='5A'!$E19 -> L | Z17: ='5A'!$I19 -> 11 | AA17: ='5B'!$E19 -> P | AB17: ='5B'!$I19 -> 10 | AC17: ='6A'!$E19 -> L | AD17: ='6A'!$I19 -> 12 | AE17: ='6B'!$E19 -> L | AF17: ='6B'!$I19 -> 13 | AK17: 16 | AL17: L7 | AM17: L7 | AN17: L6 | AO17: L8 | AP17: L7 | AQ17: L6 | AR17: P8 | AS17: L9 | AT17: P9 | AU17: P9 | AV17: L9 | AW17: L11 | AX17: P10 | AY17: L12 | AZ17: L13 | BB17: 16 | BC17: ='1A'!$E19 -> L | BD17: ='1A'!AL19 -> 1 | BE17: ='1B'!$E19 -> L | BF17: ='1B'!$AL19 -> 1 | BG17: ='1C'!$E19 -> L | BH17: ='1C'!$AL19 -> 1 | BJ17: L1 | BK17: L1 | BL17: L1
A18: 17 | C18: ='1A'!$E20 -> L | D18: ='1A'!I20 -> 6 | E18: ='1B'!$E20 -> L | F18: ='1B'!$I20 -> 6 | G18: ='1C'!$E20 -> L | H18: ='1C'!$I20 -> 6 | I18: ='2A'!$E20 -> L | J18: ='2A'!$I20 -> 8 | K18: ='2B'!$E20 -> L | L18: ='2B'!$I20 -> 7 | M18: ='2C'!$E20 -> L | N18: ='2C'!$I20 -> 8 | O18: ='3A'!$E20 -> P | P18: ='3A'!$I20 -> 9 | Q18: ='3B'!E20 -> L | R18: ='3B'!I20 -> 8 | S18: ='3C'!E20 -> L | T18: ='3C'!I20 -> 10 | U18: ='4A'!$E20 -> L | V18: ='4A'!$I20 -> 9 | W18: ='4B'!$E20 -> L | X18: ='4B'!$I20 -> 9 | Y18: ='5A'!$E20 -> L | Z18: ='5A'!$I20 -> 11 | AA18: ='5B'!$E20 -> P | AB18: ='5B'!$I20 -> 10 | AC18: ='6A'!$E20 -> L | AD18: ='6A'!$I20 -> 11 | AE18: ='6B'!$E20 -> P | AF18: ='6B'!$I20 -> 12 | AK18: 17 | AL18: L6 | AM18: L6 | AN18: L6 | AO18: L8 | AP18: L7 | AQ18: L8 | AR18: P9 | AS18: L8 | AT18: L10 | AU18: L9 | AV18: L9 | AW18: L11 | AX18: P10 | AY18: L11 | AZ18: P12 | BB18: 17 | BC18: ='1A'!$E20 -> L | BD18: ='1A'!AL20 -> 1 | BE18: ='1B'!$E20 -> L | BF18: ='1B'!$AL20 -> 1 | BG18: ='1C'!$E20 -> L | BH18: ='1C'!$AL20 -> 1 | BJ18: L1 | BK18: L1 | BL18: L1
A19: 18 | C19: ='1A'!$E21 -> L | D19: ='1A'!I21 -> 6 | E19: ='1B'!$E21 -> L | F19: ='1B'!$I21 -> 6 | G19: ='1C'!$E21 -> L | H19: ='1C'!$I21 -> 7 | I19: ='2A'!$E21 -> P | J19: ='2A'!$I21 -> 7 | K19: ='2B'!$E21 -> L | L19: ='2B'!$I21 -> 8 | M19: ='2C'!$E21 -> L | N19: ='2C'!$I21 -> 7 | O19: ='3A'!$E21 -> P | P19: ='3A'!$I21 -> 9 | Q19: ='3B'!E21 -> L | R19: ='3B'!I21 -> 8 | S19: ='3C'!E21 -> L | T19: ='3C'!I21 -> 8 | U19: ='4A'!$E21 -> L | V19: ='4A'!$I21 -> 10 | W19: ='4B'!$E21 -> L | X19: ='4B'!$I21 -> 9 | Y19: ='5A'!$E21 -> L | Z19: ='5A'!$I21 -> 10 | AA19: ='5B'!$E21 -> L | AB19: ='5B'!$I21 -> 11 | AC19: ='6A'!$E21 -> P | AD19: ='6A'!$I21 -> 11 | AE19: ='6B'!$E21 -> P | AF19: ='6B'!$I21 -> 11 | AK19: 18 | AL19: L6 | AM19: L6 | AN19: L7 | AO19: P7 | AP19: L8 | AQ19: L7 | AR19: P9 | AS19: L8 | AT19: L8 | AU19: L10 | AV19: L9 | AW19: L10 | AX19: L11 | AY19: P11 | AZ19: P11 | BB19: 18 | BC19: ='1A'!$E21 -> L | BD19: ='1A'!AL21 -> 1 | BE19: ='1B'!$E21 -> L | BF19: ='1B'!$AL21 -> 5 | BG19: ='1C'!$E21 -> L | BH19: ='1C'!$AL21 -> 1 | BJ19: L1 | BK19: L5 | BL19: L1
A20: 19 | C20: ='1A'!$E22 -> L | D20: ='1A'!I22 -> 7 | E20: ='1B'!$E22 -> P | F20: ='1B'!$I22 -> 6 | G20: ='1C'!$E22 -> L | H20: ='1C'!$I22 -> 7 | I20: ='2A'!$E22 -> P | J20: ='2A'!$I22 -> 8 | K20: ='2B'!$E22 -> L | L20: ='2B'!$I22 -> 8 | M20: ='2C'!$E22 -> L | N20: ='2C'!$I22 -> 8 | O20: ='3A'!$E22 -> P | P20: ='3A'!$I22 -> 8 | Q20: ='3B'!E22 -> L | R20: ='3B'!I22 -> 8 | S20: ='3C'!E22 -> L | T20: ='3C'!I22 -> 9 | U20: ='4A'!$E22 -> L | V20: ='4A'!$I22 -> 9 | W20: ='4B'!$E22 -> L | X20: ='4B'!$I22 -> 10 | Y20: ='5A'!$E22 -> L | Z20: ='5A'!$I22 -> 11 | AA20: ='5B'!$E22 -> L | AB20: ='5B'!$I22 -> 11 | AC20: ='6A'!$E22 -> P | AD20: ='6A'!$I22 -> 12 | AE20: ='6B'!$E22 -> L | AF20: ='6B'!$I22 -> 10 | AK20: 19 | AL20: L7 | AM20: P6 | AN20: L7 | AO20: P8 | AP20: L8 | AQ20: L8 | AR20: P8 | AS20: L8 | AT20: L9 | AU20: L9 | AV20: L10 | AW20: L11 | AX20: L11 | AY20: P12 | AZ20: L10 | BB20: 19 | BC20: ='1A'!$E22 -> L | BD20: ='1A'!AL22 -> 1 | BE20: ='1B'!$E22 -> P | BF20: ='1B'!$AL22 -> 1 | BG20: ='1C'!$E22 -> L | BH20: ='1C'!$AL22 -> 1 | BJ20: L1 | BK20: P1 | BL20: L1
A21: 20 | C21: ='1A'!$E23 -> P | D21: ='1A'!I23 -> 6 | E21: ='1B'!$E23 -> P | F21: ='1B'!$I23 -> 7 | G21: ='1C'!$E23 -> L | H21: ='1C'!$I23 -> 6 | I21: ='2A'!$E23 -> P | J21: ='2A'!$I23 -> 7 | K21: ='2B'!$E23 -> L | L21: ='2B'!$I23 -> 8 | M21: ='2C'!$E23 -> P | N21: ='2C'!$I23 -> 7 | O21: ='3A'!$E23 -> L | P21: ='3A'!$I23 -> 8 | Q21: ='3B'!E23 -> L | R21: ='3B'!I23 -> 8 | S21: ='3C'!E23 -> L | T21: ='3C'!I23 -> 8 | U21: ='4A'!$E23 -> P | V21: ='4A'!$I23 -> 10 | W21: ='4B'!$E23 -> L | X21: ='4B'!$I23 -> 10 | Y21: ='5A'!$E23 -> P | Z21: ='5A'!$I23 -> 11 | AA21: ='5B'!$E23 -> L | AB21: ='5B'!$I23 -> 10 | AC21: ='6A'!$E23 -> L | AD21: ='6A'!$I23 -> 12 | AE21: ='6B'!$E23 -> L | AF21: ='6B'!$I23 -> 11 | AK21: 20 | AL21: P6 | AM21: P7 | AN21: L6 | AO21: P7 | AP21: L8 | AQ21: P7 | AR21: L8 | AS21: L8 | AT21: L8 | AU21: P10 | AV21: L10 | AW21: P11 | AX21: L10 | AY21: L12 | AZ21: L11 | BB21: 20 | BC21: ='1A'!$E23 -> P | BD21: ='1A'!AL23 -> 1 | BE21: ='1B'!$E23 -> P | BF21: ='1B'!$AL23 -> 1 | BG21: ='1C'!$E23 -> L | BH21: ='1C'!$AL23 -> 1 | BJ21: P1 | BK21: P1 | BL21: L1
A22: 21 | C22: ='1A'!$E24 -> P | D22: ='1A'!I24 -> 6 | E22: ='1B'!$E24 -> P | F22: ='1B'!$I24 -> 7 | G22: ='1C'!$E24 -> P | H22: ='1C'!$I24 -> 7 | I22: ='2A'!$E24 -> L | J22: ='2A'!$I24 -> 8 | K22: ='2B'!$E24 -> L | L22: ='2B'!$I24 -> 8 | M22: ='2C'!$E24 -> P | N22: ='2C'!$I24 -> 7 | O22: ='3A'!$E24 -> L | P22: ='3A'!$I24 -> 8 | Q22: ='3B'!E24 -> L | R22: ='3B'!I24 -> 8 | S22: ='3C'!E24 -> L | T22: ='3C'!I24 -> 9 | U22: ='4A'!$E24 -> P | V22: ='4A'!$I24 -> 10 | W22: ='4B'!$E24 -> L | X22: ='4B'!$I24 -> 10 | Y22: ='5A'!$E24 -> P | Z22: ='5A'!$I24 -> 10 | AA22: ='5B'!$E24 -> L | AB22: ='5B'!$I24 -> 11 | AC22: ='6A'!$E24 -> L | AD22: ='6A'!$I24 -> 11 | AE22: ='6B'!$E24 -> L | AF22: ='6B'!$I24 -> 11 | AK22: 21 | AL22: P6 | AM22: P7 | AN22: P7 | AO22: L8 | AP22: L8 | AQ22: P7 | AR22: L8 | AS22: L8 | AT22: L9 | AU22: P10 | AV22: L10 | AW22: P10 | AX22: L11 | AY22: L11 | AZ22: L11 | BB22: 21 | BC22: ='1A'!$E24 -> P | BD22: ='1A'!AL24 -> 1 | BE22: ='1B'!$E24 -> P | BF22: ='1B'!$AL24 -> 1 | BG22: ='1C'!$E24 -> P | BH22: ='1C'!$AL24 -> 1 | BJ22: P1 | BK22: P1 | BL22: P1
A23: 22 | C23: ='1A'!$E25 -> P | D23: ='1A'!I25 -> 6 | E23: ='1B'!$E25 -> L | F23: ='1B'!$I25 -> 6 | G23: ='1C'!$E25 -> L | H23: ='1C'!$I25 -> 7 | I23: ='2A'!$E25 -> L | J23: ='2A'!$I25 -> 8 | K23: ='2B'!$E25 -> L | L23: ='2B'!$I25 -> 7 | M23: ='2C'!$E25 -> P | N23: ='2C'!$I25 -> 8 | O23: ='3A'!$E25 -> L | P23: ='3A'!$I25 -> 8 | Q23: ='3B'!E25 -> L | R23: ='3B'!I25 -> 8 | S23: ='3C'!E25 -> L | T23: ='3C'!I25 -> 8 | U23: ='4A'!$E25 -> P | V23: ='4A'!$I25 -> 9 | W23: ='4B'!$E25 -> L | X23: ='4B'!$I25 -> 10 | Y23: ='5A'!$E25 -> P | Z23: ='5A'!$I25 -> 11 | AA23: ='5B'!$E25 -> L | AB23: ='5B'!$I25 -> 10 | AC23: ='6A'!$E25 -> L | AD23: ='6A'!$I25 -> 11 | AE23: ='6B'!$E25 -> L | AF23: ='6B'!$I25 -> 11 | AK23: 22 | AL23: P6 | AM23: L6 | AN23: L7 | AO23: L8 | AP23: L7 | AQ23: P8 | AR23: L8 | AS23: L8 | AT23: L8 | AU23: P9 | AV23: L10 | AW23: P11 | AX23: L10 | AY23: L11 | AZ23: L11 | BB23: 22 | BC23: ='1A'!$E25 -> P | BD23: ='1A'!AL25 -> 1 | BE23: ='1B'!$E25 -> L | BF23: ='1B'!$AL25 -> 1 | BG23: ='1C'!$E25 -> L | BH23: ='1C'!$AL25 -> 1 | BJ23: P1 | BK23: L1 | BL23: L1
A24: 23 | C24: ='1A'!$E26 -> P | D24: ='1A'!I26 -> 6 | E24: ='1B'!$E26 -> L | F24: ='1B'!$I26 -> 7 | G24: ='1C'!$E26 -> P | H24: ='1C'!$I26 -> 7 | I24: ='2A'!$E26 -> P | J24: ='2A'!$I26 -> 8 | K24: ='2B'!$E26 -> L | L24: ='2B'!$I26 -> 8 | M24: ='2C'!$E26 -> L | N24: ='2C'!$I26 -> 7 | O24: ='3A'!$E26 -> L | P24: ='3A'!$I26 -> 8 | Q24: ='3B'!E26 -> L | R24: ='3B'!I26 -> 8 | S24: ='3C'!E26 -> L | T24: ='3C'!I26 -> 8 | U24: ='4A'!$E26 -> P | V24: ='4A'!$I26 -> 9 | W24: ='4B'!$E26 -> L | X24: ='4B'!$I26 -> 9 | Y24: ='5A'!$E26 -> P | Z24: ='5A'!$I26 -> 10 | AA24: ='5B'!$E26 -> L | AB24: ='5B'!$I26 -> 10 | AC24: ='6A'!$E26 -> L | AD24: ='6A'!$I26 -> 12 | AE24: ='6B'!$E26 -> L | AF24: ='6B'!$I26 -> 12 | AK24: 23 | AL24: P6 | AM24: L7 | AN24: P7 | AO24: P8 | AP24: L8 | AQ24: L7 | AR24: L8 | AS24: L8 | AT24: L8 | AU24: P9 | AV24: L9 | AW24: P10 | AX24: L10 | AY24: L12 | AZ24: L12 | BB24: 23 | BC24: ='1A'!$E26 -> P | BD24: ='1A'!AL26 -> 1 | BE24: ='1B'!$E26 -> L | BF24: ='1B'!$AL26 -> 1 | BG24: ='1C'!$E26 -> P | BH24: ='1C'!$AL26 -> 1 | BJ24: =BC24&BD24 -> P1 | BK24: =BE24&BF24 -> L1 | BL24: =BG24&BH24 -> P1
A25: 24 | C25: ='1A'!$E27 -> P | D25: ='1A'!I27 -> 6 | E25: ='1B'!$E27 -> L | F25: ='1B'!$I27 -> 6 | G25: ='1C'!$E27 -> P | H25: ='1C'!$I27 -> 7 | I25: ='2A'!$E27 -> P | J25: ='2A'!$I27 -> 7 | K25: ='2B'!$E27 -> P | L25: ='2B'!$I27 -> 8 | M25: ='2C'!$E27 -> L | N25: ='2C'!$I27 -> 7 | O25: ='3A'!$E27 -> L | P25: ='3A'!$I27 -> 9 | Q25: ='3B'!E27 -> L | R25: ='3B'!I27 -> 8 | S25: ='3C'!E27 -> L | T25: ='3C'!I27 -> 8 | U25: ='4A'!$E27 -> L | V25: ='4A'!$I27 -> 10 | W25: ='4B'!$E27 -> L | X25: ='4B'!$I27 -> 9 | Y25: ='5A'!$E27 -> P | Z25: ='5A'!$I27 -> 10 | AA25: ='5B'!$E27 -> L | AB25: ='5B'!$I27 -> 10 | AC25: ='6A'!$E27 -> P | AD25: ='6A'!$I27 -> 11 | AE25: ='6B'!$E27 -> L | AF25: ='6B'!$I27 -> 12 | AK25: 24 | AL25: P6 | AM25: L6 | AN25: P7 | AO25: P7 | AP25: P8 | AQ25: L7 | AR25: L9 | AS25: L8 | AT25: L8 | AU25: L10 | AV25: L9 | AW25: P10 | AX25: L10 | AY25: P11 | AZ25: L12 | BB25: 24 | BC25: ='1A'!$E27 -> P | BD25: ='1A'!AL27 -> 1 | BE25: ='1B'!$E27 -> L | BF25: ='1B'!$AL27 -> 1 | BG25: ='1C'!$E27 -> P | BH25: ='1C'!$AL27 -> 2 | BJ25: =BC25&BD25 -> P1 | BK25: =BE25&BF25 -> L1 | BL25: =BG25&BH25 -> P2
A26: 25 | C26: ='1A'!$E28 -> L | D26: ='1A'!I28 -> 6 | E26: ='1B'!$E28 -> L | F26: ='1B'!$I28 -> 6 | G26: ='1C'!$E28 -> P | H26: ='1C'!$I28 -> 6 | I26: ='2A'!$E28 -> P | J26: ='2A'!$I28 -> 8 | K26: ='2B'!$E28 -> P | L26: ='2B'!$I28 -> 8 | M26: ='2C'!$E28 -> L | N26: ='2C'!$I28 -> 8 | O26: ='3A'!$E28 -> L | P26: ='3A'!$I28 -> 9 | Q26: ='3B'!E28 -> P | R26: ='3B'!I28 -> 8 | S26: ='3C'!E28 -> L | T26: ='3C'!I28 -> 8 | U26: ='4A'!$E28 -> P | V26: ='4A'!$I28 -> 10 | W26: ='4B'!$E28 -> L | X26: ='4B'!$I28 -> 9 | Y26: ='5A'!$E28 -> P | Z26: ='5A'!$I28 -> 10 | AA26: ='5B'!$E28 -> L | AB26: ='5B'!$I28 -> 10 | AC26: ='6A'!$E28 -> P | AD26: ='6A'!$I28 -> 12 | AE26: ='6B'!$E28 -> L | AF26: ='6B'!$I28 -> 11 | AK26: 25 | AL26: L6 | AM26: L6 | AN26: P6 | AO26: P8 | AP26: P8 | AQ26: L8 | AR26: L9 | AS26: P8 | AT26: L8 | AU26: P10 | AV26: L9 | AW26: P10 | AX26: L10 | AY26: P12 | AZ26: L11 | BB26: 25 | BC26: ='1A'!$E28 -> L | BD26: ='1A'!AL28 -> 1 | BE26: ='1B'!$E28 -> L | BF26: ='1B'!$AL28 -> 1 | BG26: ='1C'!$E28 -> P | BH26: ='1C'!$AL28 -> 2 | BJ26: L1 | BK26: L1 | BL26: P2
A27: 26 | C27: ='1A'!$E29 -> L | D27: ='1A'!I29 -> 6 | E27: ='1B'!$E29 -> P | F27: ='1B'!$I29 -> 6 | G27: ='1C'!$E29 -> P | H27: ='1C'!$I29 -> 7 | I27: ='2A'!$E29 -> P | J27: ='2A'!$I29 -> 7 | K27: ='2B'!$E29 -> P | L27: ='2B'!$I29 -> 8 | M27: ='2C'!$E29 -> P | N27: ='2C'!$I29 -> 8 | O27: ='3A'!$E29 -> P | P27: ='3A'!$I29 -> 8 | Q27: ='3B'!E29 -> P | R27: ='3B'!I29 -> 8 | S27: ='3C'!E29 -> P | T27: ='3C'!I29 -> 8 | U27: ='4A'!$E29 -> P | V27: ='4A'!$I29 -> 9 | W27: ='4B'!$E29 -> L | X27: ='4B'!$I29 -> 9 | Y27: ='5A'!$E29 -> P | Z27: ='5A'!$I29 -> 10 | AA27: ='5B'!$E29 -> L | AB27: ='5B'!$I29 -> 10 | AC27: ='6A'!$E29 -> P | AD27: ='6A'!$I29 -> 11 | AE27: ='6B'!$E29 -> L | AF27: ='6B'!$I29 -> 11 | AK27: 26 | AL27: L6 | AM27: P6 | AN27: P7 | AO27: P7 | AP27: P8 | AQ27: P8 | AR27: P8 | AS27: P8 | AT27: P8 | AU27: P9 | AV27: L9 | AW27: P10 | AX27: L10 | AY27: P11 | AZ27: L11 | BB27: 26 | BC27: ='1A'!$E29 -> L | BD27: ='1A'!AL29 -> 1 | BE27: ='1B'!$E29 -> P | BF27: ='1B'!$AL29 -> 1 | BG27: ='1C'!$E29 -> P | BH27: ='1C'!$AL29 -> 1 | BJ27: L1 | BK27: P1 | BL27: P1
A28: 27 | C28: ='1A'!$E30 -> P | D28: ='1A'!I30 -> 6 | E28: ='1B'!$E30 -> P | F28: ='1B'!$I30 -> 7 | G28: ='1C'!$E30 -> P | H28: ='1C'!$I30 -> 6 | I28: ='2A'!$E30 -> L | J28: ='2A'!$I30 -> 8 | K28: ='2B'!$E30 -> L | L28: ='2B'!$I30 -> 8 | M28: ='2C'!$E30 -> L | N28: ='2C'!$I30 -> 7 | O28: ='3A'!$E30 -> P | P28: ='3A'!$I30 -> 8 | Q28: ='3B'!E30 -> P | R28: ='3B'!I30 -> 8 | S28: ='3C'!E30 -> P | T28: ='3C'!I30 -> 8 | U28: ='4A'!$E30 -> P | V28: ='4A'!$I30 -> 9 | W28: ='4B'!$E30 -> L | X28: ='4B'!$I30 -> 10 | Y28: ='5A'!$E30 -> P | Z28: ='5A'!$I30 -> 10 | AA28: ='5B'!$E30 -> P | AB28: ='5B'!$I30 -> 11 | AC28: ='6A'!$E30 -> P | AD28: ='6A'!$I30 -> 11 | AE28: ='6B'!$E30 -> L | AF28: ='6B'!$I30 -> 11 | AK28: 27 | AL28: P6 | AM28: P7 | AN28: P6 | AO28: L8 | AP28: L8 | AQ28: L7 | AR28: P8 | AS28: P8 | AT28: P8 | AU28: P9 | AV28: L10 | AW28: P10 | AX28: P11 | AY28: P11 | AZ28: L11 | BB28: 27 | BC28: ='1A'!$E30 -> P | BD28: ='1A'!AL30 -> 1 | BE28: ='1B'!$E30 -> P | BF28: ='1B'!$AL30 -> 1 | BG28: ='1C'!$E30 -> P | BH28: ='1C'!$AL30 -> 1 | BJ28: P1 | BK28: P1 | BL28: P1
A29: 28 | C29: ='1A'!$E31 -> L | D29: ='1A'!I31 -> 6 | E29: ='1B'!$E31 -> P | F29: ='1B'!$I31 -> 6 | G29: ='1C'!$E31 -> 0 | H29: ='1C'!$I31 -> 0 | I29: ='2A'!$E31 -> L | J29: ='2A'!$I31 -> 7 | K29: ='2B'!$E31 -> P | L29: ='2B'!$I31 -> 7 | M29: ='2C'!$E31 -> P | N29: ='2C'!$I31 -> 7 | O29: ='3A'!$E31 -> P | P29: ='3A'!$I31 -> 8 | Q29: ='3B'!E31 -> L | R29: ='3B'!I31 -> 8 | S29: ='3C'!E31 -> P | T29: ='3C'!I31 -> 8 | U29: ='4A'!$E31 -> P | V29: ='4A'!$I31 -> 9 | W29: ='4B'!$E31 -> P | X29: ='4B'!$I31 -> 9 | Y29: ='5A'!$E31 -> P | Z29: ='5A'!$I31 -> 10 | AA29: ='5B'!$E31 -> L | AB29: ='5B'!$I31 -> 11 | AC29: ='6A'!$E31 -> P | AD29: ='6A'!$I31 -> 11 | AE29: ='6B'!$E31 -> L | AF29: ='6B'!$I31 -> 12 | AK29: 28 | AL29: L6 | AM29: P6 | AN29: 00 | AO29: L7 | AP29: P7 | AQ29: P7 | AR29: P8 | AS29: L8 | AT29: P8 | AU29: P9 | AV29: P9 | AW29: P10 | AX29: L11 | AY29: P11 | AZ29: L12 | BB29: 28 | BC29: ='1A'!$E31 -> L | BD29: ='1A'!AL31 -> 1 | BE29: ='1B'!$E31 -> P | BF29: ='1B'!$AL31 -> 1 | BG29: ='1C'!$E31 -> 0 | BH29: ='1C'!$AL31 -> 0 | BJ29: L1 | BK29: P1 | BL29: 00
A30: 29 | C30: ='1A'!$E32 -> L | D30: ='1A'!I32 -> 6 | E30: ='1B'!$E32 -> P | F30: ='1B'!$I32 -> 6 | G30: ='1C'!$E32 -> 0 | H30: ='1C'!$I32 -> 0 | I30: ='2A'!$E32 -> L | J30: ='2A'!$I32 -> 7 | K30: ='2B'!$E32 -> L | L30: ='2B'!$I32 -> 7 | M30: ='2C'!$E32 -> P | N30: ='2C'!$I32 -> 8 | O30: ='3A'!$E32 -> P | P30: ='3A'!$I32 -> 9 | Q30: ='3B'!E32 -> P | R30: ='3B'!I32 -> 8 | S30: ='3C'!E32 -> L | T30: ='3C'!I32 -> 8 | U30: ='4A'!$E32 -> L | V30: ='4A'!$I32 -> 10 | W30: ='4B'!$E32 -> P | X30: ='4B'!$I32 -> 9 | Y30: ='5A'!$E32 -> P | Z30: ='5A'!$I32 -> 10 | AA30: ='5B'!$E32 -> P | AB30: ='5B'!$I32 -> 10 | AC30: ='6A'!$E32 -> P | AD30: ='6A'!$I32 -> 11 | AE30: ='6B'!$E32 -> P | AF30: ='6B'!$I32 -> 11 | AK30: 29 | AL30: L6 | AM30: P6 | AN30: =G30&H30 -> 00 | AO30: L7 | AP30: L7 | AQ30: P8 | AR30: P9 | AS30: P8 | AT30: L8 | AU30: L10 | AV30: P9 | AW30: P10 | AX30: P10 | AY30: P11 | AZ30: P11 | BB30: 29 | BC30: ='1A'!$E32 -> L | BD30: ='1A'!AL32 -> 1 | BE30: ='1B'!$E32 -> P | BF30: ='1B'!$AL32 -> 1 | BG30: ='1C'!$E32 -> 0 | BH30: ='1C'!$AL32 -> 0 | BJ30: L1 | BK30: P1 | BL30: 00
A31: 30 | C31: ='1A'!$E33 -> P | D31: ='1A'!I33 -> 7 | E31: ='1B'!$E33 -> P | F31: ='1B'!$I33 -> 6 | G31: ='1C'!$E33 -> 0 | H31: ='1C'!$I33 -> 0 | I31: ='2A'!$E33 -> P | J31: ='2A'!$I33 -> 7 | K31: ='2B'!$E33 -> L | L31: ='2B'!$I33 -> 7 | M31: ='2C'!$E33 -> L | N31: ='2C'!$I33 -> 7 | O31: ='3A'!$E33 -> P | P31: ='3A'!$I33 -> 8 | Q31: ='3B'!E33 -> P | R31: ='3B'!I33 -> 8 | S31: ='3C'!E33 -> P | T31: ='3C'!I33 -> 8 | U31: ='4A'!$E33 -> P | V31: ='4A'!$I33 -> 9 | W31: ='4B'!$E33 -> L | X31: ='4B'!$I33 -> 9 | Y31: ='5A'!$E33 -> P | Z31: ='5A'!$I33 -> 10 | AA31: ='5B'!$E33 -> P | AB31: ='5B'!$I33 -> 10 | AC31: ='6A'!$E33 -> P | AD31: ='6A'!$I33 -> 12 | AE31: ='6B'!$E33 -> P | AF31: ='6B'!$I33 -> 11 | AK31: 30 | AL31: P7 | AM31: P6 | AN31: 00 | AO31: P7 | AP31: L7 | AQ31: L7 | AR31: P8 | AS31: P8 | AT31: P8 | AU31: P9 | AV31: L9 | AW31: P10 | AX31: P10 | AY31: P12 | AZ31: P11 | BB31: 30 | BC31: ='1A'!$E33 -> P | BD31: ='1A'!AL33 -> 5 | BE31: ='1B'!$E33 -> P | BF31: ='1B'!$AL33 -> 1 | BG31: ='1C'!$E33 -> 0 | BH31: ='1C'!$AL33 -> 0 | BJ31: P5 | BK31: P1 | BL31: 00
A32: 31 | C32: ='1A'!$E34 -> 0 | D32: ='1A'!I34 -> 0 | E32: ='1B'!$E34 -> 0 | F32: ='1B'!$I34 -> 0 | G32: ='1C'!$E34 -> 0 | H32: ='1C'!$I34 -> 0 | I32: ='2A'!$E34 -> 0 | J32: ='2A'!$I34 -> 0 | K32: ='2B'!$E34 -> 0 | L32: ='2B'!$I34 -> 0 | M32: ='2C'!$E34 -> 0 | N32: ='2C'!$I34 -> 0 | O32: ='3A'!$E34 -> P | P32: ='3A'!$I34 -> 9 | Q32: ='3B'!E34 -> L | R32: ='3B'!I34 -> 9 | S32: ='3C'!E34 -> P | T32: ='3C'!I34 -> 8 | U32: ='4A'!$E34 -> L | V32: ='4A'!$I34 -> 9 | W32: ='4B'!$E34 -> P | X32: ='4B'!$I34 -> 9 | Y32: ='5A'!$E34 -> P | Z32: ='5A'!$I34 -> 10 | AA32: ='5B'!$E34 -> L | AB32: ='5B'!$I34 -> 11 | AC32: ='6A'!$E34 -> P | AD32: ='6A'!$I34 -> 11 | AE32: ='6B'!$E34 -> P | AF32: ='6B'!$I34 -> 11 | AK32: 31 | AL32: 00 | AM32: 00 | AN32: 00 | AO32: 00 | AP32: 00 | AQ32: 00 | AR32: P9 | AS32: L9 | AT32: P8 | AU32: L9 | AV32: P9 | AW32: P10 | AX32: L11 | AY32: P11 | AZ32: P11 | BB32: 31 | BC32: ='1A'!$E34 -> 0 | BD32: ='1A'!AL34 -> 0 | BE32: ='1B'!$E34 -> 0 | BF32: ='1B'!$AL34 -> 0 | BG32: ='1C'!$E34 -> 0 | BH32: ='1C'!$AL34 -> 0 | BJ32: 00 | BK32: 00 | BL32: 00
A33: 32 | C33: ='1A'!$E35 -> 0 | D33: ='1A'!I35 -> 0 | E33: ='1B'!$E35 -> 0 | F33: ='1B'!$I35 -> 0 | G33: ='1C'!$E35 -> 0 | H33: ='1C'!$I35 -> 0 | I33: ='2A'!$E35 -> 0 | J33: ='2A'!$I35 -> 0 | K33: ='2B'!$E35 -> 0 | L33: ='2B'!$I35 -> 0 | M33: ='2C'!$E35 -> 0 | N33: ='2C'!$I35 -> 0 | O33: ='3A'!$E35 -> P | P33: ='3A'!$I35 -> 8 | Q33: ='3B'!E35 -> L | R33: ='3B'!I35 -> 9 | S33: ='3C'!E35 -> P | T33: ='3C'!I35 -> 8 | U33: ='4A'!$E35 -> P | V33: ='4A'!$I35 -> 10 | W33: ='4B'!$E35 -> P | X33: ='4B'!$I35 -> 10 | Y33: ='5A'!$E35 -> P | Z33: ='5A'!$I35 -> 11 | AA33: ='5B'!$E35 -> L | AB33: ='5B'!$I35 -> 11 | AC33: ='6A'!$E35 -> P | AD33: ='6A'!$I35 -> 11 | AE33: ='6B'!$E35 -> P | AF33: ='6B'!$I35 -> 11 | AK33: 32 | AL33: 00 | AM33: 00 | AN33: 00 | AO33: 00 | AP33: 00 | AQ33: 00 | AR33: P8 | AS33: L9 | AT33: P8 | AU33: P10 | AV33: P10 | AW33: P11 | AX33: L11 | AY33: P11 | AZ33: P11 | BB33: 32 | BC33: ='1A'!$E35 -> 0 | BD33: ='1A'!AL35 -> 0 | BE33: ='1B'!$E35 -> 0 | BF33: ='1B'!$AL35 -> 0 | BG33: ='1C'!$E35 -> 0 | BH33: ='1C'!$AL35 -> 0 | BJ33: 00 | BK33: 00 | BL33: 00
A34: 33 | C34: ='1A'!$E36 -> 0 | D34: ='1A'!I36 -> 0 | E34: ='1B'!$E36 -> 0 | F34: ='1B'!$I36 -> 0 | G34: ='1C'!$E36 -> 0 | H34: ='1C'!$I36 -> 0 | I34: ='2A'!$E36 -> 0 | J34: ='2A'!$I36 -> 0 | K34: ='2B'!$E36 -> 0 | L34: ='2B'!$I36 -> 0 | M34: ='2C'!$E36 -> 0 | N34: ='2C'!$I36 -> 0 | O34: ='3A'!$E36 -> 0 | P34: ='3A'!$I36 -> 0 | Q34: ='3B'!E36 -> 0 | R34: ='3B'!I36 -> 0 | S34: ='3C'!E36 -> 0 | T34: ='3C'!I36 -> 0 | U34: ='4A'!$E36 -> 0 | V34: ='4A'!$I36 -> 0 | W34: ='4B'!$E36 -> 0 | X34: ='4B'!$I36 -> 0 | Y34: ='5A'!$E36 -> 0 | Z34: ='5A'!$I36 -> 0 | AA34: ='5B'!$E36 -> 0 | AB34: ='5B'!$I36 -> 0 | AC34: ='6A'!$E36 -> P | AD34: ='6A'!$I36 -> 11 | AE34: ='6B'!$E36 -> P | AF34: ='6B'!$I36 -> 12 | AK34: 33 | AL34: 00 | AM34: 00 | AN34: 00 | AO34: 00 | AP34: 00 | AQ34: 00 | AR34: 00 | AS34: 00 | AT34: 00 | AU34: 00 | AV34: 00 | AW34: 00 | AX34: 00 | AY34: P11 | AZ34: P12 | BB34: 33 | BC34: ='1A'!$E36 -> 0 | BD34: ='1A'!AL36 -> 0 | BE34: ='1B'!$E36 -> 0 | BF34: ='1B'!$AL36 -> 0 | BG34: ='1C'!$E36 -> 0 | BH34: ='1C'!$AL36 -> 0 | BJ34: 00 | BK34: 00 | BL34: 00
A35: 34 | C35: ='1A'!$E37 -> 0 | D35: ='1A'!I37 -> 0 | E35: ='1B'!$E37 -> 0 | F35: ='1B'!$I37 -> 0 | G35: ='1C'!$E37 -> 0 | H35: ='1C'!$I37 -> 0 | I35: ='2A'!$E37 -> 0 | J35: ='2A'!$I37 -> 0 | K35: ='2B'!$E37 -> 0 | L35: ='2B'!$I37 -> 0 | M35: ='2C'!$E37 -> 0 | N35: ='2C'!$I37 -> 0 | O35: ='3A'!$E37 -> 0 | P35: ='3A'!$I37 -> 0 | Q35: ='3B'!E37 -> 0 | R35: ='3B'!I37 -> 0 | S35: ='3C'!E37 -> 0 | T35: ='3C'!I37 -> 0 | U35: ='4A'!#REF! ->  | V35: ='4A'!#REF! ->  | W35: ='4B'!$E37 -> 0 | X35: ='4B'!$I37 -> 0 | Y35: ='5A'!$E37 -> 0 | Z35: ='5A'!$I37 -> 0 | AA35: ='5B'!$E37 -> 0 | AB35: ='5B'!$I37 -> 0 | AC35: ='6A'!$E37 -> 0 | AD35: ='6A'!$I37 -> 0 | AE35: ='6B'!$E37 -> 0 | AF35: ='6B'!$I37 -> 0 | AK35: 34 | AL35: 00 | AM35: 00 | AN35: 00 | AO35: 00 | AP35: 00 | AQ35: 00 | AR35: 00 | AS35: 00 | AT35: 00 | AV35: 00 | AW35: 00 | AX35: 00 | AY35: 00 | AZ35: 00 | BB35: 34 | BC35: ='1A'!$E37 -> 0 | BD35: ='1A'!AL37 -> 0 | BE35: ='1B'!$E37 -> 0 | BF35: ='1B'!$AL37 -> 0 | BG35: ='1C'!$E37 -> 0 | BH35: ='1C'!$AL37 -> 0 | BJ35: 00 | BK35: 00 | BL35: 00
A36: 35 | C36: ='1A'!$E38 -> 0 | D36: ='1A'!I38 -> 0 | E36: ='1B'!$E38 -> 0 | F36: ='1B'!$I38 -> 0 | G36: ='1C'!$E38 -> 0 | H36: ='1C'!$I38 -> 0 | I36: ='2A'!$E38 -> 0 | J36: ='2A'!$I38 -> 0 | K36: ='2B'!$E38 -> 0 | L36: ='2B'!$I38 -> 0 | M36: ='2C'!$E38 -> 0 | N36: ='2C'!$I38 -> 0 | O36: ='3A'!$E38 -> 0 | P36: ='3A'!$I38 -> 0 | Q36: ='3B'!E38 -> 0 | R36: ='3B'!I38 -> 0 | S36: ='3C'!E38 -> 0 | T36: ='3C'!I38 -> 0 | U36: ='4A'!$E37 -> 0 | V36: ='4A'!$I37 -> 0 | W36: ='4B'!$E38 -> 0 | X36: ='4B'!$I38 -> 0 | Y36: ='5A'!$E38 -> 0 | Z36: ='5A'!$I38 -> 0 | AA36: ='5B'!$E38 -> 0 | AB36: ='5B'!$I38 -> 0 | AC36: ='6A'!$E38 -> 0 | AD36: ='6A'!$I38 -> 0 | AE36: ='6B'!$E38 -> 0 | AF36: ='6B'!$I38 -> 0 | AK36: 35 | AL36: 00 | AM36: 00 | AN36: 00 | AO36: 00 | AP36: 00 | AQ36: 00 | AR36: 00 | AS36: 00 | AT36: 00 | AU36: 00 | AV36: 00 | AW36: 00 | AX36: 00 | AY36: 00 | AZ36: 00 | BB36: 35 | BC36: ='1A'!$E38 -> 0 | BD36: ='1A'!AL38 -> 0 | BE36: ='1B'!$E38 -> 0 | BF36: ='1B'!$AL38 -> 0 | BG36: ='1C'!$E38 -> 0 | BH36: ='1C'!$AL38 -> 0 | BJ36: 00 | BK36: 00 | BL36: 00
D37: KELAS | AK37: ROMBEL | AL37: 1 | AM37: 1 | AN37: 1 | AO37: 1 | AP37: 1 | AQ37: 1 | AR37: 1 | AS37: 1 | AT37: 1 | AU37: 1 | AV37: 1 | AW37: 1 | AX37: 1 | AY37: 1 | AZ37: 1 | BI37: DARI JENJANG SEBELUMNYA | BM37: JUMLAH
A38: menurut umur | C38: 1A | E38: 1B | G38: 1C | I38: 2A | K38: 2B | M38: 2C | O38: 3A | Q38: 3B | S38: 3C | U38: 4A | W38: 4B | Y38: 5A | AA38: 5B | AC38: 6A | AE38: 6B | AG38: TOT JML | AH38: JUMLAH | AI38: ATAU | AK38: ATAU | BI38: TK L | BJ38: =COUNTIF(BJ2:BJ36,"L1") -> 14 | BK38: =COUNTIF(BK2:BK36,"L1") -> 13 | BL38: =COUNTIF(BL2:BL36,"L1") -> 12 | BM38: =SUM(BJ38:BL38) -> 39 | BN38: =SUM(BM38:BM39) -> 79
C39: L | D39: P | E39: L | F39: P | G39: L | H39: P | I39: L | J39: P | K39: L | L39: P | M39: L | N39: P | O39: L | P39: P | Q39: L | R39: P | S39: L | T39: P | U39: L | V39: P | W39: L | X39: P | Y39: L | Z39: P | AA39: L | AB39: P | AC39: L | AD39: P | AE39: L | AF39: P | AI39: L | AJ39: P | AK39: L | AL39: P | BI39: TK P | BJ39: =COUNTIF(BJ2:BJ36,"P1") -> 14 | BK39: =COUNTIF(BK2:BK36,"P1") -> 15 | BL39: =COUNTIF(BL2:BL36,"P1") -> 11 | BM39: 40
A40: 5 | B40: Th | C40: =COUNTIF($AL$2:$AL$36,"L5") -> 0 | D40: =COUNTIF($AL$2:$AL$36,"P5") -> 1 | E40: =COUNTIF($AM$2:$AM$36,"L5") -> 0 | F40: =COUNTIF($AM$2:$AM$36,"P5") -> 0 | G40: =COUNTIF($AN$2:$AN$36,"L5") -> 0 | H40: =COUNTIF($AN$2:$AN$36,"P5") -> 0 | I40: =COUNTIF($AO$2:$AO$36,"L5") -> 0 | J40: =COUNTIF($AO$2:$AO$36,"P5") -> 0 | K40: =COUNTIF($AP$2:$AP$36,"L5") -> 0 | L40: =COUNTIF($AP$2:$AP$36,"P5") -> 0 | M40: =COUNTIF($AQ$2:$AQ$36,"L5") -> 0 | N40: =COUNTIF($AQ$2:$AQ$36,"P5") -> 0 | O40: =COUNTIF($AR$2:$AR$36,"L5") -> 0 | P40: =COUNTIF($AR$2:$AR$36,"P5") -> 0 | Q40: =COUNTIF($AS$2:$AS$36,"L5") -> 0 | R40: =COUNTIF($AS$2:$AS$36,"P5") -> 0 | S40: =COUNTIF($AT$2:$AT$36,"L5") -> 0 | T40: =COUNTIF($AT$2:$AT$36,"P5") -> 0 | U40: =COUNTIF($AU$2:$AU$36,"L5") -> 0 | V40: =COUNTIF($AU$2:$AU$36,"P5") -> 0 | W40: =COUNTIF($AV$2:$AV$36,"L5") -> 0 | X40: =COUNTIF($AV$2:$AV$36,"P5") -> 0 | Y40: =COUNTIF($AW$2:$AW$36,"L5") -> 0 | Z40: =COUNTIF($AW$2:$AW$36,"P5") -> 0 | AA40: =COUNTIF($AX$2:$AX$36,"L5") -> 0 | AB40: =COUNTIF($AX$2:$AX$36,"P5") -> 0 | AC40: =COUNTIF($AY$2:$AY$36,"L5") -> 0 | AD40: =COUNTIF($AY$2:$AY$36,"P5") -> 0 | AE40: =COUNTIF($AZ$2:$AZ$36,"L5") -> 0 | AF40: =COUNTIF($AZ$2:$AZ$36,"P5") -> 0 | AG40: =SUM(C40:AF40) -> 1 | AH40: =AG40 -> 1 | AI40: =SUM(C40,E40,G40,I40,K40,M40,O40,Q40,S40,U40,W40,Y40,AA40,AC40,AE40) -> 0 | AJ40: 1 | BI40: RA L | BJ40: =COUNTIF(BJ2:BJ36,"L2") -> 1 | BK40: =COUNTIF(BK2:BK36,"L2") -> 0 | BL40: =COUNTIF(BL2:BL36,"L2") -> 1 | BM40: 2 | BN40: =SUM(BM40:BM41) -> 5
A41: 6 | B41: Th | C41: =COUNTIF($AL$2:$AL$36,"L6") -> 10 | D41: =COUNTIF($AL$2:$AL$36,"P6") -> 11 | E41: =COUNTIF($AM$2:$AM$36,"L6") -> 9 | F41: =COUNTIF($AM$2:$AM$36,"P6") -> 10 | G41: =COUNTIF($AN$2:$AN$36,"L6") -> 6 | H41: =COUNTIF($AN$2:$AN$36,"P6") -> 5 | I41: =COUNTIF($AO$2:$AO$36,"L6") -> 0 | J41: =COUNTIF($AO$2:$AO$36,"P6") -> 0 | K41: =COUNTIF($AP$2:$AP$36,"L6") -> 0 | L41: =COUNTIF($AP$2:$AP$36,"P6") -> 0 | M41: =COUNTIF($AQ$2:$AQ$36,"L6") -> 1 | N41: =COUNTIF($AQ$2:$AQ$36,"P6") -> 1 | O41: =COUNTIF($AR$2:$AR$36,"L6") -> 0 | P41: =COUNTIF($AR$2:$AR$36,"P6") -> 0 | Q41: =COUNTIF($AS$2:$AS$36,"L6") -> 0 | R41: =COUNTIF($AS$2:$AS$36,"P6") -> 0 | S41: =COUNTIF($AT$2:$AT$36,"L6") -> 0 | T41: =COUNTIF($AT$2:$AT$36,"P6") -> 0 | U41: =COUNTIF($AU$2:$AU$36,"L6") -> 0 | V41: =COUNTIF($AU$2:$AU$36,"P6") -> 0 | W41: =COUNTIF($AV$2:$AV$36,"L6") -> 0 | X41: =COUNTIF($AV$2:$AV$36,"P6") -> 0 | Y41: =COUNTIF($AW$2:$AW$36,"L6") -> 0 | Z41: =COUNTIF($AW$2:$AW$36,"P6") -> 0 | AA41: =COUNTIF($AX$2:$AX$36,"L6") -> 0 | AB41: =COUNTIF($AX$2:$AX$36,"P6") -> 0 | AC41: =COUNTIF($AY$2:$AY$36,"L6") -> 0 | AD41: =COUNTIF($AY$2:$AY$36,"P6") -> 0 | AE41: =COUNTIF($AZ$2:$AZ$36,"L6") -> 0 | AF41: =COUNTIF($AZ$2:$AZ$36,"P6") -> 0 | AG41: 53 | AH41: =AG41 -> 53 | AI41: 26 | AJ41: 27 | BI41: RA P | BJ41: =COUNTIF(BJ2:BJ36,"P2") -> 0 | BK41: =COUNTIF(BK2:BK36,"P2") -> 1 | BL41: =COUNTIF(BL2:BL36,"P2") -> 2 | BM41: 3
A42: 7 | B42: Th | C42: =COUNTIF($AL$2:$AL$36,"L7") -> 5 | D42: =COUNTIF($AL$2:$AL$36,"P7") -> 3 | E42: =COUNTIF($AM$2:$AM$36,"L7") -> 5 | F42: =COUNTIF($AM$2:$AM$36,"P7") -> 6 | G42: =COUNTIF($AN$2:$AN$36,"L7") -> 8 | H42: =COUNTIF($AN$2:$AN$36,"P7") -> 8 | I42: =COUNTIF($AO$2:$AO$36,"L7") -> 10 | J42: =COUNTIF($AO$2:$AO$36,"P7") -> 7 | K42: =COUNTIF($AP$2:$AP$36,"L7") -> 9 | L42: =COUNTIF($AP$2:$AP$36,"P7") -> 4 | M42: =COUNTIF($AQ$2:$AQ$36,"L7") -> 10 | N42: =COUNTIF($AQ$2:$AQ$36,"P7") -> 7 | O42: =COUNTIF($AR$2:$AR$36,"L7") -> 0 | P42: =COUNTIF($AR$2:$AR$36,"P7") -> 0 | Q42: =COUNTIF($AS$2:$AS$36,"L7") -> 0 | R42: =COUNTIF($AS$2:$AS$36,"P7") -> 0 | S42: =COUNTIF($AT$2:$AT$36,"L7") -> 0 | T42: =COUNTIF($AT$2:$AT$36,"P7") -> 0 | U42: =COUNTIF($AU$2:$AU$36,"L7") -> 0 | V42: =COUNTIF($AU$2:$AU$36,"P7") -> 0 | W42: =COUNTIF($AV$2:$AV$36,"L7") -> 0 | X42: =COUNTIF($AV$2:$AV$36,"P7") -> 0 | Y42: =COUNTIF($AW$2:$AW$36,"L7") -> 0 | Z42: =COUNTIF($AW$2:$AW$36,"P7") -> 0 | AA42: =COUNTIF($AX$2:$AX$36,"L7") -> 0 | AB42: =COUNTIF($AX$2:$AX$36,"P7") -> 0 | AC42: =COUNTIF($AY$2:$AY$36,"L7") -> 0 | AD42: =COUNTIF($AY$2:$AY$36,"P7") -> 0 | AE42: =COUNTIF($AZ$2:$AZ$36,"L7") -> 0 | AF42: =COUNTIF($AZ$2:$AZ$36,"P7") -> 0 | AG42: 82 | AH42: =SUM(AG42:AG47) -> 412 | AI42: 47 | AJ42: 35 | AK42: =SUM(AI42:AI47) -> 211 | AL42: =SUM(AJ42:AJ47) -> 201 | BI42: OT L | BJ42: =COUNTIF(BJ2:BJ36,"L5") -> 0 | BK42: =COUNTIF(BK2:BK36,"L5") -> 1 | BL42: =COUNTIF(BL2:BL36,"L5") -> 1 | BM42: 2 | BN42: =SUM(BM42:BM43) -> 3
A43: 8 | B43: Th | C43: =COUNTIF($AL$2:$AL$36,"L8") -> 0 | D43: =COUNTIF($AL$2:$AL$36,"P8") -> 0 | E43: =COUNTIF($AM$2:$AM$36,"L8") -> 0 | F43: =COUNTIF($AM$2:$AM$36,"P8") -> 0 | G43: =COUNTIF($AN$2:$AN$36,"L8") -> 0 | H43: =COUNTIF($AN$2:$AN$36,"P8") -> 0 | I43: =COUNTIF($AO$2:$AO$36,"L8") -> 7 | J43: =COUNTIF($AO$2:$AO$36,"P8") -> 6 | K43: =COUNTIF($AP$2:$AP$36,"L8") -> 9 | L43: =COUNTIF($AP$2:$AP$36,"P8") -> 8 | M43: =COUNTIF($AQ$2:$AQ$36,"L8") -> 5 | N43: =COUNTIF($AQ$2:$AQ$36,"P8") -> 6 | O43: =COUNTIF($AR$2:$AR$36,"L8") -> 5 | P43: =COUNTIF($AR$2:$AR$36,"P8") -> 14 | Q43: =COUNTIF($AS$2:$AS$36,"L8") -> 16 | R43: =COUNTIF($AS$2:$AS$36,"P8") -> 10 | S43: =COUNTIF($AT$2:$AT$36,"L8") -> 14 | T43: =COUNTIF($AT$2:$AT$36,"P8") -> 10 | U43: =COUNTIF($AU$2:$AU$36,"L8") -> 0 | V43: =COUNTIF($AU$2:$AU$36,"P8") -> 0 | W43: =COUNTIF($AV$2:$AV$36,"L8") -> 0 | X43: =COUNTIF($AV$2:$AV$36,"P8") -> 0 | Y43: =COUNTIF($AW$2:$AW$36,"L8") -> 0 | Z43: =COUNTIF($AW$2:$AW$36,"P8") -> 0 | AA43: =COUNTIF($AX$2:$AX$36,"L8") -> 0 | AB43: =COUNTIF($AX$2:$AX$36,"P8") -> 0 | AC43: =COUNTIF($AY$2:$AY$36,"L8") -> 0 | AD43: =COUNTIF($AY$2:$AY$36,"P8") -> 0 | AE43: =COUNTIF($AZ$2:$AZ$36,"L8") -> 0 | AF43: =COUNTIF($AZ$2:$AZ$36,"P8") -> 0 | AG43: 110 | AI43: 56 | AJ43: 54 | BI43: OT P | BJ43: =COUNTIF(BJ2:BJ36,"L5") -> 0 | BK43: =COUNTIF(BK2:BK36,"L5") -> 1 | BL43: =COUNTIF(BL2:BL36,"P5") -> 0 | BM43: 1
A44: 9 | B44: Th | C44: =COUNTIF($AL$2:$AL$36,"L9") -> 0 | D44: =COUNTIF($AL$2:$AL$36,"P9") -> 0 | E44: =COUNTIF($AM$2:$AM$36,"L9") -> 0 | F44: =COUNTIF($AM$2:$AM$36,"P9") -> 0 | G44: =COUNTIF($AN$2:$AN$36,"L9") -> 0 | H44: =COUNTIF($AN$2:$AN$36,"P9") -> 0 | I44: =COUNTIF($AO$2:$AO$36,"L9") -> 0 | J44: =COUNTIF($AO$2:$AO$36,"P9") -> 0 | K44: =COUNTIF($AP$2:$AP$36,"L9") -> 0 | L44: =COUNTIF($AP$2:$AP$36,"P9") -> 0 | M44: =COUNTIF($AQ$2:$AQ$36,"L9") -> 0 | N44: =COUNTIF($AQ$2:$AQ$36,"P9") -> 0 | O44: =COUNTIF($AR$2:$AR$36,"L9") -> 5 | P44: =COUNTIF($AR$2:$AR$36,"P9") -> 8 | Q44: =COUNTIF($AS$2:$AS$36,"L9") -> 6 | R44: =COUNTIF($AS$2:$AS$36,"P9") -> 0 | S44: =COUNTIF($AT$2:$AT$36,"L9") -> 4 | T44: =COUNTIF($AT$2:$AT$36,"P9") -> 3 | U44: =COUNTIF($AU$2:$AU$36,"L9") -> 4 | V44: =COUNTIF($AU$2:$AU$36,"P9") -> 14 | W44: =COUNTIF($AV$2:$AV$36,"L9") -> 12 | X44: =COUNTIF($AV$2:$AV$36,"P9") -> 11 | Y44: =COUNTIF($AW$2:$AW$36,"L9") -> 0 | Z44: =COUNTIF($AW$2:$AW$36,"P9") -> 0 | AA44: =COUNTIF($AX$2:$AX$36,"L9") -> 0 | AB44: =COUNTIF($AX$2:$AX$36,"P9") -> 0 | AC44: =COUNTIF($AY$2:$AY$36,"L9") -> 0 | AD44: =COUNTIF($AY$2:$AY$36,"P9") -> 0 | AE44: =COUNTIF($AZ$2:$AZ$36,"L9") -> 0 | AF44: =COUNTIF($AZ$2:$AZ$36,"P9") -> 0 | AG44: 67 | AI44: =SUM(C44,E44,G44,I44,K44,M44,O44,Q44,S44,U44,W44,Y44,AA44,AC44,AE44) -> 31 | AJ44: 36 | BM44: =SUM(BM38:BM43) -> 87
A45: 10 | B45: Th | C45: =COUNTIF($AL$2:$AL$36,"L10") -> 0 | D45: =COUNTIF($AL$2:$AL$36,"P10") -> 0 | E45: =COUNTIF($AM$2:$AM$36,"L10") -> 0 | F45: =COUNTIF($AM$2:$AM$36,"P10") -> 0 | G45: =COUNTIF($AN$2:$AN$36,"L10") -> 0 | H45: =COUNTIF($AN$2:$AN$36,"P10") -> 0 | I45: =COUNTIF($AO$2:$AO$36,"L10") -> 0 | J45: =COUNTIF($AO$2:$AO$36,"P10") -> 0 | K45: =COUNTIF($AP$2:$AP$36,"L10") -> 0 | L45: =COUNTIF($AP$2:$AP$36,"P10") -> 0 | M45: =COUNTIF($AQ$2:$AQ$36,"L10") -> 0 | N45: =COUNTIF($AQ$2:$AQ$36,"P10") -> 0 | O45: =COUNTIF($AR$2:$AR$36,"L10") -> 0 | P45: =COUNTIF($AR$2:$AR$36,"P10") -> 0 | Q45: =COUNTIF($AS$2:$AS$36,"L10") -> 0 | R45: =COUNTIF($AS$2:$AS$36,"P10") -> 0 | S45: =COUNTIF($AT$2:$AT$36,"L10") -> 1 | T45: =COUNTIF($AT$2:$AT$36,"P10") -> 0 | U45: =COUNTIF($AU$2:$AU$36,"L10") -> 6 | V45: =COUNTIF($AU$2:$AU$36,"P10") -> 8 | W45: =COUNTIF($AV$2:$AV$36,"L10") -> 7 | X45: =COUNTIF($AV$2:$AV$36,"P10") -> 2 | Y45: =COUNTIF($AW$2:$AW$36,"L10") -> 5 | Z45: =COUNTIF($AW$2:$AW$36,"P10") -> 17 | AA45: =COUNTIF($AX$2:$AX$36,"L10") -> 13 | AB45: =COUNTIF($AX$2:$AX$36,"P10") -> 7 | AC45: =COUNTIF($AY$2:$AY$36,"L10") -> 0 | AD45: =COUNTIF($AY$2:$AY$36,"P10") -> 0 | AE45: =COUNTIF($AZ$2:$AZ$36,"L10") -> 2 | AF45: =COUNTIF($AZ$2:$AZ$36,"P10") -> 0 | AG45: 68 | AI45: 34 | AJ45: 34
A46: 11 | B46: Th | C46: =COUNTIF($AL$2:$AL$36,"L11") -> 0 | D46: =COUNTIF($AL$2:$AL$36,"P11") -> 0 | E46: =COUNTIF($AM$2:$AM$36,"L11") -> 0 | F46: =COUNTIF($AM$2:$AM$36,"P11") -> 0 | G46: =COUNTIF($AN$2:$AN$36,"L11") -> 0 | H46: =COUNTIF($AN$2:$AN$36,"P11") -> 0 | I46: =COUNTIF($AO$2:$AO$36,"L11") -> 0 | J46: =COUNTIF($AO$2:$AO$36,"P11") -> 0 | K46: =COUNTIF($AP$2:$AP$36,"L11") -> 0 | L46: =COUNTIF($AP$2:$AP$36,"P11") -> 0 | M46: =COUNTIF($AQ$2:$AQ$36,"L11") -> 0 | N46: =COUNTIF($AQ$2:$AQ$36,"P11") -> 0 | O46: =COUNTIF($AR$2:$AR$36,"L11") -> 0 | P46: =COUNTIF($AR$2:$AR$36,"P11") -> 0 | Q46: =COUNTIF($AS$2:$AS$36,"L11") -> 0 | R46: =COUNTIF($AS$2:$AS$36,"P11") -> 0 | S46: =COUNTIF($AT$2:$AT$36,"L11") -> 0 | T46: =COUNTIF($AT$2:$AT$36,"P11") -> 0 | U46: =COUNTIF($AU$2:$AU$36,"L11") -> 0 | V46: =COUNTIF($AU$2:$AU$36,"P11") -> 0 | W46: =COUNTIF($AV$2:$AV$36,"L11") -> 0 | X46: =COUNTIF($AV$2:$AV$36,"P11") -> 0 | Y46: =COUNTIF($AW$2:$AW$36,"L11") -> 4 | Z46: =COUNTIF($AW$2:$AW$36,"P11") -> 6 | AA46: =COUNTIF($AX$2:$AX$36,"L11") -> 11 | AB46: =COUNTIF($AX$2:$AX$36,"P11") -> 1 | AC46: =COUNTIF($AY$2:$AY$36,"L11") -> 6 | AD46: =COUNTIF($AY$2:$AY$36,"P11") -> 16 | AE46: =COUNTIF($AZ$2:$AZ$36,"L11") -> 14 | AF46: =COUNTIF($AZ$2:$AZ$36,"P11") -> 10 | AG46: 68 | AI46: 35 | AJ46: 33
A47: 12 | B47: Th | C47: =COUNTIF($AL$2:$AL$36,"L12") -> 0 | D47: =COUNTIF($AL$2:$AL$36,"P12") -> 0 | E47: =COUNTIF($AM$2:$AM$36,"L12") -> 0 | F47: =COUNTIF($AM$2:$AM$36,"P12") -> 0 | G47: =COUNTIF($AN$2:$AN$36,"L12") -> 0 | H47: =COUNTIF($AN$2:$AN$36,"P12") -> 0 | I47: =COUNTIF($AO$2:$AO$36,"L12") -> 0 | J47: =COUNTIF($AO$2:$AO$36,"P12") -> 0 | K47: =COUNTIF($AP$2:$AP$36,"L12") -> 0 | L47: =COUNTIF($AP$2:$AP$36,"P12") -> 0 | M47: =COUNTIF($AQ$2:$AQ$36,"L12") -> 0 | N47: =COUNTIF($AQ$2:$AQ$36,"P12") -> 0 | O47: =COUNTIF($AR$2:$AR$36,"L12") -> 0 | P47: =COUNTIF($AR$2:$AR$36,"P12") -> 0 | Q47: =COUNTIF($AS$2:$AS$36,"L12") -> 0 | R47: =COUNTIF($AS$2:$AS$36,"P12") -> 0 | S47: =COUNTIF($AT$2:$AT$36,"L12") -> 0 | T47: =COUNTIF($AT$2:$AT$36,"P12") -> 0 | U47: =COUNTIF($AU$2:$AU$36,"L12") -> 0 | V47: =COUNTIF($AU$2:$AU$36,"P12") -> 0 | W47: =COUNTIF($AV$2:$AV$36,"L12") -> 0 | X47: =COUNTIF($AV$2:$AV$36,"P12") -> 0 | Y47: =COUNTIF($AW$2:$AW$36,"L12") -> 0 | Z47: =COUNTIF($AW$2:$AW$36,"P12") -> 0 | AA47: =COUNTIF($AX$2:$AX$36,"L12") -> 0 | AB47: =COUNTIF($AX$2:$AX$36,"P12") -> 0 | AC47: =COUNTIF($AY$2:$AY$36,"L12") -> 5 | AD47: =COUNTIF($AY$2:$AY$36,"P12") -> 6 | AE47: =COUNTIF($AZ$2:$AZ$36,"L12") -> 3 | AF47: =COUNTIF($AZ$2:$AZ$36,"P12") -> 3 | AG47: 17 | AI47: 8 | AJ47: 9
A48: 13 | B48: Th | C48: =COUNTIF($AL$2:$AL$36,"L13") -> 0 | D48: =COUNTIF($AL$2:$AL$36,"P13") -> 0 | E48: =COUNTIF($AM$2:$AM$36,"L13") -> 0 | F48: =COUNTIF($AM$2:$AM$36,"P13") -> 0 | G48: =COUNTIF($AN$2:$AN$36,"L13") -> 0 | H48: =COUNTIF($AN$2:$AN$36,"P13") -> 0 | I48: =COUNTIF($AO$2:$AO$36,"L13") -> 0 | J48: =COUNTIF($AO$2:$AO$36,"P13") -> 0 | K48: =COUNTIF($AP$2:$AP$36,"L13") -> 0 | L48: =COUNTIF($AP$2:$AP$36,"P13") -> 0 | M48: =COUNTIF($AQ$2:$AQ$36,"L13") -> 0 | N48: =COUNTIF($AQ$2:$AQ$36,"P13") -> 0 | O48: =COUNTIF($AR$2:$AR$36,"L13") -> 0 | P48: =COUNTIF($AR$2:$AR$36,"P13") -> 0 | Q48: =COUNTIF($AS$2:$AS$36,"L13") -> 0 | R48: =COUNTIF($AS$2:$AS$36,"P13") -> 0 | S48: =COUNTIF($AT$2:$AT$36,"L13") -> 0 | T48: =COUNTIF($AT$2:$AT$36,"P13") -> 0 | U48: =COUNTIF($AU$2:$AU$36,"L13") -> 0 | V48: =COUNTIF($AU$2:$AU$36,"P13") -> 0 | W48: =COUNTIF($AV$2:$AV$36,"L13") -> 0 | X48: =COUNTIF($AV$2:$AV$36,"P13") -> 0 | Y48: =COUNTIF($AW$2:$AW$36,"L13") -> 0 | Z48: =COUNTIF($AW$2:$AW$36,"P13") -> 0 | AA48: =COUNTIF($AX$2:$AX$36,"L13") -> 0 | AB48: =COUNTIF($AX$2:$AX$36,"P13") -> 0 | AC48: =COUNTIF($AY$2:$AY$36,"L13") -> 0 | AD48: =COUNTIF($AY$2:$AY$36,"P13") -> 0 | AE48: =COUNTIF($AZ$2:$AZ$36,"L13") -> 1 | AF48: =COUNTIF($AZ$2:$AZ$36,"P13") -> 0 | AG48: 1 | AH48: =SUM(AG48:AG51) -> 1 | AI48: =SUM(C48,E48,G48,I48,K48,M48,O48,Q48,S48,U48,W48,Y48,AA48,AC48,AE48) -> 1 | AJ48: 0
A49: 14 | B49: Th | C49: =COUNTIF($AL$2:$AL$36,"L14") -> 0 | D49: =COUNTIF($AL$2:$AL$36,"P14") -> 0 | E49: =COUNTIF($AM$2:$AM$36,"L14") -> 0 | F49: =COUNTIF($AM$2:$AM$36,"P14") -> 0 | G49: =COUNTIF($AN$2:$AN$36,"L14") -> 0 | H49: =COUNTIF($AN$2:$AN$36,"P14") -> 0 | I49: =COUNTIF($AO$2:$AO$36,"L14") -> 0 | J49: =COUNTIF($AO$2:$AO$36,"P14") -> 0 | K49: =COUNTIF($AP$2:$AP$36,"L14") -> 0 | L49: =COUNTIF($AP$2:$AP$36,"P14") -> 0 | M49: =COUNTIF($AQ$2:$AQ$36,"L14") -> 0 | N49: =COUNTIF($AQ$2:$AQ$36,"P14") -> 0 | O49: =COUNTIF($AR$2:$AR$36,"L14") -> 0 | P49: =COUNTIF($AR$2:$AR$36,"P14") -> 0 | Q49: =COUNTIF($AS$2:$AS$36,"L14") -> 0 | R49: =COUNTIF($AS$2:$AS$36,"P14") -> 0 | S49: =COUNTIF($AT$2:$AT$36,"L14") -> 0 | T49: =COUNTIF($AT$2:$AT$36,"P14") -> 0 | U49: =COUNTIF($AU$2:$AU$36,"L14") -> 0 | V49: =COUNTIF($AU$2:$AU$36,"P14") -> 0 | W49: =COUNTIF($AV$2:$AV$36,"L14") -> 0 | X49: =COUNTIF($AV$2:$AV$36,"P14") -> 0 | Y49: =COUNTIF($AW$2:$AW$36,"L14") -> 0 | Z49: =COUNTIF($AW$2:$AW$36,"P14") -> 0 | AA49: =COUNTIF($AX$2:$AX$36,"L14") -> 0 | AB49: =COUNTIF($AX$2:$AX$36,"P14") -> 0 | AC49: =COUNTIF($AY$2:$AY$36,"L14") -> 0 | AD49: =COUNTIF($AY$2:$AY$36,"P14") -> 0 | AE49: =COUNTIF($AZ$2:$AZ$36,"L14") -> 0 | AF49: =COUNTIF($AZ$2:$AZ$36,"P14") -> 0 | AG49: 0 | AI49: 0 | AJ49: 0
A50: 15 | B50: Th | C50: =COUNTIF($AL$2:$AL$36,"L15") -> 0 | D50: =COUNTIF($AL$2:$AL$36,"P15") -> 0 | E50: =COUNTIF($AM$2:$AM$36,"L15") -> 0 | F50: =COUNTIF($AM$2:$AM$36,"P15") -> 0 | G50: =COUNTIF($AN$2:$AN$36,"L15") -> 0 | H50: =COUNTIF($AN$2:$AN$36,"P15") -> 0 | I50: =COUNTIF($AO$2:$AO$36,"L15") -> 0 | J50: =COUNTIF($AO$2:$AO$36,"P15") -> 0 | K50: =COUNTIF($AP$2:$AP$36,"L15") -> 0 | L50: =COUNTIF($AP$2:$AP$36,"P15") -> 0 | M50: =COUNTIF($AQ$2:$AQ$36,"L15") -> 0 | N50: =COUNTIF($AQ$2:$AQ$36,"P15") -> 0 | O50: =COUNTIF($AR$2:$AR$36,"L15") -> 0 | P50: =COUNTIF($AR$2:$AR$36,"P15") -> 0 | Q50: =COUNTIF($AS$2:$AS$36,"L15") -> 0 | R50: =COUNTIF($AS$2:$AS$36,"P15") -> 0 | S50: =COUNTIF($AT$2:$AT$36,"L15") -> 0 | T50: =COUNTIF($AT$2:$AT$36,"P15") -> 0 | U50: =COUNTIF($AU$2:$AU$36,"L15") -> 0 | V50: =COUNTIF($AU$2:$AU$36,"P15") -> 0 | W50: =COUNTIF($AV$2:$AV$36,"L15") -> 0 | X50: =COUNTIF($AV$2:$AV$36,"P15") -> 0 | Y50: =COUNTIF($AW$2:$AW$36,"L15") -> 0 | Z50: =COUNTIF($AW$2:$AW$36,"P15") -> 0 | AA50: =COUNTIF($AX$2:$AX$36,"L15") -> 0 | AB50: =COUNTIF($AX$2:$AX$36,"P15") -> 0 | AC50: =COUNTIF($AY$2:$AY$36,"L15") -> 0 | AD50: =COUNTIF($AY$2:$AY$36,"P15") -> 0 | AE50: =COUNTIF($AZ$2:$AZ$36,"L15") -> 0 | AF50: =COUNTIF($AZ$2:$AZ$36,"P15") -> 0 | AG50: 0 | AI50: 0 | AJ50: 0
A51: 16 | B51: Th | C51: =COUNTIF($AL$2:$AL$36,"L16") -> 0 | D51: =COUNTIF($AL$2:$AL$36,"P16") -> 0 | E51: =COUNTIF($AM$2:$AM$36,"L16") -> 0 | F51: =COUNTIF($AM$2:$AM$36,"P16") -> 0 | G51: =COUNTIF($AN$2:$AN$36,"L16") -> 0 | H51: =COUNTIF($AN$2:$AN$36,"P16") -> 0 | I51: =COUNTIF($AO$2:$AO$36,"L16") -> 0 | J51: =COUNTIF($AO$2:$AO$36,"P16") -> 0 | K51: =COUNTIF($AP$2:$AP$36,"L16") -> 0 | L51: =COUNTIF($AP$2:$AP$36,"P16") -> 0 | M51: =COUNTIF($AQ$2:$AQ$36,"L16") -> 0 | N51: =COUNTIF($AQ$2:$AQ$36,"P16") -> 0 | O51: =COUNTIF($AR$2:$AR$36,"L16") -> 0 | P51: =COUNTIF($AR$2:$AR$36,"P16") -> 0 | Q51: =COUNTIF($AS$2:$AS$36,"L16") -> 0 | R51: =COUNTIF($AS$2:$AS$36,"P16") -> 0 | S51: =COUNTIF($AT$2:$AT$36,"L16") -> 0 | T51: =COUNTIF($AT$2:$AT$36,"P16") -> 0 | U51: =COUNTIF($AU$2:$AU$36,"L16") -> 0 | V51: =COUNTIF($AU$2:$AU$36,"P16") -> 0 | W51: =COUNTIF($AV$2:$AV$36,"L16") -> 0 | X51: =COUNTIF($AV$2:$AV$36,"P16") -> 0 | Y51: =COUNTIF($AW$2:$AW$36,"L16") -> 0 | Z51: =COUNTIF($AW$2:$AW$36,"P16") -> 0 | AA51: =COUNTIF($AX$2:$AX$36,"L16") -> 0 | AB51: =COUNTIF($AX$2:$AX$36,"P16") -> 0 | AC51: =COUNTIF($AY$2:$AY$36,"L16") -> 0 | AD51: =COUNTIF($AY$2:$AY$36,"P16") -> 0 | AE51: =COUNTIF($AZ$2:$AZ$36,"L16") -> 0 | AF51: =COUNTIF($AZ$2:$AZ$36,"P16") -> 0 | AG51: 0 | AI51: =SUM(C51,E51,G51,I51,K51,M51,O51,Q51,S51,U51,W51,Y51,AA51,AC51,AE51) -> 0 | AJ51: 0
A52: JUMLAH | C52: =SUM(C40:C51) -> 15 | D52: 15 | E52: 14 | F52: 16 | G52: 14 | H52: 13 | I52: =SUM(I40:I51) -> 17 | J52: 13 | K52: 18 | L52: =SUM(L40:L51) -> 12 | M52: =SUM(M40:M51) -> 16 | N52: =SUM(N40:N51) -> 14 | O52: 10 | P52: 22 | Q52: 22 | R52: 10 | S52: =SUM(S40:S51) -> 19 | T52: 13 | U52: 10 | V52: 22 | W52: 19 | X52: 13 | Y52: 9 | Z52: 23 | AA52: 24 | AB52: 8 | AC52: 11 | AD52: 22 | AE52: =SUM(AE40:AE51) -> 20 | AF52: =SUM(AF40:AF51) -> 13
C53: =SUM(C52:D52) -> 30 | E53: =SUM(E52:F52) -> 30 | G53: =SUM(G52:H52) -> 27 | I53: =SUM(I52:J52) -> 30 | K53: =SUM(K52:L52) -> 30 | M53: 30 | O53: =SUM(O52:P52) -> 32 | Q53: =SUM(Q52:R52) -> 32 | S53: 32 | U53: =SUM(U52:V52) -> 32 | W53: =SUM(W52:X52) -> 32 | Y53: =SUM(Y52:Z52) -> 32 | AA53: =SUM(AA52:AB52) -> 32 | AC53: =SUM(AC52:AD52) -> 33 | AE53: 33 | AG53: =SUM(AH40:AH51) -> 467
C54: =SUM(C53:H53) -> 87 | I54: =SUM(I53:N53) -> 90 | O54: =SUM(O53:T53) -> 96 | U54: =SUM(U53:X53) -> 64 | Y54: =SUM(Y53:AB53) -> 64 | AC54: =SUM(AC53:AF53) -> 66
A56: ="JUMLAH SISWA "&TEXT(A68,0) -> JUMLAH SISWA MI NURUL ISLAM LABRUK KIDUL
A57: =HOME!B6 -> TAHUN PELAJARAN 2019/2020
A58: JUMLAH SISWA 1-6 | C58: 1A | E58: 1B | G58: 1C | I58: 2A | K58: 2B | M58: 2C | O58: 3A | Q58: 3B | S58: 3C | U58: 4A | W58: 4B | Y58: 5A | AA58: 5B | AC58: 6A | AE58: 6B
C59: L | D59: =COUNTIF(C$2:C$36,$AH$1) -> 15 | E59: L | F59: =COUNTIF(E$2:E$36,$AH$1) -> 14 | G59: L | H59: =COUNTIF(G$2:G$36,$AH$1) -> 14 | I59: L | J59: =COUNTIF(I$2:I$36,$AH$1) -> 17 | K59: L | L59: =COUNTIF(K$2:K$36,$AH$1) -> 18 | M59: L | N59: =COUNTIF(M$2:M$36,$AH$1) -> 16 | O59: L | P59: =COUNTIF(O$2:O$36,$AH$1) -> 10 | Q59: L | R59: =COUNTIF(Q$2:Q$36,$AH$1) -> 22 | S59: L | T59: =COUNTIF(S$2:S$36,$AH$1) -> 19 | U59: L | V59: =COUNTIF(U$2:U$36,$AH$1) -> 10 | W59: L | X59: =COUNTIF(W$2:W$36,$AH$1) -> 19 | Y59: L | Z59: =COUNTIF(Y$2:Y$36,$AH1) -> 9 | AA59: L | AB59: =COUNTIF(AA$2:AA$36,$AH$1) -> 24 | AC59: L | AD59: =COUNTIF(AC$2:AC$36,$AH$1) -> 11 | AE59: L | AF59: =COUNTIF(AE$2:AE$36,$AH$1) -> 20 | AG59: =SUM(C52,E52,G52,I52,K52,O52,Q52,U52,W52,Y52,AA52,AC52,AE52) -> 203
C60: P | D60: =COUNTIF(C$2:C$36,$AH$2) -> 15 | E60: P | F60: =COUNTIF(E$2:E$36,$AH$2) -> 16 | G60: P | H60: =COUNTIF(G$2:G$36,$AH$2) -> 13 | I60: P | J60: =COUNTIF(I$2:I$36,$AH$2) -> 13 | K60: P | L60: =COUNTIF(K$2:K$36,$AH$2) -> 12 | M60: P | N60: =COUNTIF(M$2:M$36,$AH$2) -> 14 | O60: P | P60: =COUNTIF(O$2:O$36,$AH$2) -> 22 | Q60: P | R60: =COUNTIF(Q$2:Q$36,$AH$2) -> 10 | S60: P | T60: =COUNTIF(S$2:S$36,$AH$2) -> 13 | U60: P | V60: =COUNTIF(U$2:U$36,$AH$2) -> 22 | W60: P | X60: =COUNTIF(W$2:W$36,$AH$2) -> 13 | Y60: P | Z60: =COUNTIF(Y$2:Y$36,$AH2) -> 23 | AA60: P | AB60: =COUNTIF(AA$2:AA$36,$AH$2) -> 8 | AC60: P | AD60: =COUNTIF(AC$2:AC$36,$AH$2) -> 22 | AE60: P | AF60: =COUNTIF(AE$2:AE$36,$AH$2) -> 13 | AG60: =SUM(D52,F52,H52,J52,L52,P52,R52,V52,X52,Z52,AB52,AD52,AF52) -> 202
C61: JML | D61: =SUM(D59:D60) -> 30 | E61: JML | F61: =SUM(F59:F60) -> 30 | G61: JML | H61: 27 | I61: JML | J61: =SUM(J59:J60) -> 30 | K61: JML | L61: =SUM(L59:L60) -> 30 | M61: JML | N61: 30 | O61: JML | P61: =SUM(P59:P60) -> 32 | Q61: JML | R61: =SUM(R59:R60) -> 32 | S61: JML | T61: 32 | U61: JML | V61: =SUM(V59:V60) -> 32 | W61: JML | X61: =SUM(X59:X60) -> 32 | Y61: JML | Z61: =SUM(Z59:Z60) -> 32 | AA61: JML | AB61: =SUM(AB59:AB60) -> 32 | AC61: JML | AD61: =SUM(AD59:AD60) -> 33 | AE61: JML | AF61: =SUM(AF59:AF60) -> 33
C62: =SUM(C61:D61) -> 30 | E62: =SUM(E61:F61) -> 30 | G62: =SUM(G61:H61) -> 27 | I62: =SUM(I61:J61) -> 30 | K62: =SUM(K61:L61) -> 30 | M62: 30 | O62: =SUM(O61:P61) -> 32 | Q62: =SUM(Q61:R61) -> 32 | S62: 32 | U62: =SUM(U61:V61) -> 32 | W62: =SUM(W61:X61) -> 32 | Y62: =SUM(Y61:Z61) -> 32 | AA62: =SUM(AA61:AB61) -> 32 | AC62: =SUM(AC61:AD61) -> 33 | AE62: =SUM(AE61:AF61) -> 33
C63: =SUM(C62:H62) -> 87 | I63: =SUM(I62:N62) -> 90 | O63: =SUM(O62:T62) -> 96 | U63: =SUM(U62:X62) -> 64 | Y63: =SUM(Y62:AB62) -> 64 | AC63: =SUM(AC62:AF62) -> 66 | AG63: JUMLAH
C64: TOTAL | I64: Laki-laki = | O64: =SUM(D59,F59,H59,J59,L59,N59,P59,R59,T59,V59,X59,Z59,AB59,AD59,AF59) -> 238 | U64: Perempuan = | Y64: =SUM(D60,F60,H60,J60,L60,N60,P60,R60,T60,V60,X60,Z60,AB60,AD60,AF60) -> 229 | AC64: =IF(AG64<>AG53,"TIDAK COCOK",AG64) -> 467 | AG64: =SUM(Y64,O64) -> 467
C65: KELAS 1-5 | I65: =SUM(C63:AB63) -> 401 | O65: KELAS 3-5 | U65: =SUM(O63:AB63) -> 224 | Y65: KELAS A | AA65: =SUM(D61,J61,P61,V61,Z61,AD61) -> 189 | AC65: KELAS B | AE65: =SUM(F61,L61,R61,X61,AB61,AF61) -> 189
A67: DATA JUMLAH SISWA
A68: =UPPER(PROFIL!D4) -> MI NURUL ISLAM LABRUK KIDUL
A69: =PROFIL!B2 -> TAHUN PELAJARAN 2019/2020
A71: NO | B71: KELAS | I71: L | M71: P | Q71: JUMLAH | U71: NAMA WALI KELAS | AA71: KET
A72: 1 | B72: 1 A | I72: =D59 -> 15 | M72: =D60 -> 15 | Q72: =SUM(I72:P72) -> 30 | U72: =PEJABATMI!G10 -> SITI MUNFARIDAH,S.Pd.
A73: 2 | B73: 1 B | I73: =F59 -> 14 | M73: =F60 -> 16 | Q73: =SUM(I73:P73) -> 30 | U73: =PEJABATMI!G11 -> KHUSNUL ADIBAH,S.Pd.I
A74: 3 | B74: 1 C | I74: =H59 -> 14 | M74: =H60 -> 13 | Q74: =SUM(I74:P74) -> 27 | U74: =PEJABATMI!G12 -> EVI NUNING FARIDAH,S.Pd.I
A75: TOTAL KELAS I | I75: =SUM(I72:L74) -> 43 | M75: =SUM(M72:P74) -> 44 | Q75: =SUM(Q72:T74) -> 87
A76: 4 | B76: 2 A | I76: =J59 -> 17 | M76: =J60 -> 13 | Q76: =SUM(I76:P76) -> 30 | U76: =PEJABATMI!G13 -> NURUL LATHIFAH,M.Pd.
A77: 5 | B77: 2 B | I77: =L59 -> 18 | M77: =L60 -> 12 | Q77: =SUM(I77:P77) -> 30 | U77: =PEJABATMI!G14 -> MINUK IKA WULANDARI,S.Pd.I
A78: 6 | B78: 2 C | I78: =N59 -> 16 | M78: =N60 -> 14 | Q78: =SUM(I78:P78) -> 30 | U78: =PEJABATMI!G15 -> YULIA AZMIL MILLAH,S.Pd.I
A79: TOTAL KELAS II | I79: =SUM(I76:L78) -> 51 | M79: =SUM(M76:P78) -> 39 | Q79: =SUM(Q76:T78) -> 90
A80: 7 | B80: 3 A | I80: =P59 -> 10 | M80: =P60 -> 22 | Q80: =SUM(I80:P80) -> 32 | U80: =PEJABATMI!G16 -> SUMARMI,S.Pd.I
A81: 8 | B81: 3 B | I81: =R59 -> 22 | M81: =R60 -> 10 | Q81: =SUM(I81:P81) -> 32 | U81: =PEJABATMI!G17 -> MUHAMMAD KHOIRI,S.Pd.I
A82: 9 | B82: 3 C | I82: =T59 -> 19 | M82: =T60 -> 13 | Q82: =SUM(I82:P82) -> 32 | U82: =PEJABATMI!G18 -> AZAN TUDHONI,S.Pd
A83: TOTAL KELAS III | I83: =SUM(I80:L82) -> 51 | M83: =SUM(M80:P82) -> 45 | Q83: =SUM(Q80:T82) -> 96
A84: 10 | B84: 4 A | I84: =V59 -> 10 | M84: =V60 -> 22 | Q84: =SUM(I84:P84) -> 32 | U84: =PEJABATMI!G19 -> AGUSTIM MUKAROMAH
A85: 11 | B85: 4 B | I85: =X59 -> 19 | M85: =X60 -> 13 | Q85: =SUM(I85:P85) -> 32 | U85: =PEJABATMI!G20 -> AHMAD SHODIQ,SH
A86: TOTAL KELAS IV | I86: =SUM(I84:L85) -> 29 | M86: =SUM(M84:P85) -> 35 | Q86: =SUM(Q84:T85) -> 64
A87: 12 | B87: 5 A | I87: =Z59 -> 9 | M87: =Z60 -> 23 | Q87: =SUM(I87:P87) -> 32 | U87: =PEJABATMI!G22 -> NURUL HIDAYAH,S.Pd.I,MA
A88: 13 | B88: 5 B | I88: =AB59 -> 24 | M88: =AB60 -> 8 | Q88: =SUM(I88:P88) -> 32 | U88: =PEJABATMI!G23 -> CHAYUL MUÁFA,S.Ag
A89: TOTAL KELAS V | I89: =SUM(I87:L88) -> 33 | M89: =SUM(M87:P88) -> 31 | Q89: =SUM(Q87:T88) -> 64
A90: 14 | B90: 6 A | I90: =AD59 -> 11 | M90: =AD60 -> 22 | Q90: =SUM(I90:P90) -> 33 | U90: =PEJABATMI!G25 -> I'NATUL HUSRIYAH,S.Pd
A91: 15 | B91: 6 B | I91: =AF59 -> 20 | M91: =AF60 -> 13 | Q91: =SUM(I91:N91) -> 33 | U91: =PEJABATMI!G26 -> NUR RATNA PRIHATININGSIH,S.Pd
A92: TOTAL KELAS VI | I92: =SUM(I90:L91) -> 31 | M92: =SUM(M90:P91) -> 35 | Q92: =SUM(Q90:T91) -> 66
A93: JUMLAH TOTAL | I93: =SUM(I75,I79,I83,I86,I89,I92) -> 238 | M93: =SUM(M75,M79,M83,M86,M89,M92) -> 229 | Q93: =SUM(Q75,Q79,Q83,Q86,Q89,Q92) -> 467
A94: JUMLAH KELAS 1 S.D 5 | I94: =SUM(I75,I79,I83,I86,I89) -> 207 | M94: =SUM(M75,M79,M83,M86,M89) -> 194 | Q94: =SUM(I94:N94) -> 401
I95: JML (LP) KELAS 1 S/D 3 | Q95: =SUM(Q75,Q79,Q83) -> 273 | U95: JML (LP) KELAS 2 S/D 5 | AA95: =SUM(Q79,Q83,Q86,Q89) -> 314
I96: JML (LP) KELAS 4 S/D 6 | Q96: =SUM(Q86,Q89,Q92) -> 194 | U96: JML (LP) KELAS 3 S/D 5 | AA96: =SUM(Q83,Q86,Q89) -> 224

Sheet LI-SD
A1: 2. | B1: Siswa Baru Tingkat I menurut Umur dan Jenis Kelamin
B2: Jenis Kelamin | F2: Siswa Baru Tingkat I menurut Umur | X2: Jumlah Siswa Baru
F3: < 5 Tahun | I3: 6 Tahun | L3: 7 Tahun | O3: 8 Tahun | R3: 9 Tahun | U3: >= 10 Tahun | AI3: jum | AJ3: 5th | AK3: 6th | AL3: 7th | AM3: 8th | AN3: 9th | AO3: >9
B4: (1) | F4: (2) | I4: (3) | L4: (4) | O4: (5) | R4: (6) | U4: =SUM(F19:G25) -> 0 | X4: (8)
B5: 1. Laki - Laki | F5: =F14 -> 0 | I5: =F15 -> 25 | L5: =F16 -> 18 | O5: =F17 -> 0 | R5: =F18 -> 0 | U5: =SUM(F19:G25) -> 0 | X5: 30 | AI5: =SUM(F5:W5) -> 43
B6: 2. Perempuan | F6: =H14 -> 1 | I6: =H15 -> 26 | L6: =H16 -> 17 | O6: =H17 -> 0 | R6: =H18 -> 0 | U6: =SUM(H19:I25) -> 0 | X6: 28 | AI6: =SUM(F6:W6) -> 44
B7: Jumlah | F7: =AJ7 -> 1 | I7: =AK7 -> 51 | L7: =AL7 -> 35 | O7: =AM7 -> 0 | R7: =AN7 -> 0 | U7: =AO7 -> 0 | X7: 58 | AI7: =SUM(AI5:AI6) -> 87 | AJ7: =SUM(F5:H6) -> 1 | AK7: =SUM(I5:K6) -> 51 | AL7: =SUM(L5:N6) -> 35 | AM7: =SUM(O5:Q6) -> 0 | AN7: =SUM(R5:T6) -> 0 | AO7: =SUM(U5:W6) -> 0
A9: 3. | B9: Siswa menurut Tingkat, Jenis Kelamin, dan Umur | AM9: Page 1 | AO9: L | AP9: P | AR9: L | AS9: P
F10: Jumlah Siswa menurut Tingkat dan Jenis Kelamin | AD10: Jumlah | AM10: < 5 Tahun | AO10: =#REF! ->  | AP10: =#REF! ->  | AR10: =F14 -> 0 | AS10: =H14 -> 1
B11: Umur | F11: Tingkat I | J11: Tingkat II | N11: Tingkat III | R11: Tingkat IV | V11: Tingkat V | Z11: Tingkat VI | AI11: Jum | AM11: 6 Tahun | AO11: =I5 -> 25 | AP11: =I6 -> 26 | AQ11: < = | AR11: =F15 -> 25 | AS11: =H15 -> 26
F12: L | H12: P | J12: L | L12: P | N12: L | P12: P | R12: L | T12: P | V12: L | X12: P | Z12: L | AB12: P | AD12: L | AF12: P | AI12: L | AJ12: P | AM12: 7 Tahun | AO12: =L5 -> 18 | AP12: =L6 -> 17 | AR12: =F16 -> 18 | AS12: =H16 -> 17
B13: (1) | F13: (2) | H13: (3) | J13: (4) | L13: (5) | N13: (6) | P13: (7) | R13: (8) | T13: (9) | V13: (10) | X13: (11) | Z13: (12) | AB13: (13) | AD13: (14) | AF13: (15) | AM13: 8 Tahun | AO13: =O5 -> 0 | AP13: =O6 -> 0 | AR13: =F17 -> 0 | AS13: =H17 -> 0
B14: ( < 5 Th ) | F14: =SUM(AUTOMATIC!C40,AUTOMATIC!E40,AUTOMATIC!G40) -> 0 | H14: =SUM(AUTOMATIC!D40,AUTOMATIC!F40,AUTOMATIC!H40) -> 1 | J14: =SUM(AUTOMATIC!I40,AUTOMATIC!K40) -> 0 | L14: =SUM(AUTOMATIC!J40,AUTOMATIC!L40) -> 0 | N14: =SUM(AUTOMATIC!O40,AUTOMATIC!Q40) -> 0 | P14: =SUM(AUTOMATIC!P40,AUTOMATIC!R40) -> 0 | R14: =SUM(AUTOMATIC!U40,AUTOMATIC!W40) -> 0 | T14: =SUM(AUTOMATIC!V40,AUTOMATIC!X40) -> 0 | V14: =SUM(AUTOMATIC!Y40,AUTOMATIC!AA40) -> 0 | X14: =SUM(AUTOMATIC!Z40,AUTOMATIC!AB40) -> 0 | Z14: =SUM(AUTOMATIC!AC40,AUTOMATIC!AE40) -> 0 | AB14: =SUM(AUTOMATIC!AD40,AUTOMATIC!AF40) -> 0 | AD14: =SUM(F14,J14,N14,R14,V14,Z14) -> 0 | AF14: =SUM(H14,L14,P14,T14,X14,AB14) -> 1 | AI14: =F14+J14+N14+R14+V14+Z14 -> 0 | AJ14: =H14+L14+P14+T14+X14+AB14 -> 1 | AM14: 9 Tahun | AO14: =R5 -> 0 | AP14: =R6 -> 0 | AR14: =F18 -> 0 | AS14: =H18 -> 0
B15: ( 6 Th ) | F15: =SUM(AUTOMATIC!C41,AUTOMATIC!E41,AUTOMATIC!G41) -> 25 | H15: =SUM(AUTOMATIC!D41,AUTOMATIC!F41,AUTOMATIC!H41) -> 26 | J15: =SUM(AUTOMATIC!I41,AUTOMATIC!K41) -> 0 | L15: =SUM(AUTOMATIC!J41,AUTOMATIC!L41) -> 0 | N15: =SUM(AUTOMATIC!O41,AUTOMATIC!Q41) -> 0 | P15: =SUM(AUTOMATIC!P41,AUTOMATIC!R41) -> 0 | R15: =SUM(AUTOMATIC!U41,AUTOMATIC!W41) -> 0 | T15: =SUM(AUTOMATIC!V41,AUTOMATIC!X41) -> 0 | V15: =SUM(AUTOMATIC!Y41,AUTOMATIC!AA41) -> 0 | X15: =SUM(AUTOMATIC!Z41,AUTOMATIC!AB41) -> 0 | Z15: =SUM(AUTOMATIC!AC41,AUTOMATIC!AE41) -> 0 | AB15: =SUM(AUTOMATIC!AD41,AUTOMATIC!AF41) -> 0 | AD15: =SUM(F15,J15,N15,R15,V15,Z15) -> 25 | AF15: =SUM(H15,L15,P15,T15,X15,AB15) -> 26 | AI15: 25 | AJ15: 26 | AM15: > 9 Tahun | AO15: =U5 -> 0 | AP15: =U6 -> 0 | AR15: =SUM(F19:G25) -> 0 | AS15: =SUM(H19:I25) -> 0
B16: ( 7 Th ) | F16: =SUM(AUTOMATIC!C42,AUTOMATIC!E42,AUTOMATIC!G42) -> 18 | H16: =SUM(AUTOMATIC!D42,AUTOMATIC!F42,AUTOMATIC!H42) -> 17 | J16: =SUM(AUTOMATIC!I42,AUTOMATIC!K42) -> 19 | L16: =SUM(AUTOMATIC!J42,AUTOMATIC!L42) -> 11 | N16: =SUM(AUTOMATIC!O42,AUTOMATIC!Q42) -> 0 | P16: =SUM(AUTOMATIC!P42,AUTOMATIC!R42) -> 0 | R16: =SUM(AUTOMATIC!U42,AUTOMATIC!W42) -> 0 | T16: =SUM(AUTOMATIC!V42,AUTOMATIC!X42) -> 0 | V16: =SUM(AUTOMATIC!Y42,AUTOMATIC!AA42) -> 0 | X16: =SUM(AUTOMATIC!Z42,AUTOMATIC!AB42) -> 0 | Z16: =SUM(AUTOMATIC!AC42,AUTOMATIC!AE42) -> 0 | AB16: =SUM(AUTOMATIC!AD42,AUTOMATIC!AF42) -> 0 | AD16: 37 | AF16: 28 | AI16: 37 | AJ16: 28
B17: ( 8 Th ) | F17: =SUM(AUTOMATIC!C43,AUTOMATIC!E43,AUTOMATIC!G43) -> 0 | H17: =SUM(AUTOMATIC!D43,AUTOMATIC!F43,AUTOMATIC!H43) -> 0 | J17: =SUM(AUTOMATIC!I43,AUTOMATIC!K43) -> 16 | L17: =SUM(AUTOMATIC!J43,AUTOMATIC!L43) -> 14 | N17: =SUM(AUTOMATIC!O43,AUTOMATIC!Q43) -> 21 | P17: =SUM(AUTOMATIC!P43,AUTOMATIC!R43) -> 24 | R17: =SUM(AUTOMATIC!U43,AUTOMATIC!W43) -> 0 | T17: =SUM(AUTOMATIC!V43,AUTOMATIC!X43) -> 0 | V17: =SUM(AUTOMATIC!Y43,AUTOMATIC!AA43) -> 0 | X17: =SUM(AUTOMATIC!Z43,AUTOMATIC!AB43) -> 0 | Z17: =SUM(AUTOMATIC!AC43,AUTOMATIC!AE43) -> 0 | AB17: =SUM(AUTOMATIC!AD43,AUTOMATIC!AF43) -> 0 | AD17: 37 | AF17: 38 | AI17: 37 | AJ17: 38
B18: ( 9 Th ) | F18: =SUM(AUTOMATIC!C44,AUTOMATIC!E44,AUTOMATIC!G44) -> 0 | H18: =SUM(AUTOMATIC!D44,AUTOMATIC!F44,AUTOMATIC!H44) -> 0 | J18: =SUM(AUTOMATIC!I44,AUTOMATIC!K44) -> 0 | L18: =SUM(AUTOMATIC!J44,AUTOMATIC!L44) -> 0 | N18: =SUM(AUTOMATIC!O44,AUTOMATIC!Q44) -> 11 | P18: =SUM(AUTOMATIC!P44,AUTOMATIC!R44) -> 8 | R18: =SUM(AUTOMATIC!U44,AUTOMATIC!W44) -> 16 | T18: =SUM(AUTOMATIC!V44,AUTOMATIC!X44) -> 25 | V18: =SUM(AUTOMATIC!Y44,AUTOMATIC!AA44) -> 0 | X18: =SUM(AUTOMATIC!Z44,AUTOMATIC!AB44) -> 0 | Z18: =SUM(AUTOMATIC!AC44,AUTOMATIC!AE44) -> 0 | AB18: =SUM(AUTOMATIC!AD44,AUTOMATIC!AF44) -> 0 | AD18: 27 | AF18: 33 | AI18: 27 | AJ18: 33
B19: ( 10 Th ) | F19: =SUM(AUTOMATIC!C45,AUTOMATIC!E45,AUTOMATIC!G45) -> 0 | H19: =SUM(AUTOMATIC!D45,AUTOMATIC!F45,AUTOMATIC!H45) -> 0 | J19: =SUM(AUTOMATIC!I45,AUTOMATIC!K45) -> 0 | L19: =SUM(AUTOMATIC!J45,AUTOMATIC!L45) -> 0 | N19: =SUM(AUTOMATIC!O45,AUTOMATIC!Q45) -> 0 | P19: =SUM(AUTOMATIC!P45,AUTOMATIC!R45) -> 0 | R19: =SUM(AUTOMATIC!U45,AUTOMATIC!W45) -> 13 | T19: =SUM(AUTOMATIC!V45,AUTOMATIC!X45) -> 10 | V19: =SUM(AUTOMATIC!Y45,AUTOMATIC!AA45) -> 18 | X19: =SUM(AUTOMATIC!Z45,AUTOMATIC!AB45) -> 24 | Z19: =SUM(AUTOMATIC!AC45,AUTOMATIC!AE45) -> 2 | AB19: =SUM(AUTOMATIC!AD45,AUTOMATIC!AF45) -> 0 | AD19: 33 | AF19: 34 | AI19: 33 | AJ19: 34
B20: ( 11 Th ) | F20: =SUM(AUTOMATIC!C46,AUTOMATIC!E46,AUTOMATIC!G46) -> 0 | H20: =SUM(AUTOMATIC!D46,AUTOMATIC!F46,AUTOMATIC!H46) -> 0 | J20: =SUM(AUTOMATIC!I46,AUTOMATIC!K46) -> 0 | L20: =SUM(AUTOMATIC!J46,AUTOMATIC!L46) -> 0 | N20: =SUM(AUTOMATIC!O46,AUTOMATIC!Q46) -> 0 | P20: =SUM(AUTOMATIC!P46,AUTOMATIC!R46) -> 0 | R20: =SUM(AUTOMATIC!U46,AUTOMATIC!W46) -> 0 | T20: =SUM(AUTOMATIC!V46,AUTOMATIC!X46) -> 0 | V20: =SUM(AUTOMATIC!Y46,AUTOMATIC!AA46) -> 15 | X20: =SUM(AUTOMATIC!Z46,AUTOMATIC!AB46) -> 7 | Z20: =SUM(AUTOMATIC!AC46,AUTOMATIC!AE46) -> 20 | AB20: =SUM(AUTOMATIC!AD46,AUTOMATIC!AF46) -> 26 | AD20: 35 | AF20: 33 | AI20: 35 | AJ20: 33 | AO20: ksiaran rombel
B21: ( 12 Th ) | F21: =SUM(AUTOMATIC!C47,AUTOMATIC!E47,AUTOMATIC!G47) -> 0 | H21: =SUM(AUTOMATIC!D47,AUTOMATIC!F47,AUTOMATIC!H47) -> 0 | J21: =SUM(AUTOMATIC!I47,AUTOMATIC!K47) -> 0 | L21: =SUM(AUTOMATIC!J47,AUTOMATIC!L47) -> 0 | N21: =SUM(AUTOMATIC!O47,AUTOMATIC!Q47) -> 0 | P21: =SUM(AUTOMATIC!P47,AUTOMATIC!R47) -> 0 | R21: =SUM(AUTOMATIC!U47,AUTOMATIC!W47) -> 0 | T21: =SUM(AUTOMATIC!V47,AUTOMATIC!X47) -> 0 | V21: =SUM(AUTOMATIC!Y47,AUTOMATIC!AA47) -> 0 | X21: =SUM(AUTOMATIC!Z47,AUTOMATIC!AB47) -> 0 | Z21: =SUM(AUTOMATIC!AC47,AUTOMATIC!AE47) -> 8 | AB21: =SUM(AUTOMATIC!AD47,AUTOMATIC!AF47) -> 9 | AD21: 8 | AF21: 9 | AI21: 8 | AJ21: 9 | AO21: 1 | AP21: 2 | AQ21: 3 | AR21: 4 | AS21: 5 | AT21: 6
B22: ( 13 Th ) | F22: =SUM(AUTOMATIC!C48,AUTOMATIC!E48,AUTOMATIC!G48) -> 0 | H22: =SUM(AUTOMATIC!D48,AUTOMATIC!F48,AUTOMATIC!H48) -> 0 | J22: =SUM(AUTOMATIC!I48,AUTOMATIC!K48) -> 0 | L22: =SUM(AUTOMATIC!J48,AUTOMATIC!L48) -> 0 | N22: =SUM(AUTOMATIC!O48,AUTOMATIC!Q48) -> 0 | P22: =SUM(AUTOMATIC!P48,AUTOMATIC!R48) -> 0 | R22: =SUM(AUTOMATIC!U48,AUTOMATIC!W48) -> 0 | T22: =SUM(AUTOMATIC!V48,AUTOMATIC!X48) -> 0 | V22: =SUM(AUTOMATIC!Y48,AUTOMATIC!AA48) -> 0 | X22: =SUM(AUTOMATIC!Z48,AUTOMATIC!AB48) -> 0 | Z22: =SUM(AUTOMATIC!AC48,AUTOMATIC!AE48) -> 1 | AB22: =SUM(AUTOMATIC!AD48,AUTOMATIC!AF48) -> 0 | AD22: 1 | AF22: 0 | AI22: 1 | AJ22: 0 | AO22: =(SUM(AK26:AL26)/55)+1 -> 2.581818182 | AP22: =(SUM(AM26:AN26)/55)+1 -> 2.090909091 | AQ22: =(SUM(AO26:AP26)/55)+1 -> 2.163636364 | AR22: =(SUM(AQ26:AR26)/55)+1 -> 2.163636364 | AS22: =(SUM(AS26:AT26)/55)+1 -> 2.163636364 | AT22: =(SUM(AU26:AV26)/55)+1 -> 2.2
B23: ( 14 Th ) | F23: =SUM(AUTOMATIC!C49,AUTOMATIC!E49,AUTOMATIC!G49) -> 0 | H23: =SUM(AUTOMATIC!D49,AUTOMATIC!F49,AUTOMATIC!H49) -> 0 | J23: =SUM(AUTOMATIC!I49,AUTOMATIC!K49) -> 0 | L23: =SUM(AUTOMATIC!J49,AUTOMATIC!L49) -> 0 | N23: =SUM(AUTOMATIC!O49,AUTOMATIC!Q49) -> 0 | P23: =SUM(AUTOMATIC!P49,AUTOMATIC!R49) -> 0 | R23: =SUM(AUTOMATIC!U49,AUTOMATIC!W49) -> 0 | T23: =SUM(AUTOMATIC!V49,AUTOMATIC!X49) -> 0 | V23: =SUM(AUTOMATIC!Y49,AUTOMATIC!AA49) -> 0 | X23: =SUM(AUTOMATIC!Z49,AUTOMATIC!AB49) -> 0 | Z23: =SUM(AUTOMATIC!AC49,AUTOMATIC!AE49) -> 0 | AB23: =SUM(AUTOMATIC!AD49,AUTOMATIC!AF49) -> 0 | AD23: 0 | AF23: 0 | AI23: 0 | AJ23: 0
B24: ( 15 Th ) | F24: =SUM(AUTOMATIC!C50,AUTOMATIC!E50,AUTOMATIC!G50) -> 0 | H24: =SUM(AUTOMATIC!D50,AUTOMATIC!F50,AUTOMATIC!H50) -> 0 | J24: =SUM(AUTOMATIC!I50,AUTOMATIC!K50) -> 0 | L24: =SUM(AUTOMATIC!J50,AUTOMATIC!L50) -> 0 | N24: =SUM(AUTOMATIC!O50,AUTOMATIC!Q50) -> 0 | P24: =SUM(AUTOMATIC!P50,AUTOMATIC!R50) -> 0 | R24: =SUM(AUTOMATIC!U50,AUTOMATIC!W50) -> 0 | T24: =SUM(AUTOMATIC!V50,AUTOMATIC!X50) -> 0 | V24: =SUM(AUTOMATIC!Y50,AUTOMATIC!AA50) -> 0 | X24: =SUM(AUTOMATIC!Z50,AUTOMATIC!AB50) -> 0 | Z24: =SUM(AUTOMATIC!AC50,AUTOMATIC!AE50) -> 0 | AB24: =SUM(AUTOMATIC!AD50,AUTOMATIC!AF50) -> 0 | AD24: 0 | AF24: 0 | AI24: 0 | AJ24: 0 | AK24: I | AM24: II | AO24: III | AQ24: IV | AS24: V | AU24: VI
B25: (> 16 Th) | F25: =SUM(AUTOMATIC!C51,AUTOMATIC!E51,AUTOMATIC!G51) -> 0 | H25: =SUM(AUTOMATIC!D51,AUTOMATIC!F51,AUTOMATIC!H51) -> 0 | J25: =SUM(AUTOMATIC!I51,AUTOMATIC!K51) -> 0 | L25: =SUM(AUTOMATIC!J51,AUTOMATIC!L51) -> 0 | N25: =SUM(AUTOMATIC!O51,AUTOMATIC!Q51) -> 0 | P25: =SUM(AUTOMATIC!P51,AUTOMATIC!R51) -> 0 | R25: =SUM(AUTOMATIC!U51,AUTOMATIC!W51) -> 0 | T25: =SUM(AUTOMATIC!V51,AUTOMATIC!X51) -> 0 | V25: =SUM(AUTOMATIC!Y51,AUTOMATIC!AA51) -> 0 | X25: =SUM(AUTOMATIC!Z51,AUTOMATIC!AB51) -> 0 | Z25: =SUM(AUTOMATIC!AC51,AUTOMATIC!AE51) -> 0 | AB25: =SUM(AUTOMATIC!AD51,AUTOMATIC!AF51) -> 0 | AD25: 0 | AF25: 0 | AI25: 0 | AJ25: 0 | AK25: L | AL25: P | AM25: L | AN25: P | AO25: L | AP25: P | AQ25: L | AR25: P | AS25: L | AT25: P | AU25: L | AV25: P
B26: Jumlah | F26: =SUM(F14:G25) -> 43 | H26: =SUM(H14:I25) -> 44 | J26: =SUM(J14:K25) -> 35 | L26: =SUM(L14:M25) -> 25 | N26: =SUM(N14:O25) -> 32 | P26: =SUM(P14:Q25) -> 32 | R26: =SUM(R14:S25) -> 29 | T26: =SUM(T14:U25) -> 35 | V26: =SUM(V14:W25) -> 33 | X26: =SUM(X14:Y25) -> 31 | Z26: =SUM(Z14:AA25) -> 31 | AB26: =SUM(AB14:AC25) -> 35 | AD26: =SUM(AD14:AE25) -> 203 | AF26: =SUM(AF14:AG25) -> 202 | AI26: =SUM(AI14:AI25) -> 203 | AJ26: =SUM(AJ14:AJ25) -> 202 | AK26: =SUM(F14:G25) -> 43 | AL26: =SUM(H14:I25) -> 44 | AM26: =SUM(J14:K25) -> 35 | AN26: =SUM(L14:M25) -> 25 | AO26: =SUM(N14:O25) -> 32 | AP26: =SUM(P14:Q25) -> 32 | AQ26: =SUM(R14:S25) -> 29 | AR26: =SUM(T14:U25) -> 35 | AS26: =SUM(V14:W25) -> 33 | AT26: =SUM(X14:Y25) -> 31 | AU26: =SUM(Z14:AA25) -> 31 | AV26: =SUM(AB14:AC25) -> 35
A28: 4. | B28: Siswa menurut Agama
B29: Islam | F29: Protestan | J29: Katolik | N29: Budha | R29: Hindu | V29: Konghuchu | Z29: Jumlah
B30: (1) | F30: (2) | J30: (3) | N30: (4) | R30: (5) | V30: (6) | Z30: (7) | AI30: jum | AM30: =SUM(F26:I26) -> 87 | AO30: 38
B31: L | D31: P | F31: L | H31: P | J31: L | L31: P | N31: L | P31: P | R31: L | T31: P | V31: L | X31: P
B32: =AD26 -> 203 | D32: =AF26 -> 202 | Z32: =IF(AI32<>SUM(AI26:AJ26),"SALAH",AI32) -> 405 | AI32: =SUM(B32:Y32) -> 405
A34: 5. | B34: Siswa Mengulang dan Putus Sekolah menurut Tingkat dan Jenis Kelamin
B35: Siswa | F35: Tingkat I | J35: Tingkat II | N35: Tingkat III | R35: Tingkat IV | V35: Tingkat V | Z35: Tingkat VI | AD35: Jumlah
F36: L | H36: P | J36: L | L36: P | N36: L | P36: P | R36: L | T36: P | V36: L | X36: P | Z36: L | AB36: P | AD36: L | AF36: P | AI36: Jum
B37: (1) | F37: (2) | H37: (3) | J37: (4) | L37: (5) | N37: (6) | P37: (7) | R37: (8) | T37: (9) | V37: (10) | X37: "(11) | Z37: (12) | AB37: (13) | AD37: (14) | AF37: (15) | AI37: L | AJ37: P
B38: 1. Mengulang | F38: 1 | N38: 2 | AD38: =AI38 -> 3 | AF38: =AJ38 -> 0 | AI38: =F38+J38+N38+R38+V38+Z38 -> 3 | AJ38: =H38+L38+P38+T38+X38+AB38 -> 0
B39: 2. Putus Sekolah | AD39: =AI39 -> 0 | AF39: =AJ39 -> 0 | AI39: =F39+J39+N39+R39+V39+Z39 -> 0 | AJ39: =H39+L39+P39+T39+X39+AB39 -> 0
A42: 6. | B42: Kelas ( Rombongan Belajar ) menurut Tingkat
B43: Tingkat I | F43: Tingkat II | J43: Tingkat III | N43: Tingkat IV | R43: Tingkat V | V43: Tingkat VI | Z43: Jumlah | AI43: jum
B44: (1) | F44: (2) | J44: (3) | N44: (4) | R44: (5) | V44: (6) | Z44: (7)
B45: =SUM(AUTOMATIC!AL37:AM37) -> 2 | F45: =SUM(AUTOMATIC!AN37:AO37) -> 2 | J45: =SUM(AUTOMATIC!AP37:AR37) -> 3 | N45: =SUM(AUTOMATIC!AS37:AU37) -> 3 | R45: =SUM(AUTOMATIC!AV37:AW37) -> 2 | V45: =SUM(AUTOMATIC!AX37:AY37) -> 2 | Z45: =AI45 -> 14 | AI45: =SUM(B45:Y45) -> 14
A47: 7. | B47: Siswa Tingkat VI, Peserta Ujian Akhir Sekolah dan Lulusan
B48: Siswa Tingkat VI | L48: Peserta | V48: Lulusan
B49: L | E49: P | H49: L + P | L49: L | O49: P | R49: L + P | V49: L | Y49: P | AB49: L + P | AI49: Jum VI | AK49: jum psrta | AM49: jum lls
B50: (1) | E50: (2) | H50: (3) | L50: (4) | O50: (5) | R50: (6) | V50: (7) | Y50: (8) | AB50: (9)
B51: =Z26 -> 31 | E51: =AB26 -> 35 | H51: =AI51 -> 66 | L51: =B51 -> 31 | O51: =E51 -> 35 | R51: =IF(AK51>AI51,"SALAH",AK51) -> 66 | V51: =L51 -> 31 | Y51: =O51 -> 35 | AB51: =IF(AM51>AK51,"SALAH",AM51) -> 66 | AI51: =B51+E51 -> 66 | AK51: =L51+O51 -> 66 | AM51: =V51+Y51 -> 66
A53: 8. | B53: Daftar Nilai Ujian Sekolah Dasar tiap Mata Pelajaran
B54: Mata Pelajaran | H54: Nilai Ujian Sekolah | T54: Nilai Ujian Sekolah Tahun Sekarang
H55: Minimum | L55: Rata - Rata | P55: Maksimum | T55: Minimum | X55: Rata - Rata | AB55: Maksimum
B56: (1) | H56: (2) | L56: (3) | P56: (4) | T56: (5) | X56: (6) | AB56: (7)
B57: 1. Bhs. Indonesia | H57: 4.4 | L57: 7.99 | P57: 9.8
B58: 2. Matematika | H58: 3 | L58: 5.48 | P58: 8.5
B59: 3. IPA | H59: 5.25 | L59: 7.47 | P59: 9.5
B60: 4. Pend. Agama | H60: 6 | L60: 6 | P60: 9
B61: 5. PKn | H61: 6 | L61: 6.25 | P61: 8.6
B62: 6. IPS | H62: 6 | L62: 6.23 | P62: 8
B63: 7. Seni Budaya dan Keterampilan | H63: 6 | L63: 6 | P63: 9
B64: 8. Penjaskes | H64: 6 | L64: 6 | P64: 9
B65: 9. Bhs. Inggris | H65: 5 | L65: 7.18 | P65: 9
B66: 10. Mulok | H66: 4.44 | L66: 6.35 | P66: 9.4

Sheet PETUNJUK
A1: 01 | B1: 1
A2: 02 | B2: 2
A3: 03 | B3: 3
A4: 04 | B4: 4
A5: 05 | B5: 5
A6: 06 | B6: 6
A7: 07 | B7: 7
A8: 08 | B8: 8 | H8: tanggal update umur siswa
A9: 09 | B9: 9 | I9: SETELAH SELESAI
A10: 10 | H10: 2019-07-15 | I10: SEMBUNYI TAB TIDAKTERPAKAI
A11: 11 | I11: SEMBUNYI SHEET TIDAK TERPAKAI
A12: 12
A13: 13
A14: 14
A15: 15
A16: 16
A17: 17
A18: 18
C19: RUMUS NOMOR JABATAN | F19: "=IF(H8=1;"Kepala Madrasah";IF(H8=2;"PKM. Kurikulum";IF(H8=3;"PKM. Kesiswaan";IF(H8=4;"PKM. Sarpras";IF(H8=5;"PKM. Keuangan";IF(H8=6;"PKM. Humas";IF(H8=7;"Wali Kelas 1a";IF(H8=8;"Wali Kelas 1b";IF(H8=9;"Wali Kelas 1c";IF(H8=10;"Wali Kelas 2a";IF(H8=11;"Wali Kelas 2b";IF(H8=12;"Wali Kelas 2c";IF(H8=13;"Wali Kelas 3a";IF(H8=14;"Wali Kelas 3b";IF(H8=15;"Wali Kelas 3c";IF(H8=16;"Wali Kelas 4a";IF(H8=17;"Wali Kelas 4b";IF(H8=18;"Wali Kelas 4c";IF(H8=19;"Wali Kelas 5a";IF(H8=20;"Wali Kelas 5b";IF(H8=21;"Wali Kelas 5c";IF(H8=22;"Wali Kelas 6a";IF(H8=23;"Wali Kelas 6b";IF(H8=24;"Wali Kelas 6c";IF(H8=25;"Guru";IF(H8=26;"Kepala Tata Usaha";IF(H8=27;"Perpustakaan";IF(H8=28;"Koordinator Tilawati";""))))))))))))))))))))))))))))"
E20: RUMUS ISI NOMOR | F20: "=IF(B8="";"";COUNTA($B$8:B8))"
A22: YANG HITAM INI TERDAPAT RUMUS, JADI JANGAN DI HAPUS | T22: DI ISI
A23: MENGETAHUI UMUR | G23: PEKERJAAN
A24: '=DATEDIF(G4;TODAY();"y")&"" | E24: PENGHASILAN | F24: PENDIDIKAN | G24: AYAH | H24: IBU | I24: HOBI | J24: Jarak Rumah Sklh | K24: Transportasi | L24: Desa | N24: ABSENSI SISWA | O24: DAFTAR NILAI | P24: TINGGI BADAN & BERAT BADAN | Q24: INFAQ | R24: TABUNGAN S1 | S24: TABUNGAN S2
A25: '=DATEDIF(G4;TODAY();"y")&"" | D25: A | E25: A. < Rp 500rb | F25: - | G25: - | H25: - | I25: Olah Raga | J25: 0-1 | K25: Jalan Kaki | L25: Labruk Kidul | N25: 1A | O25: 1A | P25: 1A | Q25: 1A | R25: 1A | S25: 1A
D26: B | E26: B. Rp 500rb - Rp 1jt | F26: Tidak Tamat | G26: PNS | H26: PNS | I26: Kesenian | J26: 1-3 | K26: Becak | L26: Kebonsari | N26: 1B | O26: 1B | P26: 1B | Q26: 1B | R26: 1B | S26: 1B
A27: 2017-07-29 | D27: C | E27: C. Rp 1jt - Rp 2,5jt | F27: SD | G27: TNI | H27: TNI | I27: Membaca | J27: 3-5 | K27: Sepeda pancal (sendiri) | L27: Sumbersuko | N27: 1C | O27: 1C | P27: 1C | Q27: 1C | R27: 1C | S27: 1C
D28: D | E28: D. > Rp 2,5jt | F28: SMP | G28: POLRI | H28: POLRI | I28: Menulis | J28: 5-10 | K28: Sepeda pancal (Antar) | L28: Grati | N28: 2A | O28: 2A | P28: 2A | Q28: 2A | R28: 2A | S28: 2A
A29: CATATAN UNTUK AKURAT AUTOMATIC : | F29: SMA | G29: GURU | H29: GURU | I29: Travelling | J29: >10 | K29: Motor | L29: Tempeh | N29: 2B | O29: 2B | P29: 2B | Q29: 2B | R29: 2B | S29: 2B
A30: gantilah umur pada masing2 kelas | F30: D1 | G30: DOSEN | H30: DOSEN | I30: Lainnya | J30: 0 | K30: Mobil | L30: Tompokersan | N30: 2C | O30: 2C | P30: 2C | Q30: 2C | R30: 2C | S30: 2C
F31: D2 | G31: SWASTA | H31: SWASTA | I31: 0 | J31: 0 | L31: Citrodiwangsan | N31: 3A | O31: 3A | P31: 3A | Q31: 3A | R31: 3A | S31: 3A
F32: S1 | G32: WIRASWASTA | H32: WIRASWASTA | I32: 0 | J32: 0 | L32: Ditotrunan | N32: 3B | O32: 3B | P32: 3B | Q32: 3B | R32: 3B | S32: 3B
F33: S2 | G33: PETANI | H33: PETANI | I33: 0 | J33: 0 | L33: Jogoyudan | N33: 4A | O33: 4A | P33: 4A | Q33: 4A | R33: 4A | S33: 4A
F34: S3 | G34: NELAYAN | H34: NELAYAN | I34: 0 | J34: 0 | L34: Jogotrunan | N34: 4B | O34: 4B | P34: 4B | Q34: 4B | R34: 4B | S34: 4B
G35: BURUH | H35: BURUH | L35: Lainnya | N35: 5A | O35: 5A | P35: 5A | Q35: 5A | R35: 5A | S35: 5A
G36: TIDAK TETAP | H36: TIDAK TETAP | N36: 5B | O36: 5B | P36: 5B | Q36: 5B | R36: 5B | S36: 5B
G37: TUKANG BECAK | H37: IBU RUMAH TANGGA | N37: 6A | O37: 6A | P37: 6A | Q37: 6A | R37: 6A | S37: 6A
N38: 6B | O38: 6B | P38: 6B | Q38: 6B | R38: 6B | S38: 6B
N39: 1
C40: VERSI DAPODIK | F40: JABATAN VERSI MILABRUK | H40: UPDATE TIAP TAHUN | N40: 2
B41: 1 | C41: Kepala Madrasah | F41: Kepala Madrasah | G41: =B41&". "&F41 -> 1. Kepala Madrasah | H41: SAHRONI,S.Pd.I | N41: 3C
B42: 2 | C42: Wakil Kepala Madrasah | F42: PKM. Kurikulum | G42: 2. PKM. Kurikulum | H42: NUR RATNA PRIHATININGSIH,S.Pd
B43: 3 | C43: Kepala Perpustakaan | F43: PKM. Kesiswaan | G43: 3. PKM. Kesiswaan | H43: AZAN TUDHONI
B44: 4 | C44: Kepala Laboratorium | F44: PKM. Sarpras | G44: 4. PKM. Sarpras | H44: KHUSNUL ADIBAH,S.PdI
B45: 5 | C45: Ketua Jurusan/Program Keahlian | F45: PKM. Keuangan | G45: 5. PKM. Keuangan | H45: NURUL HIDAYAH,S.Pd.I,MA
B46: 6 | C46: Kepala Bengkel | F46: PKM. Humas | G46: 6. PKM. Humas | H46: AHMAD SHODIQ,SH
B47: 7 | C47: Pembimbing Praktek Kerja Industri | F47: Wali Kelas 1a | G47: 7. Wali Kelas 1a | H47: KHUSNUL ADIBAH,S.PdI
B48: 8 | C48: Kepala Unit Produksi | F48: Wali Kelas 1b | G48: 8. Wali Kelas 1b | H48: EVI NUNING FARIDAH,S.Pd.I
B49: 9 | C49: Wali Kelas | F49: Wali Kelas 1c | G49: 9. Wali Kelas 1c | H49: -
B50: 10 | C50: Kepala Tata Usaha | F50: Wali Kelas 2a | G50: 10. Wali Kelas 2a | H50: MINUK IKA WULANDARI,S.Pd.I
B51: 11 | C51: Staff Tata Usaha | F51: Wali Kelas 2b | G51: 11. Wali Kelas 2b | H51: NURUL LATHIFAH,S.Pd.I
B52: 12 | C52: Tenaga Administrasi | F52: Wali Kelas 2c | G52: 12. Wali Kelas 2c | H52: -
B53: 13 | C53: Tenaga Perpustakaan | F53: Wali Kelas 3a | G53: 13. Wali Kelas 3a | H53: SUMARMI,S.Pd.I
B54: 14 | C54: Tenaga Laboratorium | F54: Wali Kelas 3b | G54: 14. Wali Kelas 3b | H54: MUHAMMAD KHOIRI,S.Pd.I
B55: 15 | C55: Tenaga Kebersihan | F55: Wali Kelas 3c | G55: 15. Wali Kelas 3c | H55: -
B56: 16 | C56: Pengemudi | F56: Wali Kelas 4a | G56: 16. Wali Kelas 4a | H56: CHUSNI KURNIAWAN,S.Pd
B57: 17 | C57: Penjaga Sekolah/Pesuruh | F57: Wali Kelas 4b | G57: 17. Wali Kelas 4b | H57: LIYA SHOBIHATUL Q,S.Pd
B58: 18 | C58: Tenaga Keamanan | F58: Wali Kelas 4c | G58: 18. Wali Kelas 4c | H58: -
B59: 19 | C59: Lainnya | F59: Wali Kelas 5a | G59: 19. Wali Kelas 5a | H59: AHMAD SHODIQ,SH
B60: 20 | F60: Wali Kelas 5b | G60: 20. Wali Kelas 5b | H60: NUR RATNA PRIHATININGSIH,S.Pd
B61: 21 | F61: Wali Kelas 5c | G61: 21. Wali Kelas 5c | H61: -
B62: 22 | F62: Wali Kelas 6a | G62: 22. Wali Kelas 6a | H62: CHAYUL MU'AFA,S.Ag
B63: 23 | F63: Wali Kelas 6b | G63: 23. Wali Kelas 6b | H63: NURUL HIDAYAH,S.Pd.I,MA
B64: 24 | F64: Wali Kelas 6c | G64: 24. Wali Kelas 6c | H64: -
B65: 25 | F65: Guru | G65: 25. Guru | H65: -
B66: 26 | F66: Kepala Tata Usaha | G66: 26. Kepala Tata Usaha | H66: CHUSNI KURNIAWAN,S.Pd
B67: 27 | F67: Perpustakaan | G67: 27. Perpustakaan | H67: -
B68: 28 | F68: Koordinator Tilawati | G68: 28. Koordinator Tilawati | H68: NURUL 'AIN

Sheet INDUKSISWA
A1: 4000
A2: 4001
A3: 4002
A4: 4003
A5: 4004
A6: 4005
A7: 4006
A8: 4007
A9: 4008
A10: 4009
A11: 4010
A12: 4011
A13: 4012
A14: 4013
A15: 4014
A16: 4015
A17: 4016
A18: 4017
A19: 4018
A20: 4019
A21: 4020
A22: 4021
A23: 4022
A24: 4023
A25: 4024
A26: 4025
A27: 4026
A28: 4027
A29: 4028
A30: 4029
A31: 4030
A32: 4031
A33: 4032
A34: 4033
A35: 4034
A36: 4035
A37: 4036
A38: 4037
A39: 4038
A40: 4039
A41: 4040
A42: 4041
A43: 4042
A44: 4043
A45: 4044
A46: 4045
A47: 4046
A48: 4047
A49: 4048
A50: 4049
A51: 4050
A52: 4051
A53: 4052
A54: 4053
A55: 4054
A56: 4055
A57: 4056
A58: 4057
A59: 4058
A60: 4059
A61: 4060
A62: 4061
A63: 4062
A64: 4063
A65: 4064
A66: 4065
A67: 4066
A68: 4067
A69: 4068
A70: 4069
A71: 4070
A72: 4071
A73: 4072
A74: 4073
A75: 4074
A76: 4075
A77: 4076
A78: 4077
A79: 4078
A80: 4079
A81: 4080
A82: 4081
A83: 4082
A84: 4083
A85: 4084
A86: 4085
A87: 4086
A88: 4087
A89: 4088
A90: 4089
A91: 4090
A92: 4091
A93: 4092
A94: 4093
A95: 4094
A96: 4095
A97: 4096
A98: 4097
A99: 4098
A100: 4099

Sheet DUPLIKATINDUK
A1: ABSEN | B1: 1A | C1: 1B | D1: 1C | E1: 2A | F1: 2B | G1: 2C | H1: 3A | I1: 3B | J1: 3C | K1: 4A | L1: 4B | M1: 5A | N1: 5B | O1: 6a | P1: 6b
A2: 1 | B2: =IF('1A'!$C4="","",'1A'!$C4) -> 4721 | C2: =IF('1B'!$C4="","",'1B'!$C4) -> 4751 | D2: =IF('1C'!$C4="","",'1C'!$C4) -> 4781 | E2: =IF('2A'!$C4="","",'2A'!$C4) -> 4631 | F2: =IF('2B'!$C4="","",'2B'!$C4) -> 4661 | G2: =IF('2C'!$C4="","",'2C'!$C4) -> 4691 | H2: =IF('3A'!$C4="","",'3A'!$C4) -> 4565 | I2: =IF('3B'!$C4="","",'3B'!$C4) -> 4532 | J2: =IF('3C'!$C4="","",'3C'!$C4) -> 4566 | K2: =IF('4A'!$C4="","",'4A'!$C4) -> 4598 | L2: =IF('4B'!$C4="","",'4B'!$C4) -> 4597 | M2: =IF('5A'!$C4="","",'5A'!$C4) -> 4402 | N2: =IF('5B'!$C4="","",'5B'!$C4) -> 4604 | O2: =IF('6A'!$C4="","",'6A'!$C4) -> 4331 | P2: =IF('6B'!$C4="","",'6B'!$C4) -> 4330
A3: 2 | B3: =IF('1A'!$C5="","",'1A'!$C5) -> 4722 | C3: =IF('1B'!$C5="","",'1B'!$C5) -> 4752 | D3: =IF('1C'!$C5="","",'1C'!$C5) -> 4782 | E3: =IF('2A'!$C5="","",'2A'!$C5) -> 4632 | F3: =IF('2B'!$C5="","",'2B'!$C5) -> 4662 | G3: =IF('2C'!$C5="","",'2C'!$C5) -> 4692 | H3: =IF('3A'!$C5="","",'3A'!$C5) -> 4591 | I3: =IF('3B'!$C5="","",'3B'!$C5) -> 4567 | J3: =IF('3C'!$C5="","",'3C'!$C5) -> 4534 | K3: =IF('4A'!$C5="","",'4A'!$C5) -> 4497 | L3: =IF('4B'!$C5="","",'4B'!$C5) -> 4467 | M3: =IF('5A'!$C5="","",'5A'!$C5) -> 4403 | N3: =IF('5B'!$C5="","",'5B'!$C5) -> 4432 | O3: =IF('6A'!$C5="","",'6A'!$C5) -> 4333 | P3: =IF('6B'!$C5="","",'6B'!$C5) -> 4361
A4: 3 | B4: =IF('1A'!$C6="","",'1A'!$C6) -> 4723 | C4: =IF('1B'!$C6="","",'1B'!$C6) -> 4753 | D4: =IF('1C'!$C6="","",'1C'!$C6) -> 4783 | E4: =IF('2A'!$C6="","",'2A'!$C6) -> 4633 | F4: =IF('2B'!$C6="","",'2B'!$C6) -> 4663 | G4: =IF('2C'!$C6="","",'2C'!$C6) -> 4693 | H4: =IF('3A'!$C6="","",'3A'!$C6) -> 4600 | I4: =IF('3B'!$C6="","",'3B'!$C6) -> 4537 | J4: =IF('3C'!$C6="","",'3C'!$C6) -> 4599 | K4: =IF('4A'!$C6="","",'4A'!$C6) -> 4468 | L4: =IF('4B'!$C6="","",'4B'!$C6) -> 4469 | M4: =IF('5A'!$C6="","",'5A'!$C6) -> 4435 | N4: =IF('5B'!$C6="","",'5B'!$C6) -> 4400 | O4: =IF('6A'!$C6="","",'6A'!$C6) -> 4334 | P4: =IF('6B'!$C6="","",'6B'!$C6) -> 4362
A5: 4 | B5: =IF('1A'!$C7="","",'1A'!$C7) -> 4724 | C5: =IF('1B'!$C7="","",'1B'!$C7) -> 4754 | D5: =IF('1C'!$C7="","",'1C'!$C7) -> 4784 | E5: =IF('2A'!$C7="","",'2A'!$C7) -> 4634 | F5: =IF('2B'!$C7="","",'2B'!$C7) -> 4664 | G5: =IF('2C'!$C7="","",'2C'!$C7) -> 4694 | H5: =IF('3A'!$C7="","",'3A'!$C7) -> 4535 | I5: =IF('3B'!$C7="","",'3B'!$C7) -> 4538 | J5: =IF('3C'!$C7="","",'3C'!$C7) -> 4536 | K5: =IF('4A'!$C7="","",'4A'!$C7) -> 4498 | L5: =IF('4B'!$C7="","",'4B'!$C7) -> 4500 | M5: =IF('5A'!$C7="","",'5A'!$C7) -> 4436 | N5: =IF('5B'!$C7="","",'5B'!$C7) -> 4433 | O5: =IF('6A'!$C7="","",'6A'!$C7) -> 4335 | P5: =IF('6B'!$C7="","",'6B'!$C7) -> 4364
A6: 5 | B6: =IF('1A'!$C8="","",'1A'!$C8) -> 4725 | C6: =IF('1B'!$C8="","",'1B'!$C8) -> 4755 | D6: =IF('1C'!$C8="","",'1C'!$C8) -> 4785 | E6: =IF('2A'!$C8="","",'2A'!$C8) -> 4635 | F6: =IF('2B'!$C8="","",'2B'!$C8) -> 4665 | G6: =IF('2C'!$C8="","",'2C'!$C8) -> 4695 | H6: =IF('3A'!$C8="","",'3A'!$C8) -> 4568 | I6: =IF('3B'!$C8="","",'3B'!$C8) -> 4601 | J6: =IF('3C'!$C8="","",'3C'!$C8) -> 4546 | K6: =IF('4A'!$C8="","",'4A'!$C8) -> 4470 | L6: =IF('4B'!$C8="","",'4B'!$C8) -> 4474 | M6: =IF('5A'!$C8="","",'5A'!$C8) -> 4438 | N6: =IF('5B'!$C8="","",'5B'!$C8) -> 4401 | O6: =IF('6A'!$C8="","",'6A'!$C8) -> 4336 | P6: =IF('6B'!$C8="","",'6B'!$C8) -> 4365
A7: 6 | B7: =IF('1A'!$C9="","",'1A'!$C9) -> 4726 | C7: =IF('1B'!$C9="","",'1B'!$C9) -> 4756 | D7: =IF('1C'!$C9="","",'1C'!$C9) -> 4786 | E7: =IF('2A'!$C9="","",'2A'!$C9) -> 4636 | F7: =IF('2B'!$C9="","",'2B'!$C9) -> 4666 | G7: =IF('2C'!$C9="","",'2C'!$C9) -> 4696 | H7: =IF('3A'!$C9="","",'3A'!$C9) -> 4629 | I7: =IF('3B'!$C9="","",'3B'!$C9) -> 4539 | J7: =IF('3C'!$C9="","",'3C'!$C9) -> 4569 | K7: =IF('4A'!$C9="","",'4A'!$C9) -> 4471 | L7: =IF('4B'!$C9="","",'4B'!$C9) -> 4501 | M7: =IF('5A'!$C9="","",'5A'!$C9) -> 4404 | N7: =IF('5B'!$C9="","",'5B'!$C9) -> 4434 | O7: =IF('6A'!$C9="","",'6A'!$C9) -> 4337 | P7: =IF('6B'!$C9="","",'6B'!$C9) -> 4465
A8: 7 | B8: =IF('1A'!$C10="","",'1A'!$C10) -> 4727 | C8: =IF('1B'!$C10="","",'1B'!$C10) -> 4757 | D8: =IF('1C'!$C10="","",'1C'!$C10) -> 4787 | E8: =IF('2A'!$C10="","",'2A'!$C10) -> 4637 | F8: =IF('2B'!$C10="","",'2B'!$C10) -> 4667 | G8: =IF('2C'!$C10="","",'2C'!$C10) -> 4698 | H8: =IF('3A'!$C10="","",'3A'!$C10) -> 4540 | I8: =IF('3B'!$C10="","",'3B'!$C10) -> 4571 | J8: =IF('3C'!$C10="","",'3C'!$C10) -> 4630 | K8: =IF('4A'!$C10="","",'4A'!$C10) -> 4472 | L8: =IF('4B'!$C10="","",'4B'!$C10) -> 4502 | M8: =IF('5A'!$C10="","",'5A'!$C10) -> 4407 | N8: =IF('5B'!$C10="","",'5B'!$C10) -> 4437 | O8: =IF('6A'!$C10="","",'6A'!$C10) -> 4338 | P8: =IF('6B'!$C10="","",'6B'!$C10) -> 4368
A9: 8 | B9: =IF('1A'!$C11="","",'1A'!$C11) -> 4728 | C9: =IF('1B'!$C11="","",'1B'!$C11) -> 4758 | D9: =IF('1C'!$C11="","",'1C'!$C11) -> 4788 | E9: =IF('2A'!$C11="","",'2A'!$C11) -> 4638 | F9: =IF('2B'!$C11="","",'2B'!$C11) -> 4668 | G9: =IF('2C'!$C11="","",'2C'!$C11) -> 4699 | H9: =IF('3A'!$C11="","",'3A'!$C11) -> 4603 | I9: =IF('3B'!$C11="","",'3B'!$C11) -> 4586 | J9: =IF('3C'!$C11="","",'3C'!$C11) -> 4570 | K9: =IF('4A'!$C11="","",'4A'!$C11) -> 4499 | L9: =IF('4B'!$C11="","",'4B'!$C11) -> 4503 | M9: =IF('5A'!$C11="","",'5A'!$C11) -> 4410 | N9: =IF('5B'!$C11="","",'5B'!$C11) -> 4439 | O9: =IF('6A'!$C11="","",'6A'!$C11) -> 4366 | P9: =IF('6B'!$C11="","",'6B'!$C11) -> 4341
A10: 9 | B10: =IF('1A'!$C12="","",'1A'!$C12) -> 4729 | C10: =IF('1B'!$C12="","",'1B'!$C12) -> 4759 | D10: =IF('1C'!$C12="","",'1C'!$C12) -> 4789 | E10: =IF('2A'!$C12="","",'2A'!$C12) -> 4639 | F10: =IF('2B'!$C12="","",'2B'!$C12) -> 4669 | G10: =IF('2C'!$C12="","",'2C'!$C12) -> 4700 | H10: =IF('3A'!$C12="","",'3A'!$C12) -> 4543 | I10: =IF('3B'!$C12="","",'3B'!$C12) -> 4542 | J10: =IF('3C'!$C12="","",'3C'!$C12) -> 4605 | K10: =IF('4A'!$C12="","",'4A'!$C12) -> 4473 | L10: =IF('4B'!$C12="","",'4B'!$C12) -> 4504 | M10: =IF('5A'!$C12="","",'5A'!$C12) -> 4412 | N10: =IF('5B'!$C12="","",'5B'!$C12) -> 4405 | O10: =IF('6A'!$C12="","",'6A'!$C12) -> 4440 | P10: =IF('6B'!$C12="","",'6B'!$C12) -> 4369
A11: 10 | B11: =IF('1A'!$C13="","",'1A'!$C13) -> 4730 | C11: =IF('1B'!$C13="","",'1B'!$C13) -> 4760 | D11: =IF('1C'!$C13="","",'1C'!$C13) -> 4790 | E11: =IF('2A'!$C13="","",'2A'!$C13) -> 4640 | F11: =IF('2B'!$C13="","",'2B'!$C13) -> 4670 | G11: =IF('2C'!$C13="","",'2C'!$C13) -> 4701 | H11: =IF('3A'!$C13="","",'3A'!$C13) -> 4606 | I11: =IF('3B'!$C13="","",'3B'!$C13) -> 4572 | J11: =IF('3C'!$C13="","",'3C'!$C13) -> 4541 | K11: =IF('4A'!$C13="","",'4A'!$C13) -> 4505 | L11: =IF('4B'!$C13="","",'4B'!$C13) -> 4506 | M11: =IF('5A'!$C13="","",'5A'!$C13) -> 4414 | N11: =IF('5B'!$C13="","",'5B'!$C13) -> 4406 | O11: =IF('6A'!$C13="","",'6A'!$C13) -> 4367 | P11: =IF('6B'!$C13="","",'6B'!$C13) -> 4343
A12: 11 | B12: =IF('1A'!$C14="","",'1A'!$C14) -> 4731 | C12: =IF('1B'!$C14="","",'1B'!$C14) -> 4761 | D12: =IF('1C'!$C14="","",'1C'!$C14) -> 4791 | E12: =IF('2A'!$C14="","",'2A'!$C14) -> 4641 | F12: =IF('2B'!$C14="","",'2B'!$C14) -> 4671 | G12: =IF('2C'!$C14="","",'2C'!$C14) -> 4702 | H12: =IF('3A'!$C14="","",'3A'!$C14) -> 4544 | I12: =IF('3B'!$C14="","",'3B'!$C14) -> 4574 | J12: =IF('3C'!$C14="","",'3C'!$C14) -> 4573 | K12: =IF('4A'!$C14="","",'4A'!$C14) -> 4475 | L12: =IF('4B'!$C14="","",'4B'!$C14) -> 4507 | M12: =IF('5A'!$C14="","",'5A'!$C14) -> 4445 | N12: =IF('5B'!$C14="","",'5B'!$C14) -> 4409 | O12: =IF('6A'!$C14="","",'6A'!$C14) -> 4339 | P12: =IF('6B'!$C14="","",'6B'!$C14) -> 4344
A13: 12 | B13: =IF('1A'!$C15="","",'1A'!$C15) -> 4732 | C13: =IF('1B'!$C15="","",'1B'!$C15) -> 4762 | D13: =IF('1C'!$C15="","",'1C'!$C15) -> 4792 | E13: =IF('2A'!$C15="","",'2A'!$C15) -> 4642 | F13: =IF('2B'!$C15="","",'2B'!$C15) -> 4672 | G13: =IF('2C'!$C15="","",'2C'!$C15) -> 4703 | H13: =IF('3A'!$C15="","",'3A'!$C15) -> 4608 | I13: =IF('3B'!$C15="","",'3B'!$C15) -> 4545 | J13: =IF('3C'!$C15="","",'3C'!$C15) -> 4575 | K13: =IF('4A'!$C15="","",'4A'!$C15) -> 4476 | L13: =IF('4B'!$C15="","",'4B'!$C15) -> 4509 | M13: =IF('5A'!$C15="","",'5A'!$C15) -> 4415 | N13: =IF('5B'!$C15="","",'5B'!$C15) -> 4442 | O13: =IF('6A'!$C15="","",'6A'!$C15) -> 4340 | P13: =IF('6B'!$C15="","",'6B'!$C15) -> 4372
A14: 13 | B14: =IF('1A'!$C16="","",'1A'!$C16) -> 4733 | C14: =IF('1B'!$C16="","",'1B'!$C16) -> 4763 | D14: =IF('1C'!$C16="","",'1C'!$C16) -> 4793 | E14: =IF('2A'!$C16="","",'2A'!$C16) -> 4643 | F14: =IF('2B'!$C16="","",'2B'!$C16) -> 4673 | G14: =IF('2C'!$C16="","",'2C'!$C16) -> 4720 | H14: =IF('3A'!$C16="","",'3A'!$C16) -> 4576 | I14: =IF('3B'!$C16="","",'3B'!$C16) -> 4607 | J14: =IF('3C'!$C16="","",'3C'!$C16) -> 4577 | K14: =IF('4A'!$C16="","",'4A'!$C16) -> 4477 | L14: =IF('4B'!$C16="","",'4B'!$C16) -> 4510 | M14: =IF('5A'!$C16="","",'5A'!$C16) -> 4447 | N14: =IF('5B'!$C16="","",'5B'!$C16) -> 4411 | O14: =IF('6A'!$C16="","",'6A'!$C16) -> 4370 | P14: =IF('6B'!$C16="","",'6B'!$C16) -> 4373
A15: 14 | B15: =IF('1A'!$C17="","",'1A'!$C17) -> 4734 | C15: =IF('1B'!$C17="","",'1B'!$C17) -> 4764 | D15: =IF('1C'!$C17="","",'1C'!$C17) -> 4795 | E15: =IF('2A'!$C17="","",'2A'!$C17) -> 4644 | F15: =IF('2B'!$C17="","",'2B'!$C17) -> 4674 | G15: =IF('2C'!$C17="","",'2C'!$C17) -> 4704 | H15: =IF('3A'!$C17="","",'3A'!$C17) -> 4609 | I15: =IF('3B'!$C17="","",'3B'!$C17) -> 4613 | J15: =IF('3C'!$C17="","",'3C'!$C17) -> 4610 | K15: =IF('4A'!$C17="","",'4A'!$C17) -> 4478 | L15: =IF('4B'!$C17="","",'4B'!$C17) -> 4511 | M15: =IF('5A'!$C17="","",'5A'!$C17) -> 4417 | N15: =IF('5B'!$C17="","",'5B'!$C17) -> 4443 | O15: =IF('6A'!$C17="","",'6A'!$C17) -> 4342 | P15: =IF('6B'!$C17="","",'6B'!$C17) -> 4441
A16: 15 | B16: =IF('1A'!$C18="","",'1A'!$C18) -> 4735 | C16: =IF('1B'!$C18="","",'1B'!$C18) -> 4765 | D16: =IF('1C'!$C18="","",'1C'!$C18) -> 4796 | E16: =IF('2A'!$C18="","",'2A'!$C18) -> 4645 | F16: =IF('2B'!$C18="","",'2B'!$C18) -> 4675 | G16: =IF('2C'!$C18="","",'2C'!$C18) -> 4705 | H16: =IF('3A'!$C18="","",'3A'!$C18) -> 4578 | I16: =IF('3B'!$C18="","",'3B'!$C18) -> 4550 | J16: =IF('3C'!$C18="","",'3C'!$C18) -> 4612 | K16: =IF('4A'!$C18="","",'4A'!$C18) -> 4479 | L16: =IF('4B'!$C18="","",'4B'!$C18) -> 4512 | M16: =IF('5A'!$C18="","",'5A'!$C18) -> 4451 | N16: =IF('5B'!$C18="","",'5B'!$C18) -> 4444 | O16: =IF('6A'!$C18="","",'6A'!$C18) -> 4345 | P16: =IF('6B'!$C18="","",'6B'!$C18) -> 4374
A17: 16 | B17: =IF('1A'!$C19="","",'1A'!$C19) -> 4736 | C17: =IF('1B'!$C19="","",'1B'!$C19) -> 4766 | D17: =IF('1C'!$C19="","",'1C'!$C19) -> 4797 | E17: =IF('2A'!$C19="","",'2A'!$C19) -> 4646 | F17: =IF('2B'!$C19="","",'2B'!$C19) -> 4676 | G17: =IF('2C'!$C19="","",'2C'!$C19) -> 4706 | H17: =IF('3A'!$C19="","",'3A'!$C19) -> 4547 | I17: =IF('3B'!$C19="","",'3B'!$C19) -> 4582 | J17: =IF('3C'!$C19="","",'3C'!$C19) -> 4549 | K17: =IF('4A'!$C19="","",'4A'!$C19) -> 4480 | L17: =IF('4B'!$C19="","",'4B'!$C19) -> 4481 | M17: =IF('5A'!$C19="","",'5A'!$C19) -> 4419 | N17: =IF('5B'!$C19="","",'5B'!$C19) -> 4413 | O17: =IF('6A'!$C19="","",'6A'!$C19) -> 4371 | P17: =IF('6B'!$C19="","",'6B'!$C19) -> 4305
A18: 17 | B18: =IF('1A'!$C20="","",'1A'!$C20) -> 4737 | C18: =IF('1B'!$C20="","",'1B'!$C20) -> 4767 | D18: =IF('1C'!$C20="","",'1C'!$C20) -> 4798 | E18: =IF('2A'!$C20="","",'2A'!$C20) -> 4647 | F18: =IF('2B'!$C20="","",'2B'!$C20) -> 4677 | G18: =IF('2C'!$C20="","",'2C'!$C20) -> 4707 | H18: =IF('3A'!$C20="","",'3A'!$C20) -> 4611 | I18: =IF('3B'!$C20="","",'3B'!$C20) -> 4616 | J18: =IF('3C'!$C20="","",'3C'!$C20) -> 4515 | K18: =IF('4A'!$C20="","",'4A'!$C20) -> 4483 | L18: =IF('4B'!$C20="","",'4B'!$C20) -> 4513 | M18: =IF('5A'!$C20="","",'5A'!$C20) -> 4453 | N18: =IF('5B'!$C20="","",'5B'!$C20) -> 4446 | O18: =IF('6A'!$C20="","",'6A'!$C20) -> 4466 | P18: =IF('6B'!$C20="","",'6B'!$C20) -> 4347
A19: 18 | B19: =IF('1A'!$C21="","",'1A'!$C21) -> 4738 | C19: =IF('1B'!$C21="","",'1B'!$C21) -> 4768 | D19: =IF('1C'!$C21="","",'1C'!$C21) -> 4799 | E19: =IF('2A'!$C21="","",'2A'!$C21) -> 4648 | F19: =IF('2B'!$C21="","",'2B'!$C21) -> 4678 | G19: =IF('2C'!$C21="","",'2C'!$C21) -> 4708 | H19: =IF('3A'!$C21="","",'3A'!$C21) -> 4548 | I19: =IF('3B'!$C21="","",'3B'!$C21) -> 4554 | J19: =IF('3C'!$C21="","",'3C'!$C21) -> 4558 | K19: =IF('4A'!$C21="","",'4A'!$C21) -> 4519 | L19: =IF('4B'!$C21="","",'4B'!$C21) -> 4514 | M19: =IF('5A'!$C21="","",'5A'!$C21) -> 4602 | N19: =IF('5B'!$C21="","",'5B'!$C21) -> 4448 | O19: =IF('6A'!$C21="","",'6A'!$C21) -> 4346 | P19: =IF('6B'!$C21="","",'6B'!$C21) -> 4348
A20: 19 | B20: =IF('1A'!$C22="","",'1A'!$C22) -> 4739 | C20: =IF('1B'!$C22="","",'1B'!$C22) -> 4769 | D20: =IF('1C'!$C22="","",'1C'!$C22) -> 4800 | E20: =IF('2A'!$C22="","",'2A'!$C22) -> 4649 | F20: =IF('2B'!$C22="","",'2B'!$C22) -> 4679 | G20: =IF('2C'!$C22="","",'2C'!$C22) -> 4709 | H20: =IF('3A'!$C22="","",'3A'!$C22) -> 4579 | I20: =IF('3B'!$C22="","",'3B'!$C22) -> 4555 | J20: =IF('3C'!$C22="","",'3C'!$C22) -> 4614 | K20: =IF('4A'!$C22="","",'4A'!$C22) -> 4522 | L20: =IF('4B'!$C22="","",'4B'!$C22) -> 4482 | M20: =IF('5A'!$C22="","",'5A'!$C22) -> 4455 | N20: =IF('5B'!$C22="","",'5B'!$C22) -> 4416 | O20: =IF('6A'!$C22="","",'6A'!$C22) -> 4350 | P20: =IF('6B'!$C22="","",'6B'!$C22) -> 4531
A21: 20 | B21: =IF('1A'!$C23="","",'1A'!$C23) -> 4740 | C21: =IF('1B'!$C23="","",'1B'!$C23) -> 4770 | D21: =IF('1C'!$C23="","",'1C'!$C23) -> 4801 | E21: =IF('2A'!$C23="","",'2A'!$C23) -> 4650 | F21: =IF('2B'!$C23="","",'2B'!$C23) -> 4680 | G21: =IF('2C'!$C23="","",'2C'!$C23) -> 4710 | H21: =IF('3A'!$C23="","",'3A'!$C23) -> 4581 | I21: =IF('3B'!$C23="","",'3B'!$C23) -> 4619 | J21: =IF('3C'!$C23="","",'3C'!$C23) -> 4583 | K21: =IF('4A'!$C23="","",'4A'!$C23) -> 4486 | L21: =IF('4B'!$C23="","",'4B'!$C23) -> 4516 | M21: =IF('5A'!$C23="","",'5A'!$C23) -> 4421 | N21: =IF('5B'!$C23="","",'5B'!$C23) -> 4449 | O21: =IF('6A'!$C23="","",'6A'!$C23) -> 4353 | P21: =IF('6B'!$C23="","",'6B'!$C23) -> 4530
A22: 21 | B22: =IF('1A'!$C24="","",'1A'!$C24) -> 4741 | C22: =IF('1B'!$C24="","",'1B'!$C24) -> 4771 | D22: =IF('1C'!$C24="","",'1C'!$C24) -> 4802 | E22: =IF('2A'!$C24="","",'2A'!$C24) -> 4651 | F22: =IF('2B'!$C24="","",'2B'!$C24) -> 4681 | G22: =IF('2C'!$C24="","",'2C'!$C24) -> 4711 | H22: =IF('3A'!$C24="","",'3A'!$C24) -> 4551 | I22: =IF('3B'!$C24="","",'3B'!$C24) -> 4585 | J22: =IF('3C'!$C24="","",'3C'!$C24) -> 4552 | K22: =IF('4A'!$C24="","",'4A'!$C24) -> 4487 | L22: =IF('4B'!$C24="","",'4B'!$C24) -> 4517 | M22: =IF('5A'!$C24="","",'5A'!$C24) -> 4456 | N22: =IF('5B'!$C24="","",'5B'!$C24) -> 4450 | O22: =IF('6A'!$C24="","",'6A'!$C24) -> 4375 | P22: =IF('6B'!$C24="","",'6B'!$C24) -> 4351
A23: 22 | B23: =IF('1A'!$C25="","",'1A'!$C25) -> 4742 | C23: =IF('1B'!$C25="","",'1B'!$C25) -> 4772 | D23: =IF('1C'!$C25="","",'1C'!$C25) -> 4803 | E23: =IF('2A'!$C25="","",'2A'!$C25) -> 4652 | F23: =IF('2B'!$C25="","",'2B'!$C25) -> 4682 | G23: =IF('2C'!$C25="","",'2C'!$C25) -> 4712 | H23: =IF('3A'!$C25="","",'3A'!$C25) -> 4615 | I23: =IF('3B'!$C25="","",'3B'!$C25) -> 4587 | J23: =IF('3C'!$C25="","",'3C'!$C25) -> 4553 | K23: =IF('4A'!$C25="","",'4A'!$C25) -> 4489 | L23: =IF('4B'!$C25="","",'4B'!$C25) -> 4484 | M23: =IF('5A'!$C25="","",'5A'!$C25) -> 4422 | N23: =IF('5B'!$C25="","",'5B'!$C25) -> 4418 | O23: =IF('6A'!$C25="","",'6A'!$C25) -> 4354 | P23: =IF('6B'!$C25="","",'6B'!$C25) -> 4352
A24: 23 | B24: =IF('1A'!$C26="","",'1A'!$C26) -> 4743 | C24: =IF('1B'!$C26="","",'1B'!$C26) -> 4773 | D24: =IF('1C'!$C26="","",'1C'!$C26) -> 4804 | E24: =IF('2A'!$C26="","",'2A'!$C26) -> 4653 | F24: =IF('2B'!$C26="","",'2B'!$C26) -> 4683 | G24: =IF('2C'!$C26="","",'2C'!$C26) -> 4713 | H24: =IF('3A'!$C26="","",'3A'!$C26) -> 4584 | I24: =IF('3B'!$C26="","",'3B'!$C26) -> 4620 | J24: =IF('3C'!$C26="","",'3C'!$C26) -> 4617 | K24: =IF('4A'!$C26="","",'4A'!$C26) -> 4490 | L24: =IF('4B'!$C26="","",'4B'!$C26) -> 4518 | M24: =IF('5A'!$C26="","",'5A'!$C26) -> 4423 | N24: =IF('5B'!$C26="","",'5B'!$C26) -> 4452 | O24: =IF('6A'!$C26="","",'6A'!$C26) -> 4378 | P24: =IF('6B'!$C26="","",'6B'!$C26) -> 4355
A25: 24 | B25: =IF('1A'!$C27="","",'1A'!$C27) -> 4744 | C25: =IF('1B'!$C27="","",'1B'!$C27) -> 4774 | D25: =IF('1C'!$C27="","",'1C'!$C27) -> 4805 | E25: =IF('2A'!$C27="","",'2A'!$C27) -> 4654 | F25: =IF('2B'!$C27="","",'2B'!$C27) -> 4684 | G25: =IF('2C'!$C27="","",'2C'!$C27) -> 4714 | H25: =IF('3A'!$C27="","",'3A'!$C27) -> 4556 | I25: =IF('3B'!$C27="","",'3B'!$C27) -> 4618 | J25: =IF('3C'!$C27="","",'3C'!$C27) -> 4580 | K25: =IF('4A'!$C27="","",'4A'!$C27) -> 4523 | L25: =IF('4B'!$C27="","",'4B'!$C27) -> 4520 | M25: =IF('5A'!$C27="","",'5A'!$C27) -> 4457 | N25: =IF('5B'!$C27="","",'5B'!$C27) -> 4454 | O25: =IF('6A'!$C27="","",'6A'!$C27) -> 4379 | P25: =IF('6B'!$C27="","",'6B'!$C27) -> 4376
A26: 25 | B26: =IF('1A'!$C28="","",'1A'!$C28) -> 4745 | C26: =IF('1B'!$C28="","",'1B'!$C28) -> 4775 | D26: =IF('1C'!$C28="","",'1C'!$C28) -> 4806 | E26: =IF('2A'!$C28="","",'2A'!$C28) -> 4655 | F26: =IF('2B'!$C28="","",'2B'!$C28) -> 4685 | G26: =IF('2C'!$C28="","",'2C'!$C28) -> 4715 | H26: =IF('3A'!$C28="","",'3A'!$C28) -> 4557 | I26: =IF('3B'!$C28="","",'3B'!$C28) -> 4621 | J26: =IF('3C'!$C28="","",'3C'!$C28) -> 4559 | K26: =IF('4A'!$C28="","",'4A'!$C28) -> 4491 | L26: =IF('4B'!$C28="","",'4B'!$C28) -> 4521 | M26: =IF('5A'!$C28="","",'5A'!$C28) -> 4458 | N26: =IF('5B'!$C28="","",'5B'!$C28) -> 4420 | O26: =IF('6A'!$C28="","",'6A'!$C28) -> 4380 | P26: =IF('6B'!$C28="","",'6B'!$C28) -> 4377
A27: 26 | B27: =IF('1A'!$C29="","",'1A'!$C29) -> 4746 | C27: =IF('1B'!$C29="","",'1B'!$C29) -> 4776 | D27: =IF('1C'!$C29="","",'1C'!$C29) -> 4807 | E27: =IF('2A'!$C29="","",'2A'!$C29) -> 4656 | F27: =IF('2B'!$C29="","",'2B'!$C29) -> 4686 | G27: =IF('2C'!$C29="","",'2C'!$C29) -> 4716 | H27: =IF('3A'!$C29="","",'3A'!$C29) -> 4561 | I27: =IF('3B'!$C29="","",'3B'!$C29) -> 4625 | J27: =IF('3C'!$C29="","",'3C'!$C29) -> 4560 | K27: =IF('4A'!$C29="","",'4A'!$C29) -> 4493 | L27: =IF('4B'!$C29="","",'4B'!$C29) -> 4485 | M27: =IF('5A'!$C29="","",'5A'!$C29) -> 4424 | N27: =IF('5B'!$C29="","",'5B'!$C29) -> 4459 | O27: =IF('6A'!$C29="","",'6A'!$C29) -> 4382 | P27: =IF('6B'!$C29="","",'6B'!$C29) -> 4349
A28: 27 | B28: =IF('1A'!$C30="","",'1A'!$C30) -> 4747 | C28: =IF('1B'!$C30="","",'1B'!$C30) -> 4777 | D28: =IF('1C'!$C30="","",'1C'!$C30) -> 4808 | E28: =IF('2A'!$C30="","",'2A'!$C30) -> 4657 | F28: =IF('2B'!$C30="","",'2B'!$C30) -> 4687 | G28: =IF('2C'!$C30="","",'2C'!$C30) -> 4717 | H28: =IF('3A'!$C30="","",'3A'!$C30) -> 4588 | I28: =IF('3B'!$C30="","",'3B'!$C30) -> 4563 | J28: =IF('3C'!$C30="","",'3C'!$C30) -> 4623 | K28: =IF('4A'!$C30="","",'4A'!$C30) -> 4494 | L28: =IF('4B'!$C30="","",'4B'!$C30) -> 4488 | M28: =IF('5A'!$C30="","",'5A'!$C30) -> 4426 | N28: =IF('5B'!$C30="","",'5B'!$C30) -> 4460 | O28: =IF('6A'!$C30="","",'6A'!$C30) -> 4358 | P28: =IF('6B'!$C30="","",'6B'!$C30) -> 4356
A29: 28 | B29: =IF('1A'!$C31="","",'1A'!$C31) -> 4748 | C29: =IF('1B'!$C31="","",'1B'!$C31) -> 4778 | D29: =IF('1C'!$C31="","",'1C'!$C31) ->  | E29: =IF('2A'!$C31="","",'2A'!$C31) -> 4658 | F29: =IF('2B'!$C31="","",'2B'!$C31) -> 4688 | G29: =IF('2C'!$C31="","",'2C'!$C31) -> 4718 | H29: =IF('3A'!$C31="","",'3A'!$C31) -> 4562 | I29: =IF('3B'!$C31="","",'3B'!$C31) -> 4626 | J29: =IF('3C'!$C31="","",'3C'!$C31) -> 4624 | K29: =IF('4A'!$C31="","",'4A'!$C31) -> 4526 | L29: =IF('4B'!$C31="","",'4B'!$C31) -> 4524 | M29: =IF('5A'!$C31="","",'5A'!$C31) -> 4428 | N29: =IF('5B'!$C31="","",'5B'!$C31) -> 4425 | O29: =IF('6A'!$C31="","",'6A'!$C31) -> 4384 | P29: =IF('6B'!$C31="","",'6B'!$C31) -> 4357
A30: 29 | B30: =IF('1A'!$C32="","",'1A'!$C32) -> 4749 | C30: =IF('1B'!$C32="","",'1B'!$C32) -> 4779 | D30: =IF('1C'!$C32="","",'1C'!$C32) ->  | E30: =IF('2A'!$C32="","",'2A'!$C32) -> 4659 | F30: =IF('2B'!$C32="","",'2B'!$C32) -> 4689 | G30: =IF('2C'!$C32="","",'2C'!$C32) -> 4719 | H30: =IF('3A'!$C32="","",'3A'!$C32) -> 4622 | I30: =IF('3B'!$C32="","",'3B'!$C32) -> 4627 | J30: =IF('3C'!$C32="","",'3C'!$C32) -> 4590 | K30: =IF('4A'!$C32="","",'4A'!$C32) -> 4495 | L30: =IF('4B'!$C32="","",'4B'!$C32) -> 4492 | M30: =IF('5A'!$C32="","",'5A'!$C32) -> 4429 | N30: =IF('5B'!$C32="","",'5B'!$C32) -> 4461 | O30: =IF('6A'!$C32="","",'6A'!$C32) -> 4359 | P30: =IF('6B'!$C32="","",'6B'!$C32) -> 4381
A31: 30 | B31: =IF('1A'!$C33="","",'1A'!$C33) -> 4750 | C31: =IF('1B'!$C33="","",'1B'!$C33) -> 4780 | D31: =IF('1C'!$C33="","",'1C'!$C33) ->  | E31: =IF('2A'!$C33="","",'2A'!$C33) -> 4660 | F31: =IF('2B'!$C33="","",'2B'!$C33) -> 4690 | G31: =IF('2C'!$C33="","",'2C'!$C33) -> 4810 | H31: =IF('3A'!$C33="","",'3A'!$C33) -> 4589 | I31: =IF('3B'!$C33="","",'3B'!$C33) -> 4595 | J31: =IF('3C'!$C33="","",'3C'!$C33) -> 4564 | K31: =IF('4A'!$C33="","",'4A'!$C33) -> 4496 | L31: =IF('4B'!$C33="","",'4B'!$C33) -> 4525 | M31: =IF('5A'!$C33="","",'5A'!$C33) -> 4430 | N31: =IF('5B'!$C33="","",'5B'!$C33) -> 4427 | O31: =IF('6A'!$C33="","",'6A'!$C33) -> 4386 | P31: =IF('6B'!$C33="","",'6B'!$C33) -> 4383
A32: 31 | B32: =IF('1A'!$C34="","",'1A'!$C34) ->  | C32: =IF('1B'!$C34="","",'1B'!$C34) ->  | D32: =IF('1C'!$C34="","",'1C'!$C34) ->  | E32: =IF('2A'!$C34="","",'2A'!$C34) ->  | F32: =IF('2B'!$C34="","",'2B'!$C34) ->  | G32: =IF('2C'!$C34="","",'2C'!$C34) ->  | H32: =IF('3A'!$C34="","",'3A'!$C34) -> 4592 | I32: =IF('3B'!$C34="","",'3B'!$C34) -> 4596 | J32: =IF('3C'!$C34="","",'3C'!$C34) -> 4628 | K32: =IF('4A'!$C34="","",'4A'!$C34) -> 4528 | L32: =IF('4B'!$C34="","",'4B'!$C34) -> 4527 | M32: =IF('5A'!$C34="","",'5A'!$C34) -> 4431 | N32: =IF('5B'!$C34="","",'5B'!$C34) -> 4462 | O32: =IF('6A'!$C34="","",'6A'!$C34) -> 4388 | P32: =IF('6B'!$C34="","",'6B'!$C34) -> 4385
A33: 32 | B33: =IF('1A'!$C35="","",'1A'!$C35) ->  | C33: =IF('1B'!$C35="","",'1B'!$C35) ->  | D33: =IF('1C'!$C35="","",'1C'!$C35) ->  | E33: =IF('2A'!$C35="","",'2A'!$C35) ->  | F33: =IF('2B'!$C35="","",'2B'!$C35) ->  | G33: =IF('2C'!$C35="","",'2C'!$C35) ->  | H33: =IF('3A'!$C35="","",'3A'!$C35) -> 4593 | I33: =IF('3B'!$C35="","",'3B'!$C35) -> 4809 | J33: =IF('3C'!$C35="","",'3C'!$C35) -> 4594 | K33: =IF('4A'!$C35="","",'4A'!$C35) -> 4408 | L33: =IF('4B'!$C35="","",'4B'!$C35) -> 4529 | M33: =IF('5A'!$C35="","",'5A'!$C35) -> 4464 | N33: =IF('5B'!$C35="","",'5B'!$C35) -> 4463 | O33: =IF('6A'!$C35="","",'6A'!$C35) -> 4360 | P33: =IF('6B'!$C35="","",'6B'!$C35) -> 4387
A34: 33 | B34: =IF('1A'!$C36="","",'1A'!$C36) ->  | C34: =IF('1B'!$C36="","",'1B'!$C36) ->  | D34: =IF('1C'!$C36="","",'1C'!$C36) ->  | E34: =IF('2A'!$C36="","",'2A'!$C36) ->  | F34: =IF('2B'!$C36="","",'2B'!$C36) ->  | G34: =IF('2C'!$C36="","",'2C'!$C36) ->  | H34: =IF('3A'!$C36="","",'3A'!$C36) ->  | I34: =IF('3B'!$C36="","",'3B'!$C36) ->  | J34: =IF('3C'!$C36="","",'3C'!$C36) ->  | K34: =IF('4A'!$C36="","",'4A'!$C36) ->  | L34: =IF('4B'!$C36="","",'4B'!$C36) ->  | M34: =IF('5A'!$C36="","",'5A'!$C36) ->  | N34: =IF('5B'!$C36="","",'5B'!$C36) ->  | O34: =IF('6A'!$C36="","",'6A'!$C36) -> 4390 | P34: =IF('6B'!$C36="","",'6B'!$C36) -> 4389
A35: 34 | B35: =IF('1A'!$C37="","",'1A'!$C37) ->  | C35: =IF('1B'!$C37="","",'1B'!$C37) ->  | D35: =IF('1C'!$C37="","",'1C'!$C37) ->  | E35: =IF('2A'!$C37="","",'2A'!$C37) ->  | F35: =IF('2B'!$C37="","",'2B'!$C37) ->  | G35: =IF('2C'!$C37="","",'2C'!$C37) ->  | H35: =IF('3A'!$C37="","",'3A'!$C37) ->  | I35: =IF('3B'!$C37="","",'3B'!$C37) ->  | J35: =IF('3C'!$C37="","",'3C'!$C37) ->  | K35: =IF('4A'!#REF!="","",'4A'!#REF!) ->  | L35: =IF('4B'!$C37="","",'4B'!$C37) ->  | M35: =IF('5A'!$C37="","",'5A'!$C37) ->  | N35: =IF('5B'!$C37="","",'5B'!$C37) ->  | O35: =IF('6A'!$C37="","",'6A'!$C37) ->  | P35: =IF('6B'!$C37="","",'6B'!$C37) -> 
A36: 35 | B36: =IF('1A'!$C38="","",'1A'!$C38) ->  | C36: =IF('1B'!$C38="","",'1B'!$C38) ->  | D36: =IF('1C'!$C38="","",'1C'!$C38) ->  | E36: =IF('2A'!$C38="","",'2A'!$C38) ->  | F36: =IF('2B'!$C38="","",'2B'!$C38) ->  | G36: =IF('2C'!$C38="","",'2C'!$C38) ->  | H36: =IF('3A'!$C38="","",'3A'!$C38) ->  | I36: =IF('3B'!$C38="","",'3B'!$C38) ->  | J36: =IF('3C'!$C38="","",'3C'!$C38) ->  | K36: =IF('4A'!$C37="","",'4A'!$C37) ->  | L36: =IF('4B'!$C38="","",'4B'!$C38) ->  | M36: =IF('5A'!$C38="","",'5A'!$C38) ->  | N36: =IF('5B'!$C38="","",'5B'!$C38) ->  | O36: =IF('6A'!$C38="","",'6A'!$C38) ->  | P36: =IF('6B'!$C38="","",'6B'!$C38) -> 
A37: ="NOMOR INDUK TERAKHIR (BERWARNA HIJAU) = "&A38 -> 
A38: =MAX(B2:P36) -> 

Sheet 1A
A1: 1A | B1: NISN | C1: INDUK | D1: NAMA SISWA | E1: L/P | F1: Tempat, Tanggal Lahir | H1: Umur (RUMUS) | I1: Umur (TEXT) | J1: NOMOR INDUK KEPENDUDUKAN (NIK) SISWA | K1: tentang ORANG TUA | Q1: PEKERJAAN (DISERTAI KODE EMIS 2016) | U1: Jika PNS | V1: Jika TNI | W1: JENJANG PENDIDIKAN (DISERTAI KODE EMIS 2016) | AA1: Penghasilan Perbulan (DISERTAI KODE EMIS 2016) | AC1: Hobi (DISERTAI KODE EMIS 2016) | AE1: Cita-cita (DISERTAI KODE EMIS 2016) | AG1: Jarak Rumah-Sekolah | AI1: Transportasi yg dipakai | AK1: Jml Saudara | AL1: Asal Sekolah Sebelumnya | AO1: Alamat | AS1: NO. KARTU KELUARGA | AU1: NO.HP/ | AV1: TELEPON V2 | AW1: NSM | AX1: TAHUN MASUK | AY1: NO INDUK VERSI EMIS | AZ1: KIP/PIP (INDONESIA PINTAR) | BE1: KESEHATAN TINGGI BADAN (cm) & BERAT BADAN (kg)
K2: Ayah | L2: NIK | M2: Tgl Lahir | N2: Ibu | O2: NIK | P2: Tgl Lahir | Q2: Ayah | S2: Ibu | U2: Gol. | V2: Pangkat | W2: Ayah | Y2: Ibu | AL2: KODE | AN2: ASAL TK/RA | AO2: JL./DUSUN | AP2: RT. | AQ2: RW. | AR2: Desa | AU2: TELEPON | AZ2: Nomor KIP | BA2: Nomor KKS | BB2: Nomor KPS | BC2: Nomor PKH | BD2: Kriteria lain | BE2: TB1 | BF2: TB2 | BG2: TB3 | BH2: TB4 | BI2: TB5 | BJ2: TB6 | BK2: BB1 | BL2: BB2 | BM2: BB3 | BN2: BB4 | BO2: BB5 | BP2: BB6
A3: 1 | B3: 2 | C3: 3 | D3: 4 | E3: 5 | F3: 6 | G3: 7 | H3: 8 | J3: 9 | K3: 10 | L3: 11 | M3: 12 | N3: 13 | O3: 14 | P3: 15 | Q3: 16 | S3: 17 | U3: 18 | V3: 19 | W3: 20 | Y3: 21 | AA3: 22 | AC3: 23 | AE3: 24 | AG3: 25 | AI3: 26 | AK3: 27 | AL3: 28 | AN3: 29 | AO3: 30 | AP3: 31 | AQ3: 32 | AR3: 33 | AS3: 34 | AT3: 35 | AU3: 36 | AV3: 37 | AW3: 38 | AX3: 39 | AY3: 40 | AZ3: 40 | BA3: 41 | BB3: 42 | BC3: 43 | BD3: 44 | BE3: 45 | BF3: 46 | BG3: 47 | BH3: 48 | BI3: 49 | BJ3: 50 | BK3: 51 | BL3: 52 | BM3: 53 | BN3: 54 | BO3: 55 | BP3: 56
A4: 1 | C4: 4721 | D4: AGHA NABIL FAYYADH ROBBANI | E4: L | F4: LUMAJANG | G4: 2012-12-31 | H4: =DATEDIF(G4,PETUNJUK!$H$10,"y") -> 6 | I4: =_xlfn.NUMBERVALUE(H4) -> 6 | J4: 3508213112120002 | K4: NANANG SYAIFUDDIN | L4: 3508211507800002 | M4: 1980-07-15 | N4: SYAMSIATUL HAMIDAH | O4: 3508035202820007 | P4: 1982-02-12 | Q4: 06 | R4: =IF(Q4="01","Tdk Bekerja",IF(Q4="02","Pensiunan/Alm.",IF(Q4="03","PNS",IF(Q4="04","TNI/POLRI",IF(Q4="05","Guru/Dosen",IF(Q4="06","Peg.Swasta",IF(Q4="07","Pengusaha/Wiraswasta",IF(Q4="08","Pengacara/Hakim/Jaksa/Notaris",IF(Q4="09","Seniman/Sejenis",IF(Q4="10","Dokter/Sejenis",IF(Q4="11","Penerbangan",IF(Q4="12","Pedagang",IF(Q4="13","Petani/ternak",IF(Q4="14","Nelayan",IF(Q4="15","Buruh",IF(Q4="16","Angkutan",IF(Q4="17","PolitikusS",IF(Q4="18","Lainnya","DI ISI")))))))))))))))))) -> Peg.Swasta | S4: 06 | T4: Peg.Swasta | U4: =IF(Q4="03","DIISI","-") -> - | V4: =IF(S4="03","DIISI","-") -> - | X4: =IF(W4="0","Tdk Pnddkan Formal",IF(W4="1","<=SLTP",IF(W4="2","SLTA",IF(W4="3","D1",IF(W4="4","D2",IF(W4="5","D3",IF(W4="6","D4",IF(W4="7","S1",IF(W4="8","S2",IF(W4="9","S3","DI ISI")))))))))) -> DI ISI | Z4: =IF(Y4="0","Tdk Pnddkan Formal",IF(Y4="1","<=SLTP",IF(Y4="2","SLTA",IF(Y4="3","D1",IF(Y4="4","D2",IF(Y4="5","D3",IF(Y4="6","D4",IF(Y4="7","S1",IF(Y4="8","S2",IF(Y4="9","S3","DI ISI")))))))))) -> DI ISI | AB4: =IF(AA4="1","<= Rp.500.000",IF(AA4="2","Rp 500.001 - Rp 1.000.000",IF(AA4="3","Rp 1.000.001 - Rp 2.000.000",IF(AA4="4","Rp 2.000.001 - Rp 3.000.000",IF(AA4="5","Rp 3.000.001 - Rp 5.000.000",IF(AA4="6","> Rp 5.000.000","DI ISI")))))) -> DI ISI | AD4: =IF(AC4="1","Olahraga",IF(AC4="2","Kesenian",IF(AC4="3","Membaca",IF(AC4="4","Menulis",IF(AC4="5","Travelling",IF(AC4="6","Lainnya","DI ISI")))))) -> DI ISI | AF4: =IF(AE4="1","PNS",IF(AE4="2","TNI/Polri",IF(AE4="3","Guru/Dosen",IF(AE4="4","Dokter",IF(AE4="5","Politikus",IF(AE4="6","Wiraswasta",IF(AE4="7","Pekerja Seni/Sejenis",IF(AE4="8","Lainnya","DI ISI")))))))) -> DI ISI | AH4: =IF(AG4="1","< 1 Km",IF(AG4="2","1-3 Km",IF(AG4="3","3-5 Km",IF(AG4="4","5-10 Km",IF(AG4="5","> 10 Km","DI ISI"))))) -> DI ISI | AJ4: =IF(AI4="1","Jalan Kaki",IF(AI4="2","Sepeda",IF(AI4="3","motor",IF(AI4="4","Mobil Pribadi",IF(AI4="5","Antar/Jemput",IF(AI4="6","Angkutan",IF(AI4="7","Lainnya","DI ISI"))))))) -> DI ISI | AK4: 0 | AL4: 2 | AM4: =IF(AL4="1","TK",IF(AL4="2","RA",IF(AL4="3","PAUD",IF(AL4="4","TKLB",IF(AL4="5","Langsung dari Ortu","DI ISI"))))) -> RA | AN4: RA MUSLIMAT NU 26 MOJOSARI | AO4: GEDONGSARI | AP4: 49 | AQ4: 7 | AR4: LABRUK KIDUL | AS4: 3508212301070001 | AW4: 111235080166 | AX4: 19 | AY4: =AW4&AX4&C4 -> 111235080166194721
A5: 2 | C5: 4722 | D5: AMANDA AZAHRA PUTRI PRISMA | E5: P | F5: LUMAJANG | G5: 2012-06-04 | H5: =DATEDIF(G5,PETUNJUK!$H$10,"y") -> 7 | I5: =_xlfn.NUMBERVALUE(H5) -> 7 | J5: 3508216406120001 | K5: SUPRIYANTO | L5: 3508210505840001 | M5: 1984-05-05 | N5: RISMA RATNA WATI | O5: 3508215511900008 | P5: 1990-11-15 | Q5: 06 | R5: =IF(Q5="01","Tdk Bekerja",IF(Q5="02","Pensiunan/Alm.",IF(Q5="03","PNS",IF(Q5="04","TNI/POLRI",IF(Q5="05","Guru/Dosen",IF(Q5="06","Peg.Swasta",IF(Q5="07","Pengusaha/Wiraswasta",IF(Q5="08","Pengacara/Hakim/Jaksa/Notaris",IF(Q5="09","Seniman/Sejenis",IF(Q5="10","Dokter/Sejenis",IF(Q5="11","Penerbangan",IF(Q5="12","Pedagang",IF(Q5="13","Petani/ternak",IF(Q5="14","Nelayan",IF(Q5="15","Buruh",IF(Q5="16","Angkutan",IF(Q5="17","PolitikusS",IF(Q5="18","Lainnya","DI ISI")))))))))))))))))) -> Peg.Swasta | S5: 01 | T5: Tdk Bekerja | U5: =IF(Q5="03","DIISI","-") -> - | V5: =IF(S5="03","DIISI","-") -> - | X5: =IF(W5="0","Tdk Pnddkan Formal",IF(W5="1","<=SLTP",IF(W5="2","SLTA",IF(W5="3","D1",IF(W5="4","D2",IF(W5="5","D3",IF(W5="6","D4",IF(W5="7","S1",IF(W5="8","S2",IF(W5="9","S3","DI ISI")))))))))) -> DI ISI | Z5: =IF(Y5="0","Tdk Pnddkan Formal",IF(Y5="1","<=SLTP",IF(Y5="2","SLTA",IF(Y5="3","D1",IF(Y5="4","D2",IF(Y5="5","D3",IF(Y5="6","D4",IF(Y5="7","S1",IF(Y5="8","S2",IF(Y5="9","S3","DI ISI")))))))))) -> DI ISI | AB5: =IF(AA5="1","<= Rp.500.000",IF(AA5="2","Rp 500.001 - Rp 1.000.000",IF(AA5="3","Rp 1.000.001 - Rp 2.000.000",IF(AA5="4","Rp 2.000.001 - Rp 3.000.000",IF(AA5="5","Rp 3.000.001 - Rp 5.000.000",IF(AA5="6","> Rp 5.000.000","DI ISI")))))) -> DI ISI | AD5: =IF(AC5="1","Olahraga",IF(AC5="2","Kesenian",IF(AC5="3","Membaca",IF(AC5="4","Menulis",IF(AC5="5","Travelling",IF(AC5="6","Lainnya","DI ISI")))))) -> DI ISI | AF5: =IF(AE5="1","PNS",IF(AE5="2","TNI/Polri",IF(AE5="3","Guru/Dosen",IF(AE5="4","Dokter",IF(AE5="5","Politikus",IF(AE5="6","Wiraswasta",IF(AE5="7","Pekerja Seni/Sejenis",IF(AE5="8","Lainnya","DI ISI")))))))) -> DI ISI | AH5: =IF(AG5="1","< 1 Km",IF(AG5="2","1-3 Km",IF(AG5="3","3-5 Km",IF(AG5="4","5-10 Km",IF(AG5="5","> 10 Km","DI ISI"))))) -> DI ISI | AJ5: =IF(AI5="1","Jalan Kaki",IF(AI5="2","Sepeda",IF(AI5="3","motor",IF(AI5="4","Mobil Pribadi",IF(AI5="5","Antar/Jemput",IF(AI5="6","Angkutan",IF(AI5="7","Lainnya","DI ISI"))))))) -> DI ISI | AK5: 1 | AL5: 1 | AM5: =IF(AL5="1","TK",IF(AL5="2","RA",IF(AL5="3","PAUD",IF(AL5="4","TKLB",IF(AL5="5","Langsung dari Ortu","DI ISI"))))) -> TK | AN5: TK DEWI SARTIKA KEBONSARI | AO5: SARIREJO I | AP5: 19 | AQ5: 3 | AR5: KEBONSARI | AS5: 3508211903120002 | AW5: 111235080166 | AX5: 19 | AY5: =AW5&AX5&C5 -> 111235080166194722
A6: 3 | C6: 4723 | D6: CAHYANING SATRIYA ARJUNA | E6: L | F6: LUMAJANG | G6: 2012-11-05 | H6: =DATEDIF(G6,PETUNJUK!$H$10,"y") -> 6 | I6: 6 | J6: 3508210511120001 | K6: HERI SUGIANTO | L6: 3508212006700004 | M6: 1970-06-20 | N6: WIWIK SOFIYAH | O6: 3508216101750005 | P6: 1975-01-21 | Q6: 07 | R6: =IF(Q6="01","Tdk Bekerja",IF(Q6="02","Pensiunan/Alm.",IF(Q6="03","PNS",IF(Q6="04","TNI/POLRI",IF(Q6="05","Guru/Dosen",IF(Q6="06","Peg.Swasta",IF(Q6="07","Pengusaha/Wiraswasta",IF(Q6="08","Pengacara/Hakim/Jaksa/Notaris",IF(Q6="09","Seniman/Sejenis",IF(Q6="10","Dokter/Sejenis",IF(Q6="11","Penerbangan",IF(Q6="12","Pedagang",IF(Q6="13","Petani/ternak",IF(Q6="14","Nelayan",IF(Q6="15","Buruh",IF(Q6="16","Angkutan",IF(Q6="17","PolitikusS",IF(Q6="18","Lainnya","DI ISI")))))))))))))))))) -> Pengusaha/Wiraswasta | S6: 01 | T6: Tdk Bekerja | U6: - | V6: - | X6: DI ISI | Z6: DI ISI | AB6: DI ISI | AD6: DI ISI | AF6: DI ISI | AH6: DI ISI | AJ6: DI ISI | AK6: 1 | AL6: 1 | AM6: TK | AN6: TK DEWI SARTIKA KEBONSARI | AO6: SARIREJO II | AP6: 32 | AQ6: 5 | AR6: KEBONSARI | AS6: 3508212208051424 | AW6: 111235080166 | AX6: 19 | AY6: 111235080166194723
A7: 4 | C7: 4724 | D7: DEVANT LAKZA BINTANG | E7: L | F7: LUMAJANG | G7: 2012-06-04 | H7: =DATEDIF(G7,PETUNJUK!$H$10,"y") -> 7 | I7: 7 | J7: 3508210110180001 | K7: ROKHMAT MARSUDI | N7: SITI NUR FARIDAH | O7: 3508214203900003 | P7: 1990-03-02 | Q7: 15 | R7: Buruh | S7: 01 | T7: Tdk Bekerja | U7: - | V7: - | X7: DI ISI | Z7: DI ISI | AB7: DI ISI | AD7: DI ISI | AF7: DI ISI | AH7: DI ISI | AJ7: DI ISI | AK7: 0 | AL7: 1 | AM7: TK | AN7: TK MUSLIMAT NU 01 KEBONSARI | AO7: KRAJAN TIMUR | AP7: 1 | AQ7: 1 | AR7: LABRUK KIDUL | AS7: 3508210908180001 | AU7: 085546364339 | AW7: 111235080166 | AX7: 19 | AY7: 111235080166194724
A8: 5 | C8: 4725 | D8: FAHRI AHMAD ALFARISI | E8: L | F8: LUMAJANG | G8: 2013-02-24 | H8: =DATEDIF(G8,PETUNJUK!$H$10,"y") -> 6 | I8: 6 | J8: 3508152402130002 | K8: AHMAD SHODIQ | L8: 3508151505770003 | M8: 1977-05-15 | N8: ENY PURWATI | O8: 3508154609840003 | P8: 1984-09-06 | Q8: 05 | R8: Guru/Dosen | S8: 01 | T8: Tdk Bekerja | U8: - | V8: - | X8: DI ISI | Z8: DI ISI | AB8: DI ISI | AD8: DI ISI | AF8: DI ISI | AH8: DI ISI | AJ8: DI ISI | AK8: 1 | AL8: 1 | AM8: TK | AN8: TK DHARMA WANITA LABRUK KIDUL | AO8: KRAJAN TIMUR | AP8: 20 | AQ8: 4 | AR8: LABRUK KIDUL | AS8: 3508211807170004 | AW8: 111235080166 | AX8: 19 | AY8: 111235080166194725
A9: 6 | C9: 4726 | D9: FARAH NABILA | E9: P | F9: LUMAJANG | G9: 2012-09-17 | H9: =DATEDIF(G9,PETUNJUK!$H$10,"y") -> 6 | I9: 6 | J9: 3508215709120001 | K9: FIRUL HUSEN | L9: 3508211609880001 | M9: 1988-09-16 | N9: DATIEN YUDHA WIDYANTI | O9: 3574017005820001 | P9: 1982-05-30 | Q9: 06 | R9: Peg.Swasta | S9: 01 | T9: Tdk Bekerja | U9: - | V9: - | X9: DI ISI | Z9: DI ISI | AB9: DI ISI | AD9: DI ISI | AF9: DI ISI | AH9: DI ISI | AJ9: DI ISI | AK9: 0 | AL9: 1 | AM9: TK | AN9: TK DHARMA WANITA LABRUK KIDUL | AO9: KRAJAN TIMUR | AP9: 10 | AQ9: 2 | AR9: LABRUK KIDUL | AS9: 3508212405120005 | AU9: 083832292920 | AW9: 111235080166 | AX9: 19 | AY9: 111235080166194726
A10: 7 | C10: 4727 | D10: FATINATA AZ'ZAHRAH | E10: P | F10: LUMAJANG | G10: 2012-12-11 | H10: =DATEDIF(G10,PETUNJUK!$H$10,"y") -> 6 | I10: 6 | J10: 3508215112120001 | K10: MOHAMAD SAEKONI | L10: 3508211010690002 | M10: 1969-10-10 | N10: WUR INDAYATI | O10: 3508214101770003 | P10: 1977-01-01 | Q10: 06 | R10: Peg.Swasta | S10: 06 | T10: Peg.Swasta | U10: - | V10: - | X10: DI ISI | Z10: DI ISI | AB10: DI ISI | AD10: DI ISI | AF10: DI ISI | AH10: DI ISI | AJ10: DI ISI | AK10: 2 | AL10: 1 | AM10: TK | AN10: TK TARBIYATUSH SHIBYAN | AO10: KRAJAN TIMUR | AP10: 27 | AQ10: 4 | AR10: LABRUK KIDUL | AS10: 3508211111090004 | AU10: 085257379950 | AW10: 111235080166 | AX10: 19 | AY10: 111235080166194727
A11: 8 | C11: 4728 | D11: FILLA SASABILLILAH | E11: P | F11: LUMAJANG | G11: 2012-11-24 | H11: =DATEDIF(G11,PETUNJUK!$H$10,"y") -> 6 | I11: 6 | J11: 3508216411120001 | K11: NGATIAMAN | L11: 3508213107720001 | M11: 31.7.72 | N11: NUR SAIDAH | O11: 3508215010820001 | P11: 1982-10-10 | Q11: 15 | R11: Buruh | S11: 01 | T11: Tdk Bekerja | U11: - | V11: - | X11: DI ISI | Z11: DI ISI | AB11: DI ISI | AD11: DI ISI | AF11: DI ISI | AH11: DI ISI | AJ11: DI ISI | AK11: 1 | AL11: 1 | AM11: TK | AN11: TK DHARMA WANITA LABRUK KIDUL | AO11: KRAJAN TIMUR | AP11: 17 | AQ11: 3 | AR11: LABRUK KIDUL | AS11: 3508211010090073 | AW11: 111235080166 | AX11: 19 | AY11: 111235080166194728
A12: 9 | C12: 4729 | D12: IKFINA DINA KAMILA | E12: P | F12: JEMBER | G12: 2012-11-07 | H12: =DATEDIF(G12,PETUNJUK!$H$10,"y") -> 6 | I12: 6 | J12: 3509114711120002 | K12: EDI PURNAWIRAWAN | L12: 3509110310900002 | M12: 1990-10-03 | N12: SETIA DEWI | O12: 3509116505920002 | P12: 1992-05-16 | Q12: 07 | R12: Pengusaha/Wiraswasta | S12: 01 | T12: Tdk Bekerja | U12: - | V12: - | X12: DI ISI | Z12: DI ISI | AB12: DI ISI | AD12: DI ISI | AF12: DI ISI | AH12: DI ISI | AJ12: DI ISI | AK12: 0 | AL12: 1 | AM12: TK | AN12: TK DEWI SARTIKA KEBONSARI | AO12: TEGAL BANTENG | AP12: 8 | AQ12: 6 | AR12: KESILIR | AS12: 3509111101120035 | AW12: 111235080166 | AX12: 19 | AY12: 111235080166194729
A13: 10 | C13: 4730 | D13: KAYLA DWI ALISHA | E13: P | F13: LUMAJANG | G13: 2013-05-24 | H13: =DATEDIF(G13,PETUNJUK!$H$10,"y") -> 6 | I13: 6 | J13: 3508216405130003 | K13: MACHMUD ALI RIDHO | L13: 3508212706770002 | M13: 1977-06-27 | N13: DENI HERLINA | O13: 3508216806790001 | P13: 1979-06-28 | Q13: 05 | R13: Guru/Dosen | S13: 05 | T13: Guru/Dosen | U13: - | V13: - | X13: DI ISI | Z13: DI ISI | AB13: DI ISI | AD13: DI ISI | AF13: DI ISI | AH13: DI ISI | AJ13: DI ISI | AK13: 1 | AL13: 1 | AM13: TK | AN13: TK MUSLIMAT NU 01 KEBONSARI | AO13: SARIREJO I | AP13: 4 | AQ13: 1 | AR13: KEBONSARI | AS13: 3508211203090010 | AU13: 082330284616 | AW13: 111235080166 | AX13: 19 | AY13: 111235080166194730
A14: 11 | C14: 4731 | D14: KHARISMA ADILA PUTRI | E14: P | F14: LUMAJANG | G14: 2012-04-30 | H14: =DATEDIF(G14,PETUNJUK!$H$10,"y") -> 7 | I14: 7 | J14: 3508217004120001 | K14: SAMSUL ARIFIN | L14: 3508212505780004 | M14: 35/5/78 | N14: DEI FITRIYAH | O14: 3508214708770005 | P14: 1977-08-07 | Q14: 07 | R14: Pengusaha/Wiraswasta | S14: 07 | T14: Pengusaha/Wiraswasta | U14: - | V14: - | X14: DI ISI | Z14: DI ISI | AB14: DI ISI | AD14: DI ISI | AF14: DI ISI | AH14: DI ISI | AJ14: DI ISI | AK14: 0 | AL14: 1 | AM14: TK | AN14: TK TARBIYATUSH SHIBYAN | AO14: KRAJAN BARAT | AP14: 29 | AQ14: 5 | AR14: LABRUK KIDUL | AS14: 3508210905120007 | AU14: 082336510004 | AW14: 111235080166 | AX14: 19 | AY14: 111235080166194731
A15: 12 | C15: 4732 | D15: MARDA MAR'ATUS SOLIKHA | E15: P | F15: LUMAJANG | G15: 2013-08-04 | H15: =DATEDIF(G15,PETUNJUK!$H$10,"y") -> 5 | I15: 5 | J15: 3508214408130001 | K15: DANAR IRIANTO | L15: 3508010605870002 | M15: 1987-05-06 | N15: MARIS YULIANA | O15: 3508214407900001 | P15: 1990-07-04 | Q15: 10 | R15: Dokter/Sejenis | S15: 10 | T15: Dokter/Sejenis | U15: - | V15: - | X15: DI ISI | Z15: DI ISI | AB15: DI ISI | AD15: DI ISI | AF15: DI ISI | AH15: DI ISI | AJ15: DI ISI | AK15: 0 | AL15: 1 | AM15: TK | AN15: TK MUSLIMAT NU 01 KEBONSARI | AO15: SUKO I | AP15: 5 | AQ15: 1 | AR15: SUMBERSUKO | AS15: 3508212809120001 | AU15: 085258828788 | AW15: 111235080166 | AX15: 19 | AY15: 111235080166194732
A16: 13 | C16: 4733 | D16: MOHAMMAD EGI SYAHPUTRA | E16: L | F16: LUMAJANG | G16: 2012-11-10 | H16: =DATEDIF(G16,PETUNJUK!$H$10,"y") -> 6 | I16: 6 | J16: 3508212211170001 | K16: BASORI | L16: 3508211904820001 | M16: 1982-04-19 | N16: ARIS PURIYANTI | O16: 3508054202870001 | P16: 1987-02-02 | Q16: 06 | R16: Peg.Swasta | S16: 01 | T16: Tdk Bekerja | U16: - | V16: - | X16: DI ISI | Z16: DI ISI | AB16: DI ISI | AD16: DI ISI | AF16: DI ISI | AH16: DI ISI | AJ16: DI ISI | AK16: 1 | AL16: 1 | AM16: TK | AN16: TK TARBIYATUSH SHIBYAN | AO16: KRAJAN BARAT | AP16: 35 | AQ16: 6 | AR16: LABRUK KIDUL | AS16: 3508213008120021 | AU16: 087757416518 | AW16: 111235080166 | AX16: 19 | AY16: 111235080166194733
A17: 14 | C17: 4734 | D17: MUHAMMAD AFSA FARAZZAY | E17: L | F17: LUMAJANG | G17: 2012-05-12 | H17: =DATEDIF(G17,PETUNJUK!$H$10,"y") -> 7 | I17: 7 | J17: 3508071205120001 | K17: AFID ASNAN | L17: 3508070206820004 | M17: 1982-06-02 | N17: KHOIROTUN NISA' | O17: 3508076810940001 | P17: 1986-10-28 | Q17: 05 | R17: Guru/Dosen | S17: 05 | T17: Guru/Dosen | U17: - | V17: - | X17: DI ISI | Z17: DI ISI | AB17: DI ISI | AD17: DI ISI | AF17: DI ISI | AH17: DI ISI | AJ17: DI ISI | AK17: 0 | AL17: 1 | AM17: TK | AN17: TK MUSLIMAT NU 01 KEBONSARI | AO17: SARIREJO II | AP17: 25 | AQ17: 4 | AR17: KEBONSARI | AS17: 3508211801190003 | AU17: 085258793476 | AV17: 085335100399 | AW17: 111235080166 | AX17: 19 | AY17: 111235080166194734
A18: 15 | C18: 4735 | D18: MUHAMMAD ALEA ISLAMIC SURYONO | E18: L | F18: LUMAJANG | G18: 2012-01-05 | H18: =DATEDIF(G18,PETUNJUK!$H$10,"y") -> 7 | I18: 7 | K18: WAGIK SURYONO | N18: MURTI PRASTIWI | Q18: 06 | R18: Peg.Swasta | S18: 01 | T18: Tdk Bekerja | U18: - | V18: - | X18: DI ISI | Z18: DI ISI | AB18: DI ISI | AD18: DI ISI | AF18: DI ISI | AH18: DI ISI | AJ18: DI ISI | AK18: 0 | AL18: 1 | AM18: TK | AN18: TK TARBIYATUSH SHIBYAN | AP18: 29 | AQ18: 5 | AR18: LABRUK KIDUL | AU18: 082236873884 | AW18: 111235080166 | AX18: 19 | AY18: 111235080166194735
A19: 16 | C19: 4736 | D19: MUHAMMAD ALFARISI | E19: L | F19: LUMAJANG | G19: 2012-03-19 | H19: =DATEDIF(G19,PETUNJUK!$H$10,"y") -> 7 | I19: 7 | J19: 3508211903120001 | K19: NGATUBI | L19: 3508210605720002 | M19: 1972-05-06 | N19: JULIYATI | O19: 3508215807820002 | P19: 1982-07-18 | Q19: 18 | R19: Lainnya | S19: 01 | T19: Tdk Bekerja | U19: - | V19: - | X19: DI ISI | Z19: DI ISI | AB19: DI ISI | AD19: DI ISI | AF19: DI ISI | AH19: DI ISI | AJ19: DI ISI | AK19: 1 | AL19: 1 | AM19: TK | AN19: TK TARBIYATUSH SHIBYAN | AO19: GEDONGSARI | AP19: 55 | AQ19: 8 | AR19: LABRUK KIDUL | AS19: 3508210410090028 | AU19: 082302202440 | AW19: 111235080166 | AX19: 19 | AY19: 111235080166194736
A20: 17 | C20: 4737 | D20: MUHAMMAD AZKA WILDANI | E20: L | F20: LUMAJANG | G20: 2013-03-28 | H20: =DATEDIF(G20,PETUNJUK!$H$10,"y") -> 6 | I20: 6 | J20: 3508072803130004 | K20: AKHMAD KHOIRUL ANAM | L20: 3508070611890001 | M20: 1989-11-06 | N20: NUR HIDAYAH | O20: 3508214207930001 | P20: 1993-07-02 | Q20: 06 | R20: Peg.Swasta | S20: 01 | T20: Tdk Bekerja | U20: - | V20: - | X20: DI ISI | Z20: DI ISI | AB20: DI ISI | AD20: DI ISI | AF20: DI ISI | AH20: DI ISI | AJ20: DI ISI | AK20: 0 | AL20: 1 | AM20: TK | AN20: TK MUSLIMAT NU 01 KEBONSARI | AO20: JL. MAWAR | AP20: 2 | AQ20: 1 | AR20: KEBONSARI | AS20: 3508070603120008 | AU20: 085234450300 | AW20: 111235080166 | AX20: 19 | AY20: 111235080166194737
A21: 18 | C21: 4738 | D21: MUHAMMAD RASYA FABIANSYAH | E21: L | F21: LUMAJANG | G21: 2012-10-28 | H21: =DATEDIF(G21,PETUNJUK!$H$10,"y") -> 6 | I21: 6 | J21: 3508152810120002 | K21: HENDRY HASTRITANTO | L21: 3508152901850001 | M21: 1985-01-29 | N21: KHUROTUL A'YUN | O21: 3508156507880002 | P21: 1988-07-25 | Q21: 06 | R21: Peg.Swasta | S21: 01 | T21: Tdk Bekerja | U21: - | V21: - | X21: DI ISI | Z21: DI ISI | AB21: DI ISI | AD21: DI ISI | AF21: DI ISI | AH21: DI ISI | AJ21: DI ISI | AK21: 0 | AL21: 1 | AM21: TK | AN21: TK TARBIYATUSH SHIBYAN | AO21: GEDONGSARI | AP21: 48 | AQ21: 16 | AR21: LABRUK KIDUL | AS21: 3508212602180003 | AW21: 111235080166 | AX21: 19 | AY21: 111235080166194738
A22: 19 | C22: 4739 | D22: MUHAMMAD SULLAMUL KIROM | E22: L | F22: LUMAJANG | G22: 2012-03-15 | H22: =DATEDIF(G22,PETUNJUK!$H$10,"y") -> 7 | I22: 7 | J22: 3508211503120001 | K22: IMAM MASLUKI | L22: 3508211208800004 | M22: 1980-08-12 | N22: FATUKHUL IMAROH | O22: 350821500810003 | P22: 1981-03-10 | Q22: 07 | R22: Pengusaha/Wiraswasta | S22: 01 | T22: Tdk Bekerja | U22: - | V22: - | X22: DI ISI | Z22: DI ISI | AB22: DI ISI | AD22: DI ISI | AF22: DI ISI | AH22: DI ISI | AJ22: DI ISI | AK22: 1 | AL22: 1 | AM22: TK | AN22: TK MUSLIMAT NU 01 KEBONSARI | AO22: KRAJAN BARAT | AP22: 31 | AQ22: 5 | AR22: LABRUK KIDUL | AS22: 3508212010090090 | AW22: 111235080166 | AX22: 19 | AY22: 111235080166194739
A23: 20 | C23: 4740 | D23: NABILA MAULIDIA | E23: P | F23: LUMAJANG | G23: 2013-01-23 | H23: =DATEDIF(G23,PETUNJUK!$H$10,"y") -> 6 | I23: 6 | J23: 3508216301130001 | K23: MUCHAMMAD CHOZEN | L23: 3508213012830004 | M23: 1983-12-30 | N23: SITI JULAIKHA | O23: 350805911910001 | P23: 1991-11-19 | Q23: 07 | R23: Pengusaha/Wiraswasta | S23: 01 | T23: Tdk Bekerja | U23: - | V23: - | X23: DI ISI | Z23: DI ISI | AB23: DI ISI | AD23: DI ISI | AF23: DI ISI | AH23: DI ISI | AJ23: DI ISI | AK23: 0 | AL23: 1 | AM23: TK | AN23: TK MUSLIMAT NU 01 KEBONSARI | AO23: KRAJAN TIMUR | AP23: 26 | AQ23: 4 | AR23: LABRUK KIDUL | AS23: 3508212109120004 | AW23: 111235080166 | AX23: 19 | AY23: 111235080166194740
A24: 21 | C24: 4741 | D24: NADIATUL MAULIDA | E24: P | F24: LUMAJANG | G24: 2013-01-21 | H24: =DATEDIF(G24,PETUNJUK!$H$10,"y") -> 6 | I24: 6 | J24: 3508216101130001 | K24: SUKIRTO | L24: 3508213007730002 | M24: 1973-07-30 | N24: SIWIR | O24: 3508215006760002 | P24: 1976-06-10 | R24: DI ISI | T24: DI ISI | U24: - | V24: - | X24: DI ISI | Z24: DI ISI | AB24: DI ISI | AD24: DI ISI | AF24: DI ISI | AH24: DI ISI | AJ24: DI ISI | AK24: 1 | AL24: 1 | AM24: TK | AN24: TK DEWI SARTIKA KEBONSARI | AO24: SARIREJO II | AP24: 30 | AQ24: 5 | AR24: KEBONSARI | AS24: 3508211907160006 | AW24: 111235080166 | AX24: 19 | AY24: 111235080166194741
A25: 22 | C25: 4742 | D25: NAYLA PUTRI INDRININA | E25: P | F25: LUMAJANG | G25: 2012-10-20 | H25: =DATEDIF(G25,PETUNJUK!$H$10,"y") -> 6 | I25: 6 | J25: 3508216010120001 | K25: GUNAWAN MASRURI | L25: 3508211006840002 | M25: 1984-06-10 | N25: SULIYANI MARITA | O25: 350821413920003 | P25: 1992-03-01 | Q25: 06 | R25: Peg.Swasta | S25: 01 | T25: Tdk Bekerja | U25: - | V25: - | X25: DI ISI | Z25: DI ISI | AB25: DI ISI | AD25: DI ISI | AF25: DI ISI | AH25: DI ISI | AJ25: DI ISI | AK25: 0 | AL25: 1 | AM25: TK | AN25: TK DEWI SARTIKA KEBONSARI | AO25: DARUNGAN | AP25: 30 | AQ25: 6 | AR25: MOJOSARI | AS25: 3508212706120011 | AW25: 111235080166 | AX25: 19 | AY25: 111235080166194742
A26: 23 | C26: 4743 | D26: NAYLA PUTRI RAHMANIA | E26: P | F26: LUMAJANG | G26: 2012-10-17 | H26: =DATEDIF(G26,PETUNJUK!$H$10,"y") -> 6 | I26: 6 | J26: 3508215710120002 | K26: MUHAMMAD SAFI'I | L26: 3508210204830002 | M26: 1983-04-02 | N26: RENI WAHYUNI | O26: 3508214503900001 | P26: 1990-03-05 | Q26: 16 | R26: Angkutan | S26: 01 | T26: Tdk Bekerja | U26: - | V26: - | X26: DI ISI | Z26: DI ISI | AB26: DI ISI | AD26: DI ISI | AF26: DI ISI | AH26: DI ISI | AJ26: DI ISI | AK26: 1 | AL26: 1 | AM26: TK | AN26: TK MUSLIMAT NU 01 KEBONSARI | AO26: KRAJAN TIMUR | AP26: 20 | AQ26: 4 | AR26: LABRUK KIDUL | AS26: 3508212109060028 | AW26: 111235080166 | AX26: 19 | AY26: 111235080166194743
A27: 24 | C27: 4744 | D27: NORMA FAEDAH | E27: P | F27: LUMAJANG | G27: 2013-06-15 | H27: =DATEDIF(G27,PETUNJUK!$H$10,"y") -> 6 | I27: 6 | J27: 3508105506130002 | K27: EDY HARIYANTO | L27: 3508109068200003 | M27: 1982-06-09 | N27: TUMITA | O27: 3508105505810005 | P27: 15/5/81 | Q27: 07 | R27: Pengusaha/Wiraswasta | S27: 07 | T27: Pengusaha/Wiraswasta | U27: - | V27: - | X27: DI ISI | Z27: DI ISI | AB27: DI ISI | AD27: DI ISI | AF27: DI ISI | AH27: DI ISI | AJ27: DI ISI | AK27: 1 | AL27: 1 | AM27: TK | AN27: TK DHARMA WANITA GRATI 01 | AO27: KRAJAN TIMUR | AP27: 14 | AQ27: 3 | AR27: LABRUK KIDUL | AS27: 3508213004140003 | AU27: 0802331490345 | AW27: 111235080166 | AX27: 19 | AY27: 111235080166194744
A28: 25 | C28: 4745 | D28: R. HONGGO ARUNA JERO NUGROHO | E28: L | F28: LUMAJANG | G28: 2012-08-24 | H28: =DATEDIF(G28,PETUNJUK!$H$10,"y") -> 6 | I28: 6 | J28: 3508092408120001 | K28: SUSETYO JOKO SAPTO NUGROHO | L28: 3508095609840001 | M28: 1984-09-16 | N28: TRI ISNAINI RUKILA | Q28: 07 | R28: Pengusaha/Wiraswasta | T28: DI ISI | U28: - | V28: - | X28: DI ISI | Z28: DI ISI | AB28: DI ISI | AD28: DI ISI | AF28: DI ISI | AH28: DI ISI | AJ28: DI ISI | AK28: 1 | AL28: 1 | AM28: TK | AN28: TK DEWI SARTIKA KEBONSARI | AO28: MAGERSARI | AP28: 8 | AQ28: 3 | AR28: TEKUNG | AS28: 3508090410170003 | AW28: 111235080166 | AX28: 19 | AY28: 111235080166194745
A29: 26 | C29: 4746 | D29: REZKY AKBAR LANGIT RAMADHAN | E29: L | F29: LUMAJANG | G29: 2012-08-18 | H29: =DATEDIF(G29,PETUNJUK!$H$10,"y") -> 6 | I29: 6 | J29: 3508211808120001 | K29: SEPTI HARTANTO | L29: 3508210309870002 | M29: 1987-09-03 | N29: MEGA AYU LESTARI | O29: 3508216310880001 | P29: 1988-10-23 | Q29: 06 | R29: Peg.Swasta | S29: 06 | T29: Peg.Swasta | U29: - | V29: - | X29: DI ISI | Z29: DI ISI | AB29: DI ISI | AD29: DI ISI | AF29: DI ISI | AH29: DI ISI | AJ29: DI ISI | AK29: 1 | AL29: 1 | AM29: TK | AN29: TK DEWI SARTIKA KEBONSARI | AO29: SARIREJO I | AP29: 8 | AQ29: 2 | AR29: KEBONSARI | AS29: 3508210306150001 | AW29: 111235080166 | AX29: 19 | AY29: 111235080166194746
A30: 27 | C30: 4747 | D30: RISA AULIA PUTRI | E30: P | F30: LUMAJANG | G30: 2012-12-25 | H30: =DATEDIF(G30,PETUNJUK!$H$10,"y") -> 6 | I30: 6 | J30: 3508216512120001 | K30: SLAMET | L30: 350213006830017 | M30: 1983-06-30 | N30: ROKHIMI | O30: 3508215705750004 | P30: 1975-02-22 | Q30: 15 | R30: Buruh | S30: 01 | T30: Tdk Bekerja | U30: - | V30: - | X30: DI ISI | Z30: DI ISI | AB30: DI ISI | AD30: DI ISI | AF30: DI ISI | AH30: DI ISI | AJ30: DI ISI | AK30: 3 | AL30: 1 | AM30: TK | AN30: TK DHARMA WANITA LABRUK KIDUL | AO30: KRAJAN TIMUR | AP30: 21 | AQ30: 4 | AR30: LABRUK KIDUL | AS30: 3508211204120006 | AU30: 082331471870 | AW30: 111235080166 | AX30: 19 | AY30: 111235080166194747
A31: 28 | C31: 4748 | D31: ROBI'AH MIZARIYAH | E31: L | F31: LUMAJANG | G31: 2013-03-11 | H31: =DATEDIF(G31,PETUNJUK!$H$10,"y") -> 6 | I31: 6 | J31: 3508215103130001 | K31: NURUL ISLAH | L31: 3508212007670003 | M31: 1967-07-20 | N31: IDA NURHAYATI | O31: 3509215512770001 | P31: 1977-12-15 | Q31: 03 | R31: PNS | S31: 05 | T31: Guru/Dosen | U31: DIISI | V31: - | X31: DI ISI | Z31: DI ISI | AB31: DI ISI | AD31: DI ISI | AF31: DI ISI | AH31: DI ISI | AJ31: DI ISI | AK31: 3 | AL31: 1 | AM31: TK | AN31: TK DHARMA WANITA LABRUK KIDUL | AO31: SARIREJO I | AP31: 5 | AQ31: 1 | AR31: KEBONSARI | AS31: 3508210907090008 | AU31: 085234431050 | AW31: 111235080166 | AX31: 19 | AY31: 111235080166194748
A32: 29 | C32: 4749 | D32: WILDAN PRATAMA | E32: L | F32: LUMAJANG | G32: 2012-10-08 | H32: =DATEDIF(G32,PETUNJUK!$H$10,"y") -> 6 | I32: 6 | J32: 3508212309150002 | K32: SHOLEHUDDIN | L32: 3509060504860007 | M32: 1986-04-05 | N32: NURUL FITRIYA | O32: 3508214205900001 | P32: 1990-05-02 | Q32: 07 | R32: Pengusaha/Wiraswasta | S32: 12 | T32: Pedagang | U32: - | V32: - | X32: DI ISI | Z32: DI ISI | AB32: DI ISI | AD32: DI ISI | AF32: DI ISI | AH32: DI ISI | AJ32: DI ISI | AK32: 1 | AL32: 1 | AM32: TK | AN32: TK MUSLIMAT NU 01 KEBONSARI | AO32: SARIREJO I | AP32: 3 | AQ32: 1 | AR32: KEBONSARI | AS32: 3508210809120001 | AU32: 081358247780 | AW32: 111235080166 | AX32: 19 | AY32: 111235080166194749
A33: 30 | C33: 4750 | D33: YUNMA SYAFA AZZAHRA | E33: P | F33: LUMAJANG | G33: 2012-06-17 | H33: =DATEDIF(G33,PETUNJUK!$H$10,"y") -> 7 | I33: 7 | J33: 3508215706120001 | K33: MOHAMMAD YUNUS | N33: FATIMATUL ZAHRO | R33: DI ISI | U33: - | V33: - | X33: DI ISI | Z33: DI ISI | AB33: DI ISI | AD33: DI ISI | AF33: DI ISI | AH33: DI ISI | AJ33: DI ISI | AK33: 0 | AL33: 5 | AM33: Langsung dari Ortu | AW33: 111235080166 | AX33: 19 | AY33: 111235080166194750
A34: =IF(D34="","",COUNTA($D$4:D34)) -> 
A35: =IF(D35="","",COUNTA($D$4:D35)) -> 
A36: =IF(D36="","",COUNTA($D$4:D36)) -> 

Sheet 1B
A1: 1B | B1: NISN | C1: INDUK | D1: NAMA SISWA | E1: L/P | F1: Tempat, Tanggal Lahir | H1: Umur (RUMUS) | I1: Umur (TEXT) | J1: NOMOR INDUK KEPENDUDUKAN (NIK) SISWA | K1: tentang ORANG TUA | Q1: PEKERJAAN (DISERTAI KODE EMIS 2016) | U1: Jika PNS | V1: Jika TNI | W1: JENJANG PENDIDIKAN (DISERTAI KODE EMIS 2016) | AA1: Penghasilan Perbulan (DISERTAI KODE EMIS 2016) | AC1: Hobi (DISERTAI KODE EMIS 2016) | AE1: Cita-cita (DISERTAI KODE EMIS 2016) | AG1: Jarak Rumah-Sekolah | AI1: Transportasi yg dipakai | AK1: Jml Saudara | AL1: Asal Sekolah Sebelumnya | AO1: Alamat | AS1: NO. KARTU KELUARGA | AU1: NO.HP/ | AV1: TELEPON V2 | AW1: NSM | AX1: TAHUN MASUK | AY1: NO INDUK VERSI EMIS | AZ1: KIP/PIP (INDONESIA PINTAR) | BE1: KESEHATAN TINGGI BADAN (cm) & BERAT BADAN (kg)
K2: Ayah | L2: NIK | M2: Tgl Lahir | N2: Ibu | O2: NIK | P2: Tgl Lahir | Q2: Ayah | S2: Ibu | U2: Gol. | V2: Pangkat | W2: Ayah | Y2: Ibu | AL2: KODE | AN2: ASAL TK/RA | AO2: JL./DUSUN | AP2: RT. | AQ2: RW. | AR2: Desa | AU2: TELEPON | AZ2: Nomor KIP | BA2: Nomor KKS | BB2: Nomor KPS | BC2: Nomor PKH | BD2: Kriteria lain | BE2: TB1 | BF2: TB2 | BG2: TB3 | BH2: TB4 | BI2: TB5 | BJ2: TB6 | BK2: BB1 | BL2: BB2 | BM2: BB3 | BN2: BB4 | BO2: BB5 | BP2: BB6
A3: 1 | B3: 2 | C3: 3 | D3: 4 | E3: 5 | F3: 6 | G3: 7 | H3: 8 | K3: 9 | L3: 10 | M3: 11 | N3: 12 | O3: 13 | P3: 14 | Q3: 15 | S3: 16 | U3: 17 | V3: 18 | W3: 19 | Y3: 20 | AA3: 21 | AC3: 22 | AE3: 23 | AG3: 24 | AI3: 25 | AK3: 26 | AL3: 27 | AN3: 28 | AO3: 29 | AP3: 30 | AQ3: 31 | AR3: 32 | AS3: 33 | AT3: 34 | AU3: 35 | AV3: 36 | AW3: 37 | AX3: 38 | AY3: 39 | AZ3: 40 | BA3: 41 | BB3: 42 | BC3: 43 | BD3: 44 | BE3: 45 | BF3: 46 | BG3: 47 | BH3: 48 | BI3: 49 | BJ3: 50 | BK3: 51 | BL3: 52 | BM3: 53 | BN3: 54 | BO3: 55 | BP3: 56
A4: 1 | C4: 4751 | D4: AHMAD AZHAR HALIM ZARDANI | E4: L | F4: LAMONGAN | G4: 2012-06-21 | H4: =DATEDIF(G4,PETUNJUK!$H$10,"y") -> 7 | I4: =_xlfn.NUMBERVALUE(H4) -> 7 | J4: 3524202106120002 | K4: SUDARNO | L4: 3524201401790002 | M4: 1979-01-14 | N4: SITI SUWAIBAH | O4: 3524207005850002 | P4: 1985-05-30 | Q4: 06 | R4: =IF(Q4="01","Tdk Bekerja",IF(Q4="02","Pensiunan/Alm.",IF(Q4="03","PNS",IF(Q4="04","TNI/POLRI",IF(Q4="05","Guru/Dosen",IF(Q4="06","Peg.Swasta",IF(Q4="07","Pengusaha/Wiraswasta",IF(Q4="08","Pengacara/Hakim/Jaksa/Notaris",IF(Q4="09","Seniman/Sejenis",IF(Q4="10","Dokter/Sejenis",IF(Q4="11","Penerbangan",IF(Q4="12","Pedagang",IF(Q4="13","Petani/ternak",IF(Q4="14","Nelayan",IF(Q4="15","Buruh",IF(Q4="16","Angkutan",IF(Q4="17","PolitikusS",IF(Q4="18","Lainnya","DI ISI")))))))))))))))))) -> Peg.Swasta | S4: 07 | T4: =IF(S4="01","Tdk Bekerja",IF(S4="02","Pensiunan/Alm.",IF(S4="03","PNS",IF(S4="04","TNI/POLRI",IF(S4="05","Guru/Dosen",IF(S4="06","Peg.Swasta",IF(S4="07","Pengusaha/Wiraswasta",IF(S4="08","Pengacara/Hakim/Jaksa/Notaris",IF(S4="09","Seniman/Sejenis",IF(S4="10","Dokter/Sejenis",IF(S4="11","Penerbangan",IF(S4="12","Pedagang",IF(S4="13","Petani/ternak",IF(S4="14","Nelayan",IF(S4="15","Buruh",IF(S4="16","Angkutan",IF(S4="17","PolitikusS",IF(S4="18","Lainnya","DI ISI")))))))))))))))))) -> Pengusaha/Wiraswasta | U4: =IF(Q4="03","DIISI","-") -> - | V4: =IF(S4="03","DIISI","-") -> - | X4: =IF(W4="0","Tdk Pnddkan Formal",IF(W4="1","<=SLTP",IF(W4="2","SLTA",IF(W4="3","D1",IF(W4="4","D2",IF(W4="5","D3",IF(W4="6","D4",IF(W4="7","S1",IF(W4="8","S2",IF(W4="9","S3","DI ISI")))))))))) -> DI ISI | Z4: =IF(Y4="0","Tdk Pnddkan Formal",IF(Y4="1","<=SLTP",IF(Y4="2","SLTA",IF(Y4="3","D1",IF(Y4="4","D2",IF(Y4="5","D3",IF(Y4="6","D4",IF(Y4="7","S1",IF(Y4="8","S2",IF(Y4="9","S3","DI ISI")))))))))) -> DI ISI | AB4: =IF(AA4="1","<= Rp.500.000",IF(AA4="2","Rp 500.001 - Rp 1.000.000",IF(AA4="3","Rp 1.000.001 - Rp 2.000.000",IF(AA4="4","Rp 2.000.001 - Rp 3.000.000",IF(AA4="5","Rp 3.000.001 - Rp 5.000.000",IF(AA4="6","> Rp 5.000.000","DI ISI")))))) -> DI ISI | AD4: =IF(AC4="1","Olahraga",IF(AC4="2","Kesenian",IF(AC4="3","Membaca",IF(AC4="4","Menulis",IF(AC4="5","Travelling",IF(AC4="6","Lainnya","DI ISI")))))) -> DI ISI | AF4: =IF(AE4="1","PNS",IF(AE4="2","TNI/Polri",IF(AE4="3","Guru/Dosen",IF(AE4="4","Dokter",IF(AE4="5","Politikus",IF(AE4="6","Wiraswasta",IF(AE4="7","Pekerja Seni/Sejenis",IF(AE4="8","Lainnya","DI ISI")))))))) -> DI ISI | AH4: =IF(AG4="1","< 1 Km",IF(AG4="2","1-3 Km",IF(AG4="3","3-5 Km",IF(AG4="4","5-10 Km",IF(AG4="5","> 10 Km","DI ISI"))))) -> DI ISI | AJ4: =IF(AI4="1","Jalan Kaki",IF(AI4="2","Sepeda",IF(AI4="3","motor",IF(AI4="4","Mobil Pribadi",IF(AI4="5","Antar/Jemput",IF(AI4="6","Angkutan",IF(AI4="7","Lainnya","DI ISI"))))))) -> DI ISI | AK4: 1 | AL4: 1 | AM4: =IF(AL4="1","TK",IF(AL4="2","RA",IF(AL4="3","PAUD",IF(AL4="4","TKLB",IF(AL4="5","Langsung dari Ortu","DI ISI"))))) -> TK | AN4: TK DEWI SARTIKA KEBONSARI | AO4: MUNGLI | AP4: 1 | AQ4: 2 | AR4: MUNGLI | AS4: 3524202009120003 | AW4: 111235080166 | AX4: 19 | AY4: =AW4&AX4&C4 -> 111235080166194751
A5: 2 | C5: 4752 | D5: ANGGITA FEBRIYANTI | E5: P | F5: LUMAJANG | G5: 2012-02-11 | H5: =DATEDIF(G5,PETUNJUK!$H$10,"y") -> 7 | I5: 7 | J5: 3508215102120001 | L5: 3508217006750015 | M5: 1975-06-30 | N5: SUMININGSIH | O5: 3508216703720003 | P5: 1972-03-27 | R5: DI ISI | S5: 12 | T5: Pedagang | U5: =IF(Q5="03","DIISI","-") -> - | V5: =IF(S5="03","DIISI","-") -> - | X5: =IF(W5="0","Tdk Pnddkan Formal",IF(W5="1","<=SLTP",IF(W5="2","SLTA",IF(W5="3","D1",IF(W5="4","D2",IF(W5="5","D3",IF(W5="6","D4",IF(W5="7","S1",IF(W5="8","S2",IF(W5="9","S3","DI ISI")))))))))) -> DI ISI | Z5: =IF(Y5="0","Tdk Pnddkan Formal",IF(Y5="1","<=SLTP",IF(Y5="2","SLTA",IF(Y5="3","D1",IF(Y5="4","D2",IF(Y5="5","D3",IF(Y5="6","D4",IF(Y5="7","S1",IF(Y5="8","S2",IF(Y5="9","S3","DI ISI")))))))))) -> DI ISI | AB5: =IF(AA5="1","<= Rp.500.000",IF(AA5="2","Rp 500.001 - Rp 1.000.000",IF(AA5="3","Rp 1.000.001 - Rp 2.000.000",IF(AA5="4","Rp 2.000.001 - Rp 3.000.000",IF(AA5="5","Rp 3.000.001 - Rp 5.000.000",IF(AA5="6","> Rp 5.000.000","DI ISI")))))) -> DI ISI | AD5: =IF(AC5="1","Olahraga",IF(AC5="2","Kesenian",IF(AC5="3","Membaca",IF(AC5="4","Menulis",IF(AC5="5","Travelling",IF(AC5="6","Lainnya","DI ISI")))))) -> DI ISI | AF5: =IF(AE5="1","PNS",IF(AE5="2","TNI/Polri",IF(AE5="3","Guru/Dosen",IF(AE5="4","Dokter",IF(AE5="5","Politikus",IF(AE5="6","Wiraswasta",IF(AE5="7","Pekerja Seni/Sejenis",IF(AE5="8","Lainnya","DI ISI")))))))) -> DI ISI | AH5: =IF(AG5="1","< 1 Km",IF(AG5="2","1-3 Km",IF(AG5="3","3-5 Km",IF(AG5="4","5-10 Km",IF(AG5="5","> 10 Km","DI ISI"))))) -> DI ISI | AJ5: =IF(AI5="1","Jalan Kaki",IF(AI5="2","Sepeda",IF(AI5="3","motor",IF(AI5="4","Mobil Pribadi",IF(AI5="5","Antar/Jemput",IF(AI5="6","Angkutan",IF(AI5="7","Lainnya","DI ISI"))))))) -> DI ISI | AK5: 0 | AL5: 1 | AM5: =IF(AL5="1","TK",IF(AL5="2","RA",IF(AL5="3","PAUD",IF(AL5="4","TKLB",IF(AL5="5","Langsung dari Ortu","DI ISI"))))) -> TK | AN5: TK AL-HIDAYAH SUMBERSUKO | AO5: SUKO II | AP5: 3 | AQ5: 2 | AR5: SUMBERSUKO | AS5: 3508211504090008 | AU5: 085334860483 | AW5: 111235080166 | AX5: 19 | AY5: =AW5&AX5&C5 -> 111235080166194752
A6: 3 | C6: 4753 | D6: ASYIFA NUR HIDAYAH | E6: P | F6: LUMAJANG | G6: 2012-09-29 | H6: =DATEDIF(G6,PETUNJUK!$H$10,"y") -> 6 | I6: 6 | J6: 3508216909120001 | K6: SUPENO | L6: 3508213008800002 | M6: 1980-08-30 | N6: KHUSRIN FARIDA | O6: 3508217107840001 | P6: 1984-07-31 | Q6: 15 | R6: Buruh | S6: 15 | T6: Buruh | U6: - | V6: - | X6: DI ISI | Z6: DI ISI | AB6: DI ISI | AD6: DI ISI | AF6: DI ISI | AH6: DI ISI | AJ6: DI ISI | AK6: 0 | AL6: 1 | AM6: =IF(AL6="1","TK",IF(AL6="2","RA",IF(AL6="3","PAUD",IF(AL6="4","TKLB",IF(AL6="5","Langsung dari Ortu","DI ISI"))))) -> TK | AN6: TK TARBIYATUSH SHIBYAN | AO6: KRAJAN BARAT | AP6: 41 | AQ6: 6 | AR6: LABRUK KIDUL | AS6: 3508211502100002 | AW6: 111235080166 | AX6: 19 | AY6: 111235080166194753
A7: 4 | C7: 4754 | D7: AULIA ADINDA DWI RAMADHANI | E7: P | F7: LUMAJANG | G7: 2012-08-08 | H7: =DATEDIF(G7,PETUNJUK!$H$10,"y") -> 6 | I7: 6 | J7: 3508214808120002 | K7: SARONI | L7: 3508212905800001 | M7: 1983-05-29 | N7: YUYUN DWI HANDAYANI | O7: 3508214806830004 | P7: 1983-06-08 | Q7: 07 | R7: Pengusaha/Wiraswasta | S7: 01 | T7: Tdk Bekerja | U7: - | V7: - | X7: DI ISI | Z7: DI ISI | AB7: DI ISI | AD7: DI ISI | AF7: DI ISI | AH7: DI ISI | AJ7: DI ISI | AK7: 1 | AL7: 1 | AM7: =IF(AL7="1","TK",IF(AL7="2","RA",IF(AL7="3","PAUD",IF(AL7="4","TKLB",IF(AL7="5","Langsung dari Ortu","DI ISI"))))) -> TK | AN7: TK MUSLIMAT NU 01 KEBONSARI | AO7: KRAJAN BARAT | AP7: 45 | AQ7: 6 | AR7: LABRUK KIDUL | AS7: 3508210102060001 | AU7: 082245582581 | AW7: 111235080166 | AX7: 19 | AY7: 111235080166194754
A8: 5 | C8: 4755 | D8: DEWA RIZKY DANUWARDA | E8: L | F8: LUMAJANG | G8: 2013-01-26 | H8: =DATEDIF(G8,PETUNJUK!$H$10,"y") -> 6 | I8: 6 | J8: 3508212601130001 | K8: BAYU FACHRUL YUSIANGGA | L8: 3508102207880002 | M8: 1988-07-22 | N8: RATIH PUTRI SUNDAWI | O8: 3508216808900001 | P8: 1990-08-28 | Q8: 07 | R8: Pengusaha/Wiraswasta | S8: 01 | T8: Tdk Bekerja | U8: - | V8: - | X8: DI ISI | Z8: DI ISI | AB8: DI ISI | AD8: DI ISI | AF8: DI ISI | AH8: DI ISI | AJ8: DI ISI | AK8: 1 | AL8: 1 | AM8: =IF(AL8="1","TK",IF(AL8="2","RA",IF(AL8="3","PAUD",IF(AL8="4","TKLB",IF(AL8="5","Langsung dari Ortu","DI ISI"))))) -> TK | AN8: TK DHARMA WANITA GRATI 01 | AO8: KRAJAN | AP8: 13 | AQ8: 4 | AR8: GRATI | AS8: 3508210308120003 | AU8: 085756973451 | AW8: 111235080166 | AX8: 19 | AY8: 111235080166194755
A9: 6 | C9: 4756 | D9: DIAH OLIVIA | E9: P | F9: MATARAM | G9: 2012-10-22 | H9: =DATEDIF(G9,PETUNJUK!$H$10,"y") -> 6 | I9: 6 | K9: EDY SURYADI | N9: MISNAH | Q9: 16 | R9: Angkutan | S9: 01 | T9: Tdk Bekerja | U9: - | V9: - | X9: DI ISI | Z9: DI ISI | AB9: DI ISI | AD9: DI ISI | AF9: DI ISI | AH9: DI ISI | AJ9: DI ISI | AL9: 1 | AM9: =IF(AL9="1","TK",IF(AL9="2","RA",IF(AL9="3","PAUD",IF(AL9="4","TKLB",IF(AL9="5","Langsung dari Ortu","DI ISI"))))) -> TK | AN9: TK MUSLIMAT NU 01 KEBONSARI | AW9: 111235080166 | AX9: 19 | AY9: 111235080166194756
A10: 7 | C10: 4757 | D10: HANINDA AYU WULANSARI | E10: P | F10: LUMAJANG | G10: 2012-10-05 | H10: =DATEDIF(G10,PETUNJUK!$H$10,"y") -> 6 | I10: 6 | J10: 3508214510120001 | K10: M. SUWAJI | L10: 3508211203790001 | M10: 1979-03-12 | N10: UMI MAIROH | O10: 3508214801830002 | P10: 1983-01-08 | Q10: 07 | R10: Pengusaha/Wiraswasta | S10: 01 | T10: Tdk Bekerja | U10: - | V10: - | X10: DI ISI | Z10: DI ISI | AB10: DI ISI | AD10: DI ISI | AF10: DI ISI | AH10: DI ISI | AJ10: DI ISI | AK10: 1 | AL10: 1 | AM10: TK | AN10: TK DHARMA WANITA LABRUK KIDUL | AO10: KRAJAN TIMUR | AP10: 8 | AQ10: 2 | AR10: LABRUK KIDUL | AS10: 2508212809090019 | AU10: 082301444705 | AW10: 111235080166 | AX10: 19 | AY10: 111235080166194757
A11: 8 | C11: 4758 | D11: KASYIFA HANUM MUMTAAZAH | E11: P | F11: LUMAJANG | G11: 2012-08-14 | H11: =DATEDIF(G11,PETUNJUK!$H$10,"y") -> 6 | I11: 6 | J11: 3508045408120001 | K11: AINUL YAQIN | L11: 3508042406700003 | M11: 1970-06-24 | N11: LINDA SURYANI | O11: 3508044204800009 | P11: 1980-04-02 | Q11: 06 | R11: Peg.Swasta | S11: 06 | T11: Peg.Swasta | U11: - | V11: - | X11: DI ISI | Z11: DI ISI | AB11: DI ISI | AD11: DI ISI | AF11: DI ISI | AH11: DI ISI | AJ11: DI ISI | AK11: 0 | AL11: 1 | AM11: TK | AN11: TK AL-HIDAYAH SUMBERSUKO | AO11: LEDOK | AP11: 1 | AQ11: 1 | AR11: PASIRIAN | AS11: 3508042108051165 | AU11: 082352585877 | AW11: 111235080166 | AX11: 19 | AY11: 111235080166194758
A12: 9 | C12: 4759 | D12: LAILATUL MAGHFIROH | E12: P | F12: LUMAJANG | G12: 2012-07-07 | H12: =DATEDIF(G12,PETUNJUK!$H$10,"y") -> 7 | I12: 7 | J12: 3508214707120001 | K12: MUHAMAD SHOUFI | L12: 3508210304750004 | M12: 1975-04-30 | N12: SUNARSIH WINARNI | O12: 3508214501810001 | P12: 1996-10-05 | Q12: 06 | R12: Peg.Swasta | S12: 06 | T12: Peg.Swasta | U12: - | V12: - | X12: DI ISI | Z12: DI ISI | AB12: DI ISI | AD12: DI ISI | AF12: DI ISI | AH12: DI ISI | AJ12: DI ISI | AK12: 0 | AL12: 2 | AM12: RA | AN12: RA MUSLIMAT NU 26 MOJOSARI | AO12: KRAJAN BARAT | AP12: 43 | AQ12: 6 | AR12: LABRUK KIDUL | AS12: 3508211207120008 | AU12: 082339743965 | AW12: 111235080166 | AX12: 19 | AY12: 111235080166194759
A13: 10 | C13: 4760 | D13: LEONELL CHAKRA AMINATA | E13: L | F13: LUMAJANG | G13: 2013-03-18 | H13: =DATEDIF(G13,PETUNJUK!$H$10,"y") -> 6 | I13: 6 | J13: 3508211803130001 | K13: AMIN KISWANTO | L13: 3508053107880001 | M13: 1988-07-31 | N13: TRI SISWAYUNI | O13: 3508217101760001 | P13: 1976-01-31 | Q13: 06 | R13: Peg.Swasta | S13: 01 | T13: Tdk Bekerja | U13: - | V13: - | X13: DI ISI | Z13: DI ISI | AB13: DI ISI | AD13: DI ISI | AF13: DI ISI | AH13: DI ISI | AJ13: DI ISI | AK13: 0 | AL13: 1 | AM13: TK | AN13: TK MUSLIMAT NU 01 KEBONSARI | AO13: SUKO I | AP13: 4 | AQ13: 1 | AR13: SUMBERSUKO | AS13: 3508210304130003 | AU13: 081559560666 | AW13: 111235080166 | AX13: 19 | AY13: 111235080166194760
A14: 11 | C14: 4761 | D14: MEYSHA SALSABILA PUTRI | E14: P | F14: LUMAJANG | G14: 2012-05-11 | H14: =DATEDIF(G14,PETUNJUK!$H$10,"y") -> 7 | I14: 7 | J14: 3508215105120001 | K14: SUYANTO | L14: 3508212106780001 | M14: 1976-06-21 | N14: SITI MARWIYAH | O14: 350821450800003 | P14: 1980-05-05 | Q14: 16 | R14: Angkutan | S14: 07 | T14: Pengusaha/Wiraswasta | U14: - | V14: - | X14: DI ISI | Z14: DI ISI | AB14: DI ISI | AD14: DI ISI | AF14: DI ISI | AH14: DI ISI | AJ14: DI ISI | AK14: 1 | AL14: 1 | AM14: TK | AN14: TK TARBIYATUSH SHIBYAN | AO14: GEDONGSARI | AP14: 52 | AQ14: 8 | AR14: LABRUK KIDUL | AS14: 3508212809090028 | AU14: 085745026120 | AW14: 111235080166 | AX14: 19 | AY14: 111235080166194761
A15: 12 | C15: 4762 | D15: MOCHAMMAD HAFIZ OKTAVIAN | E15: L | F15: LUMAJANG | G15: 2012-10-20 | H15: =DATEDIF(G15,PETUNJUK!$H$10,"y") -> 6 | I15: 6 | J15: 3508122010120001 | K15: ENDRA SUSIANTO | L15: 3508120109880003 | M15: 1988-09-01 | N15: AYU LESTARI | O15: 3508124403960003 | P15: 1996-03-04 | Q15: 07 | R15: Pengusaha/Wiraswasta | S15: 01 | T15: Tdk Bekerja | U15: - | V15: - | X15: DI ISI | Z15: DI ISI | AB15: DI ISI | AD15: DI ISI | AF15: DI ISI | AH15: DI ISI | AJ15: DI ISI | AK15: 0 | AL15: 1 | AM15: TK | AN15: TK DEWI SARTIKA KEBONSARI | AO15: DUSUN II SEUMBEREJO | AP15: 1 | AQ15: 9 | AR15: SENDURO | AS15: 3508122910120001 | AW15: 111235080166 | AX15: 19 | AY15: 111235080166194762
A16: 13 | C16: 4763 | D16: MUHAMMAD AGUNG SAKTI SAIFUL RIDHO | E16: L | F16: LUMAJANG | G16: 2012-03-26 | H16: =DATEDIF(G16,PETUNJUK!$H$10,"y") -> 7 | I16: 7 | J16: 3508212603120001 | K16: SUHADAK | L16: 3508211203700002 | M16: 1970-03-12 | N16: NURUL MASLAKHA | O16: 3508216308740001 | P16: 1974-08-23 | Q16: 16 | R16: Angkutan | S16: 01 | T16: Tdk Bekerja | U16: - | V16: - | X16: DI ISI | Z16: DI ISI | AB16: DI ISI | AD16: DI ISI | AF16: DI ISI | AH16: DI ISI | AJ16: DI ISI | AK16: 1 | AL16: 1 | AM16: TK | AN16: TK DHARMA WANITA LABRUK KIDUL | AO16: GEDONGSARI | AP16: 57 | AQ16: 8 | AR16: LABRUK KIDUL | AS16: 3508212108050244 | AW16: 111235080166 | AX16: 19 | AY16: 111235080166194763
A17: 14 | C17: 4764 | D17: MUHAMMAD ALFA JUANDRI | E17: L | F17: LUMAJANG | G17: 2012-07-11 | H17: =DATEDIF(G17,PETUNJUK!$H$10,"y") -> 7 | I17: 7 | J17: 3508211101120002 | K17: ANTON KUEANAN | L17: 5314031810820002 | M17: 1982-10-12 | N17: NURISAH | O17: 3508215409790004 | P17: 1979-09-14 | Q17: 07 | R17: Pengusaha/Wiraswasta | S17: 01 | T17: Tdk Bekerja | U17: - | V17: - | X17: DI ISI | Z17: DI ISI | AB17: DI ISI | AD17: DI ISI | AF17: DI ISI | AH17: DI ISI | AJ17: DI ISI | AK17: 0 | AL17: 1 | AM17: TK | AN17: TK MUSLIMAT NU 01 KEBONSARI | AO17: SUKO I | AP17: 3 | AQ17: 1 | AR17: SUMBERSUKO | AS17: 3508211101170005 | AU17: 081336031141 | AW17: 111235080166 | AX17: 19 | AY17: 111235080166194764
A18: 15 | C18: 4765 | D18: MUHAMMAD IKMAL EKA SEPTIANTO | E18: L | F18: LUMAJANG | G18: 2012-09-05 | H18: =DATEDIF(G18,PETUNJUK!$H$10,"y") -> 6 | I18: 6 | J18: 3508210509120002 | K18: DWI HARISUSANTO | L18: 3508102511860002 | M18: 1986-11-25 | N18: ROAINA INAYATUL ILLAH | O18: 3508214604360002 | P18: 1996-04-06 | Q18: 06 | R18: Peg.Swasta | S18: 01 | T18: Tdk Bekerja | U18: - | V18: - | X18: DI ISI | Z18: DI ISI | AB18: DI ISI | AD18: DI ISI | AF18: DI ISI | AH18: DI ISI | AJ18: DI ISI | AK18: 0 | AL18: 1 | AM18: TK | AN18: TK DHARMA WANITA LABRUK KIDUL | AO18: KRAJAN TIMUR | AP18: 24 | AQ18: 4 | AR18: LABRUK KIDUL | AS18: 3508212510120002 | AU18: 082338086633 | AW18: 111235080166 | AX18: 19 | AY18: 111235080166194765
A19: 16 | C19: 4766 | D19: MUHAMMAD KAVIN BILBAR EFENDI | E19: L | F19: LUMAJANG | G19: 2012-05-03 | H19: =DATEDIF(G19,PETUNJUK!$H$10,"y") -> 7 | I19: 7 | J19: 3508210305120001 | K19: MASUDI EFENDI | L19: 3508210201820003 | M19: 1982-01-02 | N19: AGUSTIM MUKARROMAH | O19: 3508210305120001 | P19: 1984-08-17 | Q19: 06 | R19: Peg.Swasta | S19: 05 | T19: Guru/Dosen | U19: - | V19: - | X19: DI ISI | Z19: DI ISI | AB19: DI ISI | AD19: DI ISI | AF19: DI ISI | AH19: DI ISI | AJ19: DI ISI | AK19: 0 | AL19: 1 | AM19: TK | AN19: TK MUSLIMAT NU 01 KEBONSARI | AO19: SARIREJO I | AP19: 15 | AQ19: 3 | AR19: KEBONSARI | AS19: 3508210705090001 | AU19: 085258735563 | AW19: 111235080166 | AX19: 19 | AY19: 111235080166194766
A20: 17 | C20: 4767 | D20: MUHAMMAD RAFAEL ALHAFID | E20: L | F20: LUMAJANG | G20: 2012-09-17 | H20: =DATEDIF(G20,PETUNJUK!$H$10,"y") -> 6 | I20: 6 | J20: 3508211709120002 | K20: YOYOK AGOK SALEM | L20: 3508210808910002 | M20: 1991-08-08 | N20: FENI ANDRIANI | O20: 3508215904920002 | P20: 1992-04-19 | Q20: 16 | R20: Angkutan | S20: 01 | T20: Tdk Bekerja | U20: - | V20: - | X20: DI ISI | Z20: DI ISI | AB20: DI ISI | AD20: DI ISI | AF20: DI ISI | AH20: DI ISI | AJ20: DI ISI | AK20: 0 | AL20: 1 | AM20: TK | AN20: TK MUSLIMAT NU 01 KEBONSARI | AO20: KRAJAN TIMUR | AP20: 17 | AQ20: 3 | AR20: LABRUK KIDUL | AS20: 3508210603130001 | AU20: 085608763529 | AV20: 087805985356 | AW20: 111235080166 | AX20: 19 | AY20: 111235080166194767
A21: 18 | C21: 4768 | D21: MUKHAMAD FAREL DERMAWAN | E21: L | F21: LUMAJANG | G21: 2012-12-05 | H21: =DATEDIF(G21,PETUNJUK!$H$10,"y") -> 6 | I21: 6 | J21: 3508210512120001 | K21: ACHMAD YUSUF | L21: 3508100202740005 | M21: 1974-02-02 | N21: LILIK MUTIATUL KHOIROH | O21: 3508216711830001 | P21: 1983-11-27 | Q21: 07 | R21: Pengusaha/Wiraswasta | S21: 01 | T21: Tdk Bekerja | U21: - | V21: - | X21: DI ISI | Z21: DI ISI | AB21: DI ISI | AD21: DI ISI | AF21: DI ISI | AH21: DI ISI | AJ21: DI ISI | AK21: 2 | AL21: 5 | AM21: Langsung dari Ortu | AO21: KRAJAN TIMUR | AP21: 21 | AQ21: 4 | AR21: LABRUK KIDUL | AS21: 3508213004130001 | AW21: 111235080166 | AX21: 19 | AY21: 111235080166194768
A22: 19 | C22: 4769 | D22: NOVIYA NAYLA RAMADHANY | E22: P | F22: LUMAJANG | G22: 2012-07-29 | H22: =DATEDIF(G22,PETUNJUK!$H$10,"y") -> 6 | I22: 6 | J22: 3508216907120001 | K22: MUHAMMAD AFANDI | L22: 3508212609870002 | M22: 1987-09-26 | N22: MIRNAWATI | O22: 3508216405900003 | P22: 1990-05-24 | Q22: 07 | R22: Pengusaha/Wiraswasta | S22: 07 | T22: Pengusaha/Wiraswasta | U22: - | V22: - | X22: DI ISI | Z22: DI ISI | AB22: DI ISI | AD22: DI ISI | AF22: DI ISI | AH22: DI ISI | AJ22: DI ISI | AK22: 0 | AL22: 1 | AM22: TK | AN22: TK TARBIYATUSH SHIBYAN | AO22: KRAJAN BARAT | AP22: 42 | AQ22: 6 | AR22: LABRUK KIDUL | AS22: 3508210308120007 | AW22: 111235080166 | AX22: 19 | AY22: 111235080166194769
A23: 20 | C23: 4770 | D23: NUR FITRIANI GHOVIROH | E23: P | F23: LUMAJANG | G23: 2012-05-18 | H23: =DATEDIF(G23,PETUNJUK!$H$10,"y") -> 7 | I23: 7 | J23: 3508215805120002 | K23: MUHAMMAD GHUFRON | L23: 3508211107850002 | M23: 1985-07-11 | N23: NOVIA RAHMAWATI | O23: 3508104911890003 | P23: 1989-11-09 | Q23: 06 | R23: Peg.Swasta | S23: 01 | T23: Tdk Bekerja | U23: - | V23: - | X23: DI ISI | Z23: DI ISI | AB23: DI ISI | AD23: DI ISI | AF23: DI ISI | AH23: DI ISI | AJ23: DI ISI | AK23: 0 | AL23: 1 | AM23: TK | AN23: TK MUSLIMAT NU 01 KEBONSARI | AO23: KRAJAN TIMUR | AP23: 18 | AQ23: 3 | AR23: LABRUK KIDUL | AS23: 3508211407120002 | AU23: 082330793678 | AW23: 111235080166 | AX23: 19 | AY23: 111235080166194770
A24: 21 | C24: 4771 | D24: NURIDA APRILIANI | E24: P | F24: LUMAJANG | G24: 2012-04-09 | H24: =DATEDIF(G24,PETUNJUK!$H$10,"y") -> 7 | I24: 7 | J24: 3508214904120001 | K24: DODIK KHOIRUL SOLEH | L24: 3508210504800001 | M24: 1980-04-05 | N24: IDIL ADHA | O24: 3508214609840001 | P24: 1984-09-06 | Q24: 07 | R24: Pengusaha/Wiraswasta | S24: 01 | T24: Tdk Bekerja | U24: - | V24: - | X24: DI ISI | Z24: DI ISI | AB24: DI ISI | AD24: DI ISI | AF24: DI ISI | AH24: DI ISI | AJ24: DI ISI | AK24: 2 | AL24: 1 | AM24: TK | AN24: TK MUSLIMAT NU 01 KEBONSARI | AO24: GEDONGSARI | AP24: 56 | AQ24: 8 | AR24: LABRUK KIDUL | AS24: 3508211010090142 | AU24: 082335915292 | AW24: 111235080166 | AX24: 19 | AY24: 111235080166194771
A25: 22 | C25: 4772 | D25: PUTRA AZKA KHAIZAN | E25: L | F25: LUMAJANG | G25: 2013-05-17 | H25: =DATEDIF(G25,PETUNJUK!$H$10,"y") -> 6 | I25: 6 | J25: 3508211705130001 | K25: PUJI WAHYU KURNIAWAN | L25: 3508211206840001 | M25: 1984-06-12 | N25: RATIH RATNASARI | O25: 3508126501860001 | P25: 1984-01-25 | Q25: 05 | R25: Guru/Dosen | S25: 05 | T25: Guru/Dosen | U25: - | V25: - | X25: DI ISI | Z25: DI ISI | AB25: DI ISI | AD25: DI ISI | AF25: DI ISI | AH25: DI ISI | AJ25: DI ISI | AK25: 0 | AL25: 1 | AM25: TK | AN25: TK DEWI SARTIKA KEBONSARI | AO25: SARIREJO I | AP25: 2 | AQ25: 1 | AR25: KEBONSARI | AS25: 3508212709120009 | AW25: 111235080166 | AX25: 19 | AY25: 111235080166194772
A26: 23 | C26: 4773 | D26: RADITYA YUKO PRATAMA | E26: L | F26: PROBOLINGGO | G26: 2012-05-25 | H26: =DATEDIF(G26,PETUNJUK!$H$10,"y") -> 7 | I26: 7 | J26: 3574022505120001 | K26: EKO WAHYUDI | L26: 3574021106890001 | M26: 1989-06-11 | N26: WAHYU LESTARI | O26: 3574025407890001 | P26: 1989-07-14 | Q26: 06 | R26: Peg.Swasta | S26: 01 | T26: Tdk Bekerja | U26: - | V26: - | X26: DI ISI | Z26: DI ISI | AB26: DI ISI | AD26: DI ISI | AF26: DI ISI | AH26: DI ISI | AJ26: DI ISI | AK26: 0 | AL26: 1 | AM26: TK | AN26: TK IT PERMATA LECES | AO26: SARIREJO I | AP26: 6 | AQ26: 1 | AR26: KEBONSARI | AS26: 3574020201120007 | AW26: 111235080166 | AX26: 19 | AY26: 111235080166194773
A27: 24 | C27: 4774 | D27: RAFA NUR IHSAN SYAPUTRA | E27: L | F27: LUMAJANG | G27: 2012-09-14 | H27: =DATEDIF(G27,PETUNJUK!$H$10,"y") -> 6 | I27: 6 | J27: 3508211409120002 | K27: SUWANTO | L27: 3508211305800001 | M27: 1980-05-13 | N27: WIDIANINGSIH | O27: 3508215306830003 | P27: 1983-06-13 | Q27: 06 | R27: Peg.Swasta | S27: 06 | T27: Peg.Swasta | U27: - | V27: - | X27: DI ISI | Z27: DI ISI | AB27: DI ISI | AD27: DI ISI | AF27: DI ISI | AH27: DI ISI | AJ27: DI ISI | AK27: 1 | AL27: 1 | AM27: TK | AN27: TK MUSLIMAT NU 01 KEBONSARI | AO27: SUKO I | AP27: 3 | AQ27: 1 | AR27: SUMBERSUKO | AS27: 3508210606120003 | AU27: 081233036629 | AW27: 111235080166 | AX27: 19 | AY27: 111235080166194774
A28: 25 | C28: 4775 | D28: REVANO MAHDI CHRISTIAWAN | E28: L | F28: LUMAJANG | G28: 2013-01-23 | H28: =DATEDIF(G28,PETUNJUK!$H$10,"y") -> 6 | I28: 6 | J28: 3508042301130001 | K28: ISMANTO MAHDI | L28: 3508043105810002 | M28: 1981-05-31 | N28: CHRISTINE MEGAWATY | O28: 3508044409840003 | P28: 1984-09-04 | Q28: 06 | R28: Peg.Swasta | S28: 01 | T28: Tdk Bekerja | U28: - | V28: - | X28: DI ISI | Z28: DI ISI | AB28: DI ISI | AD28: DI ISI | AF28: DI ISI | AH28: DI ISI | AJ28: DI ISI | AK28: 1 | AL28: 1 | AM28: TK | AN28: TK MUSLIMAT NU 01 KEBONSARI | AO28: GEDONGSARI | AP28: 57 | AQ28: 8 | AR28: LABRUK KIDUL | AS28: 3508210102190003 | AU28: 082228236354 | AW28: 111235080166 | AX28: 19 | AY28: 111235080166194775
A29: 26 | C29: 4776 | D29: RUBBI MAEGI NADIJAH | E29: P | F29: LUMAJANG | G29: 2012-09-13 | H29: =DATEDIF(G29,PETUNJUK!$H$10,"y") -> 6 | I29: 6 | J29: 3508215309120001 | K29: ARI TEKAD YULIANTO | L29: 3508030507870005 | M29: 1987-07-05 | N29: MINDRAWATI | O29: 3508214910870001 | P29: 1987-10-09 | Q29: 07 | R29: Pengusaha/Wiraswasta | S29: 01 | T29: Tdk Bekerja | U29: - | V29: - | X29: DI ISI | Z29: DI ISI | AB29: DI ISI | AD29: DI ISI | AF29: DI ISI | AH29: DI ISI | AJ29: DI ISI | AK29: 0 | AL29: 1 | AM29: TK | AN29: TK IDHI GIANYAR BALI | AO29: SARIREJO I | AP29: 20 | AQ29: 3 | AR29: KEBONSARI | AS29: 3508210705120005 | AW29: 111235080166 | AX29: 19 | AY29: 111235080166194776
A30: 27 | C30: 4777 | D30: SALSABILA KEYSA PUTRI | E30: P | F30: LUMAJANG | G30: 2012-03-08 | H30: =DATEDIF(G30,PETUNJUK!$H$10,"y") -> 7 | I30: 7 | J30: 3508214803120001 | K30: MOH HENDRIK | L30: 3508102212900001 | M30: 1990-12-22 | N30: SAMAWATI | O30: 3508214712870002 | P30: 1987-12-07 | Q30: 16 | R30: Angkutan | S30: 15 | T30: Buruh | U30: - | V30: - | X30: DI ISI | Z30: DI ISI | AB30: DI ISI | AD30: DI ISI | AF30: DI ISI | AH30: DI ISI | AJ30: DI ISI | AK30: 1 | AL30: 1 | AM30: TK | AN30: TK DHARMA WANITA LABRUK KIDUL | AO30: KRAJAN TIMUR | AP30: 18 | AQ30: 3 | AR30: LABRUK KIDUL | AS30: 3508212405120008 | AU30: 085337071287 | AW30: 111235080166 | AX30: 19 | AY30: 111235080166194777
A31: 28 | C31: 4778 | D31: TALITA ZAHWA RANIAH | E31: P | F31: LUMAJANG | G31: 2013-03-08 | H31: =DATEDIF(G31,PETUNJUK!$H$10,"y") -> 6 | I31: 6 | J31: 3508054803130006 | K31: WASITO | L31: 3508052704710001 | M31: 1971-04-27 | N31: SENEMI ROUDHOTUL JANNAH | O31: 3508054807810002 | P31: 1981-07-08 | Q31: 07 | R31: Pengusaha/Wiraswasta | S31: 01 | T31: Tdk Bekerja | U31: - | V31: - | X31: DI ISI | Z31: DI ISI | AB31: DI ISI | AD31: DI ISI | AF31: DI ISI | AH31: DI ISI | AJ31: DI ISI | AK31: 2 | AL31: 1 | AM31: TK | AN31: TK AISYIYAH BUSTANUL ATHFAL | AO31: WARKUT | AP31: 17 | AQ31: 3 | AR31: BESUK | AS31: 3508051908053178 | AW31: 111235080166 | AX31: 19 | AY31: 111235080166194778
A32: 29 | C32: 4779 | D32: ZAHRA RIZANI MAHIRAH | E32: P | F32: LUMAJANG | G32: 2013-03-28 | H32: =DATEDIF(G32,PETUNJUK!$H$10,"y") -> 6 | I32: 6 | J32: 3508216803130001 | K32: RIZKY HERMANSYAH | L32: 3508210907860004 | M32: 1986-07-09 | N32: ANIFAH ANDERIANI | O32: 3508214704880007 | P32: 1988-04-07 | Q32: 06 | R32: =IF(Q32="01","Tdk Bekerja",IF(Q32="02","Pensiunan/Alm.",IF(Q32="03","PNS",IF(Q32="04","TNI/POLRI",IF(Q32="05","Guru/Dosen",IF(Q32="06","Peg.Swasta",IF(Q32="07","Pengusaha/Wiraswasta",IF(Q32="08","Pengacara/Hakim/Jaksa/Notaris",IF(Q32="09","Seniman/Sejenis",IF(Q32="10","Dokter/Sejenis",IF(Q32="11","Penerbangan",IF(Q32="12","Pedagang",IF(Q32="13","Petani/ternak",IF(Q32="14","Nelayan",IF(Q32="15","Buruh",IF(Q32="16","Angkutan",IF(Q32="17","PolitikusS",IF(Q32="18","Lainnya","DI ISI")))))))))))))))))) -> Peg.Swasta | S32: 01 | T32: Tdk Bekerja | U32: - | V32: - | X32: DI ISI | Z32: DI ISI | AB32: DI ISI | AD32: DI ISI | AF32: DI ISI | AH32: DI ISI | AJ32: DI ISI | AK32: 0 | AL32: 1 | AM32: TK | AN32: TK MUSLIMAT NU 01 KEBONSARI | AO32: SARIREJO II | AP32: 31 | AQ32: 5 | AR32: KEBONSARI | AS32: 3508211707120003 | AU32: '082331976404 | AW32: 111235080166 | AX32: 19 | AY32: 111235080166194779
A33: 30 | C33: 4780 | D33: ZASKIA RISKITA | E33: P | F33: LUMAJANG | G33: 2012-12-26 | H33: =DATEDIF(G33,PETUNJUK!$H$10,"y") -> 6 | I33: 6 | J33: 3508216612120002 | K33: M ISHAK | L33: 3508212008780003 | M33: 1978-08-20 | N33: ROHMAWATI | O33: 3508216702870001 | P33: 1987-02-27 | Q33: 15 | R33: Buruh | S33: 01 | T33: Tdk Bekerja | U33: - | V33: - | X33: DI ISI | Z33: DI ISI | AB33: DI ISI | AD33: DI ISI | AF33: DI ISI | AH33: DI ISI | AJ33: DI ISI | AK33: 1 | AL33: 1 | AM33: TK | AN33: TK DEWI SARTIKA KEBONSARI | AO33: SARIREJO II | AP33: 22 | AQ33: 4 | AR33: KEBONSARI | AS33: 3508210510090105 | AW33: 111235080166 | AX33: 19 | AY33: 111235080166194780

Sheet 1C
A1: 1C | B1: NISN | C1: INDUK | D1: NAMA SISWA | E1: L/P | F1: Tempat, Tanggal Lahir | H1: Umur (RUMUS) | I1: Umur (TEXT) | J1: NOMOR INDUK KEPENDUDUKAN (NIK) SISWA | K1: tentang ORANG TUA | Q1: PEKERJAAN (DISERTAI KODE EMIS 2016) | U1: Jika PNS | V1: Jika TNI | W1: JENJANG PENDIDIKAN (DISERTAI KODE EMIS 2016) | AA1: Penghasilan Perbulan (DISERTAI KODE EMIS 2016) | AC1: Hobi (DISERTAI KODE EMIS 2016) | AE1: Cita-cita (DISERTAI KODE EMIS 2016) | AG1: Jarak Rumah-Sekolah | AI1: Transportasi yg dipakai | AK1: Jml Saudara | AL1: Asal Sekolah Sebelumnya | AO1: Alamat | AS1: NO. KARTU KELUARGA | AU1: NO.HP/ | AV1: TELEPON V2 | AW1: NSM | AX1: TAHUN MASUK | AY1: NO INDUK VERSI EMIS | AZ1: KIP/PIP (INDONESIA PINTAR) | BE1: KESEHATAN TINGGI BADAN (cm) & BERAT BADAN (kg)
K2: Ayah | L2: NIK | M2: Tgl Lahir | N2: Ibu | O2: NIK | P2: Tgl Lahir | Q2: Ayah | S2: Ibu | U2: Gol. | V2: Pangkat | W2: Ayah | Y2: Ibu | AL2: KODE | AN2: ASAL TK/RA | AO2: JL./DUSUN | AP2: RT. | AQ2: RW. | AR2: Desa | AU2: TELEPON | AZ2: Nomor KIP | BA2: Nomor KKS | BB2: Nomor KPS | BC2: Nomor PKH | BD2: Kriteria lain | BE2: TB1 | BF2: TB2 | BG2: TB3 | BH2: TB4 | BI2: TB5 | BJ2: TB6 | BK2: BB1 | BL2: BB2 | BM2: BB3 | BN2: BB4 | BO2: BB5 | BP2: BB6
A3: 1 | B3: 2 | C3: 3 | D3: 4 | E3: 5 | F3: 6 | G3: 7 | H3: 8 | K3: 9 | L3: 10 | M3: 11 | N3: 12 | O3: 13 | P3: 14 | Q3: 15 | S3: 16 | U3: 17 | V3: 18 | W3: 19 | Y3: 20 | AA3: 21 | AC3: 22 | AE3: 23 | AG3: 24 | AI3: 25 | AK3: 26 | AL3: 27 | AN3: 28 | AO3: 29 | AP3: 30 | AQ3: 31 | AR3: 32 | AS3: 33 | AT3: 34 | AU3: 35 | AV3: 36 | AW3: 37 | AX3: 38 | AY3: 39 | AZ3: 40 | BA3: 41 | BB3: 42 | BC3: 43 | BD3: 44 | BE3: 45 | BF3: 46 | BG3: 47 | BH3: 48 | BI3: 49 | BJ3: 50 | BK3: 51 | BL3: 52 | BM3: 53 | BN3: 54 | BO3: 55 | BP3: 56
A4: 1 | C4: 4781 | D4: AFRIZAL HABIBURROHMAAN | E4: L | F4: LUMAJANG | G4: 2012-11-07 | H4: =DATEDIF(G4,PETUNJUK!$H$10,"y") -> 6 | I4: =_xlfn.NUMBERVALUE(H4) -> 6 | J4: 3508210711120001 | K4: ABDUL ROKHMAN | L4: 3508211404840001 | M4: 1984-04-14 | N4: KHOFIDATUL ROFIAH | O4: 3508216708910002 | P4: 1991-08-27 | Q4: 15 | R4: =IF(Q4="01","Tdk Bekerja",IF(Q4="02","Pensiunan/Alm.",IF(Q4="03","PNS",IF(Q4="04","TNI/POLRI",IF(Q4="05","Guru/Dosen",IF(Q4="06","Peg.Swasta",IF(Q4="07","Pengusaha/Wiraswasta",IF(Q4="08","Pengacara/Hakim/Jaksa/Notaris",IF(Q4="09","Seniman/Sejenis",IF(Q4="10","Dokter/Sejenis",IF(Q4="11","Penerbangan",IF(Q4="12","Pedagang",IF(Q4="13","Petani/ternak",IF(Q4="14","Nelayan",IF(Q4="15","Buruh",IF(Q4="16","Angkutan",IF(Q4="17","PolitikusS",IF(Q4="18","Lainnya","DI ISI")))))))))))))))))) -> Buruh | S4: 01 | T4: =IF(S4="01","Tdk Bekerja",IF(S4="02","Pensiunan/Alm.",IF(S4="03","PNS",IF(S4="04","TNI/POLRI",IF(S4="05","Guru/Dosen",IF(S4="06","Peg.Swasta",IF(S4="07","Pengusaha/Wiraswasta",IF(S4="08","Pengacara/Hakim/Jaksa/Notaris",IF(S4="09","Seniman/Sejenis",IF(S4="10","Dokter/Sejenis",IF(S4="11","Penerbangan",IF(S4="12","Pedagang",IF(S4="13","Petani/ternak",IF(S4="14","Nelayan",IF(S4="15","Buruh",IF(S4="16","Angkutan",IF(S4="17","PolitikusS",IF(S4="18","Lainnya","DI ISI")))))))))))))))))) -> Tdk Bekerja | U4: =IF(Q4="03","DIISI","-") -> - | V4: =IF(S4="03","DIISI","-") -> - | X4: =IF(W4="0","Tdk Pnddkan Formal",IF(W4="1","<=SLTP",IF(W4="2","SLTA",IF(W4="3","D1",IF(W4="4","D2",IF(W4="5","D3",IF(W4="6","D4",IF(W4="7","S1",IF(W4="8","S2",IF(W4="9","S3","DI ISI")))))))))) -> DI ISI | Z4: =IF(Y4="0","Tdk Pnddkan Formal",IF(Y4="1","<=SLTP",IF(Y4="2","SLTA",IF(Y4="3","D1",IF(Y4="4","D2",IF(Y4="5","D3",IF(Y4="6","D4",IF(Y4="7","S1",IF(Y4="8","S2",IF(Y4="9","S3","DI ISI")))))))))) -> DI ISI | AB4: =IF(AA4="1","<= Rp.500.000",IF(AA4="2","Rp 500.001 - Rp 1.000.000",IF(AA4="3","Rp 1.000.001 - Rp 2.000.000",IF(AA4="4","Rp 2.000.001 - Rp 3.000.000",IF(AA4="5","Rp 3.000.001 - Rp 5.000.000",IF(AA4="6","> Rp 5.000.000","DI ISI")))))) -> DI ISI | AD4: =IF(AC4="1","Olahraga",IF(AC4="2","Kesenian",IF(AC4="3","Membaca",IF(AC4="4","Menulis",IF(AC4="5","Travelling",IF(AC4="6","Lainnya","DI ISI")))))) -> DI ISI | AF4: =IF(AE4="1","PNS",IF(AE4="2","TNI/Polri",IF(AE4="3","Guru/Dosen",IF(AE4="4","Dokter",IF(AE4="5","Politikus",IF(AE4="6","Wiraswasta",IF(AE4="7","Pekerja Seni/Sejenis",IF(AE4="8","Lainnya","DI ISI")))))))) -> DI ISI | AH4: =IF(AG4="1","< 1 Km",IF(AG4="2","1-3 Km",IF(AG4="3","3-5 Km",IF(AG4="4","5-10 Km",IF(AG4="5","> 10 Km","DI ISI"))))) -> DI ISI | AJ4: =IF(AI4="1","Jalan Kaki",IF(AI4="2","Sepeda",IF(AI4="3","motor",IF(AI4="4","Mobil Pribadi",IF(AI4="5","Antar/Jemput",IF(AI4="6","Angkutan",IF(AI4="7","Lainnya","DI ISI"))))))) -> DI ISI | AK4: 0 | AL4: 1 | AM4: =IF(AL4="1","TK",IF(AL4="2","RA",IF(AL4="3","PAUD",IF(AL4="4","TKLB",IF(AL4="5","Langsung dari Ortu","DI ISI"))))) -> TK | AN4: TK TARBIYATUSH SHIBYAN | AO4: KRAJAN BARAT | AP4: 41 | AQ4: 6 | AR4: LABRUK KIDUL | AS4: 3508211204120003 | AU4: 085257774831 | AW4: 111235080166 | AX4: 19 | AY4: =AW4&AX4&C4 -> 111235080166194781
A5: 2 | C5: 4782 | D5: AHMAD KHOIRUL AZAM | E5: L | F5: LUMAJANG | G5: 2012-06-30 | H5: =DATEDIF(G5,PETUNJUK!$H$10,"y") -> 7 | I5: =_xlfn.NUMBERVALUE(H5) -> 7 | J5: 3508213006120002 | K5: ISNEN SUKARYADI | L5: 3508210103760001 | M5: 1976-03-01 | N5: LUTFIYAH | O5: 3508215402790001 | P5: 1979-02-14 | Q5: 07 | R5: =IF(Q5="01","Tdk Bekerja",IF(Q5="02","Pensiunan/Alm.",IF(Q5="03","PNS",IF(Q5="04","TNI/POLRI",IF(Q5="05","Guru/Dosen",IF(Q5="06","Peg.Swasta",IF(Q5="07","Pengusaha/Wiraswasta",IF(Q5="08","Pengacara/Hakim/Jaksa/Notaris",IF(Q5="09","Seniman/Sejenis",IF(Q5="10","Dokter/Sejenis",IF(Q5="11","Penerbangan",IF(Q5="12","Pedagang",IF(Q5="13","Petani/ternak",IF(Q5="14","Nelayan",IF(Q5="15","Buruh",IF(Q5="16","Angkutan",IF(Q5="17","PolitikusS",IF(Q5="18","Lainnya","DI ISI")))))))))))))))))) -> Pengusaha/Wiraswasta | S5: 01 | T5: =IF(S5="01","Tdk Bekerja",IF(S5="02","Pensiunan/Alm.",IF(S5="03","PNS",IF(S5="04","TNI/POLRI",IF(S5="05","Guru/Dosen",IF(S5="06","Peg.Swasta",IF(S5="07","Pengusaha/Wiraswasta",IF(S5="08","Pengacara/Hakim/Jaksa/Notaris",IF(S5="09","Seniman/Sejenis",IF(S5="10","Dokter/Sejenis",IF(S5="11","Penerbangan",IF(S5="12","Pedagang",IF(S5="13","Petani/ternak",IF(S5="14","Nelayan",IF(S5="15","Buruh",IF(S5="16","Angkutan",IF(S5="17","PolitikusS",IF(S5="18","Lainnya","DI ISI")))))))))))))))))) -> Tdk Bekerja | U5: =IF(Q5="03","DIISI","-") -> - | V5: =IF(S5="03","DIISI","-") -> - | X5: =IF(W5="0","Tdk Pnddkan Formal",IF(W5="1","<=SLTP",IF(W5="2","SLTA",IF(W5="3","D1",IF(W5="4","D2",IF(W5="5","D3",IF(W5="6","D4",IF(W5="7","S1",IF(W5="8","S2",IF(W5="9","S3","DI ISI")))))))))) -> DI ISI | Z5: =IF(Y5="0","Tdk Pnddkan Formal",IF(Y5="1","<=SLTP",IF(Y5="2","SLTA",IF(Y5="3","D1",IF(Y5="4","D2",IF(Y5="5","D3",IF(Y5="6","D4",IF(Y5="7","S1",IF(Y5="8","S2",IF(Y5="9","S3","DI ISI")))))))))) -> DI ISI | AB5: =IF(AA5="1","<= Rp.500.000",IF(AA5="2","Rp 500.001 - Rp 1.000.000",IF(AA5="3","Rp 1.000.001 - Rp 2.000.000",IF(AA5="4","Rp 2.000.001 - Rp 3.000.000",IF(AA5="5","Rp 3.000.001 - Rp 5.000.000",IF(AA5="6","> Rp 5.000.000","DI ISI")))))) -> DI ISI | AD5: =IF(AC5="1","Olahraga",IF(AC5="2","Kesenian",IF(AC5="3","Membaca",IF(AC5="4","Menulis",IF(AC5="5","Travelling",IF(AC5="6","Lainnya","DI ISI")))))) -> DI ISI | AF5: =IF(AE5="1","PNS",IF(AE5="2","TNI/Polri",IF(AE5="3","Guru/Dosen",IF(AE5="4","Dokter",IF(AE5="5","Politikus",IF(AE5="6","Wiraswasta",IF(AE5="7","Pekerja Seni/Sejenis",IF(AE5="8","Lainnya","DI ISI")))))))) -> DI ISI | AH5: =IF(AG5="1","< 1 Km",IF(AG5="2","1-3 Km",IF(AG5="3","3-5 Km",IF(AG5="4","5-10 Km",IF(AG5="5","> 10 Km","DI ISI"))))) -> DI ISI | AJ5: =IF(AI5="1","Jalan Kaki",IF(AI5="2","Sepeda",IF(AI5="3","motor",IF(AI5="4","Mobil Pribadi",IF(AI5="5","Antar/Jemput",IF(AI5="6","Angkutan",IF(AI5="7","Lainnya","DI ISI"))))))) -> DI ISI | AK5: 2 | AL5: 1 | AM5: =IF(AL5="1","TK",IF(AL5="2","RA",IF(AL5="3","PAUD",IF(AL5="4","TKLB",IF(AL5="5","Langsung dari Ortu","DI ISI"))))) -> TK | AN5: TK AL-HIDAYAH SUMBERSUKO | AO5: SUKO I | AP5: 2 | AQ5: 3 | AR5: SUMBERSUKO | AS5: 3508210311080008 | AU5: 082337613243 | AW5: 111235080166 | AX5: 19 | AY5: =AW5&AX5&C5 -> 111235080166194782
A6: 3 | C6: 4783 | D6: AHMAD KHOIRUN NIZAM | E6: L | F6: LUMAJANG | G6: 2012-06-30 | H6: =DATEDIF(G6,PETUNJUK!$H$10,"y") -> 7 | I6: =_xlfn.NUMBERVALUE(H6) -> 7 | J6: 3508213006120001 | K6: ISNEN SUKARYADI | L6: 3508210103760001 | M6: 1976-03-02 | N6: LUTFIYAH | O6: 3508215402790001 | P6: 1979-02-15 | Q6: 08 | R6: =IF(Q6="01","Tdk Bekerja",IF(Q6="02","Pensiunan/Alm.",IF(Q6="03","PNS",IF(Q6="04","TNI/POLRI",IF(Q6="05","Guru/Dosen",IF(Q6="06","Peg.Swasta",IF(Q6="07","Pengusaha/Wiraswasta",IF(Q6="08","Pengacara/Hakim/Jaksa/Notaris",IF(Q6="09","Seniman/Sejenis",IF(Q6="10","Dokter/Sejenis",IF(Q6="11","Penerbangan",IF(Q6="12","Pedagang",IF(Q6="13","Petani/ternak",IF(Q6="14","Nelayan",IF(Q6="15","Buruh",IF(Q6="16","Angkutan",IF(Q6="17","PolitikusS",IF(Q6="18","Lainnya","DI ISI")))))))))))))))))) -> Pengacara/Hakim/Jaksa/Notaris | S6: 02 | T6: =IF(S6="01","Tdk Bekerja",IF(S6="02","Pensiunan/Alm.",IF(S6="03","PNS",IF(S6="04","TNI/POLRI",IF(S6="05","Guru/Dosen",IF(S6="06","Peg.Swasta",IF(S6="07","Pengusaha/Wiraswasta",IF(S6="08","Pengacara/Hakim/Jaksa/Notaris",IF(S6="09","Seniman/Sejenis",IF(S6="10","Dokter/Sejenis",IF(S6="11","Penerbangan",IF(S6="12","Pedagang",IF(S6="13","Petani/ternak",IF(S6="14","Nelayan",IF(S6="15","Buruh",IF(S6="16","Angkutan",IF(S6="17","PolitikusS",IF(S6="18","Lainnya","DI ISI")))))))))))))))))) -> Pensiunan/Alm. | U6: =IF(Q6="03","DIISI","-") -> - | V6: =IF(S6="03","DIISI","-") -> - | X6: =IF(W6="0","Tdk Pnddkan Formal",IF(W6="1","<=SLTP",IF(W6="2","SLTA",IF(W6="3","D1",IF(W6="4","D2",IF(W6="5","D3",IF(W6="6","D4",IF(W6="7","S1",IF(W6="8","S2",IF(W6="9","S3","DI ISI")))))))))) -> DI ISI | Z6: =IF(Y6="0","Tdk Pnddkan Formal",IF(Y6="1","<=SLTP",IF(Y6="2","SLTA",IF(Y6="3","D1",IF(Y6="4","D2",IF(Y6="5","D3",IF(Y6="6","D4",IF(Y6="7","S1",IF(Y6="8","S2",IF(Y6="9","S3","DI ISI")))))))))) -> DI ISI | AB6: =IF(AA6="1","<= Rp.500.000",IF(AA6="2","Rp 500.001 - Rp 1.000.000",IF(AA6="3","Rp 1.000.001 - Rp 2.000.000",IF(AA6="4","Rp 2.000.001 - Rp 3.000.000",IF(AA6="5","Rp 3.000.001 - Rp 5.000.000",IF(AA6="6","> Rp 5.000.000","DI ISI")))))) -> DI ISI | AD6: =IF(AC6="1","Olahraga",IF(AC6="2","Kesenian",IF(AC6="3","Membaca",IF(AC6="4","Menulis",IF(AC6="5","Travelling",IF(AC6="6","Lainnya","DI ISI")))))) -> DI ISI | AF6: =IF(AE6="1","PNS",IF(AE6="2","TNI/Polri",IF(AE6="3","Guru/Dosen",IF(AE6="4","Dokter",IF(AE6="5","Politikus",IF(AE6="6","Wiraswasta",IF(AE6="7","Pekerja Seni/Sejenis",IF(AE6="8","Lainnya","DI ISI")))))))) -> DI ISI | AH6: =IF(AG6="1","< 1 Km",IF(AG6="2","1-3 Km",IF(AG6="3","3-5 Km",IF(AG6="4","5-10 Km",IF(AG6="5","> 10 Km","DI ISI"))))) -> DI ISI | AJ6: =IF(AI6="1","Jalan Kaki",IF(AI6="2","Sepeda",IF(AI6="3","motor",IF(AI6="4","Mobil Pribadi",IF(AI6="5","Antar/Jemput",IF(AI6="6","Angkutan",IF(AI6="7","Lainnya","DI ISI"))))))) -> DI ISI | AK6: 2 | AL6: 1 | AM6: =IF(AL6="1","TK",IF(AL6="2","RA",IF(AL6="3","PAUD",IF(AL6="4","TKLB",IF(AL6="5","Langsung dari Ortu","DI ISI"))))) -> TK | AN6: TK AL-HIDAYAH SUMBERSUKO | AO6: SUKO I | AP6: 2 | AQ6: 3 | AR6: SUMBERSUKO | AS6: 3508210311080008 | AU6: 082337613243 | AW6: 111235080166 | AX6: 19 | AY6: =AW6&AX6&C6 -> 111235080166194783
A7: 4 | C7: 4784 | D7: ALULA FARZANA AYUNINDYA | E7: P | F7: LUMAJANG | G7: 2013-02-07 | H7: =DATEDIF(G7,PETUNJUK!$H$10,"y") -> 6 | I7: =_xlfn.NUMBERVALUE(H7) -> 6 | J7: 3508214702130002 | K7: MUKHAMMAD IDRIS | L7: 3508211504850001 | M7: 1985-04-15 | N7: MAULI DIA WATI | O7: 3508214409930003 | P7: 1993-09-04 | Q7: 16 | R7: =IF(Q7="01","Tdk Bekerja",IF(Q7="02","Pensiunan/Alm.",IF(Q7="03","PNS",IF(Q7="04","TNI/POLRI",IF(Q7="05","Guru/Dosen",IF(Q7="06","Peg.Swasta",IF(Q7="07","Pengusaha/Wiraswasta",IF(Q7="08","Pengacara/Hakim/Jaksa/Notaris",IF(Q7="09","Seniman/Sejenis",IF(Q7="10","Dokter/Sejenis",IF(Q7="11","Penerbangan",IF(Q7="12","Pedagang",IF(Q7="13","Petani/ternak",IF(Q7="14","Nelayan",IF(Q7="15","Buruh",IF(Q7="16","Angkutan",IF(Q7="17","PolitikusS",IF(Q7="18","Lainnya","DI ISI")))))))))))))))))) -> Angkutan | S7: 01 | T7: =IF(S7="01","Tdk Bekerja",IF(S7="02","Pensiunan/Alm.",IF(S7="03","PNS",IF(S7="04","TNI/POLRI",IF(S7="05","Guru/Dosen",IF(S7="06","Peg.Swasta",IF(S7="07","Pengusaha/Wiraswasta",IF(S7="08","Pengacara/Hakim/Jaksa/Notaris",IF(S7="09","Seniman/Sejenis",IF(S7="10","Dokter/Sejenis",IF(S7="11","Penerbangan",IF(S7="12","Pedagang",IF(S7="13","Petani/ternak",IF(S7="14","Nelayan",IF(S7="15","Buruh",IF(S7="16","Angkutan",IF(S7="17","PolitikusS",IF(S7="18","Lainnya","DI ISI")))))))))))))))))) -> Tdk Bekerja | U7: =IF(Q7="03","DIISI","-") -> - | V7: =IF(S7="03","DIISI","-") -> - | X7: =IF(W7="0","Tdk Pnddkan Formal",IF(W7="1","<=SLTP",IF(W7="2","SLTA",IF(W7="3","D1",IF(W7="4","D2",IF(W7="5","D3",IF(W7="6","D4",IF(W7="7","S1",IF(W7="8","S2",IF(W7="9","S3","DI ISI")))))))))) -> DI ISI | Z7: =IF(Y7="0","Tdk Pnddkan Formal",IF(Y7="1","<=SLTP",IF(Y7="2","SLTA",IF(Y7="3","D1",IF(Y7="4","D2",IF(Y7="5","D3",IF(Y7="6","D4",IF(Y7="7","S1",IF(Y7="8","S2",IF(Y7="9","S3","DI ISI")))))))))) -> DI ISI | AB7: =IF(AA7="1","<= Rp.500.000",IF(AA7="2","Rp 500.001 - Rp 1.000.000",IF(AA7="3","Rp 1.000.001 - Rp 2.000.000",IF(AA7="4","Rp 2.000.001 - Rp 3.000.000",IF(AA7="5","Rp 3.000.001 - Rp 5.000.000",IF(AA7="6","> Rp 5.000.000","DI ISI")))))) -> DI ISI | AD7: =IF(AC7="1","Olahraga",IF(AC7="2","Kesenian",IF(AC7="3","Membaca",IF(AC7="4","Menulis",IF(AC7="5","Travelling",IF(AC7="6","Lainnya","DI ISI")))))) -> DI ISI | AF7: =IF(AE7="1","PNS",IF(AE7="2","TNI/Polri",IF(AE7="3","Guru/Dosen",IF(AE7="4","Dokter",IF(AE7="5","Politikus",IF(AE7="6","Wiraswasta",IF(AE7="7","Pekerja Seni/Sejenis",IF(AE7="8","Lainnya","DI ISI")))))))) -> DI ISI | AH7: =IF(AG7="1","< 1 Km",IF(AG7="2","1-3 Km",IF(AG7="3","3-5 Km",IF(AG7="4","5-10 Km",IF(AG7="5","> 10 Km","DI ISI"))))) -> DI ISI | AJ7: =IF(AI7="1","Jalan Kaki",IF(AI7="2","Sepeda",IF(AI7="3","motor",IF(AI7="4","Mobil Pribadi",IF(AI7="5","Antar/Jemput",IF(AI7="6","Angkutan",IF(AI7="7","Lainnya","DI ISI"))))))) -> DI ISI | AK7: 0 | AL7: 1 | AM7: =IF(AL7="1","TK",IF(AL7="2","RA",IF(AL7="3","PAUD",IF(AL7="4","TKLB",IF(AL7="5","Langsung dari Ortu","DI ISI"))))) -> TK | AN7: TK MUSLIMAT NU 01 KEBONSARI | AO7: GEDONGSARI | AP7: 50 | AQ7: 7 | AR7: LABRUK KIDUL | AS7: 3508210305120002 | AU7: 085334366355 | AW7: 111235080166 | AX7: 19 | AY7: =AW7&AX7&C7 -> 111235080166194784
A8: 5 | C8: 4785 | D8: ASYIFA TANIA PUTRI | E8: P | F8: LUMAJANG | G8: 2012-07-06 | H8: =DATEDIF(G8,PETUNJUK!$H$10,"y") -> 7 | I8: =_xlfn.NUMBERVALUE(H8) -> 7 | J8: 3508214607120001 | K8: AHMAD TOYIB | L8: 3508210708790001 | M8: 1979-08-07 | N8: NUR CHOTIMAH | O8: 3508215901860005 | P8: 1986-01-19 | Q8: 06 | R8: =IF(Q8="01","Tdk Bekerja",IF(Q8="02","Pensiunan/Alm.",IF(Q8="03","PNS",IF(Q8="04","TNI/POLRI",IF(Q8="05","Guru/Dosen",IF(Q8="06","Peg.Swasta",IF(Q8="07","Pengusaha/Wiraswasta",IF(Q8="08","Pengacara/Hakim/Jaksa/Notaris",IF(Q8="09","Seniman/Sejenis",IF(Q8="10","Dokter/Sejenis",IF(Q8="11","Penerbangan",IF(Q8="12","Pedagang",IF(Q8="13","Petani/ternak",IF(Q8="14","Nelayan",IF(Q8="15","Buruh",IF(Q8="16","Angkutan",IF(Q8="17","PolitikusS",IF(Q8="18","Lainnya","DI ISI")))))))))))))))))) -> Peg.Swasta | S8: 01 | T8: =IF(S8="01","Tdk Bekerja",IF(S8="02","Pensiunan/Alm.",IF(S8="03","PNS",IF(S8="04","TNI/POLRI",IF(S8="05","Guru/Dosen",IF(S8="06","Peg.Swasta",IF(S8="07","Pengusaha/Wiraswasta",IF(S8="08","Pengacara/Hakim/Jaksa/Notaris",IF(S8="09","Seniman/Sejenis",IF(S8="10","Dokter/Sejenis",IF(S8="11","Penerbangan",IF(S8="12","Pedagang",IF(S8="13","Petani/ternak",IF(S8="14","Nelayan",IF(S8="15","Buruh",IF(S8="16","Angkutan",IF(S8="17","PolitikusS",IF(S8="18","Lainnya","DI ISI")))))))))))))))))) -> Tdk Bekerja | U8: =IF(Q8="03","DIISI","-") -> - | V8: =IF(S8="03","DIISI","-") -> - | X8: =IF(W8="0","Tdk Pnddkan Formal",IF(W8="1","<=SLTP",IF(W8="2","SLTA",IF(W8="3","D1",IF(W8="4","D2",IF(W8="5","D3",IF(W8="6","D4",IF(W8="7","S1",IF(W8="8","S2",IF(W8="9","S3","DI ISI")))))))))) -> DI ISI | Z8: =IF(Y8="0","Tdk Pnddkan Formal",IF(Y8="1","<=SLTP",IF(Y8="2","SLTA",IF(Y8="3","D1",IF(Y8="4","D2",IF(Y8="5","D3",IF(Y8="6","D4",IF(Y8="7","S1",IF(Y8="8","S2",IF(Y8="9","S3","DI ISI")))))))))) -> DI ISI | AB8: =IF(AA8="1","<= Rp.500.000",IF(AA8="2","Rp 500.001 - Rp 1.000.000",IF(AA8="3","Rp 1.000.001 - Rp 2.000.000",IF(AA8="4","Rp 2.000.001 - Rp 3.000.000",IF(AA8="5","Rp 3.000.001 - Rp 5.000.000",IF(AA8="6","> Rp 5.000.000","DI ISI")))))) -> DI ISI | AD8: =IF(AC8="1","Olahraga",IF(AC8="2","Kesenian",IF(AC8="3","Membaca",IF(AC8="4","Menulis",IF(AC8="5","Travelling",IF(AC8="6","Lainnya","DI ISI")))))) -> DI ISI | AF8: =IF(AE8="1","PNS",IF(AE8="2","TNI/Polri",IF(AE8="3","Guru/Dosen",IF(AE8="4","Dokter",IF(AE8="5","Politikus",IF(AE8="6","Wiraswasta",IF(AE8="7","Pekerja Seni/Sejenis",IF(AE8="8","Lainnya","DI ISI")))))))) -> DI ISI | AH8: =IF(AG8="1","< 1 Km",IF(AG8="2","1-3 Km",IF(AG8="3","3-5 Km",IF(AG8="4","5-10 Km",IF(AG8="5","> 10 Km","DI ISI"))))) -> DI ISI | AJ8: =IF(AI8="1","Jalan Kaki",IF(AI8="2","Sepeda",IF(AI8="3","motor",IF(AI8="4","Mobil Pribadi",IF(AI8="5","Antar/Jemput",IF(AI8="6","Angkutan",IF(AI8="7","Lainnya","DI ISI"))))))) -> DI ISI | AK8: 1 | AL8: 1 | AM8: =IF(AL8="1","TK",IF(AL8="2","RA",IF(AL8="3","PAUD",IF(AL8="4","TKLB",IF(AL8="5","Langsung dari Ortu","DI ISI"))))) -> TK | AN8: TK TARBIYATUSH SHIBYAN | AO8: KRAJAN BARAT | AP8: 42 | AQ8: 6 | AR8: LABRUK KIDUL | AS8: 3508212308053707 | AU8: 085233870346 | AW8: 111235080166 | AX8: 19 | AY8: =AW8&AX8&C8 -> 111235080166194785
A9: 6 | C9: 4786 | D9: ATIKA NUR INDRAT MUKO | E9: P | F9: LUMAJANG | G9: 2012-05-14 | H9: =DATEDIF(G9,PETUNJUK!$H$10,"y") -> 7 | I9: =_xlfn.NUMBERVALUE(H9) -> 7 | J9: 3508215405120001 | K9: SAMPIR INDRAT MUKO | L9: 3508210405730004 | M9: 1973-05-04 | N9: NURSIAH | O9: 3508214608790001 | P9: 1979-08-06 | Q9: 07 | R9: =IF(Q9="01","Tdk Bekerja",IF(Q9="02","Pensiunan/Alm.",IF(Q9="03","PNS",IF(Q9="04","TNI/POLRI",IF(Q9="05","Guru/Dosen",IF(Q9="06","Peg.Swasta",IF(Q9="07","Pengusaha/Wiraswasta",IF(Q9="08","Pengacara/Hakim/Jaksa/Notaris",IF(Q9="09","Seniman/Sejenis",IF(Q9="10","Dokter/Sejenis",IF(Q9="11","Penerbangan",IF(Q9="12","Pedagang",IF(Q9="13","Petani/ternak",IF(Q9="14","Nelayan",IF(Q9="15","Buruh",IF(Q9="16","Angkutan",IF(Q9="17","PolitikusS",IF(Q9="18","Lainnya","DI ISI")))))))))))))))))) -> Pengusaha/Wiraswasta | S9: 01 | T9: =IF(S9="01","Tdk Bekerja",IF(S9="02","Pensiunan/Alm.",IF(S9="03","PNS",IF(S9="04","TNI/POLRI",IF(S9="05","Guru/Dosen",IF(S9="06","Peg.Swasta",IF(S9="07","Pengusaha/Wiraswasta",IF(S9="08","Pengacara/Hakim/Jaksa/Notaris",IF(S9="09","Seniman/Sejenis",IF(S9="10","Dokter/Sejenis",IF(S9="11","Penerbangan",IF(S9="12","Pedagang",IF(S9="13","Petani/ternak",IF(S9="14","Nelayan",IF(S9="15","Buruh",IF(S9="16","Angkutan",IF(S9="17","PolitikusS",IF(S9="18","Lainnya","DI ISI")))))))))))))))))) -> Tdk Bekerja | U9: =IF(Q9="03","DIISI","-") -> - | V9: =IF(S9="03","DIISI","-") -> - | X9: =IF(W9="0","Tdk Pnddkan Formal",IF(W9="1","<=SLTP",IF(W9="2","SLTA",IF(W9="3","D1",IF(W9="4","D2",IF(W9="5","D3",IF(W9="6","D4",IF(W9="7","S1",IF(W9="8","S2",IF(W9="9","S3","DI ISI")))))))))) -> DI ISI | Z9: =IF(Y9="0","Tdk Pnddkan Formal",IF(Y9="1","<=SLTP",IF(Y9="2","SLTA",IF(Y9="3","D1",IF(Y9="4","D2",IF(Y9="5","D3",IF(Y9="6","D4",IF(Y9="7","S1",IF(Y9="8","S2",IF(Y9="9","S3","DI ISI")))))))))) -> DI ISI | AB9: =IF(AA9="1","<= Rp.500.000",IF(AA9="2","Rp 500.001 - Rp 1.000.000",IF(AA9="3","Rp 1.000.001 - Rp 2.000.000",IF(AA9="4","Rp 2.000.001 - Rp 3.000.000",IF(AA9="5","Rp 3.000.001 - Rp 5.000.000",IF(AA9="6","> Rp 5.000.000","DI ISI")))))) -> DI ISI | AD9: =IF(AC9="1","Olahraga",IF(AC9="2","Kesenian",IF(AC9="3","Membaca",IF(AC9="4","Menulis",IF(AC9="5","Travelling",IF(AC9="6","Lainnya","DI ISI")))))) -> DI ISI | AF9: =IF(AE9="1","PNS",IF(AE9="2","TNI/Polri",IF(AE9="3","Guru/Dosen",IF(AE9="4","Dokter",IF(AE9="5","Politikus",IF(AE9="6","Wiraswasta",IF(AE9="7","Pekerja Seni/Sejenis",IF(AE9="8","Lainnya","DI ISI")))))))) -> DI ISI | AH9: =IF(AG9="1","< 1 Km",IF(AG9="2","1-3 Km",IF(AG9="3","3-5 Km",IF(AG9="4","5-10 Km",IF(AG9="5","> 10 Km","DI ISI"))))) -> DI ISI | AJ9: =IF(AI9="1","Jalan Kaki",IF(AI9="2","Sepeda",IF(AI9="3","motor",IF(AI9="4","Mobil Pribadi",IF(AI9="5","Antar/Jemput",IF(AI9="6","Angkutan",IF(AI9="7","Lainnya","DI ISI"))))))) -> DI ISI | AK9: 1 | AL9: 1 | AM9: =IF(AL9="1","TK",IF(AL9="2","RA",IF(AL9="3","PAUD",IF(AL9="4","TKLB",IF(AL9="5","Langsung dari Ortu","DI ISI"))))) -> TK | AN9: TK TARBIYATUSH SHIBYAN | AO9: GEDONGSARI | AP9: 53 | AQ9: 8 | AR9: LABRUK KIDUL | AS9: 3508210510090006 | AU9: 085257775847 | AW9: 111235080166 | AX9: 19 | AY9: =AW9&AX9&C9 -> 111235080166194786
A10: 7 | C10: 4787 | D10: FAREL APRILIO PUTRA ARIFIN | E10: L | F10: LUMAJANG | G10: 2012-04-15 | H10: =DATEDIF(G10,PETUNJUK!$H$10,"y") -> 7 | I10: =_xlfn.NUMBERVALUE(H10) -> 7 | J10: 3508211504120002 | K10: ZAINUL ARIFIN | L10: 3508211308810001 | M10: 1981-08-13 | N10: MASLACHATUN NADHIROH | O10: 3508216605850002 | P10: 1985-05-26 | Q10: 07 | R10: =IF(Q10="01","Tdk Bekerja",IF(Q10="02","Pensiunan/Alm.",IF(Q10="03","PNS",IF(Q10="04","TNI/POLRI",IF(Q10="05","Guru/Dosen",IF(Q10="06","Peg.Swasta",IF(Q10="07","Pengusaha/Wiraswasta",IF(Q10="08","Pengacara/Hakim/Jaksa/Notaris",IF(Q10="09","Seniman/Sejenis",IF(Q10="10","Dokter/Sejenis",IF(Q10="11","Penerbangan",IF(Q10="12","Pedagang",IF(Q10="13","Petani/ternak",IF(Q10="14","Nelayan",IF(Q10="15","Buruh",IF(Q10="16","Angkutan",IF(Q10="17","PolitikusS",IF(Q10="18","Lainnya","DI ISI")))))))))))))))))) -> Pengusaha/Wiraswasta | S10: 07 | T10: =IF(S10="01","Tdk Bekerja",IF(S10="02","Pensiunan/Alm.",IF(S10="03","PNS",IF(S10="04","TNI/POLRI",IF(S10="05","Guru/Dosen",IF(S10="06","Peg.Swasta",IF(S10="07","Pengusaha/Wiraswasta",IF(S10="08","Pengacara/Hakim/Jaksa/Notaris",IF(S10="09","Seniman/Sejenis",IF(S10="10","Dokter/Sejenis",IF(S10="11","Penerbangan",IF(S10="12","Pedagang",IF(S10="13","Petani/ternak",IF(S10="14","Nelayan",IF(S10="15","Buruh",IF(S10="16","Angkutan",IF(S10="17","PolitikusS",IF(S10="18","Lainnya","DI ISI")))))))))))))))))) -> Pengusaha/Wiraswasta | U10: =IF(Q10="03","DIISI","-") -> - | V10: =IF(S10="03","DIISI","-") -> - | X10: =IF(W10="0","Tdk Pnddkan Formal",IF(W10="1","<=SLTP",IF(W10="2","SLTA",IF(W10="3","D1",IF(W10="4","D2",IF(W10="5","D3",IF(W10="6","D4",IF(W10="7","S1",IF(W10="8","S2",IF(W10="9","S3","DI ISI")))))))))) -> DI ISI | Z10: =IF(Y10="0","Tdk Pnddkan Formal",IF(Y10="1","<=SLTP",IF(Y10="2","SLTA",IF(Y10="3","D1",IF(Y10="4","D2",IF(Y10="5","D3",IF(Y10="6","D4",IF(Y10="7","S1",IF(Y10="8","S2",IF(Y10="9","S3","DI ISI")))))))))) -> DI ISI | AB10: =IF(AA10="1","<= Rp.500.000",IF(AA10="2","Rp 500.001 - Rp 1.000.000",IF(AA10="3","Rp 1.000.001 - Rp 2.000.000",IF(AA10="4","Rp 2.000.001 - Rp 3.000.000",IF(AA10="5","Rp 3.000.001 - Rp 5.000.000",IF(AA10="6","> Rp 5.000.000","DI ISI")))))) -> DI ISI | AD10: =IF(AC10="1","Olahraga",IF(AC10="2","Kesenian",IF(AC10="3","Membaca",IF(AC10="4","Menulis",IF(AC10="5","Travelling",IF(AC10="6","Lainnya","DI ISI")))))) -> DI ISI | AF10: =IF(AE10="1","PNS",IF(AE10="2","TNI/Polri",IF(AE10="3","Guru/Dosen",IF(AE10="4","Dokter",IF(AE10="5","Politikus",IF(AE10="6","Wiraswasta",IF(AE10="7","Pekerja Seni/Sejenis",IF(AE10="8","Lainnya","DI ISI")))))))) -> DI ISI | AH10: =IF(AG10="1","< 1 Km",IF(AG10="2","1-3 Km",IF(AG10="3","3-5 Km",IF(AG10="4","5-10 Km",IF(AG10="5","> 10 Km","DI ISI"))))) -> DI ISI | AJ10: =IF(AI10="1","Jalan Kaki",IF(AI10="2","Sepeda",IF(AI10="3","motor",IF(AI10="4","Mobil Pribadi",IF(AI10="5","Antar/Jemput",IF(AI10="6","Angkutan",IF(AI10="7","Lainnya","DI ISI"))))))) -> DI ISI | AK10: 1 | AL10: 2 | AM10: =IF(AL10="1","TK",IF(AL10="2","RA",IF(AL10="3","PAUD",IF(AL10="4","TKLB",IF(AL10="5","Langsung dari Ortu","DI ISI"))))) -> RA | AN10: RAM CURAH JERO | AO10: SARIREJO I | AP10: 12 | AQ10: 2 | AR10: KEBONSARI | AS10: 3508211202180003 | AU10: 082338483525 | AW10: 111235080166 | AX10: 19 | AY10: =AW10&AX10&C10 -> 111235080166194787
A11: 8 | C11: 4788 | D11: FIRLINDA APRILYANTI AZ-ZAHWA | E11: P | F11: LUMAJANG | G11: 2012-04-19 | H11: =DATEDIF(G11,PETUNJUK!$H$10,"y") -> 7 | I11: =_xlfn.NUMBERVALUE(H11) -> 7 | J11: 3508215904120001 | K11: SUGIANTO | L11: 3508212201770002 | M11: 1977-01-22 | N11: KHUSNIAH FATATIK | O11: 3508214210840002 | P11: 1984-10-02 | Q11: 07 | R11: =IF(Q11="01","Tdk Bekerja",IF(Q11="02","Pensiunan/Alm.",IF(Q11="03","PNS",IF(Q11="04","TNI/POLRI",IF(Q11="05","Guru/Dosen",IF(Q11="06","Peg.Swasta",IF(Q11="07","Pengusaha/Wiraswasta",IF(Q11="08","Pengacara/Hakim/Jaksa/Notaris",IF(Q11="09","Seniman/Sejenis",IF(Q11="10","Dokter/Sejenis",IF(Q11="11","Penerbangan",IF(Q11="12","Pedagang",IF(Q11="13","Petani/ternak",IF(Q11="14","Nelayan",IF(Q11="15","Buruh",IF(Q11="16","Angkutan",IF(Q11="17","PolitikusS",IF(Q11="18","Lainnya","DI ISI")))))))))))))))))) -> Pengusaha/Wiraswasta | S11: 01 | T11: =IF(S11="01","Tdk Bekerja",IF(S11="02","Pensiunan/Alm.",IF(S11="03","PNS",IF(S11="04","TNI/POLRI",IF(S11="05","Guru/Dosen",IF(S11="06","Peg.Swasta",IF(S11="07","Pengusaha/Wiraswasta",IF(S11="08","Pengacara/Hakim/Jaksa/Notaris",IF(S11="09","Seniman/Sejenis",IF(S11="10","Dokter/Sejenis",IF(S11="11","Penerbangan",IF(S11="12","Pedagang",IF(S11="13","Petani/ternak",IF(S11="14","Nelayan",IF(S11="15","Buruh",IF(S11="16","Angkutan",IF(S11="17","PolitikusS",IF(S11="18","Lainnya","DI ISI")))))))))))))))))) -> Tdk Bekerja | U11: =IF(Q11="03","DIISI","-") -> - | V11: =IF(S11="03","DIISI","-") -> - | X11: =IF(W11="0","Tdk Pnddkan Formal",IF(W11="1","<=SLTP",IF(W11="2","SLTA",IF(W11="3","D1",IF(W11="4","D2",IF(W11="5","D3",IF(W11="6","D4",IF(W11="7","S1",IF(W11="8","S2",IF(W11="9","S3","DI ISI")))))))))) -> DI ISI | Z11: =IF(Y11="0","Tdk Pnddkan Formal",IF(Y11="1","<=SLTP",IF(Y11="2","SLTA",IF(Y11="3","D1",IF(Y11="4","D2",IF(Y11="5","D3",IF(Y11="6","D4",IF(Y11="7","S1",IF(Y11="8","S2",IF(Y11="9","S3","DI ISI")))))))))) -> DI ISI | AB11: =IF(AA11="1","<= Rp.500.000",IF(AA11="2","Rp 500.001 - Rp 1.000.000",IF(AA11="3","Rp 1.000.001 - Rp 2.000.000",IF(AA11="4","Rp 2.000.001 - Rp 3.000.000",IF(AA11="5","Rp 3.000.001 - Rp 5.000.000",IF(AA11="6","> Rp 5.000.000","DI ISI")))))) -> DI ISI | AD11: =IF(AC11="1","Olahraga",IF(AC11="2","Kesenian",IF(AC11="3","Membaca",IF(AC11="4","Menulis",IF(AC11="5","Travelling",IF(AC11="6","Lainnya","DI ISI")))))) -> DI ISI | AF11: =IF(AE11="1","PNS",IF(AE11="2","TNI/Polri",IF(AE11="3","Guru/Dosen",IF(AE11="4","Dokter",IF(AE11="5","Politikus",IF(AE11="6","Wiraswasta",IF(AE11="7","Pekerja Seni/Sejenis",IF(AE11="8","Lainnya","DI ISI")))))))) -> DI ISI | AH11: =IF(AG11="1","< 1 Km",IF(AG11="2","1-3 Km",IF(AG11="3","3-5 Km",IF(AG11="4","5-10 Km",IF(AG11="5","> 10 Km","DI ISI"))))) -> DI ISI | AJ11: =IF(AI11="1","Jalan Kaki",IF(AI11="2","Sepeda",IF(AI11="3","motor",IF(AI11="4","Mobil Pribadi",IF(AI11="5","Antar/Jemput",IF(AI11="6","Angkutan",IF(AI11="7","Lainnya","DI ISI"))))))) -> DI ISI | AK11: 1 | AL11: 1 | AM11: =IF(AL11="1","TK",IF(AL11="2","RA",IF(AL11="3","PAUD",IF(AL11="4","TKLB",IF(AL11="5","Langsung dari Ortu","DI ISI"))))) -> TK | AN11: TK DEWI SARTIKA KEBONSARI | AO11: SARIREJO I | AP11: 10 | AQ11: 2 | AR11: KEBONSARI | AS11: 2508212909090026 | AW11: 111235080166 | AX11: 19 | AY11: =AW11&AX11&C11 -> 111235080166194788
A12: 9 | C12: 4789 | D12: FITRI DWI ANANDA | E12: P | F12: LUMAJANG | G12: 2012-09-14 | H12: =DATEDIF(G12,PETUNJUK!$H$10,"y") -> 6 | I12: =_xlfn.NUMBERVALUE(H12) -> 6 | J12: 3508215409120001 | K12: IMRON HAMZAH | L12: 3508210503800001 | M12: 1980-03-05 | N12: LILIK LAILIYAH | O12: 3508214109830002 | P12: 1983-09-01 | Q12: 15 | R12: =IF(Q12="01","Tdk Bekerja",IF(Q12="02","Pensiunan/Alm.",IF(Q12="03","PNS",IF(Q12="04","TNI/POLRI",IF(Q12="05","Guru/Dosen",IF(Q12="06","Peg.Swasta",IF(Q12="07","Pengusaha/Wiraswasta",IF(Q12="08","Pengacara/Hakim/Jaksa/Notaris",IF(Q12="09","Seniman/Sejenis",IF(Q12="10","Dokter/Sejenis",IF(Q12="11","Penerbangan",IF(Q12="12","Pedagang",IF(Q12="13","Petani/ternak",IF(Q12="14","Nelayan",IF(Q12="15","Buruh",IF(Q12="16","Angkutan",IF(Q12="17","PolitikusS",IF(Q12="18","Lainnya","DI ISI")))))))))))))))))) -> Buruh | S12: 01 | T12: =IF(S12="01","Tdk Bekerja",IF(S12="02","Pensiunan/Alm.",IF(S12="03","PNS",IF(S12="04","TNI/POLRI",IF(S12="05","Guru/Dosen",IF(S12="06","Peg.Swasta",IF(S12="07","Pengusaha/Wiraswasta",IF(S12="08","Pengacara/Hakim/Jaksa/Notaris",IF(S12="09","Seniman/Sejenis",IF(S12="10","Dokter/Sejenis",IF(S12="11","Penerbangan",IF(S12="12","Pedagang",IF(S12="13","Petani/ternak",IF(S12="14","Nelayan",IF(S12="15","Buruh",IF(S12="16","Angkutan",IF(S12="17","PolitikusS",IF(S12="18","Lainnya","DI ISI")))))))))))))))))) -> Tdk Bekerja | U12: =IF(Q12="03","DIISI","-") -> - | V12: =IF(S12="03","DIISI","-") -> - | X12: =IF(W12="0","Tdk Pnddkan Formal",IF(W12="1","<=SLTP",IF(W12="2","SLTA",IF(W12="3","D1",IF(W12="4","D2",IF(W12="5","D3",IF(W12="6","D4",IF(W12="7","S1",IF(W12="8","S2",IF(W12="9","S3","DI ISI")))))))))) -> DI ISI | Z12: =IF(Y12="0","Tdk Pnddkan Formal",IF(Y12="1","<=SLTP",IF(Y12="2","SLTA",IF(Y12="3","D1",IF(Y12="4","D2",IF(Y12="5","D3",IF(Y12="6","D4",IF(Y12="7","S1",IF(Y12="8","S2",IF(Y12="9","S3","DI ISI")))))))))) -> DI ISI | AB12: =IF(AA12="1","<= Rp.500.000",IF(AA12="2","Rp 500.001 - Rp 1.000.000",IF(AA12="3","Rp 1.000.001 - Rp 2.000.000",IF(AA12="4","Rp 2.000.001 - Rp 3.000.000",IF(AA12="5","Rp 3.000.001 - Rp 5.000.000",IF(AA12="6","> Rp 5.000.000","DI ISI")))))) -> DI ISI | AD12: =IF(AC12="1","Olahraga",IF(AC12="2","Kesenian",IF(AC12="3","Membaca",IF(AC12="4","Menulis",IF(AC12="5","Travelling",IF(AC12="6","Lainnya","DI ISI")))))) -> DI ISI | AF12: =IF(AE12="1","PNS",IF(AE12="2","TNI/Polri",IF(AE12="3","Guru/Dosen",IF(AE12="4","Dokter",IF(AE12="5","Politikus",IF(AE12="6","Wiraswasta",IF(AE12="7","Pekerja Seni/Sejenis",IF(AE12="8","Lainnya","DI ISI")))))))) -> DI ISI | AH12: =IF(AG12="1","< 1 Km",IF(AG12="2","1-3 Km",IF(AG12="3","3-5 Km",IF(AG12="4","5-10 Km",IF(AG12="5","> 10 Km","DI ISI"))))) -> DI ISI | AJ12: =IF(AI12="1","Jalan Kaki",IF(AI12="2","Sepeda",IF(AI12="3","motor",IF(AI12="4","Mobil Pribadi",IF(AI12="5","Antar/Jemput",IF(AI12="6","Angkutan",IF(AI12="7","Lainnya","DI ISI"))))))) -> DI ISI | AK12: 1 | AL12: 1 | AM12: =IF(AL12="1","TK",IF(AL12="2","RA",IF(AL12="3","PAUD",IF(AL12="4","TKLB",IF(AL12="5","Langsung dari Ortu","DI ISI"))))) -> TK | AN12: TK DEWI SARTIKA KEBONSARI | AO12: SUKO I | AP12: 2 | AQ12: 1 | AR12: SUMBERSUKO | AS12: 3508210410090083 | AW12: 111235080166 | AX12: 19 | AY12: =AW12&AX12&C12 -> 111235080166194789
A13: 10 | C13: 4790 | D13: HIKMAL GIBRAN ALFARUQ | E13: L | F13: LUMAJANG | G13: 2012-03-31 | H13: =DATEDIF(G13,PETUNJUK!$H$10,"y") -> 7 | I13: =_xlfn.NUMBERVALUE(H13) -> 7 | J13: 3508213103120001 | K13: EKO YULIYANTO | L13: 3508211807850002 | M13: 1985-07-18 | N13: NENENG KRISTIYANTI | O13: 3508216201890001 | P13: 1989-01-22 | Q13: 06 | R13: =IF(Q13="01","Tdk Bekerja",IF(Q13="02","Pensiunan/Alm.",IF(Q13="03","PNS",IF(Q13="04","TNI/POLRI",IF(Q13="05","Guru/Dosen",IF(Q13="06","Peg.Swasta",IF(Q13="07","Pengusaha/Wiraswasta",IF(Q13="08","Pengacara/Hakim/Jaksa/Notaris",IF(Q13="09","Seniman/Sejenis",IF(Q13="10","Dokter/Sejenis",IF(Q13="11","Penerbangan",IF(Q13="12","Pedagang",IF(Q13="13","Petani/ternak",IF(Q13="14","Nelayan",IF(Q13="15","Buruh",IF(Q13="16","Angkutan",IF(Q13="17","PolitikusS",IF(Q13="18","Lainnya","DI ISI")))))))))))))))))) -> Peg.Swasta | S13: 06 | T13: =IF(S13="01","Tdk Bekerja",IF(S13="02","Pensiunan/Alm.",IF(S13="03","PNS",IF(S13="04","TNI/POLRI",IF(S13="05","Guru/Dosen",IF(S13="06","Peg.Swasta",IF(S13="07","Pengusaha/Wiraswasta",IF(S13="08","Pengacara/Hakim/Jaksa/Notaris",IF(S13="09","Seniman/Sejenis",IF(S13="10","Dokter/Sejenis",IF(S13="11","Penerbangan",IF(S13="12","Pedagang",IF(S13="13","Petani/ternak",IF(S13="14","Nelayan",IF(S13="15","Buruh",IF(S13="16","Angkutan",IF(S13="17","PolitikusS",IF(S13="18","Lainnya","DI ISI")))))))))))))))))) -> Peg.Swasta | U13: =IF(Q13="03","DIISI","-") -> - | V13: =IF(S13="03","DIISI","-") -> - | X13: =IF(W13="0","Tdk Pnddkan Formal",IF(W13="1","<=SLTP",IF(W13="2","SLTA",IF(W13="3","D1",IF(W13="4","D2",IF(W13="5","D3",IF(W13="6","D4",IF(W13="7","S1",IF(W13="8","S2",IF(W13="9","S3","DI ISI")))))))))) -> DI ISI | Z13: =IF(Y13="0","Tdk Pnddkan Formal",IF(Y13="1","<=SLTP",IF(Y13="2","SLTA",IF(Y13="3","D1",IF(Y13="4","D2",IF(Y13="5","D3",IF(Y13="6","D4",IF(Y13="7","S1",IF(Y13="8","S2",IF(Y13="9","S3","DI ISI")))))))))) -> DI ISI | AB13: =IF(AA13="1","<= Rp.500.000",IF(AA13="2","Rp 500.001 - Rp 1.000.000",IF(AA13="3","Rp 1.000.001 - Rp 2.000.000",IF(AA13="4","Rp 2.000.001 - Rp 3.000.000",IF(AA13="5","Rp 3.000.001 - Rp 5.000.000",IF(AA13="6","> Rp 5.000.000","DI ISI")))))) -> DI ISI | AD13: =IF(AC13="1","Olahraga",IF(AC13="2","Kesenian",IF(AC13="3","Membaca",IF(AC13="4","Menulis",IF(AC13="5","Travelling",IF(AC13="6","Lainnya","DI ISI")))))) -> DI ISI | AF13: =IF(AE13="1","PNS",IF(AE13="2","TNI/Polri",IF(AE13="3","Guru/Dosen",IF(AE13="4","Dokter",IF(AE13="5","Politikus",IF(AE13="6","Wiraswasta",IF(AE13="7","Pekerja Seni/Sejenis",IF(AE13="8","Lainnya","DI ISI")))))))) -> DI ISI | AH13: =IF(AG13="1","< 1 Km",IF(AG13="2","1-3 Km",IF(AG13="3","3-5 Km",IF(AG13="4","5-10 Km",IF(AG13="5","> 10 Km","DI ISI"))))) -> DI ISI | AJ13: =IF(AI13="1","Jalan Kaki",IF(AI13="2","Sepeda",IF(AI13="3","motor",IF(AI13="4","Mobil Pribadi",IF(AI13="5","Antar/Jemput",IF(AI13="6","Angkutan",IF(AI13="7","Lainnya","DI ISI"))))))) -> DI ISI | AK13: 0 | AL13: 1 | AM13: =IF(AL13="1","TK",IF(AL13="2","RA",IF(AL13="3","PAUD",IF(AL13="4","TKLB",IF(AL13="5","Langsung dari Ortu","DI ISI"))))) -> TK | AN13: TK MUSLIMAT NU 01 KEBONSARI | AO13: SARIREJO I | AP13: 7 | AQ13: 1 | AR13: KEBONSARI | AS13: 3508211204120008 | AU13: 085236049258 | AW13: 111235080166 | AX13: 19 | AY13: =AW13&AX13&C13 -> 111235080166194790
A14: 11 | C14: 4791 | D14: ISMAWAUL MAULIDA | E14: P | F14: LUMAJANG | G14: 2012-01-31 | H14: =DATEDIF(G14,PETUNJUK!$H$10,"y") -> 7 | I14: =_xlfn.NUMBERVALUE(H14) -> 7 | J14: 3508217101120001 | K14: MUHAMMAD HERI PRIBADI | L14: 3508212602830002 | M14: 1983-02-26 | N14: SITI MASRUROH | O14: 3508214405850002 | P14: 1985-05-04 | Q14: 09 | R14: =IF(Q14="01","Tdk Bekerja",IF(Q14="02","Pensiunan/Alm.",IF(Q14="03","PNS",IF(Q14="04","TNI/POLRI",IF(Q14="05","Guru/Dosen",IF(Q14="06","Peg.Swasta",IF(Q14="07","Pengusaha/Wiraswasta",IF(Q14="08","Pengacara/Hakim/Jaksa/Notaris",IF(Q14="09","Seniman/Sejenis",IF(Q14="10","Dokter/Sejenis",IF(Q14="11","Penerbangan",IF(Q14="12","Pedagang",IF(Q14="13","Petani/ternak",IF(Q14="14","Nelayan",IF(Q14="15","Buruh",IF(Q14="16","Angkutan",IF(Q14="17","PolitikusS",IF(Q14="18","Lainnya","DI ISI")))))))))))))))))) -> Seniman/Sejenis | S14: 01 | T14: =IF(S14="01","Tdk Bekerja",IF(S14="02","Pensiunan/Alm.",IF(S14="03","PNS",IF(S14="04","TNI/POLRI",IF(S14="05","Guru/Dosen",IF(S14="06","Peg.Swasta",IF(S14="07","Pengusaha/Wiraswasta",IF(S14="08","Pengacara/Hakim/Jaksa/Notaris",IF(S14="09","Seniman/Sejenis",IF(S14="10","Dokter/Sejenis",IF(S14="11","Penerbangan",IF(S14="12","Pedagang",IF(S14="13","Petani/ternak",IF(S14="14","Nelayan",IF(S14="15","Buruh",IF(S14="16","Angkutan",IF(S14="17","PolitikusS",IF(S14="18","Lainnya","DI ISI")))))))))))))))))) -> Tdk Bekerja | U14: =IF(Q14="03","DIISI","-") -> - | V14: =IF(S14="03","DIISI","-") -> - | X14: =IF(W14="0","Tdk Pnddkan Formal",IF(W14="1","<=SLTP",IF(W14="2","SLTA",IF(W14="3","D1",IF(W14="4","D2",IF(W14="5","D3",IF(W14="6","D4",IF(W14="7","S1",IF(W14="8","S2",IF(W14="9","S3","DI ISI")))))))))) -> DI ISI | Z14: =IF(Y14="0","Tdk Pnddkan Formal",IF(Y14="1","<=SLTP",IF(Y14="2","SLTA",IF(Y14="3","D1",IF(Y14="4","D2",IF(Y14="5","D3",IF(Y14="6","D4",IF(Y14="7","S1",IF(Y14="8","S2",IF(Y14="9","S3","DI ISI")))))))))) -> DI ISI | AB14: =IF(AA14="1","<= Rp.500.000",IF(AA14="2","Rp 500.001 - Rp 1.000.000",IF(AA14="3","Rp 1.000.001 - Rp 2.000.000",IF(AA14="4","Rp 2.000.001 - Rp 3.000.000",IF(AA14="5","Rp 3.000.001 - Rp 5.000.000",IF(AA14="6","> Rp 5.000.000","DI ISI")))))) -> DI ISI | AD14: =IF(AC14="1","Olahraga",IF(AC14="2","Kesenian",IF(AC14="3","Membaca",IF(AC14="4","Menulis",IF(AC14="5","Travelling",IF(AC14="6","Lainnya","DI ISI")))))) -> DI ISI | AF14: =IF(AE14="1","PNS",IF(AE14="2","TNI/Polri",IF(AE14="3","Guru/Dosen",IF(AE14="4","Dokter",IF(AE14="5","Politikus",IF(AE14="6","Wiraswasta",IF(AE14="7","Pekerja Seni/Sejenis",IF(AE14="8","Lainnya","DI ISI")))))))) -> DI ISI | AH14: =IF(AG14="1","< 1 Km",IF(AG14="2","1-3 Km",IF(AG14="3","3-5 Km",IF(AG14="4","5-10 Km",IF(AG14="5","> 10 Km","DI ISI"))))) -> DI ISI | AJ14: =IF(AI14="1","Jalan Kaki",IF(AI14="2","Sepeda",IF(AI14="3","motor",IF(AI14="4","Mobil Pribadi",IF(AI14="5","Antar/Jemput",IF(AI14="6","Angkutan",IF(AI14="7","Lainnya","DI ISI"))))))) -> DI ISI | AK14: 1 | AL14: 1 | AM14: =IF(AL14="1","TK",IF(AL14="2","RA",IF(AL14="3","PAUD",IF(AL14="4","TKLB",IF(AL14="5","Langsung dari Ortu","DI ISI"))))) -> TK | AN14: TK TARBIYATUSH SHIBYAN | AO14: GEDONGSARI | AP14: 51 | AQ14: 7 | AR14: LABRUK KIDUL | AS14: 3508211310090158 | AU14: 081232598295 | AW14: 111235080166 | AX14: 19 | AY14: =AW14&AX14&C14 -> 111235080166194791
A15: 12 | C15: 4792 | D15: IZZAH AQILAH | E15: P | F15: LUMAJANG | G15: 2012-08-07 | H15: =DATEDIF(G15,PETUNJUK!$H$10,"y") -> 6 | I15: =_xlfn.NUMBERVALUE(H15) -> 6 | J15: 3508214708120001 | K15: ALI MUZAKKI | L15: 3508212910720002 | M15: 29/10/1972 | N15: ANING FITROTIN MUAWANAH | O15: 3508215307810002 | P15: 13/7/81 | Q15: 03 | R15: =IF(Q15="01","Tdk Bekerja",IF(Q15="02","Pensiunan/Alm.",IF(Q15="03","PNS",IF(Q15="04","TNI/POLRI",IF(Q15="05","Guru/Dosen",IF(Q15="06","Peg.Swasta",IF(Q15="07","Pengusaha/Wiraswasta",IF(Q15="08","Pengacara/Hakim/Jaksa/Notaris",IF(Q15="09","Seniman/Sejenis",IF(Q15="10","Dokter/Sejenis",IF(Q15="11","Penerbangan",IF(Q15="12","Pedagang",IF(Q15="13","Petani/ternak",IF(Q15="14","Nelayan",IF(Q15="15","Buruh",IF(Q15="16","Angkutan",IF(Q15="17","PolitikusS",IF(Q15="18","Lainnya","DI ISI")))))))))))))))))) -> PNS | S15: 05 | T15: =IF(S15="01","Tdk Bekerja",IF(S15="02","Pensiunan/Alm.",IF(S15="03","PNS",IF(S15="04","TNI/POLRI",IF(S15="05","Guru/Dosen",IF(S15="06","Peg.Swasta",IF(S15="07","Pengusaha/Wiraswasta",IF(S15="08","Pengacara/Hakim/Jaksa/Notaris",IF(S15="09","Seniman/Sejenis",IF(S15="10","Dokter/Sejenis",IF(S15="11","Penerbangan",IF(S15="12","Pedagang",IF(S15="13","Petani/ternak",IF(S15="14","Nelayan",IF(S15="15","Buruh",IF(S15="16","Angkutan",IF(S15="17","PolitikusS",IF(S15="18","Lainnya","DI ISI")))))))))))))))))) -> Guru/Dosen | U15: =IF(Q15="03","DIISI","-") -> DIISI | V15: =IF(S15="03","DIISI","-") -> - | X15: =IF(W15="0","Tdk Pnddkan Formal",IF(W15="1","<=SLTP",IF(W15="2","SLTA",IF(W15="3","D1",IF(W15="4","D2",IF(W15="5","D3",IF(W15="6","D4",IF(W15="7","S1",IF(W15="8","S2",IF(W15="9","S3","DI ISI")))))))))) -> DI ISI | Z15: =IF(Y15="0","Tdk Pnddkan Formal",IF(Y15="1","<=SLTP",IF(Y15="2","SLTA",IF(Y15="3","D1",IF(Y15="4","D2",IF(Y15="5","D3",IF(Y15="6","D4",IF(Y15="7","S1",IF(Y15="8","S2",IF(Y15="9","S3","DI ISI")))))))))) -> DI ISI | AB15: =IF(AA15="1","<= Rp.500.000",IF(AA15="2","Rp 500.001 - Rp 1.000.000",IF(AA15="3","Rp 1.000.001 - Rp 2.000.000",IF(AA15="4","Rp 2.000.001 - Rp 3.000.000",IF(AA15="5","Rp 3.000.001 - Rp 5.000.000",IF(AA15="6","> Rp 5.000.000","DI ISI")))))) -> DI ISI | AD15: =IF(AC15="1","Olahraga",IF(AC15="2","Kesenian",IF(AC15="3","Membaca",IF(AC15="4","Menulis",IF(AC15="5","Travelling",IF(AC15="6","Lainnya","DI ISI")))))) -> DI ISI | AF15: =IF(AE15="1","PNS",IF(AE15="2","TNI/Polri",IF(AE15="3","Guru/Dosen",IF(AE15="4","Dokter",IF(AE15="5","Politikus",IF(AE15="6","Wiraswasta",IF(AE15="7","Pekerja Seni/Sejenis",IF(AE15="8","Lainnya","DI ISI")))))))) -> DI ISI | AH15: =IF(AG15="1","< 1 Km",IF(AG15="2","1-3 Km",IF(AG15="3","3-5 Km",IF(AG15="4","5-10 Km",IF(AG15="5","> 10 Km","DI ISI"))))) -> DI ISI | AJ15: =IF(AI15="1","Jalan Kaki",IF(AI15="2","Sepeda",IF(AI15="3","motor",IF(AI15="4","Mobil Pribadi",IF(AI15="5","Antar/Jemput",IF(AI15="6","Angkutan",IF(AI15="7","Lainnya","DI ISI"))))))) -> DI ISI | AK15: 1 | AL15: 1 | AM15: =IF(AL15="1","TK",IF(AL15="2","RA",IF(AL15="3","PAUD",IF(AL15="4","TKLB",IF(AL15="5","Langsung dari Ortu","DI ISI"))))) -> TK | AN15: TK DHARMA WANITA TOMPOKERSAN 2 | AO15: KRAJAN BARAT | AP15: 28 | AQ15: 5 | AR15: LABRUK KIDUL | AS15: 3508212706120025 | AW15: 111235080166 | AX15: 19 | AY15: =AW15&AX15&C15 -> 111235080166194792
A16: 13 | C16: 4793 | D16: KENZIE ABDILLAH AQEEL | E16: L | F16: LUMAJANG | G16: 2012-11-07 | H16: =DATEDIF(G16,PETUNJUK!$H$10,"y") -> 6 | I16: =_xlfn.NUMBERVALUE(H16) -> 6 | J16: 3508210711120002 | K16: SURYADI | L16: 3508210802860002 | M16: 1986-02-08 | N16: DEWI KUMALASARI | O16: 3508035507930003 | P16: 1993-07-15 | Q16: 07 | R16: =IF(Q16="01","Tdk Bekerja",IF(Q16="02","Pensiunan/Alm.",IF(Q16="03","PNS",IF(Q16="04","TNI/POLRI",IF(Q16="05","Guru/Dosen",IF(Q16="06","Peg.Swasta",IF(Q16="07","Pengusaha/Wiraswasta",IF(Q16="08","Pengacara/Hakim/Jaksa/Notaris",IF(Q16="09","Seniman/Sejenis",IF(Q16="10","Dokter/Sejenis",IF(Q16="11","Penerbangan",IF(Q16="12","Pedagang",IF(Q16="13","Petani/ternak",IF(Q16="14","Nelayan",IF(Q16="15","Buruh",IF(Q16="16","Angkutan",IF(Q16="17","PolitikusS",IF(Q16="18","Lainnya","DI ISI")))))))))))))))))) -> Pengusaha/Wiraswasta | S16: 01 | T16: =IF(S16="01","Tdk Bekerja",IF(S16="02","Pensiunan/Alm.",IF(S16="03","PNS",IF(S16="04","TNI/POLRI",IF(S16="05","Guru/Dosen",IF(S16="06","Peg.Swasta",IF(S16="07","Pengusaha/Wiraswasta",IF(S16="08","Pengacara/Hakim/Jaksa/Notaris",IF(S16="09","Seniman/Sejenis",IF(S16="10","Dokter/Sejenis",IF(S16="11","Penerbangan",IF(S16="12","Pedagang",IF(S16="13","Petani/ternak",IF(S16="14","Nelayan",IF(S16="15","Buruh",IF(S16="16","Angkutan",IF(S16="17","PolitikusS",IF(S16="18","Lainnya","DI ISI")))))))))))))))))) -> Tdk Bekerja | U16: =IF(Q16="03","DIISI","-") -> - | V16: =IF(S16="03","DIISI","-") -> - | X16: =IF(W16="0","Tdk Pnddkan Formal",IF(W16="1","<=SLTP",IF(W16="2","SLTA",IF(W16="3","D1",IF(W16="4","D2",IF(W16="5","D3",IF(W16="6","D4",IF(W16="7","S1",IF(W16="8","S2",IF(W16="9","S3","DI ISI")))))))))) -> DI ISI | Z16: =IF(Y16="0","Tdk Pnddkan Formal",IF(Y16="1","<=SLTP",IF(Y16="2","SLTA",IF(Y16="3","D1",IF(Y16="4","D2",IF(Y16="5","D3",IF(Y16="6","D4",IF(Y16="7","S1",IF(Y16="8","S2",IF(Y16="9","S3","DI ISI")))))))))) -> DI ISI | AB16: =IF(AA16="1","<= Rp.500.000",IF(AA16="2","Rp 500.001 - Rp 1.000.000",IF(AA16="3","Rp 1.000.001 - Rp 2.000.000",IF(AA16="4","Rp 2.000.001 - Rp 3.000.000",IF(AA16="5","Rp 3.000.001 - Rp 5.000.000",IF(AA16="6","> Rp 5.000.000","DI ISI")))))) -> DI ISI | AD16: =IF(AC16="1","Olahraga",IF(AC16="2","Kesenian",IF(AC16="3","Membaca",IF(AC16="4","Menulis",IF(AC16="5","Travelling",IF(AC16="6","Lainnya","DI ISI")))))) -> DI ISI | AF16: =IF(AE16="1","PNS",IF(AE16="2","TNI/Polri",IF(AE16="3","Guru/Dosen",IF(AE16="4","Dokter",IF(AE16="5","Politikus",IF(AE16="6","Wiraswasta",IF(AE16="7","Pekerja Seni/Sejenis",IF(AE16="8","Lainnya","DI ISI")))))))) -> DI ISI | AH16: =IF(AG16="1","< 1 Km",IF(AG16="2","1-3 Km",IF(AG16="3","3-5 Km",IF(AG16="4","5-10 Km",IF(AG16="5","> 10 Km","DI ISI"))))) -> DI ISI | AJ16: =IF(AI16="1","Jalan Kaki",IF(AI16="2","Sepeda",IF(AI16="3","motor",IF(AI16="4","Mobil Pribadi",IF(AI16="5","Antar/Jemput",IF(AI16="6","Angkutan",IF(AI16="7","Lainnya","DI ISI"))))))) -> DI ISI | AK16: 0 | AL16: 1 | AM16: =IF(AL16="1","TK",IF(AL16="2","RA",IF(AL16="3","PAUD",IF(AL16="4","TKLB",IF(AL16="5","Langsung dari Ortu","DI ISI"))))) -> TK | AN16: TK MUSLIMAT NU 01 KEBONSARI | AO16: SUKO I | AP16: 3 | AQ16: 1 | AR16: SUMBERSUKO | AS16: 3508211509090029 | AU16: 085319339419 | AW16: 111235080166 | AX16: 19 | AY16: =AW16&AX16&C16 -> 111235080166194793
A17: 15 | C17: 4795 | D17: MARCELLINO YOVABEL FEBRYAN | E17: L | F17: MALANG | G17: 2012-02-06 | H17: =DATEDIF(G17,PETUNJUK!$H$10,"y") -> 7 | I17: =_xlfn.NUMBERVALUE(H17) -> 7 | J17: 3507060602120001 | K17: YULIUS CANDRA KURNIAWAN | L17: 3507061407830001 | M17: 1986-07-14 | N17: FITRIYAH | O17: 3507067105870001 | P17: 1987-05-31 | Q17: 07 | R17: =IF(Q17="01","Tdk Bekerja",IF(Q17="02","Pensiunan/Alm.",IF(Q17="03","PNS",IF(Q17="04","TNI/POLRI",IF(Q17="05","Guru/Dosen",IF(Q17="06","Peg.Swasta",IF(Q17="07","Pengusaha/Wiraswasta",IF(Q17="08","Pengacara/Hakim/Jaksa/Notaris",IF(Q17="09","Seniman/Sejenis",IF(Q17="10","Dokter/Sejenis",IF(Q17="11","Penerbangan",IF(Q17="12","Pedagang",IF(Q17="13","Petani/ternak",IF(Q17="14","Nelayan",IF(Q17="15","Buruh",IF(Q17="16","Angkutan",IF(Q17="17","PolitikusS",IF(Q17="18","Lainnya","DI ISI")))))))))))))))))) -> Pengusaha/Wiraswasta | S17: 07 | T17: =IF(S17="01","Tdk Bekerja",IF(S17="02","Pensiunan/Alm.",IF(S17="03","PNS",IF(S17="04","TNI/POLRI",IF(S17="05","Guru/Dosen",IF(S17="06","Peg.Swasta",IF(S17="07","Pengusaha/Wiraswasta",IF(S17="08","Pengacara/Hakim/Jaksa/Notaris",IF(S17="09","Seniman/Sejenis",IF(S17="10","Dokter/Sejenis",IF(S17="11","Penerbangan",IF(S17="12","Pedagang",IF(S17="13","Petani/ternak",IF(S17="14","Nelayan",IF(S17="15","Buruh",IF(S17="16","Angkutan",IF(S17="17","PolitikusS",IF(S17="18","Lainnya","DI ISI")))))))))))))))))) -> Pengusaha/Wiraswasta | U17: =IF(Q17="03","DIISI","-") -> - | V17: =IF(S17="03","DIISI","-") -> - | X17: =IF(W17="0","Tdk Pnddkan Formal",IF(W17="1","<=SLTP",IF(W17="2","SLTA",IF(W17="3","D1",IF(W17="4","D2",IF(W17="5","D3",IF(W17="6","D4",IF(W17="7","S1",IF(W17="8","S2",IF(W17="9","S3","DI ISI")))))))))) -> DI ISI | Z17: =IF(Y17="0","Tdk Pnddkan Formal",IF(Y17="1","<=SLTP",IF(Y17="2","SLTA",IF(Y17="3","D1",IF(Y17="4","D2",IF(Y17="5","D3",IF(Y17="6","D4",IF(Y17="7","S1",IF(Y17="8","S2",IF(Y17="9","S3","DI ISI")))))))))) -> DI ISI | AB17: =IF(AA17="1","<= Rp.500.000",IF(AA17="2","Rp 500.001 - Rp 1.000.000",IF(AA17="3","Rp 1.000.001 - Rp 2.000.000",IF(AA17="4","Rp 2.000.001 - Rp 3.000.000",IF(AA17="5","Rp 3.000.001 - Rp 5.000.000",IF(AA17="6","> Rp 5.000.000","DI ISI")))))) -> DI ISI | AD17: =IF(AC17="1","Olahraga",IF(AC17="2","Kesenian",IF(AC17="3","Membaca",IF(AC17="4","Menulis",IF(AC17="5","Travelling",IF(AC17="6","Lainnya","DI ISI")))))) -> DI ISI | AF17: =IF(AE17="1","PNS",IF(AE17="2","TNI/Polri",IF(AE17="3","Guru/Dosen",IF(AE17="4","Dokter",IF(AE17="5","Politikus",IF(AE17="6","Wiraswasta",IF(AE17="7","Pekerja Seni/Sejenis",IF(AE17="8","Lainnya","DI ISI")))))))) -> DI ISI | AH17: =IF(AG17="1","< 1 Km",IF(AG17="2","1-3 Km",IF(AG17="3","3-5 Km",IF(AG17="4","5-10 Km",IF(AG17="5","> 10 Km","DI ISI"))))) -> DI ISI | AJ17: =IF(AI17="1","Jalan Kaki",IF(AI17="2","Sepeda",IF(AI17="3","motor",IF(AI17="4","Mobil Pribadi",IF(AI17="5","Antar/Jemput",IF(AI17="6","Angkutan",IF(AI17="7","Lainnya","DI ISI"))))))) -> DI ISI | AL17: 5 | AM17: =IF(AL17="1","TK",IF(AL17="2","RA",IF(AL17="3","PAUD",IF(AL17="4","TKLB",IF(AL17="5","Langsung dari Ortu","DI ISI"))))) -> Langsung dari Ortu | AW17: 111235080166 | AX17: 19 | AY17: =AW17&AX17&C17 -> 111235080166194795
A18: 16 | C18: 4796 | D18: MUHAMMAD ARDIANSYAH RIZKI | E18: L | F18: LUMAJANG | G18: 2012-11-22 | H18: =DATEDIF(G18,PETUNJUK!$H$10,"y") -> 6 | I18: =_xlfn.NUMBERVALUE(H18) -> 6 | J18: 3508212211120001 | K18: AGUS MULYANI | L18: 3508211207740004 | M18: 1974-07-12 | N18: ENI PURWASIH | O18: 3508215011830001 | P18: 1983-11-10 | Q18: 06 | R18: =IF(Q18="01","Tdk Bekerja",IF(Q18="02","Pensiunan/Alm.",IF(Q18="03","PNS",IF(Q18="04","TNI/POLRI",IF(Q18="05","Guru/Dosen",IF(Q18="06","Peg.Swasta",IF(Q18="07","Pengusaha/Wiraswasta",IF(Q18="08","Pengacara/Hakim/Jaksa/Notaris",IF(Q18="09","Seniman/Sejenis",IF(Q18="10","Dokter/Sejenis",IF(Q18="11","Penerbangan",IF(Q18="12","Pedagang",IF(Q18="13","Petani/ternak",IF(Q18="14","Nelayan",IF(Q18="15","Buruh",IF(Q18="16","Angkutan",IF(Q18="17","PolitikusS",IF(Q18="18","Lainnya","DI ISI")))))))))))))))))) -> Peg.Swasta | S18: 01 | T18: =IF(S18="01","Tdk Bekerja",IF(S18="02","Pensiunan/Alm.",IF(S18="03","PNS",IF(S18="04","TNI/POLRI",IF(S18="05","Guru/Dosen",IF(S18="06","Peg.Swasta",IF(S18="07","Pengusaha/Wiraswasta",IF(S18="08","Pengacara/Hakim/Jaksa/Notaris",IF(S18="09","Seniman/Sejenis",IF(S18="10","Dokter/Sejenis",IF(S18="11","Penerbangan",IF(S18="12","Pedagang",IF(S18="13","Petani/ternak",IF(S18="14","Nelayan",IF(S18="15","Buruh",IF(S18="16","Angkutan",IF(S18="17","PolitikusS",IF(S18="18","Lainnya","DI ISI")))))))))))))))))) -> Tdk Bekerja | U18: =IF(Q18="03","DIISI","-") -> - | V18: =IF(S18="03","DIISI","-") -> - | X18: =IF(W18="0","Tdk Pnddkan Formal",IF(W18="1","<=SLTP",IF(W18="2","SLTA",IF(W18="3","D1",IF(W18="4","D2",IF(W18="5","D3",IF(W18="6","D4",IF(W18="7","S1",IF(W18="8","S2",IF(W18="9","S3","DI ISI")))))))))) -> DI ISI | Z18: =IF(Y18="0","Tdk Pnddkan Formal",IF(Y18="1","<=SLTP",IF(Y18="2","SLTA",IF(Y18="3","D1",IF(Y18="4","D2",IF(Y18="5","D3",IF(Y18="6","D4",IF(Y18="7","S1",IF(Y18="8","S2",IF(Y18="9","S3","DI ISI")))))))))) -> DI ISI | AB18: =IF(AA18="1","<= Rp.500.000",IF(AA18="2","Rp 500.001 - Rp 1.000.000",IF(AA18="3","Rp 1.000.001 - Rp 2.000.000",IF(AA18="4","Rp 2.000.001 - Rp 3.000.000",IF(AA18="5","Rp 3.000.001 - Rp 5.000.000",IF(AA18="6","> Rp 5.000.000","DI ISI")))))) -> DI ISI | AD18: =IF(AC18="1","Olahraga",IF(AC18="2","Kesenian",IF(AC18="3","Membaca",IF(AC18="4","Menulis",IF(AC18="5","Travelling",IF(AC18="6","Lainnya","DI ISI")))))) -> DI ISI | AF18: =IF(AE18="1","PNS",IF(AE18="2","TNI/Polri",IF(AE18="3","Guru/Dosen",IF(AE18="4","Dokter",IF(AE18="5","Politikus",IF(AE18="6","Wiraswasta",IF(AE18="7","Pekerja Seni/Sejenis",IF(AE18="8","Lainnya","DI ISI")))))))) -> DI ISI | AH18: =IF(AG18="1","< 1 Km",IF(AG18="2","1-3 Km",IF(AG18="3","3-5 Km",IF(AG18="4","5-10 Km",IF(AG18="5","> 10 Km","DI ISI"))))) -> DI ISI | AJ18: =IF(AI18="1","Jalan Kaki",IF(AI18="2","Sepeda",IF(AI18="3","motor",IF(AI18="4","Mobil Pribadi",IF(AI18="5","Antar/Jemput",IF(AI18="6","Angkutan",IF(AI18="7","Lainnya","DI ISI"))))))) -> DI ISI | AK18: 1 | AL18: 1 | AM18: =IF(AL18="1","TK",IF(AL18="2","RA",IF(AL18="3","PAUD",IF(AL18="4","TKLB",IF(AL18="5","Langsung dari Ortu","DI ISI"))))) -> TK | AN18: TK MUSLIMAT NU 01 KEBONSARI | AO18: SUKO I | AP18: 4 | AQ18: 1 | AR18: SUMBERSUKO | AS18: 3508210705080004 | AU18: 085234081683 | AW18: 111235080166 | AX18: 19 | AY18: =AW18&AX18&C18 -> 111235080166194796
A19: 17 | C19: 4797 | D19: MUHAMMAD DAUD WILDAN NURO | E19: L | F19: LUMAJANG | G19: 2012-10-01 | H19: =DATEDIF(G19,PETUNJUK!$H$10,"y") -> 6 | I19: =_xlfn.NUMBERVALUE(H19) -> 6 | J19: 3508210110120001 | K19: EDY WAHYUDI | L19: 3508212306770002 | M19: 1977-06-23 | N19: ULIL HIDAYAH | O19: 3508215704790001 | P19: 1979-04-17 | Q19: 06 | R19: =IF(Q19="01","Tdk Bekerja",IF(Q19="02","Pensiunan/Alm.",IF(Q19="03","PNS",IF(Q19="04","TNI/POLRI",IF(Q19="05","Guru/Dosen",IF(Q19="06","Peg.Swasta",IF(Q19="07","Pengusaha/Wiraswasta",IF(Q19="08","Pengacara/Hakim/Jaksa/Notaris",IF(Q19="09","Seniman/Sejenis",IF(Q19="10","Dokter/Sejenis",IF(Q19="11","Penerbangan",IF(Q19="12","Pedagang",IF(Q19="13","Petani/ternak",IF(Q19="14","Nelayan",IF(Q19="15","Buruh",IF(Q19="16","Angkutan",IF(Q19="17","PolitikusS",IF(Q19="18","Lainnya","DI ISI")))))))))))))))))) -> Peg.Swasta | S19: 01 | T19: =IF(S19="01","Tdk Bekerja",IF(S19="02","Pensiunan/Alm.",IF(S19="03","PNS",IF(S19="04","TNI/POLRI",IF(S19="05","Guru/Dosen",IF(S19="06","Peg.Swasta",IF(S19="07","Pengusaha/Wiraswasta",IF(S19="08","Pengacara/Hakim/Jaksa/Notaris",IF(S19="09","Seniman/Sejenis",IF(S19="10","Dokter/Sejenis",IF(S19="11","Penerbangan",IF(S19="12","Pedagang",IF(S19="13","Petani/ternak",IF(S19="14","Nelayan",IF(S19="15","Buruh",IF(S19="16","Angkutan",IF(S19="17","PolitikusS",IF(S19="18","Lainnya","DI ISI")))))))))))))))))) -> Tdk Bekerja | U19: =IF(Q19="03","DIISI","-") -> - | V19: =IF(S19="03","DIISI","-") -> - | X19: =IF(W19="0","Tdk Pnddkan Formal",IF(W19="1","<=SLTP",IF(W19="2","SLTA",IF(W19="3","D1",IF(W19="4","D2",IF(W19="5","D3",IF(W19="6","D4",IF(W19="7","S1",IF(W19="8","S2",IF(W19="9","S3","DI ISI")))))))))) -> DI ISI | Z19: =IF(Y19="0","Tdk Pnddkan Formal",IF(Y19="1","<=SLTP",IF(Y19="2","SLTA",IF(Y19="3","D1",IF(Y19="4","D2",IF(Y19="5","D3",IF(Y19="6","D4",IF(Y19="7","S1",IF(Y19="8","S2",IF(Y19="9","S3","DI ISI")))))))))) -> DI ISI | AB19: =IF(AA19="1","<= Rp.500.000",IF(AA19="2","Rp 500.001 - Rp 1.000.000",IF(AA19="3","Rp 1.000.001 - Rp 2.000.000",IF(AA19="4","Rp 2.000.001 - Rp 3.000.000",IF(AA19="5","Rp 3.000.001 - Rp 5.000.000",IF(AA19="6","> Rp 5.000.000","DI ISI")))))) -> DI ISI | AD19: =IF(AC19="1","Olahraga",IF(AC19="2","Kesenian",IF(AC19="3","Membaca",IF(AC19="4","Menulis",IF(AC19="5","Travelling",IF(AC19="6","Lainnya","DI ISI")))))) -> DI ISI | AF19: =IF(AE19="1","PNS",IF(AE19="2","TNI/Polri",IF(AE19="3","Guru/Dosen",IF(AE19="4","Dokter",IF(AE19="5","Politikus",IF(AE19="6","Wiraswasta",IF(AE19="7","Pekerja Seni/Sejenis",IF(AE19="8","Lainnya","DI ISI")))))))) -> DI ISI | AH19: =IF(AG19="1","< 1 Km",IF(AG19="2","1-3 Km",IF(AG19="3","3-5 Km",IF(AG19="4","5-10 Km",IF(AG19="5","> 10 Km","DI ISI"))))) -> DI ISI | AJ19: =IF(AI19="1","Jalan Kaki",IF(AI19="2","Sepeda",IF(AI19="3","motor",IF(AI19="4","Mobil Pribadi",IF(AI19="5","Antar/Jemput",IF(AI19="6","Angkutan",IF(AI19="7","Lainnya","DI ISI"))))))) -> DI ISI | AK19: 1 | AL19: 1 | AM19: =IF(AL19="1","TK",IF(AL19="2","RA",IF(AL19="3","PAUD",IF(AL19="4","TKLB",IF(AL19="5","Langsung dari Ortu","DI ISI"))))) -> TK | AN19: TK MUSLIMAT NU 01 KEBONSARI | AO19: SARIREJO I | AP19: 7 | AQ19: 1 | AR19: KEBONSARI | AS19: 3508212108050925 | AW19: 111235080166 | AX19: 19 | AY19: =AW19&AX19&C19 -> 111235080166194797
A20: 18 | C20: 4798 | D20: MUHAMMAD ILHAM HABIBI | E20: L | F20: LUMAJANG | G20: 2012-09-04 | H20: =DATEDIF(G20,PETUNJUK!$H$10,"y") -> 6 | I20: =_xlfn.NUMBERVALUE(H20) -> 6 | J20: 3508210409120001 | K20: ABDUL GHOFAR | L20: 3508210906790001 | M20: 1979-06-09 | N20: AHADIYAH | O20: 3508216008850003 | P20: 1985-08-20 | Q20: 15 | R20: =IF(Q20="01","Tdk Bekerja",IF(Q20="02","Pensiunan/Alm.",IF(Q20="03","PNS",IF(Q20="04","TNI/POLRI",IF(Q20="05","Guru/Dosen",IF(Q20="06","Peg.Swasta",IF(Q20="07","Pengusaha/Wiraswasta",IF(Q20="08","Pengacara/Hakim/Jaksa/Notaris",IF(Q20="09","Seniman/Sejenis",IF(Q20="10","Dokter/Sejenis",IF(Q20="11","Penerbangan",IF(Q20="12","Pedagang",IF(Q20="13","Petani/ternak",IF(Q20="14","Nelayan",IF(Q20="15","Buruh",IF(Q20="16","Angkutan",IF(Q20="17","PolitikusS",IF(Q20="18","Lainnya","DI ISI")))))))))))))))))) -> Buruh | S20: 01 | T20: =IF(S20="01","Tdk Bekerja",IF(S20="02","Pensiunan/Alm.",IF(S20="03","PNS",IF(S20="04","TNI/POLRI",IF(S20="05","Guru/Dosen",IF(S20="06","Peg.Swasta",IF(S20="07","Pengusaha/Wiraswasta",IF(S20="08","Pengacara/Hakim/Jaksa/Notaris",IF(S20="09","Seniman/Sejenis",IF(S20="10","Dokter/Sejenis",IF(S20="11","Penerbangan",IF(S20="12","Pedagang",IF(S20="13","Petani/ternak",IF(S20="14","Nelayan",IF(S20="15","Buruh",IF(S20="16","Angkutan",IF(S20="17","PolitikusS",IF(S20="18","Lainnya","DI ISI")))))))))))))))))) -> Tdk Bekerja | U20: =IF(Q20="03","DIISI","-") -> - | V20: =IF(S20="03","DIISI","-") -> - | X20: =IF(W20="0","Tdk Pnddkan Formal",IF(W20="1","<=SLTP",IF(W20="2","SLTA",IF(W20="3","D1",IF(W20="4","D2",IF(W20="5","D3",IF(W20="6","D4",IF(W20="7","S1",IF(W20="8","S2",IF(W20="9","S3","DI ISI")))))))))) -> DI ISI | Z20: =IF(Y20="0","Tdk Pnddkan Formal",IF(Y20="1","<=SLTP",IF(Y20="2","SLTA",IF(Y20="3","D1",IF(Y20="4","D2",IF(Y20="5","D3",IF(Y20="6","D4",IF(Y20="7","S1",IF(Y20="8","S2",IF(Y20="9","S3","DI ISI")))))))))) -> DI ISI | AB20: =IF(AA20="1","<= Rp.500.000",IF(AA20="2","Rp 500.001 - Rp 1.000.000",IF(AA20="3","Rp 1.000.001 - Rp 2.000.000",IF(AA20="4","Rp 2.000.001 - Rp 3.000.000",IF(AA20="5","Rp 3.000.001 - Rp 5.000.000",IF(AA20="6","> Rp 5.000.000","DI ISI")))))) -> DI ISI | AD20: =IF(AC20="1","Olahraga",IF(AC20="2","Kesenian",IF(AC20="3","Membaca",IF(AC20="4","Menulis",IF(AC20="5","Travelling",IF(AC20="6","Lainnya","DI ISI")))))) -> DI ISI | AF20: =IF(AE20="1","PNS",IF(AE20="2","TNI/Polri",IF(AE20="3","Guru/Dosen",IF(AE20="4","Dokter",IF(AE20="5","Politikus",IF(AE20="6","Wiraswasta",IF(AE20="7","Pekerja Seni/Sejenis",IF(AE20="8","Lainnya","DI ISI")))))))) -> DI ISI | AH20: =IF(AG20="1","< 1 Km",IF(AG20="2","1-3 Km",IF(AG20="3","3-5 Km",IF(AG20="4","5-10 Km",IF(AG20="5","> 10 Km","DI ISI"))))) -> DI ISI | AJ20: =IF(AI20="1","Jalan Kaki",IF(AI20="2","Sepeda",IF(AI20="3","motor",IF(AI20="4","Mobil Pribadi",IF(AI20="5","Antar/Jemput",IF(AI20="6","Angkutan",IF(AI20="7","Lainnya","DI ISI"))))))) -> DI ISI | AK20: 1 | AL20: 1 | AM20: =IF(AL20="1","TK",IF(AL20="2","RA",IF(AL20="3","PAUD",IF(AL20="4","TKLB",IF(AL20="5","Langsung dari Ortu","DI ISI"))))) -> TK | AN20: TK MUSLIMAT NU 01 KEBONSARI | AO20: KRAJAN TIMUR | AP20: 1 | AQ20: 1 | AR20: LABRUK KIDUL | AS20: 3508212111120004 | AU20: 085258199517 | AW20: 111235080166 | AX20: 19 | AY20: =AW20&AX20&C20 -> 111235080166194798
A21: 19 | C21: 4799 | D21: MUHAMMAD RAYHAN ROHZAQI | E21: L | F21: LUMAJANG | G21: 2012-04-21 | H21: =DATEDIF(G21,PETUNJUK!$H$10,"y") -> 7 | I21: =_xlfn.NUMBERVALUE(H21) -> 7 | J21: 3508212104120001 | K21: ASMADI | L21: 3508211705720001 | M21: 1972-05-17 | N21: NANIK INDAYATI | O21: 3508215312780001 | P21: 1978-12-13 | Q21: 18 | R21: =IF(Q21="01","Tdk Bekerja",IF(Q21="02","Pensiunan/Alm.",IF(Q21="03","PNS",IF(Q21="04","TNI/POLRI",IF(Q21="05","Guru/Dosen",IF(Q21="06","Peg.Swasta",IF(Q21="07","Pengusaha/Wiraswasta",IF(Q21="08","Pengacara/Hakim/Jaksa/Notaris",IF(Q21="09","Seniman/Sejenis",IF(Q21="10","Dokter/Sejenis",IF(Q21="11","Penerbangan",IF(Q21="12","Pedagang",IF(Q21="13","Petani/ternak",IF(Q21="14","Nelayan",IF(Q21="15","Buruh",IF(Q21="16","Angkutan",IF(Q21="17","PolitikusS",IF(Q21="18","Lainnya","DI ISI")))))))))))))))))) -> Lainnya | S21: 01 | T21: =IF(S21="01","Tdk Bekerja",IF(S21="02","Pensiunan/Alm.",IF(S21="03","PNS",IF(S21="04","TNI/POLRI",IF(S21="05","Guru/Dosen",IF(S21="06","Peg.Swasta",IF(S21="07","Pengusaha/Wiraswasta",IF(S21="08","Pengacara/Hakim/Jaksa/Notaris",IF(S21="09","Seniman/Sejenis",IF(S21="10","Dokter/Sejenis",IF(S21="11","Penerbangan",IF(S21="12","Pedagang",IF(S21="13","Petani/ternak",IF(S21="14","Nelayan",IF(S21="15","Buruh",IF(S21="16","Angkutan",IF(S21="17","PolitikusS",IF(S21="18","Lainnya","DI ISI")))))))))))))))))) -> Tdk Bekerja | U21: =IF(Q21="03","DIISI","-") -> - | V21: =IF(S21="03","DIISI","-") -> - | X21: =IF(W21="0","Tdk Pnddkan Formal",IF(W21="1","<=SLTP",IF(W21="2","SLTA",IF(W21="3","D1",IF(W21="4","D2",IF(W21="5","D3",IF(W21="6","D4",IF(W21="7","S1",IF(W21="8","S2",IF(W21="9","S3","DI ISI")))))))))) -> DI ISI | Z21: =IF(Y21="0","Tdk Pnddkan Formal",IF(Y21="1","<=SLTP",IF(Y21="2","SLTA",IF(Y21="3","D1",IF(Y21="4","D2",IF(Y21="5","D3",IF(Y21="6","D4",IF(Y21="7","S1",IF(Y21="8","S2",IF(Y21="9","S3","DI ISI")))))))))) -> DI ISI | AB21: =IF(AA21="1","<= Rp.500.000",IF(AA21="2","Rp 500.001 - Rp 1.000.000",IF(AA21="3","Rp 1.000.001 - Rp 2.000.000",IF(AA21="4","Rp 2.000.001 - Rp 3.000.000",IF(AA21="5","Rp 3.000.001 - Rp 5.000.000",IF(AA21="6","> Rp 5.000.000","DI ISI")))))) -> DI ISI | AD21: =IF(AC21="1","Olahraga",IF(AC21="2","Kesenian",IF(AC21="3","Membaca",IF(AC21="4","Menulis",IF(AC21="5","Travelling",IF(AC21="6","Lainnya","DI ISI")))))) -> DI ISI | AF21: =IF(AE21="1","PNS",IF(AE21="2","TNI/Polri",IF(AE21="3","Guru/Dosen",IF(AE21="4","Dokter",IF(AE21="5","Politikus",IF(AE21="6","Wiraswasta",IF(AE21="7","Pekerja Seni/Sejenis",IF(AE21="8","Lainnya","DI ISI")))))))) -> DI ISI | AH21: =IF(AG21="1","< 1 Km",IF(AG21="2","1-3 Km",IF(AG21="3","3-5 Km",IF(AG21="4","5-10 Km",IF(AG21="5","> 10 Km","DI ISI"))))) -> DI ISI | AJ21: =IF(AI21="1","Jalan Kaki",IF(AI21="2","Sepeda",IF(AI21="3","motor",IF(AI21="4","Mobil Pribadi",IF(AI21="5","Antar/Jemput",IF(AI21="6","Angkutan",IF(AI21="7","Lainnya","DI ISI"))))))) -> DI ISI | AK21: 2 | AL21: 1 | AM21: =IF(AL21="1","TK",IF(AL21="2","RA",IF(AL21="3","PAUD",IF(AL21="4","TKLB",IF(AL21="5","Langsung dari Ortu","DI ISI"))))) -> TK | AN21: TK DHARMA WANITA LABRUK KIDUL | AO21: KRAJAN TIMUR | AP21: 23 | AQ21: 4 | AR21: LABRUK KIDUL | AS21: 3508212308052043 | AW21: 111235080166 | AX21: 19 | AY21: =AW21&AX21&C21 -> 111235080166194799
A22: 20 | C22: 4800 | D22: MUHAMMAD UBAEDILLAH ALFARIZI | E22: L | F22: LUMAJANG | G22: 2012-01-20 | H22: =DATEDIF(G22,PETUNJUK!$H$10,"y") -> 7 | I22: =_xlfn.NUMBERVALUE(H22) -> 7 | J22: 3508212001120001 | K22: SANIMAN MOCH FA'IZ | L22: 3508212812850002 | M22: 1985-12-28 | N22: SITI FATIMAH | O22: 3508215912850002 | P22: 1985-12-19 | Q22: 09 | R22: =IF(Q22="01","Tdk Bekerja",IF(Q22="02","Pensiunan/Alm.",IF(Q22="03","PNS",IF(Q22="04","TNI/POLRI",IF(Q22="05","Guru/Dosen",IF(Q22="06","Peg.Swasta",IF(Q22="07","Pengusaha/Wiraswasta",IF(Q22="08","Pengacara/Hakim/Jaksa/Notaris",IF(Q22="09","Seniman/Sejenis",IF(Q22="10","Dokter/Sejenis",IF(Q22="11","Penerbangan",IF(Q22="12","Pedagang",IF(Q22="13","Petani/ternak",IF(Q22="14","Nelayan",IF(Q22="15","Buruh",IF(Q22="16","Angkutan",IF(Q22="17","PolitikusS",IF(Q22="18","Lainnya","DI ISI")))))))))))))))))) -> Seniman/Sejenis | S22: 01 | T22: =IF(S22="01","Tdk Bekerja",IF(S22="02","Pensiunan/Alm.",IF(S22="03","PNS",IF(S22="04","TNI/POLRI",IF(S22="05","Guru/Dosen",IF(S22="06","Peg.Swasta",IF(S22="07","Pengusaha/Wiraswasta",IF(S22="08","Pengacara/Hakim/Jaksa/Notaris",IF(S22="09","Seniman/Sejenis",IF(S22="10","Dokter/Sejenis",IF(S22="11","Penerbangan",IF(S22="12","Pedagang",IF(S22="13","Petani/ternak",IF(S22="14","Nelayan",IF(S22="15","Buruh",IF(S22="16","Angkutan",IF(S22="17","PolitikusS",IF(S22="18","Lainnya","DI ISI")))))))))))))))))) -> Tdk Bekerja | U22: =IF(Q22="03","DIISI","-") -> - | V22: =IF(S22="03","DIISI","-") -> - | X22: =IF(W22="0","Tdk Pnddkan Formal",IF(W22="1","<=SLTP",IF(W22="2","SLTA",IF(W22="3","D1",IF(W22="4","D2",IF(W22="5","D3",IF(W22="6","D4",IF(W22="7","S1",IF(W22="8","S2",IF(W22="9","S3","DI ISI")))))))))) -> DI ISI | Z22: =IF(Y22="0","Tdk Pnddkan Formal",IF(Y22="1","<=SLTP",IF(Y22="2","SLTA",IF(Y22="3","D1",IF(Y22="4","D2",IF(Y22="5","D3",IF(Y22="6","D4",IF(Y22="7","S1",IF(Y22="8","S2",IF(Y22="9","S3","DI ISI")))))))))) -> DI ISI | AB22: =IF(AA22="1","<= Rp.500.000",IF(AA22="2","Rp 500.001 - Rp 1.000.000",IF(AA22="3","Rp 1.000.001 - Rp 2.000.000",IF(AA22="4","Rp 2.000.001 - Rp 3.000.000",IF(AA22="5","Rp 3.000.001 - Rp 5.000.000",IF(AA22="6","> Rp 5.000.000","DI ISI")))))) -> DI ISI | AD22: =IF(AC22="1","Olahraga",IF(AC22="2","Kesenian",IF(AC22="3","Membaca",IF(AC22="4","Menulis",IF(AC22="5","Travelling",IF(AC22="6","Lainnya","DI ISI")))))) -> DI ISI | AF22: =IF(AE22="1","PNS",IF(AE22="2","TNI/Polri",IF(AE22="3","Guru/Dosen",IF(AE22="4","Dokter",IF(AE22="5","Politikus",IF(AE22="6","Wiraswasta",IF(AE22="7","Pekerja Seni/Sejenis",IF(AE22="8","Lainnya","DI ISI")))))))) -> DI ISI | AH22: =IF(AG22="1","< 1 Km",IF(AG22="2","1-3 Km",IF(AG22="3","3-5 Km",IF(AG22="4","5-10 Km",IF(AG22="5","> 10 Km","DI ISI"))))) -> DI ISI | AJ22: =IF(AI22="1","Jalan Kaki",IF(AI22="2","Sepeda",IF(AI22="3","motor",IF(AI22="4","Mobil Pribadi",IF(AI22="5","Antar/Jemput",IF(AI22="6","Angkutan",IF(AI22="7","Lainnya","DI ISI"))))))) -> DI ISI | AK22: 1 | AL22: 1 | AM22: =IF(AL22="1","TK",IF(AL22="2","RA",IF(AL22="3","PAUD",IF(AL22="4","TKLB",IF(AL22="5","Langsung dari Ortu","DI ISI"))))) -> TK | AN22: TK TARBIYATUSH SHIBYAN | AO22: KRAJAN BARAT | AP22: 33 | AQ22: 5 | AR22: LABRUK KIDUL | AS22: 3508211010090159 | AU22: 085231816850 | AW22: 111235080166 | AX22: 19 | AY22: =AW22&AX22&C22 -> 111235080166194800
A23: 21 | C23: 4801 | D23: RAFHAEL ANDREAN AFISENA | E23: L | F23: LUMAJANG | G23: 2012-08-29 | H23: =DATEDIF(G23,PETUNJUK!$H$10,"y") -> 6 | I23: =_xlfn.NUMBERVALUE(H23) -> 6 | J23: 3508052908120002 | K23: MUHAMMAD ANDRIANTO | L23: 3508212609900001 | M23: 1990-09-26 | N23: MIN INDILAH KHOIRUH | O23: 3508055308900003 | P23: 1990-08-13 | Q23: 07 | R23: =IF(Q23="01","Tdk Bekerja",IF(Q23="02","Pensiunan/Alm.",IF(Q23="03","PNS",IF(Q23="04","TNI/POLRI",IF(Q23="05","Guru/Dosen",IF(Q23="06","Peg.Swasta",IF(Q23="07","Pengusaha/Wiraswasta",IF(Q23="08","Pengacara/Hakim/Jaksa/Notaris",IF(Q23="09","Seniman/Sejenis",IF(Q23="10","Dokter/Sejenis",IF(Q23="11","Penerbangan",IF(Q23="12","Pedagang",IF(Q23="13","Petani/ternak",IF(Q23="14","Nelayan",IF(Q23="15","Buruh",IF(Q23="16","Angkutan",IF(Q23="17","PolitikusS",IF(Q23="18","Lainnya","DI ISI")))))))))))))))))) -> Pengusaha/Wiraswasta | S23: 01 | T23: =IF(S23="01","Tdk Bekerja",IF(S23="02","Pensiunan/Alm.",IF(S23="03","PNS",IF(S23="04","TNI/POLRI",IF(S23="05","Guru/Dosen",IF(S23="06","Peg.Swasta",IF(S23="07","Pengusaha/Wiraswasta",IF(S23="08","Pengacara/Hakim/Jaksa/Notaris",IF(S23="09","Seniman/Sejenis",IF(S23="10","Dokter/Sejenis",IF(S23="11","Penerbangan",IF(S23="12","Pedagang",IF(S23="13","Petani/ternak",IF(S23="14","Nelayan",IF(S23="15","Buruh",IF(S23="16","Angkutan",IF(S23="17","PolitikusS",IF(S23="18","Lainnya","DI ISI")))))))))))))))))) -> Tdk Bekerja | U23: =IF(Q23="03","DIISI","-") -> - | V23: =IF(S23="03","DIISI","-") -> - | X23: =IF(W23="0","Tdk Pnddkan Formal",IF(W23="1","<=SLTP",IF(W23="2","SLTA",IF(W23="3","D1",IF(W23="4","D2",IF(W23="5","D3",IF(W23="6","D4",IF(W23="7","S1",IF(W23="8","S2",IF(W23="9","S3","DI ISI")))))))))) -> DI ISI | Z23: =IF(Y23="0","Tdk Pnddkan Formal",IF(Y23="1","<=SLTP",IF(Y23="2","SLTA",IF(Y23="3","D1",IF(Y23="4","D2",IF(Y23="5","D3",IF(Y23="6","D4",IF(Y23="7","S1",IF(Y23="8","S2",IF(Y23="9","S3","DI ISI")))))))))) -> DI ISI | AB23: =IF(AA23="1","<= Rp.500.000",IF(AA23="2","Rp 500.001 - Rp 1.000.000",IF(AA23="3","Rp 1.000.001 - Rp 2.000.000",IF(AA23="4","Rp 2.000.001 - Rp 3.000.000",IF(AA23="5","Rp 3.000.001 - Rp 5.000.000",IF(AA23="6","> Rp 5.000.000","DI ISI")))))) -> DI ISI | AD23: =IF(AC23="1","Olahraga",IF(AC23="2","Kesenian",IF(AC23="3","Membaca",IF(AC23="4","Menulis",IF(AC23="5","Travelling",IF(AC23="6","Lainnya","DI ISI")))))) -> DI ISI | AF23: =IF(AE23="1","PNS",IF(AE23="2","TNI/Polri",IF(AE23="3","Guru/Dosen",IF(AE23="4","Dokter",IF(AE23="5","Politikus",IF(AE23="6","Wiraswasta",IF(AE23="7","Pekerja Seni/Sejenis",IF(AE23="8","Lainnya","DI ISI")))))))) -> DI ISI | AH23: =IF(AG23="1","< 1 Km",IF(AG23="2","1-3 Km",IF(AG23="3","3-5 Km",IF(AG23="4","5-10 Km",IF(AG23="5","> 10 Km","DI ISI"))))) -> DI ISI | AJ23: =IF(AI23="1","Jalan Kaki",IF(AI23="2","Sepeda",IF(AI23="3","motor",IF(AI23="4","Mobil Pribadi",IF(AI23="5","Antar/Jemput",IF(AI23="6","Angkutan",IF(AI23="7","Lainnya","DI ISI"))))))) -> DI ISI | AK23: 1 | AL23: 1 | AM23: =IF(AL23="1","TK",IF(AL23="2","RA",IF(AL23="3","PAUD",IF(AL23="4","TKLB",IF(AL23="5","Langsung dari Ortu","DI ISI"))))) -> TK | AN23: TK ABBA TEMPEH | AO23: BEDOK 2 | AP23: 5 | AQ23: 6 | AR23: TEMPEH LOR | AS23: 3508052008056014 | AW23: 111235080166 | AX23: 19 | AY23: =AW23&AX23&C23 -> 111235080166194801
A24: 22 | C24: 4802 | D24: RISTA MEISYAH ADELLIA | E24: P | F24: LUMAJANG | G24: 2012-05-31 | H24: =DATEDIF(G24,PETUNJUK!$H$10,"y") -> 7 | I24: =_xlfn.NUMBERVALUE(H24) -> 7 | J24: 3508217105120002 | K24: JUNI SAIFUL | L24: 3508212806690002 | M24: 1969-06-28 | N24: WIWIK SUSIATI YANDARI | O24: 3508215112730003 | P24: 1973-12-11 | Q24: 07 | R24: =IF(Q24="01","Tdk Bekerja",IF(Q24="02","Pensiunan/Alm.",IF(Q24="03","PNS",IF(Q24="04","TNI/POLRI",IF(Q24="05","Guru/Dosen",IF(Q24="06","Peg.Swasta",IF(Q24="07","Pengusaha/Wiraswasta",IF(Q24="08","Pengacara/Hakim/Jaksa/Notaris",IF(Q24="09","Seniman/Sejenis",IF(Q24="10","Dokter/Sejenis",IF(Q24="11","Penerbangan",IF(Q24="12","Pedagang",IF(Q24="13","Petani/ternak",IF(Q24="14","Nelayan",IF(Q24="15","Buruh",IF(Q24="16","Angkutan",IF(Q24="17","PolitikusS",IF(Q24="18","Lainnya","DI ISI")))))))))))))))))) -> Pengusaha/Wiraswasta | S24: 01 | T24: =IF(S24="01","Tdk Bekerja",IF(S24="02","Pensiunan/Alm.",IF(S24="03","PNS",IF(S24="04","TNI/POLRI",IF(S24="05","Guru/Dosen",IF(S24="06","Peg.Swasta",IF(S24="07","Pengusaha/Wiraswasta",IF(S24="08","Pengacara/Hakim/Jaksa/Notaris",IF(S24="09","Seniman/Sejenis",IF(S24="10","Dokter/Sejenis",IF(S24="11","Penerbangan",IF(S24="12","Pedagang",IF(S24="13","Petani/ternak",IF(S24="14","Nelayan",IF(S24="15","Buruh",IF(S24="16","Angkutan",IF(S24="17","PolitikusS",IF(S24="18","Lainnya","DI ISI")))))))))))))))))) -> Tdk Bekerja | U24: =IF(Q24="03","DIISI","-") -> - | V24: =IF(S24="03","DIISI","-") -> - | X24: =IF(W24="0","Tdk Pnddkan Formal",IF(W24="1","<=SLTP",IF(W24="2","SLTA",IF(W24="3","D1",IF(W24="4","D2",IF(W24="5","D3",IF(W24="6","D4",IF(W24="7","S1",IF(W24="8","S2",IF(W24="9","S3","DI ISI")))))))))) -> DI ISI | Z24: =IF(Y24="0","Tdk Pnddkan Formal",IF(Y24="1","<=SLTP",IF(Y24="2","SLTA",IF(Y24="3","D1",IF(Y24="4","D2",IF(Y24="5","D3",IF(Y24="6","D4",IF(Y24="7","S1",IF(Y24="8","S2",IF(Y24="9","S3","DI ISI")))))))))) -> DI ISI | AB24: =IF(AA24="1","<= Rp.500.000",IF(AA24="2","Rp 500.001 - Rp 1.000.000",IF(AA24="3","Rp 1.000.001 - Rp 2.000.000",IF(AA24="4","Rp 2.000.001 - Rp 3.000.000",IF(AA24="5","Rp 3.000.001 - Rp 5.000.000",IF(AA24="6","> Rp 5.000.000","DI ISI")))))) -> DI ISI | AD24: =IF(AC24="1","Olahraga",IF(AC24="2","Kesenian",IF(AC24="3","Membaca",IF(AC24="4","Menulis",IF(AC24="5","Travelling",IF(AC24="6","Lainnya","DI ISI")))))) -> DI ISI | AF24: =IF(AE24="1","PNS",IF(AE24="2","TNI/Polri",IF(AE24="3","Guru/Dosen",IF(AE24="4","Dokter",IF(AE24="5","Politikus",IF(AE24="6","Wiraswasta",IF(AE24="7","Pekerja Seni/Sejenis",IF(AE24="8","Lainnya","DI ISI")))))))) -> DI ISI | AH24: =IF(AG24="1","< 1 Km",IF(AG24="2","1-3 Km",IF(AG24="3","3-5 Km",IF(AG24="4","5-10 Km",IF(AG24="5","> 10 Km","DI ISI"))))) -> DI ISI | AJ24: =IF(AI24="1","Jalan Kaki",IF(AI24="2","Sepeda",IF(AI24="3","motor",IF(AI24="4","Mobil Pribadi",IF(AI24="5","Antar/Jemput",IF(AI24="6","Angkutan",IF(AI24="7","Lainnya","DI ISI"))))))) -> DI ISI | AK24: 2 | AL24: 1 | AM24: =IF(AL24="1","TK",IF(AL24="2","RA",IF(AL24="3","PAUD",IF(AL24="4","TKLB",IF(AL24="5","Langsung dari Ortu","DI ISI"))))) -> TK | AN24: TK MUSLIMAT NU 01 KEBONSARI | AO24: GEDONGSARI | AP24: 58 | AQ24: 8 | AR24: LABRUK KIDUL | AS24: 3508212312090006 | AU24: 085258878599 | AW24: 111235080166 | AX24: 19 | AY24: =AW24&AX24&C24 -> 111235080166194802
A25: 23 | C25: 4803 | D25: ROFIF IKHROZ MAGHFUR | E25: L | F25: LUMAJANG | G25: 2012-03-31 | H25: =DATEDIF(G25,PETUNJUK!$H$10,"y") -> 7 | I25: =_xlfn.NUMBERVALUE(H25) -> 7 | J25: 3508213103120002 | K25: MAGHFUR | L25: 3508210302700001 | M25: 1970-02-03 | N25: ERNANI | O25: 3508217108800003 | P25: 1980-08-31 | Q25: 05 | R25: =IF(Q25="01","Tdk Bekerja",IF(Q25="02","Pensiunan/Alm.",IF(Q25="03","PNS",IF(Q25="04","TNI/POLRI",IF(Q25="05","Guru/Dosen",IF(Q25="06","Peg.Swasta",IF(Q25="07","Pengusaha/Wiraswasta",IF(Q25="08","Pengacara/Hakim/Jaksa/Notaris",IF(Q25="09","Seniman/Sejenis",IF(Q25="10","Dokter/Sejenis",IF(Q25="11","Penerbangan",IF(Q25="12","Pedagang",IF(Q25="13","Petani/ternak",IF(Q25="14","Nelayan",IF(Q25="15","Buruh",IF(Q25="16","Angkutan",IF(Q25="17","PolitikusS",IF(Q25="18","Lainnya","DI ISI")))))))))))))))))) -> Guru/Dosen | S25: 01 | T25: =IF(S25="01","Tdk Bekerja",IF(S25="02","Pensiunan/Alm.",IF(S25="03","PNS",IF(S25="04","TNI/POLRI",IF(S25="05","Guru/Dosen",IF(S25="06","Peg.Swasta",IF(S25="07","Pengusaha/Wiraswasta",IF(S25="08","Pengacara/Hakim/Jaksa/Notaris",IF(S25="09","Seniman/Sejenis",IF(S25="10","Dokter/Sejenis",IF(S25="11","Penerbangan",IF(S25="12","Pedagang",IF(S25="13","Petani/ternak",IF(S25="14","Nelayan",IF(S25="15","Buruh",IF(S25="16","Angkutan",IF(S25="17","PolitikusS",IF(S25="18","Lainnya","DI ISI")))))))))))))))))) -> Tdk Bekerja | U25: =IF(Q25="03","DIISI","-") -> - | V25: =IF(S25="03","DIISI","-") -> - | X25: =IF(W25="0","Tdk Pnddkan Formal",IF(W25="1","<=SLTP",IF(W25="2","SLTA",IF(W25="3","D1",IF(W25="4","D2",IF(W25="5","D3",IF(W25="6","D4",IF(W25="7","S1",IF(W25="8","S2",IF(W25="9","S3","DI ISI")))))))))) -> DI ISI | Z25: =IF(Y25="0","Tdk Pnddkan Formal",IF(Y25="1","<=SLTP",IF(Y25="2","SLTA",IF(Y25="3","D1",IF(Y25="4","D2",IF(Y25="5","D3",IF(Y25="6","D4",IF(Y25="7","S1",IF(Y25="8","S2",IF(Y25="9","S3","DI ISI")))))))))) -> DI ISI | AB25: =IF(AA25="1","<= Rp.500.000",IF(AA25="2","Rp 500.001 - Rp 1.000.000",IF(AA25="3","Rp 1.000.001 - Rp 2.000.000",IF(AA25="4","Rp 2.000.001 - Rp 3.000.000",IF(AA25="5","Rp 3.000.001 - Rp 5.000.000",IF(AA25="6","> Rp 5.000.000","DI ISI")))))) -> DI ISI | AD25: =IF(AC25="1","Olahraga",IF(AC25="2","Kesenian",IF(AC25="3","Membaca",IF(AC25="4","Menulis",IF(AC25="5","Travelling",IF(AC25="6","Lainnya","DI ISI")))))) -> DI ISI | AF25: =IF(AE25="1","PNS",IF(AE25="2","TNI/Polri",IF(AE25="3","Guru/Dosen",IF(AE25="4","Dokter",IF(AE25="5","Politikus",IF(AE25="6","Wiraswasta",IF(AE25="7","Pekerja Seni/Sejenis",IF(AE25="8","Lainnya","DI ISI")))))))) -> DI ISI | AH25: =IF(AG25="1","< 1 Km",IF(AG25="2","1-3 Km",IF(AG25="3","3-5 Km",IF(AG25="4","5-10 Km",IF(AG25="5","> 10 Km","DI ISI"))))) -> DI ISI | AJ25: =IF(AI25="1","Jalan Kaki",IF(AI25="2","Sepeda",IF(AI25="3","motor",IF(AI25="4","Mobil Pribadi",IF(AI25="5","Antar/Jemput",IF(AI25="6","Angkutan",IF(AI25="7","Lainnya","DI ISI"))))))) -> DI ISI | AK25: 2 | AL25: 1 | AM25: =IF(AL25="1","TK",IF(AL25="2","RA",IF(AL25="3","PAUD",IF(AL25="4","TKLB",IF(AL25="5","Langsung dari Ortu","DI ISI"))))) -> TK | AN25: TK TARBIYATUSH SHIBYAN | AO25: GEDONGSARI | AP25: 53 | AQ25: 8 | AR25: LABRUK KIDUL | AS25: 3508211807090005 | AU25: 082359373884 | AW25: 111235080166 | AX25: 19 | AY25: =AW25&AX25&C25 -> 111235080166194803
A26: 24 | C26: 4804 | D26: SHAKILLA SUCAHYANI | E26: P | F26: LUMAJANG | G26: 2012-06-10 | H26: =DATEDIF(G26,PETUNJUK!$H$10,"y") -> 7 | I26: =_xlfn.NUMBERVALUE(H26) -> 7 | J26: 3508215006120001 | K26: HERI SUCAHYO | L26: 350821121900001 | M26: 1990-11-12 | N26: SULIYATI | O26: 3508074611880002 | P26: 1988-11-06 | Q26: 07 | R26: =IF(Q26="01","Tdk Bekerja",IF(Q26="02","Pensiunan/Alm.",IF(Q26="03","PNS",IF(Q26="04","TNI/POLRI",IF(Q26="05","Guru/Dosen",IF(Q26="06","Peg.Swasta",IF(Q26="07","Pengusaha/Wiraswasta",IF(Q26="08","Pengacara/Hakim/Jaksa/Notaris",IF(Q26="09","Seniman/Sejenis",IF(Q26="10","Dokter/Sejenis",IF(Q26="11","Penerbangan",IF(Q26="12","Pedagang",IF(Q26="13","Petani/ternak",IF(Q26="14","Nelayan",IF(Q26="15","Buruh",IF(Q26="16","Angkutan",IF(Q26="17","PolitikusS",IF(Q26="18","Lainnya","DI ISI")))))))))))))))))) -> Pengusaha/Wiraswasta | S26: 01 | T26: =IF(S26="01","Tdk Bekerja",IF(S26="02","Pensiunan/Alm.",IF(S26="03","PNS",IF(S26="04","TNI/POLRI",IF(S26="05","Guru/Dosen",IF(S26="06","Peg.Swasta",IF(S26="07","Pengusaha/Wiraswasta",IF(S26="08","Pengacara/Hakim/Jaksa/Notaris",IF(S26="09","Seniman/Sejenis",IF(S26="10","Dokter/Sejenis",IF(S26="11","Penerbangan",IF(S26="12","Pedagang",IF(S26="13","Petani/ternak",IF(S26="14","Nelayan",IF(S26="15","Buruh",IF(S26="16","Angkutan",IF(S26="17","PolitikusS",IF(S26="18","Lainnya","DI ISI")))))))))))))))))) -> Tdk Bekerja | U26: =IF(Q26="03","DIISI","-") -> - | V26: =IF(S26="03","DIISI","-") -> - | X26: =IF(W26="0","Tdk Pnddkan Formal",IF(W26="1","<=SLTP",IF(W26="2","SLTA",IF(W26="3","D1",IF(W26="4","D2",IF(W26="5","D3",IF(W26="6","D4",IF(W26="7","S1",IF(W26="8","S2",IF(W26="9","S3","DI ISI")))))))))) -> DI ISI | Z26: =IF(Y26="0","Tdk Pnddkan Formal",IF(Y26="1","<=SLTP",IF(Y26="2","SLTA",IF(Y26="3","D1",IF(Y26="4","D2",IF(Y26="5","D3",IF(Y26="6","D4",IF(Y26="7","S1",IF(Y26="8","S2",IF(Y26="9","S3","DI ISI")))))))))) -> DI ISI | AB26: =IF(AA26="1","<= Rp.500.000",IF(AA26="2","Rp 500.001 - Rp 1.000.000",IF(AA26="3","Rp 1.000.001 - Rp 2.000.000",IF(AA26="4","Rp 2.000.001 - Rp 3.000.000",IF(AA26="5","Rp 3.000.001 - Rp 5.000.000",IF(AA26="6","> Rp 5.000.000","DI ISI")))))) -> DI ISI | AD26: =IF(AC26="1","Olahraga",IF(AC26="2","Kesenian",IF(AC26="3","Membaca",IF(AC26="4","Menulis",IF(AC26="5","Travelling",IF(AC26="6","Lainnya","DI ISI")))))) -> DI ISI | AF26: =IF(AE26="1","PNS",IF(AE26="2","TNI/Polri",IF(AE26="3","Guru/Dosen",IF(AE26="4","Dokter",IF(AE26="5","Politikus",IF(AE26="6","Wiraswasta",IF(AE26="7","Pekerja Seni/Sejenis",IF(AE26="8","Lainnya","DI ISI")))))))) -> DI ISI | AH26: =IF(AG26="1","< 1 Km",IF(AG26="2","1-3 Km",IF(AG26="3","3-5 Km",IF(AG26="4","5-10 Km",IF(AG26="5","> 10 Km","DI ISI"))))) -> DI ISI | AJ26: =IF(AI26="1","Jalan Kaki",IF(AI26="2","Sepeda",IF(AI26="3","motor",IF(AI26="4","Mobil Pribadi",IF(AI26="5","Antar/Jemput",IF(AI26="6","Angkutan",IF(AI26="7","Lainnya","DI ISI"))))))) -> DI ISI | AK26: 0 | AL26: 1 | AM26: =IF(AL26="1","TK",IF(AL26="2","RA",IF(AL26="3","PAUD",IF(AL26="4","TKLB",IF(AL26="5","Langsung dari Ortu","DI ISI"))))) -> TK | AN26: TK TARBIYATUSH SHIBYAN | AO26: KRAJAN BARAT | AP26: 30 | AQ26: 5 | AR26: LABRUK KIDUL | AS26: 3508212105120002 | AU26: 082324139884 | AW26: 111235080166 | AX26: 19 | AY26: =AW26&AX26&C26 -> 111235080166194804
A27: 25 | C27: 4805 | D27: SHEILLA MEITA LUTFIONA | E27: P | F27: LUMAJANG | G27: 2012-05-10 | H27: =DATEDIF(G27,PETUNJUK!$H$10,"y") -> 7 | I27: =_xlfn.NUMBERVALUE(H27) -> 7 | J27: 3508215005120001 | K27: LUTFI SANTOSO | L27: 3508212204910002 | M27: 1991-04-22 | N27: MERDIASIH WORO PALUPI | O27: 3508106704930008 | P27: 1993-04-27 | Q27: 06 | R27: =IF(Q27="01","Tdk Bekerja",IF(Q27="02","Pensiunan/Alm.",IF(Q27="03","PNS",IF(Q27="04","TNI/POLRI",IF(Q27="05","Guru/Dosen",IF(Q27="06","Peg.Swasta",IF(Q27="07","Pengusaha/Wiraswasta",IF(Q27="08","Pengacara/Hakim/Jaksa/Notaris",IF(Q27="09","Seniman/Sejenis",IF(Q27="10","Dokter/Sejenis",IF(Q27="11","Penerbangan",IF(Q27="12","Pedagang",IF(Q27="13","Petani/ternak",IF(Q27="14","Nelayan",IF(Q27="15","Buruh",IF(Q27="16","Angkutan",IF(Q27="17","PolitikusS",IF(Q27="18","Lainnya","DI ISI")))))))))))))))))) -> Peg.Swasta | S27: 01 | T27: =IF(S27="01","Tdk Bekerja",IF(S27="02","Pensiunan/Alm.",IF(S27="03","PNS",IF(S27="04","TNI/POLRI",IF(S27="05","Guru/Dosen",IF(S27="06","Peg.Swasta",IF(S27="07","Pengusaha/Wiraswasta",IF(S27="08","Pengacara/Hakim/Jaksa/Notaris",IF(S27="09","Seniman/Sejenis",IF(S27="10","Dokter/Sejenis",IF(S27="11","Penerbangan",IF(S27="12","Pedagang",IF(S27="13","Petani/ternak",IF(S27="14","Nelayan",IF(S27="15","Buruh",IF(S27="16","Angkutan",IF(S27="17","PolitikusS",IF(S27="18","Lainnya","DI ISI")))))))))))))))))) -> Tdk Bekerja | U27: =IF(Q27="03","DIISI","-") -> - | V27: =IF(S27="03","DIISI","-") -> - | X27: =IF(W27="0","Tdk Pnddkan Formal",IF(W27="1","<=SLTP",IF(W27="2","SLTA",IF(W27="3","D1",IF(W27="4","D2",IF(W27="5","D3",IF(W27="6","D4",IF(W27="7","S1",IF(W27="8","S2",IF(W27="9","S3","DI ISI")))))))))) -> DI ISI | Z27: =IF(Y27="0","Tdk Pnddkan Formal",IF(Y27="1","<=SLTP",IF(Y27="2","SLTA",IF(Y27="3","D1",IF(Y27="4","D2",IF(Y27="5","D3",IF(Y27="6","D4",IF(Y27="7","S1",IF(Y27="8","S2",IF(Y27="9","S3","DI ISI")))))))))) -> DI ISI | AB27: =IF(AA27="1","<= Rp.500.000",IF(AA27="2","Rp 500.001 - Rp 1.000.000",IF(AA27="3","Rp 1.000.001 - Rp 2.000.000",IF(AA27="4","Rp 2.000.001 - Rp 3.000.000",IF(AA27="5","Rp 3.000.001 - Rp 5.000.000",IF(AA27="6","> Rp 5.000.000","DI ISI")))))) -> DI ISI | AD27: =IF(AC27="1","Olahraga",IF(AC27="2","Kesenian",IF(AC27="3","Membaca",IF(AC27="4","Menulis",IF(AC27="5","Travelling",IF(AC27="6","Lainnya","DI ISI")))))) -> DI ISI | AF27: =IF(AE27="1","PNS",IF(AE27="2","TNI/Polri",IF(AE27="3","Guru/Dosen",IF(AE27="4","Dokter",IF(AE27="5","Politikus",IF(AE27="6","Wiraswasta",IF(AE27="7","Pekerja Seni/Sejenis",IF(AE27="8","Lainnya","DI ISI")))))))) -> DI ISI | AH27: =IF(AG27="1","< 1 Km",IF(AG27="2","1-3 Km",IF(AG27="3","3-5 Km",IF(AG27="4","5-10 Km",IF(AG27="5","> 10 Km","DI ISI"))))) -> DI ISI | AJ27: =IF(AI27="1","Jalan Kaki",IF(AI27="2","Sepeda",IF(AI27="3","motor",IF(AI27="4","Mobil Pribadi",IF(AI27="5","Antar/Jemput",IF(AI27="6","Angkutan",IF(AI27="7","Lainnya","DI ISI"))))))) -> DI ISI | AK27: 0 | AL27: 2 | AM27: =IF(AL27="1","TK",IF(AL27="2","RA",IF(AL27="3","PAUD",IF(AL27="4","TKLB",IF(AL27="5","Langsung dari Ortu","DI ISI"))))) -> RA | AN27: RA MUSLIMAT NU 26 MOJOSARI | AO27: SARIREJO I | AP27: 2 | AQ27: 1 | AR27: KEBONSARI | AS27: 3508212502130003 | AU27: 082320485994 | AW27: 111235080166 | AX27: 19 | AY27: =AW27&AX27&C27 -> 111235080166194805
A28: 26 | C28: 4806 | D28: WAHYU ZAHRA MAULIDIA | E28: P | F28: LUMAJANG | G28: 2013-01-19 | H28: =DATEDIF(G28,PETUNJUK!$H$10,"y") -> 6 | I28: =_xlfn.NUMBERVALUE(H28) -> 6 | J28: 3508215901130001 | K28: PUJI SETYO WIDODO | L28: 3508211409680002 | M28: 1988-09-14 | N28: SRI WILUJENG | O28: 3508216008670001 | P28: 1967-08-20 | Q28: 06 | R28: =IF(Q28="01","Tdk Bekerja",IF(Q28="02","Pensiunan/Alm.",IF(Q28="03","PNS",IF(Q28="04","TNI/POLRI",IF(Q28="05","Guru/Dosen",IF(Q28="06","Peg.Swasta",IF(Q28="07","Pengusaha/Wiraswasta",IF(Q28="08","Pengacara/Hakim/Jaksa/Notaris",IF(Q28="09","Seniman/Sejenis",IF(Q28="10","Dokter/Sejenis",IF(Q28="11","Penerbangan",IF(Q28="12","Pedagang",IF(Q28="13","Petani/ternak",IF(Q28="14","Nelayan",IF(Q28="15","Buruh",IF(Q28="16","Angkutan",IF(Q28="17","PolitikusS",IF(Q28="18","Lainnya","DI ISI")))))))))))))))))) -> Peg.Swasta | S28: 01 | T28: =IF(S28="01","Tdk Bekerja",IF(S28="02","Pensiunan/Alm.",IF(S28="03","PNS",IF(S28="04","TNI/POLRI",IF(S28="05","Guru/Dosen",IF(S28="06","Peg.Swasta",IF(S28="07","Pengusaha/Wiraswasta",IF(S28="08","Pengacara/Hakim/Jaksa/Notaris",IF(S28="09","Seniman/Sejenis",IF(S28="10","Dokter/Sejenis",IF(S28="11","Penerbangan",IF(S28="12","Pedagang",IF(S28="13","Petani/ternak",IF(S28="14","Nelayan",IF(S28="15","Buruh",IF(S28="16","Angkutan",IF(S28="17","PolitikusS",IF(S28="18","Lainnya","DI ISI")))))))))))))))))) -> Tdk Bekerja | U28: =IF(Q28="03","DIISI","-") -> - | V28: =IF(S28="03","DIISI","-") -> - | X28: =IF(W28="0","Tdk Pnddkan Formal",IF(W28="1","<=SLTP",IF(W28="2","SLTA",IF(W28="3","D1",IF(W28="4","D2",IF(W28="5","D3",IF(W28="6","D4",IF(W28="7","S1",IF(W28="8","S2",IF(W28="9","S3","DI ISI")))))))))) -> DI ISI | Z28: =IF(Y28="0","Tdk Pnddkan Formal",IF(Y28="1","<=SLTP",IF(Y28="2","SLTA",IF(Y28="3","D1",IF(Y28="4","D2",IF(Y28="5","D3",IF(Y28="6","D4",IF(Y28="7","S1",IF(Y28="8","S2",IF(Y28="9","S3","DI ISI")))))))))) -> DI ISI | AB28: =IF(AA28="1","<= Rp.500.000",IF(AA28="2","Rp 500.001 - Rp 1.000.000",IF(AA28="3","Rp 1.000.001 - Rp 2.000.000",IF(AA28="4","Rp 2.000.001 - Rp 3.000.000",IF(AA28="5","Rp 3.000.001 - Rp 5.000.000",IF(AA28="6","> Rp 5.000.000","DI ISI")))))) -> DI ISI | AD28: =IF(AC28="1","Olahraga",IF(AC28="2","Kesenian",IF(AC28="3","Membaca",IF(AC28="4","Menulis",IF(AC28="5","Travelling",IF(AC28="6","Lainnya","DI ISI")))))) -> DI ISI | AF28: =IF(AE28="1","PNS",IF(AE28="2","TNI/Polri",IF(AE28="3","Guru/Dosen",IF(AE28="4","Dokter",IF(AE28="5","Politikus",IF(AE28="6","Wiraswasta",IF(AE28="7","Pekerja Seni/Sejenis",IF(AE28="8","Lainnya","DI ISI")))))))) -> DI ISI | AH28: =IF(AG28="1","< 1 Km",IF(AG28="2","1-3 Km",IF(AG28="3","3-5 Km",IF(AG28="4","5-10 Km",IF(AG28="5","> 10 Km","DI ISI"))))) -> DI ISI | AJ28: =IF(AI28="1","Jalan Kaki",IF(AI28="2","Sepeda",IF(AI28="3","motor",IF(AI28="4","Mobil Pribadi",IF(AI28="5","Antar/Jemput",IF(AI28="6","Angkutan",IF(AI28="7","Lainnya","DI ISI"))))))) -> DI ISI | AK28: 0 | AL28: 2 | AM28: =IF(AL28="1","TK",IF(AL28="2","RA",IF(AL28="3","PAUD",IF(AL28="4","TKLB",IF(AL28="5","Langsung dari Ortu","DI ISI"))))) -> RA | AN28: RA MUSLIMAT NU 06 DITOTRUNAN LUMAJANG | AO28: KRAJAN | AP28: 12 | AQ28: 4 | AR28: GRATI | AS28: 3508212208050902 | AU28: 081334255444 | AW28: 111235080166 | AX28: 19 | AY28: =AW28&AX28&C28 -> 111235080166194806
A29: 27 | C29: 4807 | D29: ZAHRA SANNI FEBRI AULIA | E29: P | F29: LUMAJANG | G29: 2012-02-06 | H29: =DATEDIF(G29,PETUNJUK!$H$10,"y") -> 7 | I29: =_xlfn.NUMBERVALUE(H29) -> 7 | J29: 3508214602120001 | K29: MUKHAMAD RONI | L29: 3508212111780002 | M29: 1978-11-21 | N29: ROHANI | O29: 3508217006830004 | P29: 1983-06-30 | Q29: 15 | R29: =IF(Q29="01","Tdk Bekerja",IF(Q29="02","Pensiunan/Alm.",IF(Q29="03","PNS",IF(Q29="04","TNI/POLRI",IF(Q29="05","Guru/Dosen",IF(Q29="06","Peg.Swasta",IF(Q29="07","Pengusaha/Wiraswasta",IF(Q29="08","Pengacara/Hakim/Jaksa/Notaris",IF(Q29="09","Seniman/Sejenis",IF(Q29="10","Dokter/Sejenis",IF(Q29="11","Penerbangan",IF(Q29="12","Pedagang",IF(Q29="13","Petani/ternak",IF(Q29="14","Nelayan",IF(Q29="15","Buruh",IF(Q29="16","Angkutan",IF(Q29="17","PolitikusS",IF(Q29="18","Lainnya","DI ISI")))))))))))))))))) -> Buruh | S29: 01 | T29: =IF(S29="01","Tdk Bekerja",IF(S29="02","Pensiunan/Alm.",IF(S29="03","PNS",IF(S29="04","TNI/POLRI",IF(S29="05","Guru/Dosen",IF(S29="06","Peg.Swasta",IF(S29="07","Pengusaha/Wiraswasta",IF(S29="08","Pengacara/Hakim/Jaksa/Notaris",IF(S29="09","Seniman/Sejenis",IF(S29="10","Dokter/Sejenis",IF(S29="11","Penerbangan",IF(S29="12","Pedagang",IF(S29="13","Petani/ternak",IF(S29="14","Nelayan",IF(S29="15","Buruh",IF(S29="16","Angkutan",IF(S29="17","PolitikusS",IF(S29="18","Lainnya","DI ISI")))))))))))))))))) -> Tdk Bekerja | U29: =IF(Q29="03","DIISI","-") -> - | V29: =IF(S29="03","DIISI","-") -> - | X29: =IF(W29="0","Tdk Pnddkan Formal",IF(W29="1","<=SLTP",IF(W29="2","SLTA",IF(W29="3","D1",IF(W29="4","D2",IF(W29="5","D3",IF(W29="6","D4",IF(W29="7","S1",IF(W29="8","S2",IF(W29="9","S3","DI ISI")))))))))) -> DI ISI | Z29: =IF(Y29="0","Tdk Pnddkan Formal",IF(Y29="1","<=SLTP",IF(Y29="2","SLTA",IF(Y29="3","D1",IF(Y29="4","D2",IF(Y29="5","D3",IF(Y29="6","D4",IF(Y29="7","S1",IF(Y29="8","S2",IF(Y29="9","S3","DI ISI")))))))))) -> DI ISI | AB29: =IF(AA29="1","<= Rp.500.000",IF(AA29="2","Rp 500.001 - Rp 1.000.000",IF(AA29="3","Rp 1.000.001 - Rp 2.000.000",IF(AA29="4","Rp 2.000.001 - Rp 3.000.000",IF(AA29="5","Rp 3.000.001 - Rp 5.000.000",IF(AA29="6","> Rp 5.000.000","DI ISI")))))) -> DI ISI | AD29: =IF(AC29="1","Olahraga",IF(AC29="2","Kesenian",IF(AC29="3","Membaca",IF(AC29="4","Menulis",IF(AC29="5","Travelling",IF(AC29="6","Lainnya","DI ISI")))))) -> DI ISI | AF29: =IF(AE29="1","PNS",IF(AE29="2","TNI/Polri",IF(AE29="3","Guru/Dosen",IF(AE29="4","Dokter",IF(AE29="5","Politikus",IF(AE29="6","Wiraswasta",IF(AE29="7","Pekerja Seni/Sejenis",IF(AE29="8","Lainnya","DI ISI")))))))) -> DI ISI | AH29: =IF(AG29="1","< 1 Km",IF(AG29="2","1-3 Km",IF(AG29="3","3-5 Km",IF(AG29="4","5-10 Km",IF(AG29="5","> 10 Km","DI ISI"))))) -> DI ISI | AJ29: =IF(AI29="1","Jalan Kaki",IF(AI29="2","Sepeda",IF(AI29="3","motor",IF(AI29="4","Mobil Pribadi",IF(AI29="5","Antar/Jemput",IF(AI29="6","Angkutan",IF(AI29="7","Lainnya","DI ISI"))))))) -> DI ISI | AK29: 1 | AL29: 1 | AM29: =IF(AL29="1","TK",IF(AL29="2","RA",IF(AL29="3","PAUD",IF(AL29="4","TKLB",IF(AL29="5","Langsung dari Ortu","DI ISI"))))) -> TK | AN29: TK DHARMA WANITA LABRUK KIDUL | AO29: KRAJAN TIMUR | AP29: 25 | AQ29: 4 | AR29: LABRUK KIDUL | AS29: 3508211611090020 | AU29: 085230804236 | AW29: 111235080166 | AX29: 19 | AY29: =AW29&AX29&C29 -> 111235080166194807
A30: 28 | C30: 4808 | D30: ZHAFIRA KEISYA PRADANA | E30: P | F30: PROBOLINGGO | G30: 2013-04-28 | H30: =DATEDIF(G30,PETUNJUK!$H$10,"y") -> 6 | I30: =_xlfn.NUMBERVALUE(H30) -> 6 | K30: ADITA PRADANA | N30: IIS SUGIARTI | R30: =IF(Q30="01","Tdk Bekerja",IF(Q30="02","Pensiunan/Alm.",IF(Q30="03","PNS",IF(Q30="04","TNI/POLRI",IF(Q30="05","Guru/Dosen",IF(Q30="06","Peg.Swasta",IF(Q30="07","Pengusaha/Wiraswasta",IF(Q30="08","Pengacara/Hakim/Jaksa/Notaris",IF(Q30="09","Seniman/Sejenis",IF(Q30="10","Dokter/Sejenis",IF(Q30="11","Penerbangan",IF(Q30="12","Pedagang",IF(Q30="13","Petani/ternak",IF(Q30="14","Nelayan",IF(Q30="15","Buruh",IF(Q30="16","Angkutan",IF(Q30="17","PolitikusS",IF(Q30="18","Lainnya","DI ISI")))))))))))))))))) -> DI ISI | T30: =IF(S30="01","Tdk Bekerja",IF(S30="02","Pensiunan/Alm.",IF(S30="03","PNS",IF(S30="04","TNI/POLRI",IF(S30="05","Guru/Dosen",IF(S30="06","Peg.Swasta",IF(S30="07","Pengusaha/Wiraswasta",IF(S30="08","Pengacara/Hakim/Jaksa/Notaris",IF(S30="09","Seniman/Sejenis",IF(S30="10","Dokter/Sejenis",IF(S30="11","Penerbangan",IF(S30="12","Pedagang",IF(S30="13","Petani/ternak",IF(S30="14","Nelayan",IF(S30="15","Buruh",IF(S30="16","Angkutan",IF(S30="17","PolitikusS",IF(S30="18","Lainnya","DI ISI")))))))))))))))))) -> DI ISI | U30: =IF(Q30="03","DIISI","-") -> - | V30: =IF(S30="03","DIISI","-") -> - | X30: =IF(W30="0","Tdk Pnddkan Formal",IF(W30="1","<=SLTP",IF(W30="2","SLTA",IF(W30="3","D1",IF(W30="4","D2",IF(W30="5","D3",IF(W30="6","D4",IF(W30="7","S1",IF(W30="8","S2",IF(W30="9","S3","DI ISI")))))))))) -> DI ISI | Z30: =IF(Y30="0","Tdk Pnddkan Formal",IF(Y30="1","<=SLTP",IF(Y30="2","SLTA",IF(Y30="3","D1",IF(Y30="4","D2",IF(Y30="5","D3",IF(Y30="6","D4",IF(Y30="7","S1",IF(Y30="8","S2",IF(Y30="9","S3","DI ISI")))))))))) -> DI ISI | AB30: =IF(AA30="1","<= Rp.500.000",IF(AA30="2","Rp 500.001 - Rp 1.000.000",IF(AA30="3","Rp 1.000.001 - Rp 2.000.000",IF(AA30="4","Rp 2.000.001 - Rp 3.000.000",IF(AA30="5","Rp 3.000.001 - Rp 5.000.000",IF(AA30="6","> Rp 5.000.000","DI ISI")))))) -> DI ISI | AD30: =IF(AC30="1","Olahraga",IF(AC30="2","Kesenian",IF(AC30="3","Membaca",IF(AC30="4","Menulis",IF(AC30="5","Travelling",IF(AC30="6","Lainnya","DI ISI")))))) -> DI ISI | AF30: =IF(AE30="1","PNS",IF(AE30="2","TNI/Polri",IF(AE30="3","Guru/Dosen",IF(AE30="4","Dokter",IF(AE30="5","Politikus",IF(AE30="6","Wiraswasta",IF(AE30="7","Pekerja Seni/Sejenis",IF(AE30="8","Lainnya","DI ISI")))))))) -> DI ISI | AH30: =IF(AG30="1","< 1 Km",IF(AG30="2","1-3 Km",IF(AG30="3","3-5 Km",IF(AG30="4","5-10 Km",IF(AG30="5","> 10 Km","DI ISI"))))) -> DI ISI | AJ30: =IF(AI30="1","Jalan Kaki",IF(AI30="2","Sepeda",IF(AI30="3","motor",IF(AI30="4","Mobil Pribadi",IF(AI30="5","Antar/Jemput",IF(AI30="6","Angkutan",IF(AI30="7","Lainnya","DI ISI"))))))) -> DI ISI | AK30: 0 | AL30: 1 | AM30: =IF(AL30="1","TK",IF(AL30="2","RA",IF(AL30="3","PAUD",IF(AL30="4","TKLB",IF(AL30="5","Langsung dari Ortu","DI ISI"))))) -> TK | AN30: TK MUSLIMAT NU 01 KEBONSARI | AO30: SARIREJO I | AP30: 17 | AQ30: 3 | AR30: KEBONSARI | AS30: 3508210409180004 | AU30: 085806090524 | AW30: 111235080166 | AX30: 19 | AY30: =AW30&AX30&C30 -> 111235080166194808
A31: 14
A36: =IF(D36="","",COUNTA($D$4:D36)) ->  | AB36: =IF(AA36="1","<= Rp.500.000",IF(AA36="2","Rp 500.001 - Rp 1.000.000",IF(AA36="3","Rp 1.000.001 - Rp 2.000.000",IF(AA36="4","Rp 2.000.001 - Rp 3.000.000",IF(AA36="5","Rp 3.000.001 - Rp 5.000.000",IF(AA36="6","> Rp 5.000.000","DI ISI")))))) -> DI ISI

Sheet 2A
A1: 2A | B1: NISN | C1: INDUK | D1: NAMA SISWA | E1: L/P | F1: Tempat, Tanggal Lahir | H1: Umur (RUMUS) | I1: Umur (TEXT) | J1: NOMOR INDUK KEPENDUDUKAN (NIK) SISWA | K1: tentang ORANG TUA | Q1: PEKERJAAN (DISERTAI KODE EMIS 2016) | U1: Jika PNS | V1: Jika TNI | W1: JENJANG PENDIDIKAN (DISERTAI KODE EMIS 2016) | AA1: Penghasilan Perbulan (DISERTAI KODE EMIS 2016) | AC1: Hobi (DISERTAI KODE EMIS 2016) | AE1: Cita-cita (DISERTAI KODE EMIS 2016) | AG1: Jarak Rumah-Sekolah | AI1: Transportasi yg dipakai | AK1: Jml Saudara | AL1: Asal Sekolah Sebelumnya | AO1: Alamat | AS1: NO. KARTU KELUARGA | AU1: NO.HP/ | AV1: TELEPON V2 | AW1: NSM | AX1: TAHUN MASUK | AY1: NO INDUK VERSI EMIS | AZ1: KIP/PIP (INDONESIA PINTAR) | BE1: KESEHATAN TINGGI BADAN (cm) & BERAT BADAN (kg)
K2: Ayah | L2: NIK | M2: Tgl Lahir | N2: Ibu | O2: NIK | P2: Tgl Lahir | Q2: Ayah | S2: Ibu | U2: Gol. | V2: Pangkat | W2: Ayah | Y2: Ibu | AL2: KODE | AN2: ASAL TK/RA | AO2: JL./DUSUN | AP2: RT. | AQ2: RW. | AR2: Desa | AU2: TELEPON | AZ2: Nomor KIP | BA2: Nomor KKS | BB2: Nomor KPS | BC2: Nomor PKH | BD2: Kriteria lain | BE2: TB1 | BF2: TB2 | BG2: TB3 | BH2: TB4 | BI2: TB5 | BJ2: TB6 | BK2: BB1 | BL2: BB2 | BM2: BB3 | BN2: BB4 | BO2: BB5 | BP2: BB6
A3: 1 | B3: 2 | C3: 3 | D3: 4 | E3: 5 | F3: 6 | G3: 7 | H3: 8 | K3: 9 | L3: 10 | M3: 11 | N3: 12 | O3: 13 | P3: 14 | Q3: 15 | S3: 16 | U3: 17 | V3: 18 | W3: 19 | Y3: 20 | AA3: 21 | AC3: 22 | AE3: 23 | AG3: 24 | AI3: 25 | AK3: 26 | AL3: 27 | AN3: 28 | AO3: 29 | AP3: 30 | AQ3: 31 | AR3: 32 | AS3: 33 | AT3: 34 | AU3: 35 | AV3: 36 | AW3: 37 | AX3: 38 | AY3: 39 | AZ3: 40 | BA3: 41 | BB3: 42 | BC3: 43 | BD3: 44 | BE3: 45 | BF3: 46 | BG3: 47 | BH3: 48 | BI3: 49 | BJ3: 50 | BK3: 51 | BL3: 52 | BM3: 53 | BN3: 54 | BO3: 55 | BP3: 56
A4: =IF(D4="","",COUNTA($D$4:D4)) -> 1 | C4: 4631 | D4: AULIA AYU LESTARI | E4: P | F4: LUMAJANG | G4: 2011-07-23 | H4: =DATEDIF(G4,PETUNJUK!$H$10,"y") -> 7 | I4: =_xlfn.NUMBERVALUE(H4) -> 7 | N4: SITI NORAINI | O4: 6301025510710001 | P4: 15/10/1971 | Q4: 07 | R4: =IF(Q4="01","Tdk Bekerja",IF(Q4="02","Pensiunan/Alm.",IF(Q4="03","PNS",IF(Q4="04","TNI/POLRI",IF(Q4="05","Guru/Dosen",IF(Q4="06","Peg.Swasta",IF(Q4="07","Pengusaha/Wiraswasta",IF(Q4="08","Pengacara/Hakim/Jaksa/Notaris",IF(Q4="09","Seniman/Sejenis",IF(Q4="10","Dokter/Sejenis",IF(Q4="11","Penerbangan",IF(Q4="12","Pedagang",IF(Q4="13","Petani/ternak",IF(Q4="14","Nelayan",IF(Q4="15","Buruh",IF(Q4="16","Angkutan",IF(Q4="17","PolitikusS",IF(Q4="18","Lainnya","DI ISI")))))))))))))))))) -> Pengusaha/Wiraswasta | S4: 01 | T4: =IF(S4="01","Tdk Bekerja",IF(S4="02","Pensiunan/Alm.",IF(S4="03","PNS",IF(S4="04","TNI/POLRI",IF(S4="05","Guru/Dosen",IF(S4="06","Peg.Swasta",IF(S4="07","Pengusaha/Wiraswasta",IF(S4="08","Pengacara/Hakim/Jaksa/Notaris",IF(S4="09","Seniman/Sejenis",IF(S4="10","Dokter/Sejenis",IF(S4="11","Penerbangan",IF(S4="12","Pedagang",IF(S4="13","Petani/ternak",IF(S4="14","Nelayan",IF(S4="15","Buruh",IF(S4="16","Angkutan",IF(S4="17","PolitikusS",IF(S4="18","Lainnya","DI ISI")))))))))))))))))) -> Tdk Bekerja | U4: =IF(Q4="03","DIISI","-") -> - | V4: =IF(S4="03","DIISI","-") -> - | W4: 1 | X4: =IF(W4="0","Tdk Pnddkan Formal",IF(W4="1","<=SLTP",IF(W4="2","SLTA",IF(W4="3","D1",IF(W4="4","D2",IF(W4="5","D3",IF(W4="6","D4",IF(W4="7","S1",IF(W4="8","S2",IF(W4="9","S3","DI ISI")))))))))) -> <=SLTP | Y4: 1 | Z4: =IF(Y4="0","Tdk Pnddkan Formal",IF(Y4="1","<=SLTP",IF(Y4="2","SLTA",IF(Y4="3","D1",IF(Y4="4","D2",IF(Y4="5","D3",IF(Y4="6","D4",IF(Y4="7","S1",IF(Y4="8","S2",IF(Y4="9","S3","DI ISI")))))))))) -> <=SLTP | AA4: 3 | AB4: =IF(AA4="1","<= Rp.500.000",IF(AA4="2","Rp 500.001 - Rp 1.000.000",IF(AA4="3","Rp 1.000.001 - Rp 2.000.000",IF(AA4="4","Rp 2.000.001 - Rp 3.000.000",IF(AA4="5","Rp 3.000.001 - Rp 5.000.000",IF(AA4="6","> Rp 5.000.000","DI ISI")))))) -> Rp 1.000.001 - Rp 2.000.000 | AC4: 4 | AD4: =IF(AC4="1","Olahraga",IF(AC4="2","Kesenian",IF(AC4="3","Membaca",IF(AC4="4","Menulis",IF(AC4="5","Travelling",IF(AC4="6","Lainnya","DI ISI")))))) -> Menulis | AE4: 4 | AF4: =IF(AE4="1","PNS",IF(AE4="2","TNI/Polri",IF(AE4="3","Guru/Dosen",IF(AE4="4","Dokter",IF(AE4="5","Politikus",IF(AE4="6","Wiraswasta",IF(AE4="7","Pekerja Seni/Sejenis",IF(AE4="8","Lainnya","DI ISI")))))))) -> Dokter | AG4: 2 | AH4: =IF(AG4="1","< 1 Km",IF(AG4="2","1-3 Km",IF(AG4="3","3-5 Km",IF(AG4="4","5-10 Km",IF(AG4="5","> 10 Km","DI ISI"))))) -> 1-3 Km | AI4: 2 | AJ4: =IF(AI4="1","Jalan Kaki",IF(AI4="2","Sepeda",IF(AI4="3","motor",IF(AI4="4","Mobil Pribadi",IF(AI4="5","Antar/Jemput",IF(AI4="6","Angkutan",IF(AI4="7","Lainnya","DI ISI"))))))) -> Sepeda | AK4: 2 | AL4: 1 | AM4: =IF(AL4="1","TK",IF(AL4="2","RA",IF(AL4="3","PAUD",IF(AL4="4","TKLB",IF(AL4="5","Langsung dari Ortu","DI ISI"))))) -> TK | AN4: TK DEWI SARTIKA KEBONSARI | AO4: Dusun Sarirejo I | AP4: 20 | AQ4: 3 | AR4: Kebonsari | AW4: 111235080166 | AX4: 18 | AY4: =AW4&AX4&C4 -> 111235080166184631
A5: =IF(D5="","",COUNTA($D$4:D5)) -> 2 | C5: 4632 | D5: AULIA MUSTIKA PERMATA SARI | E5: P | F5: LUMAJANG | G5: 2012-04-22 | H5: =DATEDIF(G5,PETUNJUK!$H$10,"y") -> 7 | I5: 7 | J5: 3508216204120001 | K5: WAHYUDI | L5: 3508210509800003 | M5: 05/09/1980 | N5: VIDIYASARI | O5: 3508214308870002 | P5: 1987-08-03 | Q5: 03 | R5: PNS | S5: 01 | T5: Tdk Bekerja | U5: DIISI | V5: =IF(S5="03","DIISI","-") -> - | W5: 1 | X5: <=SLTP | Y5: 1 | Z5: <=SLTP | AA5: 3 | AB5: Rp 1.000.001 - Rp 2.000.000 | AC5: 4 | AD5: =IF(AC5="1","Olahraga",IF(AC5="2","Kesenian",IF(AC5="3","Membaca",IF(AC5="4","Menulis",IF(AC5="5","Travelling",IF(AC5="6","Lainnya","DI ISI")))))) -> Menulis | AE5: 4 | AF5: =IF(AE5="1","PNS",IF(AE5="2","TNI/Polri",IF(AE5="3","Guru/Dosen",IF(AE5="4","Dokter",IF(AE5="5","Politikus",IF(AE5="6","Wiraswasta",IF(AE5="7","Pekerja Seni/Sejenis",IF(AE5="8","Lainnya","DI ISI")))))))) -> Dokter | AG5: 2 | AH5: =IF(AG5="1","< 1 Km",IF(AG5="2","1-3 Km",IF(AG5="3","3-5 Km",IF(AG5="4","5-10 Km",IF(AG5="5","> 10 Km","DI ISI"))))) -> 1-3 Km | AI5: 2 | AJ5: =IF(AI5="1","Jalan Kaki",IF(AI5="2","Sepeda",IF(AI5="3","motor",IF(AI5="4","Mobil Pribadi",IF(AI5="5","Antar/Jemput",IF(AI5="6","Angkutan",IF(AI5="7","Lainnya","DI ISI"))))))) -> Sepeda | AK5: 1 | AL5: 1 | AM5: =IF(AL5="1","TK",IF(AL5="2","RA",IF(AL5="3","PAUD",IF(AL5="4","TKLB",IF(AL5="5","Langsung dari Ortu","DI ISI"))))) -> TK | AN5: TK DEWI SARTIKA KEBONSARI | AO5: DUSUN SARIREJO I | AP5: 20 | AQ5: 3 | AR5: Kebonsari | AS5: 3508212701070002 | AU5: 082339759134 | AW5: 111235080166 | AX5: 18 | AY5: =AW5&AX5&C5 -> 111235080166184632
A6: =IF(D6="","",COUNTA($D$4:D6)) -> 3 | C6: 4633 | D6: BASMALAH INSAN SHOLEH | E6: L | F6: LUMAJANG | G6: 2011-01-01 | H6: =DATEDIF(G6,PETUNJUK!$H$10,"y") -> 8 | I6: 8 | J6: 3508210101120001 | K6: SLAMET | L6: 3508212702780001 | M6: 27/02/1978 | N6: SITI AMINAH | O6: 3508215408830001 | P6: 14/08/1983 | Q6: 06 | R6: Peg.Swasta | S6: 03 | T6: PNS | U6: - | V6: DIISI | W6: 5 | X6: D3 | Y6: 5 | Z6: D3 | AA6: 4 | AB6: Rp 2.000.001 - Rp 3.000.000 | AC6: 5 | AD6: Travelling | AE6: 2 | AF6: TNI/Polri | AG6: 2 | AH6: 1-3 Km | AI6: 2 | AJ6: Sepeda | AK6: 2 | AL6: 1 | AM6: TK | AN6: TK MUSLIMAT NU 01 SUMBERSUKO | AO6: Dusun Suko I | AP6: 5 | AQ6: 1 | AR6: Sumbersuko | AS6: 3508211210090142 | AU6: 085321526617 | AW6: 111235080166 | AX6: 18 | AY6: 111235080166184633
A7: =IF(D7="","",COUNTA($D$4:D7)) -> 4 | C7: 4634 | D7: DENY ISWAHYUDI | E7: L | F7: LUMAJANG | G7: 2011-12-23 | H7: =DATEDIF(G7,PETUNJUK!$H$10,"y") -> 7 | I7: 7 | J7: 3508102312110002 | K7: SUYUDI | L7: 350810121590002 | M7: 12/10/1960 | N7: LUSIYAH | O7: 3508104303720007 | P7: 03/03/1973 | Q7: 04 | R7: TNI/POLRI | S7: 06 | T7: Peg.Swasta | U7: - | V7: - | W7: 1 | X7: <=SLTP | Y7: 2 | Z7: SLTA | AA7: 4 | AB7: Rp 2.000.001 - Rp 3.000.000 | AC7: 1 | AD7: Olahraga | AE7: 2 | AF7: TNI/Polri | AG7: 2 | AH7: 1-3 Km | AI7: 5 | AJ7: Antar/Jemput | AK7: 1 | AL7: 1 | AM7: TK | AN7: TK MUSLIMAT NU Tarbiyatus Sibyan Labruk Kidul | AO7: DUSUN KRAJAN BARAT | AP7: 30 | AQ7: 5 | AR7: Labruk Kidul | AS7: 3508102108058660 | AU7: 082216761750 | AW7: 111235080166 | AX7: 18 | AY7: 111235080166184634
A8: =IF(D8="","",COUNTA($D$4:D8)) -> 5 | B8: 357 | C8: 4635 | D8: DESY NUR AINI | E8: P | F8: LUMAJANG | G8: 2010-12-22 | H8: =DATEDIF(G8,PETUNJUK!$H$10,"y") -> 8 | I8: 8 | J8: 3508106212100001 | K8: SUYUDI | L8: 350810121590002 | M8: 12/10/1959 | N8: LUSIYAH | O8: 3508104303720007 | P8: 03/03/1972 | Q8: 04 | R8: TNI/POLRI | S8: 06 | T8: Peg.Swasta | U8: - | V8: - | W8: 1 | X8: <=SLTP | Y8: 2 | Z8: SLTA | AA8: 4 | AB8: Rp 2.000.001 - Rp 3.000.000 | AC8: 4 | AD8: Menulis | AE8: 8 | AF8: Lainnya | AG8: 2 | AH8: 1-3 Km | AI8: 5 | AJ8: Antar/Jemput | AK8: 1 | AL8: 1 | AM8: TK | AN8: TK MUSLIMAT NU Tarbiyatus Sibyan Labruk Kidul | AO8: DUSUN KRAJAN BARAT | AP8: 30 | AQ8: 5 | AR8: Labruk Kidul | AS8: 3508102108058660 | AU8: 082216761750 | AW8: 111235080166 | AX8: 18 | AY8: 111235080166184635
A9: =IF(D9="","",COUNTA($D$4:D9)) -> 6 | B9: 358 | C9: 4636 | D9: FAIRUS HAIDAR ANWAR | E9: L | F9: LUMAJANG | G9: 2011-10-09 | H9: =DATEDIF(G9,PETUNJUK!$H$10,"y") -> 7 | I9: 7 | J9: 3508210910110002 | K9: HASBUNUR ROFIQ | L9: 3508212612720002 | M9: 26/12/1972 | N9: NURIL HIDAYAH | O9: 3508215401780001 | P9: 14/01/1978 | Q9: 03 | R9: PNS | S9: 03 | T9: PNS | U9: DIISI | V9: DIISI | W9: 7 | X9: S1 | Y9: 2 | Z9: SLTA | AA9: 5 | AB9: Rp 3.000.001 - Rp 5.000.000 | AC9: 1 | AD9: Olahraga | AF9: DI ISI | AG9: 2 | AH9: 1-3 Km | AI9: 1 | AJ9: Jalan Kaki | AK9: 2 | AL9: 1 | AM9: TK | AN9: TK MUSLIMAT NU Tarbiyatus Sibyan Labruk Kidul | AO9: DUSUN KRAJAN BARAT | AP9: 38 | AQ9: 6 | AR9: Labruk Kidul | AS9: 3508212906060011 | AU9: 085258054567 | AV9: 085331918171 | AW9: 111235080166 | AX9: 18 | AY9: 111235080166184636
A10: =IF(D10="","",COUNTA($D$4:D10)) -> 7 | B10: 359 | C10: 4637 | D10: FANDI DWI KURNIAWAN | E10: L | F10: LUMAJANG | G10: 2011-10-25 | H10: =DATEDIF(G10,PETUNJUK!$H$10,"y") -> 7 | I10: 7 | J10: 3508212510110001 | K10: IMAM KURDI | L10: 3508211402720001 | M10: 14/02/1972 | N10: NUNUK ROCHMAWATI | O10: 3508215104780004 | P10: 11/04/1978 | Q10: 12 | R10: Pedagang | S10: 01 | T10: Tdk Bekerja | U10: - | V10: - | W10: 1 | X10: <=SLTP | Y10: 2 | Z10: SLTA | AA10: 1 | AB10: <= Rp.500.000 | AC10: 6 | AD10: Lainnya | AE10: 8 | AF10: Lainnya | AG10: 2 | AH10: 1-3 Km | AI10: 5 | AJ10: Antar/Jemput | AK10: 1 | AL10: 1 | AM10: TK | AN10: TK MUSLIMAT NU Tarbiyatus Sibyan Labruk Kidul | AO10: DUSUN KRAJAN BARAT | AP10: 35 | AQ10: 6 | AR10: Labruk Kidul | AS10: 3508210610090114 | AW10: 111235080166 | AX10: 18 | AY10: 111235080166184637
A11: =IF(D11="","",COUNTA($D$4:D11)) -> 8 | B11: 360 | C11: 4638 | D11: FITRO NUR HABIBI | E11: L | F11: LUMAJANG | G11: 2011-09-17 | H11: =DATEDIF(G11,PETUNJUK!$H$10,"y") -> 7 | I11: 7 | J11: 3508211709110001 | K11: ABDUL GHOFUR | L11: 3508212006850007 | M11: 20/06/1985 | N11: SRIYANI | O11: 3508214606860006 | P11: 06/06/1986 | Q11: 12 | R11: Pedagang | S11: 01 | T11: Tdk Bekerja | U11: - | V11: - | W11: 1 | X11: <=SLTP | Y11: 1 | Z11: <=SLTP | AA11: 3 | AB11: Rp 1.000.001 - Rp 2.000.000 | AC11: 3 | AD11: Membaca | AE11: 8 | AF11: Lainnya | AG11: 3 | AH11: 3-5 Km | AI11: 5 | AJ11: Antar/Jemput | AK11: 2 | AL11: 1 | AM11: TK | AN11: TK Alhidayah Sumbersuko | AO11: Dusun Suko II | AP11: 4 | AQ11: 2 | AR11: Sumbersuko | AS11: 3508213004090006 | AU11: 082331835781 | AW11: 111235080166 | AX11: 18 | AY11: 111235080166184638
A12: =IF(D12="","",COUNTA($D$4:D12)) -> 9 | C12: 4639 | D12: JINAN RATU MELATI | E12: P | F12: LUMAJANG | G12: 2011-06-30 | H12: =DATEDIF(G12,PETUNJUK!$H$10,"y") -> 8 | I12: 8 | J12: 3508217006110003 | K12: MUSTHOFA DAMANHURI | L12: 3508211205770004 | M12: 12/05/1977 | N12: SITI AISYAH | O12: 3508214809860002 | P12: 08/09/1986 | Q12: 07 | R12: Pengusaha/Wiraswasta | S12: 01 | T12: Tdk Bekerja | U12: - | V12: - | W12: 2 | X12: SLTA | Y12: 1 | Z12: <=SLTP | AB12: DI ISI | AD12: DI ISI | AF12: DI ISI | AH12: DI ISI | AJ12: DI ISI | AK12: 3 | AL12: 1 | AM12: TK | AN12: TK Alhidayah Sumbersuko | AO12: Dusun Suko II | AP12: 1 | AQ12: 2 | AR12: Sumbersuko | AS12: 3508212509120006 | AU12: 081332028333 | AV12: 081937494333 | AW12: 111235080166 | AX12: 18 | AY12: 111235080166184639
A13: =IF(D13="","",COUNTA($D$4:D13)) -> 10 | C13: 4640 | D13: MARSHA ERITA HARTANTO | E13: P | F13: LUMAJANG | G13: 2011-06-05 | H13: =DATEDIF(G13,PETUNJUK!$H$10,"y") -> 8 | I13: 8 | J13: 3508214506110001 | K13: ERIC HARTANTO | L13: 3508162410900002 | M13: 24/10/1990 | N13: MITA NILASARI | O13: 3508214606910001 | P13: 06/06/1991 | Q13: 16 | R13: Angkutan | S13: 01 | T13: Tdk Bekerja | U13: - | V13: - | W13: 2 | X13: SLTA | Y13: 2 | Z13: SLTA | AA13: 3 | AB13: Rp 1.000.001 - Rp 2.000.000 | AC13: 2 | AD13: Kesenian | AE13: 4 | AF13: Dokter | AG13: 2 | AH13: 1-3 Km | AI13: 5 | AJ13: Antar/Jemput | AK13: 1 | AL13: 3 | AM13: PAUD | AN13: PAUD DEWI SARTIKA | AO13: Dusun Sarirejo II | AP13: 24 | AQ13: 4 | AR13: Kebonsari | AS13: 3508211105110002 | AU13: 081252213844 | AW13: 111235080166 | AX13: 18 | AY13: 111235080166184640
A14: =IF(D14="","",COUNTA($D$4:D14)) -> 11 | C14: 4641 | D14: MOCHAMMAD NAUFAL AISY HAFI | E14: L | F14: LUMAJANG | G14: 2011-11-16 | H14: =DATEDIF(G14,PETUNJUK!$H$10,"y") -> 7 | I14: 7 | J14: 3508031611110004 | K14: ILMI SRI DARA KURNIAWATI | L14: 3508036411830004 | M14: 24/11/1983 | N14: ILMI SRI DARA KURNIAWATI | O14: 3508036411830004 | P14: 24/11/1983 | Q14: 07 | R14: Pengusaha/Wiraswasta | S14: 01 | T14: Tdk Bekerja | U14: - | V14: - | W14: 7 | X14: S1 | Y14: 2 | Z14: SLTA | AA14: 3 | AB14: Rp 1.000.001 - Rp 2.000.000 | AC14: 6 | AD14: Lainnya | AE14: 8 | AF14: Lainnya | AG14: 2 | AH14: 1-3 Km | AI14: 5 | AJ14: Antar/Jemput | AK14: 1 | AL14: 1 | AM14: TK | AN14: TK Alhidayah Sumbersuko | AO14: Dusun Kebonsari | AP14: 5 | AQ14: 3 | AR14: Sumbersuko | AS14: 3508030202120004 | AU14: 082352585877 | AW14: 111235080166 | AX14: 18 | AY14: 111235080166184641
A15: =IF(D15="","",COUNTA($D$4:D15)) -> 12 | C15: 4642 | D15: MUHAMAD ALWIN DWI PRASETYO | E15: L | F15: LUMAJANG | G15: 2011-04-30 | H15: =DATEDIF(G15,PETUNJUK!$H$10,"y") -> 8 | I15: 8 | J15: 3508213004110001 | K15: M SATUPAN | L15: 3508210502700001 | M15: 05/02/1970 | N15: WAHYUNINGSIH | O15: 3508214206830002 | P15: 02/06/1983 | Q15: 07 | R15: Pengusaha/Wiraswasta | S15: 01 | T15: Tdk Bekerja | U15: - | V15: - | W15: 1 | X15: <=SLTP | Y15: 1 | Z15: <=SLTP | AA15: 2 | AB15: Rp 500.001 - Rp 1.000.000 | AC15: 1 | AD15: Olahraga | AE15: 2 | AF15: TNI/Polri | AG15: 1 | AH15: < 1 Km | AI15: 5 | AJ15: Antar/Jemput | AK15: 2 | AL15: 1 | AM15: TK | AN15: TK MUSLIMAT NU Tarbiyatus Sibyan Labruk Kidul | AO15: DUSUN KRAJAN BARAT | AP15: 5 | AQ15: 6 | AR15: Labruk Kidul | AS15: 3508212110090039 | AU15: 085257969593 | AV15: 085257969593 | AW15: 111235080166 | AX15: 18 | AY15: 111235080166184642
A16: =IF(D16="","",COUNTA($D$4:D16)) -> 13 | C16: 4643 | D16: MUHAMMAD FAIZ MAULANA | E16: L | F16: LUMAJANG | G16: 2011-10-08 | H16: =DATEDIF(G16,PETUNJUK!$H$10,"y") -> 7 | I16: 7 | J16: 3508210810110001 | K16: ABDUL KHANAN | L16: 3508211507900002 | M16: 15/07/1990 | N16: FITRIANI | O16: 3508024508900005 | P16: 05/08/1990 | Q16: 07 | R16: Pengusaha/Wiraswasta | S16: 07 | T16: Pengusaha/Wiraswasta | U16: - | V16: - | W16: 2 | X16: SLTA | Y16: 2 | Z16: SLTA | AA16: 3 | AB16: Rp 1.000.001 - Rp 2.000.000 | AC16: 2 | AD16: Kesenian | AF16: DI ISI | AG16: 2 | AH16: 1-3 Km | AI16: 2 | AJ16: Sepeda | AK16: 1 | AL16: 1 | AM16: TK | AN16: TK DEWI SARTIKA KEBONSARI | AO16: DUSUN SARIREJO I | AP16: 10 | AQ16: 2 | AR16: Kebonsari | AS16: 3508211601120005 | AW16: 111235080166 | AX16: 18 | AY16: 111235080166184643
A17: =IF(D17="","",COUNTA($D$4:D17)) -> 14 | C17: 4644 | D17: MUHAMMAD HIDAYAHTUL ARIFYN | E17: L | F17: LUMAJANG | G17: 2012-01-06 | H17: =DATEDIF(G17,PETUNJUK!$H$10,"y") -> 7 | I17: 7 | J17: 3508040601120001 | K17: ARIF HARTANTO | L17: 3508040705860001 | M17: 07/05/1986 | N17: NUR KHAYATI | O17: 3508216803830001 | P17: 28/03/1983 | Q17: 06 | R17: Peg.Swasta | S17: 01 | T17: Tdk Bekerja | U17: - | V17: - | W17: 1 | X17: <=SLTP | Y17: 1 | Z17: <=SLTP | AA17: 2 | AB17: Rp 500.001 - Rp 1.000.000 | AC17: 6 | AD17: Lainnya | AE17: 8 | AF17: Lainnya | AG17: 1 | AH17: < 1 Km | AI17: 5 | AJ17: Antar/Jemput | AK17: 1 | AL17: 1 | AM17: TK | AN17: TK MUSLIMAT NU Tarbiyatus Sibyan Labruk Kidul | AO17: Bades Krajan | AP17: 4 | AQ17: 3 | AR17: Pasirian | AS17: 3508041402120009 | AU17: 085859255403 | AV17: 085330761986 | AW17: 111235080166 | AX17: 18 | AY17: 111235080166184644
A18: =IF(D18="","",COUNTA($D$4:D18)) -> 15 | C18: 4645 | D18: MUHAMMAD ILHAM SHODIQI | E18: L | F18: LUMAJANG | G18: 2011-10-06 | H18: =DATEDIF(G18,PETUNJUK!$H$10,"y") -> 7 | I18: 7 | J18: 3508040610110001 | K18: MUHAMMAD ULIL ABSOR | L18: 3508040403930002 | M18: 04/03/1993 | N18: SITI MISMAWATI | O18: 3508214605930002 | P18: 06/05/1993 | Q18: 13 | R18: Petani/ternak | S18: 01 | T18: Tdk Bekerja | U18: - | V18: - | W18: 2 | X18: SLTA | Y18: 2 | Z18: SLTA | AA18: 2 | AB18: Rp 500.001 - Rp 1.000.000 | AC18: 1 | AD18: Olahraga | AE18: 8 | AF18: Lainnya | AG18: 2 | AH18: 1-3 Km | AI18: 1 | AJ18: Jalan Kaki | AK18: 1 | AL18: 1 | AM18: TK | AN18: TK MUSLIMAT NU 01 SUMBERSUKO | AO18: Dusun Gedongsari | AP18: 55 | AQ18: 8 | AR18: Labruk Kidul | AS18: 3508042702120009 | AU18: 081338719543 | AW18: 111235080166 | AX18: 18 | AY18: 111235080166184645
A19: =IF(D19="","",COUNTA($D$4:D19)) -> 16 | C19: 4646 | D19: MUKHAMMAD DAFFA WILDANSYAH | E19: L | F19: LUMAJANG | G19: 2011-07-02 | H19: =DATEDIF(G19,PETUNJUK!$H$10,"y") -> 8 | I19: 8 | J19: 3508210207110001 | K19: MUHAMMAD ARIFIN | L19: 3508210610860003 | M19: 06/10/1986 | N19: NUR LAILIYAH | O19: 3508214101870002 | P19: 01/01/1987 | Q19: 06 | R19: Peg.Swasta | S19: 15 | T19: Buruh | U19: - | V19: - | W19: 2 | X19: SLTA | Y19: 1 | Z19: <=SLTP | AB19: DI ISI | AD19: DI ISI | AF19: DI ISI | AH19: DI ISI | AJ19: DI ISI | AM19: DI ISI | AO19: Dusun Sarirejo I | AP19: 16 | AQ19: 3 | AR19: Kebonsari | AS19: 3508212809110003 | AU19: 085606162980 | AW19: 111235080166 | AX19: 18 | AY19: 111235080166184646
A20: =IF(D20="","",COUNTA($D$4:D20)) -> 17 | C20: 4647 | D20: NAUFAL AKBAR ZAKYAZ ZAUHARIZQY | E20: L | F20: LUMAJANG | G20: 2011-05-17 | H20: =DATEDIF(G20,PETUNJUK!$H$10,"y") -> 8 | I20: 8 | J20: 3508091705110001 | K20: HARIYANTO | L20: 3508090103850002 | M20: 01/03/1985 | N20: NINIK KUMALASARI | O20: 3508096607870001 | P20: 26/07/1987 | Q20: 05 | R20: Guru/Dosen | S20: 01 | T20: Tdk Bekerja | U20: - | V20: - | W20: 7 | X20: S1 | Y20: 2 | Z20: SLTA | AA20: 2 | AB20: Rp 500.001 - Rp 1.000.000 | AC20: 1 | AD20: Olahraga | AF20: DI ISI | AG20: 3 | AH20: 3-5 Km | AI20: 5 | AJ20: Antar/Jemput | AK20: 1 | AL20: 2 | AM20: RA | AN20: RA. NURUL HIKMAH SUMBERSUKO | AO20: Dusun Suko I | AP20: 2 | AQ20: 5 | AR20: Sumbersuko | AS20: 3508211201160001 | AU20: 082338403544 | AW20: 111235080166 | AX20: 18 | AY20: 111235080166184647
A21: =IF(D21="","",COUNTA($D$4:D21)) -> 18 | C21: 4648 | D21: NAURA YUMNA ZAFERA | E21: P | F21: JEMBER | G21: 2011-11-08 | H21: =DATEDIF(G21,PETUNJUK!$H$10,"y") -> 7 | I21: 7 | J21: 3509214811110005 | K21: M. HARIYANTO | L21: 3509211207700002 | M21: 12/07/1970 | N21: SULISTYOWATI | O21: 3509215608780002 | P21: 16/08/1978 | Q21: 07 | R21: Pengusaha/Wiraswasta | S21: 01 | T21: Tdk Bekerja | U21: - | V21: - | W21: 2 | X21: SLTA | Y21: 2 | Z21: SLTA | AA21: 1 | AB21: <= Rp.500.000 | AC21: 6 | AD21: Lainnya | AE21: 3 | AF21: Guru/Dosen | AG21: 1 | AH21: < 1 Km | AI21: 2 | AJ21: Sepeda | AK21: 4 | AL21: 1 | AM21: TK | AN21: TK MUSLIMAT NU 01 SUMBERSUKO | AO21: Dusun Krajan Timur | AP21: 7 | AQ21: 1 | AR21: Labruk Kidul | AS21: 3509211108110004 | AU21: 085815351273 | AW21: 111235080166 | AX21: 18 | AY21: 111235080166184648
A22: =IF(D22="","",COUNTA($D$4:D22)) -> 19 | C22: 4649 | D22: NIKITA CINTA GADISTIA | E22: P | F22: LUMAJANG | G22: 2011-05-03 | H22: =DATEDIF(G22,PETUNJUK!$H$10,"y") -> 8 | I22: 8 | K22: DIDIK HARIANTO | L22: 3508211209800003 | M22: 12/09/1980 | N22: RODIAH | O22: 3508215202860001 | P22: 12/02/1986 | Q22: 18 | R22: Lainnya | S22: 06 | T22: Peg.Swasta | U22: - | V22: - | W22: 1 | X22: <=SLTP | Y22: 1 | Z22: <=SLTP | AB22: DI ISI | AD22: DI ISI | AF22: DI ISI | AH22: DI ISI | AJ22: DI ISI | AM22: DI ISI | AW22: 111235080166 | AX22: 18 | AY22: 111235080166184649
A23: =IF(D23="","",COUNTA($D$4:D23)) -> 20 | C23: 4650 | D23: NUR LAILATUL HASANAH | E23: P | F23: LUMAJANG | G23: 2011-10-03 | H23: =DATEDIF(G23,PETUNJUK!$H$10,"y") -> 7 | I23: 7 | J23: 3508054310110001 | K23: ABDULLOH SHIDIQ | L23: 3508052810720004 | M23: 28/10/1972 | N23: PONIMAH ANDRIANI | O23: 3508054305820003 | P23: 03/05/1982 | Q23: 05 | R23: Guru/Dosen | S23: 01 | T23: Tdk Bekerja | U23: - | V23: - | W23: 1 | X23: <=SLTP | Y23: 1 | Z23: <=SLTP | AA23: 2 | AB23: Rp 500.001 - Rp 1.000.000 | AC23: 3 | AD23: Membaca | AE23: 3 | AF23: Guru/Dosen | AG23: 3 | AH23: 3-5 Km | AI23: 5 | AJ23: Antar/Jemput | AK23: 1 | AL23: 1 | AM23: TK | AN23: TK MUSLIMAT NU SUMBERSUKO 01 | AO23: DUSUN WARKUT | AP23: 20 | AQ23: 3 | AR23: BESUK | AS23: 3508052809060095 | AU23: 081234754392 | AW23: 111235080166 | AX23: 18 | AY23: 111235080166184650
A24: =IF(D24="","",COUNTA($D$4:D24)) -> 21 | C24: 4651 | D24: R. AGYAN JINGGA PERMANA NUGROHO | E24: L | F24: LUMAJANG | G24: 2011-06-27 | H24: =DATEDIF(G24,PETUNJUK!$H$10,"y") -> 8 | I24: 8 | K24: TRI ISNAINI RUKILA | L24: 3508091007700003 | M24: 10/07/1970 | N24: SUSETYO JOKO SAPTO NUGROHO | Q24: 09 | R24: Seniman/Sejenis | S24: 01 | T24: Tdk Bekerja | U24: - | V24: - | W24: 2 | X24: SLTA | Y24: 4 | Z24: D2 | AB24: DI ISI | AD24: DI ISI | AF24: DI ISI | AH24: DI ISI | AJ24: DI ISI | AM24: DI ISI | AW24: 111235080166 | AX24: 18 | AY24: 111235080166184651
A25: =IF(D25="","",COUNTA($D$4:D25)) -> 22 | C25: 4652 | D25: RAGIL AKHMAD HIDAYAT | E25: L | F25: LUMAJANG | G25: 2011-06-28 | H25: =DATEDIF(G25,PETUNJUK!$H$10,"y") -> 8 | I25: 8 | J25: 3508212806110002 | K25: SLAMET BAWON | L25: 3508211206820001 | M25: 12/06/1982 | N25: JUMAINAH FITRIYA | O25: 3508216305800001 | P25: 23/05/1980 | Q25: 15 | R25: Buruh | S25: 01 | T25: Tdk Bekerja | U25: - | V25: - | W25: 1 | X25: <=SLTP | Y25: 1 | Z25: <=SLTP | AA25: 2 | AB25: Rp 500.001 - Rp 1.000.000 | AC25: 1 | AD25: Olahraga | AE25: 8 | AF25: Lainnya | AG25: 1 | AH25: < 1 Km | AI25: 5 | AJ25: Antar/Jemput | AK25: 2 | AL25: 1 | AM25: TK | AN25: TK MUSLIMAT NU Tarbiyatus Sibyan Labruk Kidul | AO25: DUSUN KRAJAN BARAT | AP25: 29 | AQ25: 5 | AR25: Labruk Kidul | AS25: 3508212409090002 | AU25: 085733168059 | AW25: 111235080166 | AX25: 18 | AY25: 111235080166184652
A26: =IF(D26="","",COUNTA($D$4:D26)) -> 23 | C26: 4653 | D26: SALFA NAUREEN ISALDINA | E26: P | F26: LUMAJANG | G26: 2011-03-26 | H26: =DATEDIF(G26,PETUNJUK!$H$10,"y") -> 8 | I26: 8 | J26: 3508216603110001 | K26: KHOIRUL ANTON | L26: 3508211004830004 | M26: 10/04/1983 | N26: ANITA WIJAYANTI | O26: 3508215106850001 | P26: 11/06/1985 | Q26: 07 | R26: Pengusaha/Wiraswasta | S26: 06 | T26: Peg.Swasta | U26: - | V26: - | W26: 2 | X26: SLTA | Y26: 2 | Z26: SLTA | AA26: 2 | AB26: Rp 500.001 - Rp 1.000.000 | AC26: 2 | AD26: Kesenian | AE26: 8 | AF26: Lainnya | AG26: 2 | AH26: 1-3 Km | AI26: 5 | AJ26: Antar/Jemput | AK26: 1 | AL26: 1 | AM26: TK | AN26: TK Alhidayah Sumbersuko | AO26: Dusun Suko II | AP26: 1 | AQ26: 2 | AR26: Sumbersuko | AS26: 3508210606110003 | AU26: 081337365484 | AV26: 081336771671 | AW26: 111235080166 | AX26: 18 | AY26: 111235080166184653
A27: =IF(D27="","",COUNTA($D$4:D27)) -> 24 | C27: 4654 | D27: SITI AKIFAH HUMAIRA FEBRIANOTO | E27: P | F27: LUMAJANG | G27: 2012-02-03 | H27: =DATEDIF(G27,PETUNJUK!$H$10,"y") -> 7 | I27: 7 | J27: 3508214302120001 | K27: HARINOTO | L27: 3508211604800001 | M27: 16/04/1980 | N27: EKA YUNITASARI | O27: 3508214106880004 | P27: 01/06/1988 | Q27: 07 | R27: Pengusaha/Wiraswasta | S27: 01 | T27: Tdk Bekerja | U27: - | V27: - | W27: 2 | X27: SLTA | Y27: 2 | Z27: SLTA | AA27: 2 | AB27: Rp 500.001 - Rp 1.000.000 | AC27: 1 | AD27: Olahraga | AE27: 2 | AF27: TNI/Polri | AG27: 2 | AH27: 1-3 Km | AI27: 5 | AJ27: Antar/Jemput | AK27: 2 | AL27: 1 | AM27: TK | AN27: TK Dharma Wanita Grati 01 | AO27: Jl. Mawar | AP27: 9 | AQ27: 3 | AR27: Grati | AS27: 3508212202120004 | AU27: 081252483184 | AW27: 111235080166 | AX27: 18 | AY27: 111235080166184654
A28: =IF(D28="","",COUNTA($D$4:D28)) -> 25 | C28: 4655 | D28: SITI MARIA ULFA | E28: P | F28: LUMAJANG | G28: 2011-05-28 | H28: =DATEDIF(G28,PETUNJUK!$H$10,"y") -> 8 | I28: 8 | J28: 3508216005110001 | K28: ATMADI | L28: 3508212104610003 | M28: 21/04/1961 | N28: SURIASIH | O28: 3508217008670018 | P28: 30/06/1967 | Q28: 07 | R28: Pengusaha/Wiraswasta | S28: 07 | T28: Pengusaha/Wiraswasta | U28: - | V28: - | W28: 1 | X28: <=SLTP | Y28: 1 | Z28: <=SLTP | AA28: 1 | AB28: <= Rp.500.000 | AC28: 4 | AD28: Menulis | AE28: 4 | AF28: Dokter | AG28: 1 | AH28: < 1 Km | AI28: 5 | AJ28: Antar/Jemput | AK28: 2 | AL28: 1 | AM28: TK | AN28: TK Alhidayah Sumbersuko | AO28: Dusun Krajan Timur | AP28: 4 | AQ28: 2 | AR28: Labruk Kidul | AS28: 3508211111090014 | AU28: 085258747283 | AW28: 111235080166 | AX28: 18 | AY28: 111235080166184655
A29: =IF(D29="","",COUNTA($D$4:D29)) -> 26 | C29: 4656 | D29: SITI MUNAWAROTUZ ZAHRO | E29: P | F29: LUMAJANG | G29: 2011-11-28 | H29: =DATEDIF(G29,PETUNJUK!$H$10,"y") -> 7 | I29: 7 | J29: 3508056811110003 | K29: MUHAMAD JUADI EFENDI | L29: 3508051205790003 | M29: 12/05/1979 | N29: IMAWAROH | O29: 3508054205830003 | P29: 02/05/1983 | Q29: 18 | R29: Lainnya | S29: 01 | T29: Tdk Bekerja | U29: - | V29: - | W29: 1 | X29: <=SLTP | Y29: 1 | Z29: <=SLTP | AA29: 2 | AB29: Rp 500.001 - Rp 1.000.000 | AC29: 6 | AD29: Lainnya | AE29: 8 | AF29: Lainnya | AG29: 4 | AH29: 5-10 Km | AI29: 5 | AJ29: Antar/Jemput | AK29: 1 | AL29: 1 | AM29: TK | AN29: TK MUSLIMAT NU Tarbiyatus Sibyan Labruk Kidul | AO29: Lempeni | AP29: 4 | AQ29: 1 | AR29: Tempeh | AS29: 3508051908055215 | AU29: 085785446105 | AW29: 111235080166 | AX29: 18 | AY29: 111235080166184656
A30: =IF(D30="","",COUNTA($D$4:D30)) -> 27 | C30: 4657 | D30: SYAHRIAN ABDILLAH MAULANA | E30: L | F30: LUMAJANG | G30: 2011-02-13 | H30: =DATEDIF(G30,PETUNJUK!$H$10,"y") -> 8 | I30: 8 | J30: 3508211002120001 | K30: ACHMAD RIDWAN | L30: 3508210804810003 | M30: 06/04/1981 | N30: EVI AGUSTINA DAMAYANTI | O30: 3508214308840001 | P30: 03/08/1984 | Q30: 07 | R30: Pengusaha/Wiraswasta | S30: 01 | T30: Tdk Bekerja | U30: - | V30: - | W30: 2 | X30: SLTA | Y30: 2 | Z30: SLTA | AA30: 3 | AB30: Rp 1.000.001 - Rp 2.000.000 | AC30: 6 | AD30: Lainnya | AE30: 8 | AF30: Lainnya | AG30: 2 | AH30: 1-3 Km | AI30: 5 | AJ30: Antar/Jemput | AK30: 2 | AL30: 1 | AM30: TK | AN30: TK MUSLIMAT NU 01 SUMBERSUKO | AO30: Dusun Sarirejo I | AP30: 2 | AQ30: 1 | AR30: Kebonsari | AS30: 3508212212110002 | AU30: 081357354824 | AW30: 111235080166 | AX30: 18 | AY30: 111235080166184657
A31: =IF(D31="","",COUNTA($D$4:D31)) -> 28 | C31: 4658 | D31: SYEHRUL SETYA NUGRAHA | E31: L | F31: LUMAJANG | G31: 2012-01-20 | H31: =DATEDIF(G31,PETUNJUK!$H$10,"y") -> 7 | I31: 7 | J31: 3508212001120002 | K31: DUGEL | L31: 3508210801700002 | M31: 08/01/1970 | N31: SITI KHOTIJAH | O31: 3508216312820001 | P31: 23/12/1982 | Q31: 03 | R31: PNS | S31: 01 | T31: Tdk Bekerja | U31: DIISI | V31: - | W31: 2 | X31: SLTA | Y31: 1 | Z31: <=SLTP | AA31: 5 | AB31: Rp 3.000.001 - Rp 5.000.000 | AC31: 1 | AD31: Olahraga | AE31: 8 | AF31: Lainnya | AG31: 1 | AH31: < 1 Km | AI31: 5 | AJ31: Antar/Jemput | AK31: 2 | AL31: 1 | AM31: TK | AN31: TK Alhidayah Sumbersuko | AO31: Dusun Suko I | AP31: 4 | AQ31: 1 | AR31: Sumbersuko | AS31: 3508210205080007 | AU31: 081359071022 | AW31: 111235080166 | AX31: 18 | AY31: 111235080166184658
A32: =IF(D32="","",COUNTA($D$4:D32)) -> 29 | C32: 4659 | D32: ZALDYROBBI SIDQI ACHMAD | E32: L | F32: LUMAJANG | G32: 2011-10-25 | H32: =DATEDIF(G32,PETUNJUK!$H$10,"y") -> 7 | I32: 7 | J32: 3508212510110002 | K32: MULYAMIN | L32: 3508210704730003 | M32: 07/04/1973 | N32: MAZIDATUR RODIAH | O32: 3508214806740002 | P32: 08/06/1974 | Q32: 06 | R32: Peg.Swasta | S32: 06 | T32: Peg.Swasta | U32: - | V32: - | W32: 2 | X32: SLTA | Y32: 2 | Z32: SLTA | AA32: 3 | AB32: Rp 1.000.001 - Rp 2.000.000 | AC32: 5 | AD32: Travelling | AE32: 8 | AF32: Lainnya | AG32: 3 | AH32: 3-5 Km | AI32: 3 | AJ32: motor | AK32: 2 | AL32: 1 | AM32: TK | AN32: TK DEWI SARTIKA KEBONSARI | AO32: DUSUN KRAJAN BARAT | AP32: 58 | AQ32: 8 | AR32: Labruk Kidul | AS32: 3508211304090001 | AU32: 081331740779 | AW32: 111235080166 | AX32: 18 | AY32: 111235080166184659
A33: =IF(D33="","",COUNTA($D$4:D33)) -> 30 | C33: 4660 | D33: ZIDAH ALFI RIZQIYYAH | E33: P | F33: LUMAJANG | G33: 2011-08-09 | H33: =DATEDIF(G33,PETUNJUK!$H$10,"y") -> 7 | I33: 7 | J33: 3508044908110001 | K33: NUR HASAN | L33: 3508211205840001 | M33: 12/05/1984 | N33: SITI MUYASSAROH | O33: 3508047009880001 | P33: 30/09/1988 | Q33: 06 | R33: Peg.Swasta | S33: 01 | T33: Tdk Bekerja | U33: - | V33: - | W33: 2 | X33: SLTA | Y33: 5 | Z33: D3 | AA33: 2 | AB33: Rp 500.001 - Rp 1.000.000 | AC33: 5 | AD33: Travelling | AE33: 3 | AF33: Guru/Dosen | AG33: 1 | AH33: < 1 Km | AI33: 5 | AJ33: Antar/Jemput | AK33: 1 | AL33: 2 | AM33: RA | AN33: RA MUSLIMAT NU 26 MOJOSARI | AO33: Dusun Krajan Wetan | AP33: 10 | AQ33: 2 | AR33: Mojosari | AS33: 3508210906140011 | AU33: 085230385898 | AW33: 111235080166 | AX33: 18 | AY33: 111235080166184660

Sheet 2B
A1: 2B | B1: NISN | C1: INDUK | D1: NAMA SISWA | E1: L/P | F1: Tempat, Tanggal Lahir | H1: Umur (RUMUS) | I1: Umur (TEXT) | J1: NOMOR INDUK KEPENDUDUKAN (NIK) SISWA | K1: tentang ORANG TUA | Q1: PEKERJAAN (DISERTAI KODE EMIS 2016) | U1: Jika PNS | V1: Jika TNI | W1: JENJANG PENDIDIKAN (DISERTAI KODE EMIS 2016) | AA1: Penghasilan Perbulan (DISERTAI KODE EMIS 2016) | AC1: Hobi (DISERTAI KODE EMIS 2016) | AE1: Cita-cita (DISERTAI KODE EMIS 2016) | AG1: Jarak Rumah-Sekolah | AI1: Transportasi yg dipakai | AK1: Jml Saudara | AL1: Asal Sekolah Sebelumnya | AO1: Alamat | AS1: NO. KARTU KELUARGA | AU1: NO.HP/ | AV1: TELEPON V2 | AW1: NSM | AX1: TAHUN MASUK | AY1: NO INDUK VERSI EMIS | AZ1: KIP/PIP (INDONESIA PINTAR) | BE1: KESEHATAN TINGGI BADAN (cm) & BERAT BADAN (kg)
K2: Ayah | L2: NIK | M2: Tgl Lahir | N2: Ibu | O2: NIK | P2: Tgl Lahir | Q2: Ayah | S2: Ibu | U2: Gol. | V2: Pangkat | W2: Ayah | Y2: Ibu | AL2: KODE | AN2: ASAL TK/RA | AO2: JL./DUSUN | AP2: RT. | AQ2: RW. | AR2: Desa | AU2: TELEPON | AZ2: Nomor KIP | BA2: Nomor KKS | BB2: Nomor KPS | BC2: Nomor PKH | BD2: Kriteria lain | BE2: TB1 | BF2: TB2 | BG2: TB3 | BH2: TB4 | BI2: TB5 | BJ2: TB6 | BK2: BB1 | BL2: BB2 | BM2: BB3 | BN2: BB4 | BO2: BB5 | BP2: BB6
A3: 1 | B3: 2 | C3: 3 | D3: 4 | E3: 5 | F3: 6 | G3: 7 | H3: 8 | K3: 9 | L3: 10 | M3: 11 | N3: 12 | O3: 13 | P3: 14 | Q3: 15 | S3: 16 | U3: 17 | V3: 18 | W3: 19 | Y3: 20 | AA3: 21 | AC3: 22 | AE3: 23 | AG3: 24 | AI3: 25 | AK3: 26 | AL3: 27 | AN3: 28 | AO3: 29 | AP3: 30 | AQ3: 31 | AR3: 32 | AS3: 33 | AT3: 34 | AU3: 35 | AV3: 36 | AW3: 37 | AX3: 38 | AY3: 39 | AZ3: 40 | BA3: 41 | BB3: 42 | BC3: 43 | BD3: 44 | BE3: 45 | BF3: 46 | BG3: 47 | BH3: 48 | BI3: 49 | BJ3: 50 | BK3: 51 | BL3: 52 | BM3: 53 | BN3: 54 | BO3: 55 | BP3: 56
A4: =IF(D4="","",COUNTA($D$4:D4)) -> 1 | C4: 4661 | D4: ADAM MAULANA HABIBI | E4: L | F4: LUMAJANG | G4: 2011-12-30 | H4: =DATEDIF(G4,PETUNJUK!$H$10,"y") -> 7 | I4: =_xlfn.NUMBERVALUE(H4) -> 7 | J4: 3508213012110001 | K4: MOHAMMAD ROFII | L4: 3508212704770001 | M4: 27/04/1977 | N4: INANUL MUASYAROH | O4: 3508214102860001 | P4: 01/02/1986 | Q4: 07 | R4: =IF(Q4="01","Tdk Bekerja",IF(Q4="02","Pensiunan/Alm.",IF(Q4="03","PNS",IF(Q4="04","TNI/POLRI",IF(Q4="05","Guru/Dosen",IF(Q4="06","Peg.Swasta",IF(Q4="07","Pengusaha/Wiraswasta",IF(Q4="08","Pengacara/Hakim/Jaksa/Notaris",IF(Q4="09","Seniman/Sejenis",IF(Q4="10","Dokter/Sejenis",IF(Q4="11","Penerbangan",IF(Q4="12","Pedagang",IF(Q4="13","Petani/ternak",IF(Q4="14","Nelayan",IF(Q4="15","Buruh",IF(Q4="16","Angkutan",IF(Q4="17","PolitikusS",IF(Q4="18","Lainnya","DI ISI")))))))))))))))))) -> Pengusaha/Wiraswasta | S4: 01 | T4: =IF(S4="01","Tdk Bekerja",IF(S4="02","Pensiunan/Alm.",IF(S4="03","PNS",IF(S4="04","TNI/POLRI",IF(S4="05","Guru/Dosen",IF(S4="06","Peg.Swasta",IF(S4="07","Pengusaha/Wiraswasta",IF(S4="08","Pengacara/Hakim/Jaksa/Notaris",IF(S4="09","Seniman/Sejenis",IF(S4="10","Dokter/Sejenis",IF(S4="11","Penerbangan",IF(S4="12","Pedagang",IF(S4="13","Petani/ternak",IF(S4="14","Nelayan",IF(S4="15","Buruh",IF(S4="16","Angkutan",IF(S4="17","PolitikusS",IF(S4="18","Lainnya","DI ISI")))))))))))))))))) -> Tdk Bekerja | U4: =IF(Q4="03","DIISI","-") -> - | V4: =IF(S4="03","DIISI","-") -> - | W4: 1 | X4: =IF(W4="0","Tdk Pnddkan Formal",IF(W4="1","<=SLTP",IF(W4="2","SLTA",IF(W4="3","D1",IF(W4="4","D2",IF(W4="5","D3",IF(W4="6","D4",IF(W4="7","S1",IF(W4="8","S2",IF(W4="9","S3","DI ISI")))))))))) -> <=SLTP | Y4: 2 | Z4: =IF(Y4="0","Tdk Pnddkan Formal",IF(Y4="1","<=SLTP",IF(Y4="2","SLTA",IF(Y4="3","D1",IF(Y4="4","D2",IF(Y4="5","D3",IF(Y4="6","D4",IF(Y4="7","S1",IF(Y4="8","S2",IF(Y4="9","S3","DI ISI")))))))))) -> SLTA | AA4: 3 | AB4: =IF(AA4="1","<= Rp.500.000",IF(AA4="2","Rp 500.001 - Rp 1.000.000",IF(AA4="3","Rp 1.000.001 - Rp 2.000.000",IF(AA4="4","Rp 2.000.001 - Rp 3.000.000",IF(AA4="5","Rp 3.000.001 - Rp 5.000.000",IF(AA4="6","> Rp 5.000.000","DI ISI")))))) -> Rp 1.000.001 - Rp 2.000.000 | AC4: 6 | AD4: =IF(AC4="1","Olahraga",IF(AC4="2","Kesenian",IF(AC4="3","Membaca",IF(AC4="4","Menulis",IF(AC4="5","Travelling",IF(AC4="6","Lainnya","DI ISI")))))) -> Lainnya | AE4: 8 | AF4: =IF(AE4="1","PNS",IF(AE4="2","TNI/Polri",IF(AE4="3","Guru/Dosen",IF(AE4="4","Dokter",IF(AE4="5","Politikus",IF(AE4="6","Wiraswasta",IF(AE4="7","Pekerja Seni/Sejenis",IF(AE4="8","Lainnya","DI ISI")))))))) -> Lainnya | AG4: 1 | AH4: =IF(AG4="1","< 1 Km",IF(AG4="2","1-3 Km",IF(AG4="3","3-5 Km",IF(AG4="4","5-10 Km",IF(AG4="5","> 10 Km","DI ISI"))))) -> < 1 Km | AI4: 5 | AJ4: =IF(AI4="1","Jalan Kaki",IF(AI4="2","Sepeda",IF(AI4="3","motor",IF(AI4="4","Mobil Pribadi",IF(AI4="5","Antar/Jemput",IF(AI4="6","Angkutan",IF(AI4="7","Lainnya","DI ISI"))))))) -> Antar/Jemput | AK4: 1 | AL4: 1 | AM4: =IF(AL4="1","TK",IF(AL4="2","RA",IF(AL4="3","PAUD",IF(AL4="4","TKLB",IF(AL4="5","Langsung dari Ortu","DI ISI"))))) -> TK | AN4: TK MUSLIMAT NU 01 SUMBERSUKO | AO4: Dusun Sarirejo II | AP4: 2 | AQ4: 1 | AR4: Kebonsari | AU4: 082313686489 | AW4: 111235080166 | AX4: 18 | AY4: =AW4&AX4&C4 -> 111235080166184661
A5: =IF(D5="","",COUNTA($D$4:D5)) -> 2 | C5: 4662 | D5: ALIFIYAH FITRAH RAMADHANIYAH | E5: P | F5: BONDOWOSO | G5: 2011-08-20 | H5: =DATEDIF(G5,PETUNJUK!$H$10,"y") -> 7 | I5: 7 | J5: 3511156008110003 | K5: AGUS SUSANTO | L5: 3511150312860001 | M5: 03/12/1986 | N5: FATIMATUZ ZAHROH | O5: 3511155312910001 | P5: 13/12/1991 | Q5: 07 | R5: Pengusaha/Wiraswasta | S5: 01 | T5: Tdk Bekerja | U5: - | V5: - | W5: 2 | X5: SLTA | Y5: 2 | Z5: SLTA | AA5: 2 | AB5: Rp 500.001 - Rp 1.000.000 | AC5: 3 | AD5: =IF(AC5="1","Olahraga",IF(AC5="2","Kesenian",IF(AC5="3","Membaca",IF(AC5="4","Menulis",IF(AC5="5","Travelling",IF(AC5="6","Lainnya","DI ISI")))))) -> Membaca | AE5: 3 | AF5: =IF(AE5="1","PNS",IF(AE5="2","TNI/Polri",IF(AE5="3","Guru/Dosen",IF(AE5="4","Dokter",IF(AE5="5","Politikus",IF(AE5="6","Wiraswasta",IF(AE5="7","Pekerja Seni/Sejenis",IF(AE5="8","Lainnya","DI ISI")))))))) -> Guru/Dosen | AG5: 2 | AH5: =IF(AG5="1","< 1 Km",IF(AG5="2","1-3 Km",IF(AG5="3","3-5 Km",IF(AG5="4","5-10 Km",IF(AG5="5","> 10 Km","DI ISI"))))) -> 1-3 Km | AI5: 5 | AJ5: =IF(AI5="1","Jalan Kaki",IF(AI5="2","Sepeda",IF(AI5="3","motor",IF(AI5="4","Mobil Pribadi",IF(AI5="5","Antar/Jemput",IF(AI5="6","Angkutan",IF(AI5="7","Lainnya","DI ISI"))))))) -> Antar/Jemput | AK5: 1 | AL5: 1 | AM5: =IF(AL5="1","TK",IF(AL5="2","RA",IF(AL5="3","PAUD",IF(AL5="4","TKLB",IF(AL5="5","Langsung dari Ortu","DI ISI"))))) -> TK | AN5: TK MUSLIMAT NU 01 SUMBERSUKO | AO5: Dusun Krajan Timur | AP5: 18 | AQ5: 3 | AR5: Labruk Kidul | AU5: 082320036203 | AV5: 082336178552 | AW5: 111235080166 | AX5: 18 | AY5: =AW5&AX5&C5 -> 111235080166184662
A6: =IF(D6="","",COUNTA($D$4:D6)) -> 3 | C6: 4663 | D6: ANISA FAUZIA SETYAWATI | E6: P | F6: LUMAJANG | G6: 2012-05-29 | H6: =DATEDIF(G6,PETUNJUK!$H$10,"y") -> 7 | I6: 7 | J6: 3508216905120001 | K6: UMAR FAUZI | L6: 3508210704720005 | M6: 07/04/1972 | N6: ARIS SINTIA FATMAWATI | O6: 3508214211840001 | P6: 02/11/1984 | Q6: 06 | R6: Peg.Swasta | S6: 01 | T6: Tdk Bekerja | U6: - | V6: - | W6: 1 | X6: <=SLTP | Y6: 1 | Z6: <=SLTP | AA6: 2 | AB6: Rp 500.001 - Rp 1.000.000 | AC6: 3 | AD6: Membaca | AE6: 3 | AF6: Guru/Dosen | AG6: 2 | AH6: 1-3 Km | AI6: 5 | AJ6: Antar/Jemput | AK6: 1 | AL6: 1 | AM6: TK | AN6: TK Dewi Sartika Kebonsari | AO6: Dusun Sarirejo II | AP6: 24 | AQ6: 4 | AR6: Kebonsari | AU6: 087857096229 | AW6: 111235080166 | AX6: 18 | AY6: 111235080166184663
A7: =IF(D7="","",COUNTA($D$4:D7)) -> 4 | C7: 4664 | D7: ANIYAH CANDRA KIRANA | E7: P | F7: LUMAJANG | G7: 2011-04-22 | H7: =DATEDIF(G7,PETUNJUK!$H$10,"y") -> 8 | I7: 8 | J7: 3508216204110002 | K7: MUHAMMAD MUHLISIN | L7: 3508211811790001 | M7: 18/11/1979 | N7: ASTUTIK | O7: 3508214206830004 | P7: 02/06/1983 | Q7: 06 | R7: Peg.Swasta | S7: 06 | T7: Peg.Swasta | U7: - | V7: - | W7: 2 | X7: SLTA | Y7: 2 | Z7: SLTA | AA7: 3 | AB7: Rp 1.000.001 - Rp 2.000.000 | AC7: 4 | AD7: Menulis | AE7: 4 | AF7: Dokter | AG7: 2 | AH7: 1-3 Km | AI7: 5 | AJ7: Antar/Jemput | AK7: 2 | AL7: 1 | AM7: TK | AN7: TK MUSLIMAT NU 01 SUMBERSUKO | AO7: Dusun Krajan Barat | AP7: 30 | AQ7: 5 | AR7: Labruk Kidul | AU7: 081336864809 | AW7: 111235080166 | AX7: 18 | AY7: 111235080166184664
A8: =IF(D8="","",COUNTA($D$4:D8)) -> 5 | C8: 4665 | D8: ARFA BAGAS SUJONO | E8: L | F8: LUMAJANG | G8: 2012-03-13 | H8: =DATEDIF(G8,PETUNJUK!$H$10,"y") -> 7 | I8: 7 | J8: 3508211408740004 | K8: AGUS SUJONO | L8: 3508211408740004 | M8: 14/08/1974 | N8: MUHAIMINAH | O8: 3508214902850002 | P8: 09/02/1985 | Q8: 07 | R8: Pengusaha/Wiraswasta | S8: 01 | T8: Tdk Bekerja | U8: - | V8: - | W8: 1 | X8: <=SLTP | Y8: 1 | Z8: <=SLTP | AA8: 3 | AB8: Rp 1.000.001 - Rp 2.000.000 | AC8: 1 | AD8: Olahraga | AE8: 4 | AF8: Dokter | AG8: 1 | AH8: < 1 Km | AI8: 1 | AJ8: Jalan Kaki | AK8: 1 | AL8: 1 | AM8: TK | AN8: TK MUSLIMAT NU 01 SUMBERSUKO | AO8: Dusun Gedongsari | AP8: 55 | AQ8: 8 | AR8: Labruk Kidul | AU8: 082141810309 | AW8: 111235080166 | AX8: 18 | AY8: 111235080166184665
A9: =IF(D9="","",COUNTA($D$4:D9)) -> 6 | C9: 4666 | D9: BAIDOATUL AJENG MASILAH | E9: P | F9: LUMAJANG | G9: 2011-06-18 | H9: =DATEDIF(G9,PETUNJUK!$H$10,"y") -> 8 | I9: 8 | J9: 3508215805110002 | K9: FATKHUL LATIF | L9: 3508212003790002 | M9: 20/03/1979 | N9: NUR FADILAH | O9: 3508215801800002 | P9: 18/01/1980 | Q9: 07 | R9: Pengusaha/Wiraswasta | S9: 01 | T9: Tdk Bekerja | U9: - | V9: - | W9: 2 | X9: SLTA | Y9: 1 | Z9: <=SLTP | AA9: 2 | AB9: Rp 500.001 - Rp 1.000.000 | AC9: 6 | AD9: Lainnya | AE9: 4 | AF9: Dokter | AG9: 1 | AH9: < 1 Km | AI9: 1 | AJ9: Jalan Kaki | AK9: 1 | AL9: 1 | AM9: TK | AN9: TK MUSLIMAT NU 01 SUMBERSUKO | AO9: Dusun Krajan Timur | AP9: 23 | AQ9: 4 | AR9: Labruk Kidul | AU9: 082338967810 | AW9: 111235080166 | AX9: 18 | AY9: 111235080166184666
A10: =IF(D10="","",COUNTA($D$4:D10)) -> 7 | C10: 4667 | D10: CLEO PRATAMA | E10: L | F10: LUMAJANG | G10: 2011-05-02 | H10: =DATEDIF(G10,PETUNJUK!$H$10,"y") -> 8 | I10: 8 | J10: 3508030205110001 | K10: NGATISAH KURNIAWATI | N10: NGATISAH KURNIAWATI | Q10: 01 | R10: Tdk Bekerja | S10: 01 | T10: Tdk Bekerja | U10: - | V10: - | W10: 2 | X10: SLTA | Y10: 1 | Z10: <=SLTP | AA10: 3 | AB10: Rp 1.000.001 - Rp 2.000.000 | AC10: 1 | AD10: Olahraga | AE10: 2 | AF10: TNI/Polri | AG10: 1 | AH10: < 1 Km | AI10: 5 | AJ10: Antar/Jemput | AK10: 1 | AL10: 1 | AM10: TK | AN10: TK Dharma Wanita Labruk Kidul | AO10: Panggung Lombok | AP10: 3 | AQ10: 7 | AR10: Candipuro | AU10: 082245482446 | AW10: 111235080166 | AX10: 18 | AY10: 111235080166184667
A11: =IF(D11="","",COUNTA($D$4:D11)) -> 8 | C11: 4668 | D11: DENISHA ANANDA DIRA SALSABILLA | E11: P | F11: LUMAJANG | G11: 2012-01-23 | H11: =DATEDIF(G11,PETUNJUK!$H$10,"y") -> 7 | I11: 7 | J11: 3508212603170002 | K11: RUDI PURWONO | L11: 3508210705880003 | M11: 07/05/1988 | N11: RATNA RATIKASARI | O11: 3508215103900001 | P11: 11/03/1990 | Q11: 12 | R11: Pedagang | S11: 01 | T11: Tdk Bekerja | U11: - | V11: - | W11: 1 | X11: <=SLTP | Y11: 2 | Z11: SLTA | AA11: 1 | AB11: <= Rp.500.000 | AC11: 3 | AD11: Membaca | AE11: 4 | AF11: Dokter | AG11: 3 | AH11: 3-5 Km | AI11: 5 | AJ11: Antar/Jemput | AK11: 2 | AL11: 1 | AM11: TK | AN11: Kurnia bangsa | AO11: Dusun Srebet | AP11: 8 | AQ11: 1 | AR11: Purwosono | AU11: 081913322406 | AW11: 111235080166 | AX11: 18 | AY11: 111235080166184668
A12: =IF(D12="","",COUNTA($D$4:D12)) -> 9 | C12: 4669 | D12: FAHIM BIBI JANUAR | E12: L | F12: LUMAJANG | G12: 2012-01-14 | H12: =DATEDIF(G12,PETUNJUK!$H$10,"y") -> 7 | I12: 7 | J12: 3508211401120003 | K12: NURUL HUDA | L12: 3508210905890005 | M12: 09/05/1989 | N12: FILA FINORIKA | O12: 3508215311940001 | P12: 13/11/1994 | Q12: 07 | R12: Pengusaha/Wiraswasta | S12: 01 | T12: Tdk Bekerja | U12: - | V12: =IF(S12="03","DIISI","-") -> - | W12: 1 | X12: <=SLTP | Y12: 1 | Z12: <=SLTP | AA12: 2 | AB12: Rp 500.001 - Rp 1.000.000 | AC12: 1 | AD12: Olahraga | AE12: 8 | AF12: Lainnya | AG12: 2 | AH12: 1-3 Km | AI12: 5 | AJ12: Antar/Jemput | AK12: 2 | AL12: 1 | AM12: TK | AN12: TK Dharma Wanita Grati 01 | AO12: Jl. Mawar | AP12: 10 | AQ12: 4 | AR12: Grati | AU12: 085604773233 | AV12: 082217973805 | AW12: 111235080166 | AX12: 18 | AY12: 111235080166184669
A13: =IF(D13="","",COUNTA($D$4:D13)) -> 10 | C13: 4670 | D13: INTAN PUTRI CAHYANI | E13: P | F13: LUMAJANG | G13: 2011-06-07 | H13: =DATEDIF(G13,PETUNJUK!$H$10,"y") -> 8 | I13: 8 | J13: 3508214706110001 | K13: KHOIRUL ANAM | L13: 3508213101720002 | M13: 31/01/1972 | N13: SITI WAFIROH | O13: 3508217011880002 | P13: 30/11/1988 | Q13: 03 | R13: PNS | S13: 01 | T13: Tdk Bekerja | U13: DIISI | V13: =IF(S13="03","DIISI","-") -> - | W13: 2 | X13: SLTA | Y13: 2 | Z13: SLTA | AA13: 3 | AB13: Rp 1.000.001 - Rp 2.000.000 | AC13: 3 | AD13: Membaca | AE13: 3 | AF13: Guru/Dosen | AG13: 1 | AH13: < 1 Km | AI13: 1 | AJ13: Jalan Kaki | AK13: 1 | AL13: 1 | AM13: TK | AN13: TK MUSLIMAT NU 01 SUMBERSUKO | AO13: Dusun Krajan Timur | AP13: 16 | AQ13: 3 | AR13: Labruk Kidul | AU13: 082142090620 | AW13: 111235080166 | AX13: 18 | AY13: 111235080166184670
